Workbook

Sheet Adm (hidden)
A1: CONDICIONES HIPOTECA SANTANDER | FZ1: CONDICIONES HIPOTECA FREE
B2: Destino | D2: Esquema de Pagos | E2: Programa Construcción | F2: Inspección de Obra | G2: Apoyo INFONAVIT | H2: Plazo | I2: TIPO DE INGRESOS | J2: PTI MAXIMO (máximo endeudamiento posible) | K2: Avalúo | O2: IVA | P2: Comisión apertura | Q2: Comisión por administración | R2: Escrituración | S2: SEGUROS CON EL BANCO | T2: Numero de Intervinientes | U2: FACTORES SEGUROS | Z2: Monto mínimo de Crédito | AA2: Valor mínimo vivienda | AB2: Financiamiento de Gastos | AC2: Origen del crédito | AD2: ¿Coahuila? Para Liquidez PR | AE2: TASA origen | AF2: PAGO POR MIL tabla | AG2: Crecientes PAGO POR MIL -SANTANDER | AP2: AJUSTE ANUAL | AQ2: OFERTAS ESPECIALES | AR2: EMBAJADORES | AS2: EXTRANJEROS | AT2: VERDE | AU2: Alto Valor | AV2: Sinergia BEI | AW2: Gubernamentales | AX2: Públicos | AY2: Mazda | BA2: "escogeofertasan" | BC2: DESTINOS | BN2: Selección Plan Hipoteca PLUS | BO2: Tasa base | BP2: Plan Platino | BQ2: Plan Asalariado | BV2: Rangos OFERTA | DY2: AFORO POR DESTINO | GC2: Destino | GE2: Esquema de Pagos | GF2: Apoyo INFONAVIT | GG2: Plazo | GH2: TIPO DE INGRESOS | GI2: PTI MAXIMO (máximo endeudamiento posible) | GJ2: Avalúo | GK2: IVA | GL2: Comisión apertura | GM2: Comisión por administración | GN2: Escrituración | GO2: SEGUROS CON EL BANCO | GP2: Numero de Intervinientes | GQ2: FACTORES SEGUROS | GU2: Monto mínimo de Crédito | GV2: Valor mínimo vivienda | GW2: Financiamiento de Gastos | GX2: Origen del crédito | GY2: ¿Coahuila? Para Liquidez PR | GZ2: TASA origen | HA2: PAGO POR MIL tabla | HB2: FREE | HC2: FREE | HD2: FREE | HE2: FREE | HF2: FREE | HG2: FREE | HX2: AJUSTE ANUAL | ID2: OFERTAS ESPECIALES | IE2: Segundo nivel OFERTA COLECTIVOS | IF2: EMBAJADORES | IG2: EXTRANJEROS | IH2: Alto Valor | II2: Sinergia BEI | IJ2: Gubernamentales | IK2: Públicos | IM2: "Escogeofertafree" | IO2: DESTINOS | JB2: Rangos OFERTA | KG2: AFORO POR DESTINO
E3: "Construcción" | H3: "Plazo" | T3: "Intervinientes" | U3: Modalidad | V3: Factor VIDA | W3: Obra | X3: Daños | Y3: Factor Asegurable | Z3: 100000 | AA3: 250000 | AB3: "gastos" | AC3: "origen" | AG3: Crecientes | AP3: =IF(H4=180,VLOOKUP(AE4,AG7:AI111,3,0),IF(H4=240,VLOOKUP(AE4,AJ7:AL111,3,0),IF(H4=300,VLOOKUP(AE4,AM7:AO9,3,0),0))) -> 0 | AQ3: =Captura!F17 -> Ninguno | AR3: =IF($AQ$3=$AQ$8,"SI",0) -> 0 | AS3: =IF($AQ$3=$AQ$9,"SI",0) -> 0 | AT3: =IF($AQ$3=$AQ$10,"SI",0) -> 0 | AU3: =IF($AQ$3=$AQ$11,"SI",0) -> 0 | AV3: =IF($AQ$3=$AQ$12,"SI",0) -> 0 | AW3: =IF($AQ$3=$AQ$13,"SI",0) -> 0 | AX3: =IF($AQ$3=$AQ$14,"SI",0) -> 0 | AY3: =IF($AQ$3=$AQ$15,"SI",0) -> 0 | BA3: COLECTIVO | BB3: PRODUCTO | BC3: Adquisición | BD3: Adquisición con Apoyo INFONAVIT | BE3: Cofinavit | BF3: Sustitución | BG3: Mejora de Condiciones | BH3: Terminación de Obra y Remodelación | BI3: Construcción | BJ3: Terreno | BK3: Liquidez | BL3: OFERTA VALIDA para mostrar | BN3: =IF(BN5="no",0,Captura!F78) -> 0 | BO3: 0.095 | BP3: 0.089 | BU3: OFERTA SELECCIONADA | BV3: =CONCATENATE(B4,AQ3) -> 0Ninguno | BY3: OFERTA DE TASAS - "BASETASASASANTANDER" | EC3: AFOROS ASALARIADO - "Aforodestino" | GG3: "Plazo" | GP3: "Intervinientes" | GQ3: Modalidad | GR3: Factor VIDA | GS3: Daños | GT3: Factor Asegurable | GU3: 100000 | GV3: 250000 | GW3: "gastos" | GX3: "origen" | GY3: =IF(GC4=GB116,Free!K19,"") ->  | HA3: =IF(GE4="Fijos",HH3,IF(GE4="Crecientes",HP3,0)) -> 0 | HB3: TASA | HC3: Tasa mínima | HD3: Tasa tope | HE3: Reducción anual | HH3: =VLOOKUP(GZ4,freeConge,MATCH(GG4,HG5:HM5,0)) ->  | HP3: =VLOOKUP(GZ4,freeProgra,MATCH(GG4,HO5:HU5,0)) ->  | HX3: =VLOOKUP(GZ4,freeajuste,MATCH(GG4,HW5:IC5,0)) ->  | ID3: =Free!I9 -> Ninguno | IF3: =IF(ID3=ID8,"SI",0) -> 0 | IG3: =IF(ID3=ID9,"SI",0) -> 0 | IH3: =IF(ID3=ID10,"SI",0) -> 0 | II3: =IF(ID3=ID11,"SI",0) -> 0 | IJ3: =IF(ID3=ID12,"SI",0) -> 0 | IK3: =IF(ID3=ID13,"SI",0) -> 0 | IN3: PRODUCTO | IO3: Adquisición | IP3: Adquisición con Apoyo INFONAVIT | IQ3: Cofinavit | IR3: Sustitución | IS3: Mejora de Condiciones | IT3: Terminación de Obra y Remodelación | IU3: Construcción | IV3: Terreno | IW3: Liquidez | IX3: OFERTA VALIDA para mostrar | JA3: OFERTA SELECCIONADA | JB3: =CONCATENATE(GC4,ID3) -> 0Ninguno | JE3: OFERTA DE TASAS - "BASETASAS" | KK3: AFOROS ASALARIADO - "Aforodestinofree"
B4: =Captura!F15 -> 0 | D4: =Captura!F31 -> 0 | E4: =Captura!N31 -> 0 | F4: =IF(B4=A118,F5,0) -> 0 | G4: =IF(B4=A113,"si",IF(OR(B4=A118,AND(B4=A116,AC4=AC14)),Captura!N25,G16)) ->  | H4: =Captura!F21 -> 0 | I4: =Captura!F13 -> Asalariado | J4: Riesgo 5 | K4: =_xlfn.XLOOKUP(AA9,M7:M21,N7:N21,0,1,1) -> 2000 | O4: =IF(OR(B4=A116,B4=A117),O6,IF(ISNA(VLOOKUP(B4,lista,4,0)),0,VLOOKUP(B4,lista,4,0))) -> 0 | P4: =IF(ISNA(VLOOKUP(B4,lista,2,0)),0,VLOOKUP(B4,lista,2,0)) -> 0 | Q4: =IF(ISNA(VLOOKUP(B4,lista,3,0)),0,VLOOKUP(B4,lista,3,0)) -> 0 | R4: =Captura!F27 -> 0 | S4: =Captura!F23 -> SI | T4: =Captura!F29 -> 1 | U4: =IF(AS3="SI","Extranjeros","Santander") -> Santander | V4: =IF(S4="NO",0,VLOOKUP(T4,T7:V10,MATCH(U4,T6:V6,0))) -> 0.0005154 | W4: =IF(S5="NO",0,IF(B4=A118,W7,0)) -> 0 | X4: =IF(S5="NO",0,IF(B4=A119,0,X7)) -> 0.0003 | Y4: 0.7 | Z4: Monto mínimo de Crédito construcción | AA4: Valor mínimo terreno construcción | AB4: =Captura!N21 -> 0 | AC4: =Captura!N19 -> 0 | AD4: Lista selección Santander | AE4: =Cal!AB116 -> 0 | AF4: =IF(D4="Fijos",AF6,AG4) -> 0 | AG4: =IF(AND(D4="Crecientes",Adm!BN3>""),Captura!AT82,IF(H4=180,VLOOKUP(AE4,AG7:AH111,2,0),IF(H4=240,VLOOKUP(AE4,AJ7:AK111,2,0),IF(H4=300,VLOOKUP(AE4,AM7:AO9,2,0),0)))) -> 0 | AQ4: Valida oferta | AS4: Referencias en México | BA4: Embajadores | BB4: AMBOS | BC4: SI | BD4: SI | BE4: SI | BF4: SI | BG4: NO | BH4: NO | BI4: NO | BJ4: NO | BK4: NO | BL4: =IF($AQ$3=AQ8,"VERDADERO","FALSO") -> FALSO | BN4: ¿APLICA PLUS? | BO4: 0.0975 | BP4: 0.0895 | BU4: OFERTA | BV4: Perfiles | BW4: Tasas MA | BZ4: Perfiles | CA4: AdquisiciónNinguno | CB4: Adquisición con Apoyo INFONAVITNinguno | CC4: CofinavitNinguno | CD4: Mejora de CondicionesNinguno | CE4: ConstrucciónNinguno | CF4: Adquisición SimplificadaNinguno | CG4: SustituciónNinguno | CH4: LiquidezNinguno | CI4: TerrenoNinguno | CJ4: AdquisiciónEmbajadores | CK4: Adquisición con Apoyo INFONAVITEmbajadores | CL4: CofinavitEmbajadores | CM4: Mejora de CondicionesEmbajadores | CN4: ConstrucciónNinguno | CO4: Adquisición SimplificadaEmbajadores | CP4: SustituciónEmbajadores | CQ4: AdquisiciónVerde | CR4: Adquisición con Apoyo INFONAVITVerde | CS4: CofinavitVerde | CT4: AdquisiciónExtranjeros | CU4: AdquisiciónBlack | CV4: Adquisición con Apoyo INFONAVITBlack | CW4: CofinavitBlack | CX4: AdquisiciónBlack embajadores | CY4: Adquisición con Apoyo INFONAVITBlack embajadores | CZ4: CofinavitBlack embajadores | DA4: AdquisiciónDiamante | DB4: Adquisición con Apoyo INFONAVITDiamante | DC4: CofinavitDiamante | DD4: SustituciónDiamante | DE4: AdquisiciónAlto Valor | DF4: Adquisición con Apoyo INFONAVITAlto Valor | DG4: CofinavitAlto Valor | DH4: AdquisiciónSinergia BEI | DI4: Adquisición con Apoyo INFONAVITSinergia BEI | DJ4: CofinavitSinergia BEI | DK4: AdquisiciónGubernamentales | DL4: Adquisición con Apoyo INFONAVITGubernamentales | DM4: CofinavitGubernamentales | DN4: AdquisiciónPúblicos | DO4: Adquisición con Apoyo INFONAVITPúblicos | DP4: CofinavitPúblicos | DQ4: AdquisiciónMazda | DR4: Adquisición con Apoyo INFONAVITMazda | DS4: CofinavitMazda | DT4: AdquisiciónAsalariados | DU4: Adquisición con Apoyo INFONAVITAsalariados | DV4: CofinavitAsalariados | DY4: OFERTA | DZ4: Perfiles | EA4: AFORO | ED4: Perfiles | EE4: AdquisiciónNinguno | EF4: Adquisición con Apoyo INFONAVITNinguno | EG4: CofinavitNinguno | EH4: Mejora de CondicionesNinguno | EI4: ConstrucciónNinguno | EJ4: Adquisición SimplificadaNinguno | EK4: SustituciónNinguno | EL4: LiquidezNinguno | EM4: TerrenoNinguno | EN4: AdquisiciónEmbajadores | EO4: Adquisición con Apoyo INFONAVITEmbajadores | EP4: CofinavitEmbajadores | EQ4: Mejora de CondicionesEmbajadores | ER4: ConstrucciónEmbajadores | ES4: Adquisición SimplificadaEmbajadores | ET4: SustituciónEmbajadores | EU4: AdquisiciónVerde | EV4: Adquisición con Apoyo INFONAVITVerde | EW4: CofinavitVerde | EX4: AdquisiciónExtranjeros | EY4: AdquisiciónAlto Valor | EZ4: Adquisición con Apoyo INFONAVITAlto Valor | FA4: CofinavitAlto Valor | FB4: AdquisiciónSinergia BEI | FC4: Adquisición con Apoyo INFONAVITSinergia BEI | FD4: CofinavitSinergia BEI | FE4: AdquisiciónGubernamentales | FF4: Adquisición con Apoyo INFONAVITGubernamentales | FG4: CofinavitGubernamentales | FH4: AdquisiciónPúblicos | FI4: Adquisición con Apoyo INFONAVITPúblicos | FJ4: CofinavitPúblicos | FK4: AdquisiciónMazda | FL4: Adquisición con Apoyo INFONAVITMazda | FM4: CofinavitMazda | FN4: AdquisiciónAsalariados | FO4: Adquisición con Apoyo INFONAVITAsalariados | FP4: CofinavitAsalariados | GC4: =Free!F9 -> 0 | GE4: =Free!F23 -> 0 | GF4: =IF(GC4=GB113,"si",IF(AND(GC4=GB116,GX4=GX14),Free!K25,GF16)) ->  | GG4: =Free!F11*12 -> 0 | GH4: =Free!F7 -> Asalariado | GI4: Riesgo 5 | GJ4: 0.00275 | GK4: =IF(AND(GC4=GB116,GX4=GX15),GK8,0) -> 0 | GL4: =IF(ISNA(VLOOKUP(GC4,ListaFree,2,0)),0,VLOOKUP(GC4,ListaFree,2,0)) -> 0 | GM4: =IF(ISNA(VLOOKUP(GC4,ListaFree,3,0)),0,VLOOKUP(GC4,ListaFree,3,0)) -> 0 | GN4: =Free!F19 -> 0 | GO4: =Free!F13 -> SI | GP4: =Free!F21 -> 1 | GQ4: =IF(IG3="SI","Extranjeros","FREE") -> FREE | GR4: =IF(GO4="NO",0,IF(AND(IK3="si",IK5="si"),GQ12,IF($GO$12=$GO$13,0,VLOOKUP(GP4,GP6:GR9,MATCH(GQ4,GP5:GR5,0))))) -> 0 | GS4: =IF(GO5="NO",0,IF(GO12=GO13,0,GS6)) -> 0 | GT4: 0.7 | GU4: Monto crédito máximo FREE | GW4: =IF(GC4=GB116,Free!K23,"") ->  | GX4: =IF(GC4=GB116,Free!K21,"") ->  | GY4: =IF(GC4=GB116,"SI","") ->  | GZ4: =Cal!BO116 -> 0 | HA4: LIQUIDEZ TWIN | HB4: 0.1085 | HC4: =HB4-0.01 -> 0.0985 | HD4: =HB4+0.01 -> 0.1185 | HE4: 0.0025 | HG4: TASA | HH4: FIJOS Pago por mil, "Freeconge" | HO4: TASA | HQ4: CRECIENTES Pago por mil, "Freeprogra" | HW4: TASA | HX4: CRECIENTES Ajuste anual "Freeajuste" | ID4: Valida oferta | IE4: Valida colectivo | IG4: Referencias en México | IK4: ¿Arma de fuego? | IM4: Embajadores | IN4: AMBOS | IO4: SI | IP4: SI | IQ4: SI | IR4: SI | IS4: NO | IT4: NO | IU4: NO | IV4: NO | IW4: NO | IX4: =IF(AND($ID$3=ID8,$IE$3<>""),"VERDADERO","FALSO") -> FALSO | JA4: OFERTA | JB4: Perfiles | JC4: Tasas MA | JF4: Perfiles | JG4: AdquisiciónNinguno | JH4: Adquisición con Apoyo INFONAVITNinguno | JI4: CofinavitNinguno | JJ4: Adquisición SimplificadaNinguno | JK4: SustituciónNinguno | JL4: Terminación de Obra y RemodelaciónNinguno | JM4: AdquisiciónEmbajadores | JN4: Adquisición con Apoyo INFONAVITEmbajadores | JO4: CofinavitEmbajadores | JP4: Adquisición SimplificadaEmbajadores | JQ4: SustituciónEmbajadores | JR4: Terminación de Obra y RemodelaciónEmbajadores | JS4: AdquisiciónExtranjeros | JT4: AdquisiciónAlto Valor | JU4: Adquisición con Apoyo INFONAVITAlto Valor | JV4: CofinavitAlto Valor | JW4: AdquisiciónSinergia BEI | JX4: Adquisición con Apoyo INFONAVITSinergia BEI | JY4: CofinavitSinergia BEI | JZ4: AdquisiciónGubernamentales | KA4: Adquisición con Apoyo INFONAVITGubernamentales | KB4: CofinavitGubernamentales | KC4: AdquisiciónPúblicos | KD4: Adquisición con Apoyo INFONAVITPúblicos | KE4: CofinavitPúblicos | KG4: OFERTA | KH4: Perfiles | KI4: AFORO | KL4: Perfiles | KM4: AdquisiciónNinguno | KN4: Adquisición con Apoyo INFONAVITNinguno | KO4: CofinavitNinguno | KP4: Adquisición SimplificadaNinguno | KQ4: SustituciónNinguno | KR4: Terminación de Obra y RemodelaciónNinguno | KS4: AdquisiciónEmbajadores | KT4: Adquisición con Apoyo INFONAVITEmbajadores | KU4: CofinavitEmbajadores | KV4: Adquisición SimplificadaEmbajadores | KW4: SustituciónEmbajadores | KX4: Terminación de Obra y RemodelaciónEmbajadores | KY4: AdquisiciónExtranjeros | KZ4: AdquisiciónAlto Valor | LA4: Adquisición con Apoyo INFONAVITAlto Valor | LB4: CofinavitAlto Valor | LC4: AdquisiciónSinergia BEI | LD4: Adquisición con Apoyo INFONAVITSinergia BEI | LE4: CofinavitSinergia BEI | LF4: AdquisiciónGubernamentales | LG4: Adquisición con Apoyo INFONAVITGubernamentales | LH4: CofinavitGubernamentales | LI4: AdquisiciónPúblicos | LJ4: Adquisición con Apoyo INFONAVITPúblicos | LK4: CofinavitPúblicos
B5: Lista SELECCIÓN "DestinosSantander" | C5: Apoyo infonavit | D5: Lista SELECCION esquema | E5: Lista Selección Pograma Construcción | F5: 11500 | G5: UMA 2025 | H5: lista de PLAZO | J5: 0.6 | L5: Valor vivienda | N5: Precio | O5: Susti / Mejoras | Q5: Comisión Susti Cofis | S5: =Captura!F25 -> SI | Z5: 700000 | AA5: 250000 | AD5: SI | AE5: TASAS CON BENEFICIOS | AF5: fijos | AG5: 180 | AJ5: 240 | AM5: 300 | AQ5: =IFERROR(VLOOKUP(AQ3,ofertassantander,1,0),"FALSO") -> Ninguno | AS5: =Captura!F19 -> 0 | BA5: Extranjeros | BB5: AMBOS | BC5: SI | BD5: NO | BE5: NO | BF5: NO | BG5: NO | BH5: NO | BI5: NO | BJ5: NO | BK5: NO | BL5: =IF($AQ$3=AQ9,"VERDADERO","FALSO") -> FALSO | BN5: =IF(ISNA(VLOOKUP(B4,lista,6,0)),0,VLOOKUP(B4,lista,6,0)) -> 0 | BO5: 0.098 | BP5: 0.0885 | BQ5: 0.095 | BV5: 1 | BW5: =VLOOKUP(BV5,Basetasassantander,MATCH($BV$3,$BZ$4:$DV$4,0)) ->  | BZ5: 1 | CA5: 0.1325 | CB5: 0.1325 | CC5: 0.1325 | CD5: 0.1325 | CE5: 0.1325 | CF5: 0.1025 | CG5: 0.121 | CH5: 0.125 | CI5: 0.115 | CJ5: 0.1275 | CK5: 0.1275 | CL5: 0.1275 | CM5: 0.1275 | CN5: 0.1275 | CO5: 0.0975 | CP5: 0.1159 | CQ5: 0.105 | CR5: 0.105 | CS5: 0.105 | CT5: 0.1025 | CU5: 0.13 | CV5: 0.13 | CW5: 0.13 | CX5: 0.1249 | CY5: 0.1249 | CZ5: 0.1249 | DA5: NA | DB5: NA | DC5: NA | DD5: NA | DE5: 0.1025 | DF5: 0.1025 | DG5: 0.1025 | DH5: 0.1025 | DI5: 0.1025 | DJ5: 0.1025 | DK5: 0.1025 | DL5: 0.1025 | DM5: 0.1025 | DN5: 0.1025 | DO5: 0.1025 | DP5: 0.1025 | DQ5: 0.0895 | DR5: 0.0895 | DS5: 0.0895 | DT5: 0.118 | DU5: 0.118 | DV5: 0.118 | DZ5: 1 | EA5: =IF($I$4="Asalariado",VLOOKUP(DZ5,Aforodestino,MATCH($BV$3,$ED$4:$FP$4,0)),IF($I$4="NO asalariado",VLOOKUP(DZ5,AforodestinoNO,MATCH($BV$3,$ED$12:$FM$12,0)))) ->  | ED5: 1 | EE5: 0.75 | EF5: 0.75 | EG5: 1 | EH5: 0.75 | EI5: =IF(Captura!$F$35>$Z$11,75%,80%) -> 0.8 | EJ5: 0.35 | EK5: 0.75 | EL5: 0.6 | EM5: 0.7 | EN5: 0.75 | EO5: 0.75 | EP5: 1 | EQ5: 0.75 | ER5: =IF(Captura!$F$35>$Z$11,75%,80%) -> 0.8 | ES5: 0.35 | ET5: 0.75 | EU5: 0.75 | EV5: 0.75 | EW5: 1 | EX5: =IF(Captura!$F$35>$Z$11,75%,IF($AS$5="SI",90%,80%)) -> 0.8 | EY5: 0.75 | EZ5: 0.75 | FA5: 1 | FB5: 0.75 | FC5: 0.75 | FD5: 1 | FE5: 0.75 | FF5: 0.75 | FG5: 1 | FH5: 0.75 | FI5: 0.75 | FJ5: 1 | FK5: 0.75 | FL5: 0.75 | FM5: 1 | FN5: 0.75 | FO5: 0.75 | FP5: 1 | GC5: LISTA DESTINOS FREE "DestinosFree" | GD5: Apoyo infonavit | GE5: Fijos | GF5: UMA 2024 | GG5: Valida Plazo | GI5: 0.6 | GK5: Sustitución | GO5: =Free!F15 -> SI | GQ5: FREE | GR5: Extranjeros | GS5: Factores Free | GU5: 6000000 | GW5: Lista selección Santander/ Free | GX5: Lista selección Free | GY5: =IF(GC4=GB116,"NO","") ->  | GZ5: tasa liquidez Twin | HA5: =HA3 -> 0 | HB5: 0.1135 | HC5: =HB5-0.01 -> 0.1035 | HD5: =HB5+0.01 -> 0.1235 | HG5: TASA | HH5: 240 | HI5: 204 | HJ5: 180 | HK5: 144 | HL5: 120 | HM5: 96 | HO5: TASA | HP5: 240 | HQ5: 204 | HR5: 180 | HS5: 144 | HT5: 120 | HU5: 96 | HW5: TASA | HX5: 240 | HY5: 204 | HZ5: 180 | IA5: 144 | IB5: 120 | IC5: 96 | ID5: =IFERROR(VLOOKUP(ID3,Ofertasfree,1,0),"FALSO") -> Ninguno | IG5: =Free!L9 -> 0 | IJ5: =IF(AND(IK3="si",IK5="si"),1,2) -> 2 | IK5: =Free!N9 -> 0 | IM5: Extranjeros | IN5: AMBOS | IO5: SI | IP5: NO | IQ5: NO | IR5: NO | IS5: NO | IT5: NO | IU5: NO | IV5: NO | IW5: NO | IX5: =IF(AND($ID$3=ID9,$IE$3<>""),"VERDADERO","FALSO") -> FALSO | JB5: 1 | JC5: =VLOOKUP(JB5,basetasasfree,MATCH($JB$3,$JF$4:$KE$4,0)) ->  | JF5: 1 | JG5: 0.1135 | JH5: 0.1135 | JI5: 0.1135 | JJ5: 0.1135 | JK5: 0.1135 | JL5: 0.1135 | JM5: 0.1085 | JN5: 0.1085 | JO5: 0.1085 | JP5: 0.1085 | JQ5: 0.1085 | JR5: 0.1085 | JS5: 0.1135 | JT5: 0.1085 | JU5: 0.1085 | JV5: 0.1085 | JW5: 0.1085 | JX5: 0.1085 | JY5: 0.1085 | JZ5: 0.1085 | KA5: 0.1085 | KB5: 0.1085 | KC5: 0.1085 | KD5: 0.1085 | KE5: 0.1085 | KH5: 1 | KI5: =IF($GH$4="Asalariado",VLOOKUP(KH5,Aforodestinofree,MATCH($JB$3,$KL$4:$LK$4,0)),IF($GH$4="NO asalariado",VLOOKUP(KH5,aforodestinofreeNO,MATCH($JB$3,$KL$12:$LK$12,0)))) ->  | KL5: 1 | KM5: 0.75 | KN5: 0.75 | KO5: 1 | KP5: 0.35 | KQ5: 0.75 | KR5: 0.5 | KS5: 0.75 | KT5: 0.75 | KU5: 1 | KV5: 0.35 | KW5: 0.75 | KX5: 0.5 | KY5: =IF($IG$5="SI",90%,80%) -> 0.8 | KZ5: 0.75 | LA5: 0.75 | LB5: 1 | LC5: 0.75 | LD5: 0.75 | LE5: 1 | LF5: 0.75 | LG5: 0.75 | LH5: 1 | LI5: 0.75 | LJ5: 0.75 | LK5: 1
B6: Adquisición | C6: =IF(B4=A113,"si","no") -> no | D6: Fijos | E6: =IF(B4=A118,"Construcción en Terreno Propio","") ->  | G6: 113.14 | H6: =IF(Adm!B4=Adm!A120,0,1) -> 1 | I6: Lista selección | J6: Riesgo 4 | K6: Sustitución | L6: Desde | M6: Hasta | O6: =IF(AC4=AC15,16%,0) -> 0 | Q6: 350 | S6: Lista selección | U6: Santander | V6: Extranjeros | W6: Obra | X6: Daños | Z6: Monto mínimo crédito liquidez TWIN | AA6: Valor Máximo terreno | AB6: Lista selección | AC6: Lista selección | AD6: NO | AE6: =IF(BN3=0,Cal!AB116,IFERROR(VLOOKUP(Cal!AB116,BO3:BR33,MATCH(BN3,BO2:BR2,0)),0)) -> 0 | AF6: =IF(B4=A118,PMT(((AE6/360)*(365/12)),H4-E13,-1000),PMT(((AE6/360)*(365/12)),H4,-1000)) ->  | AG6: tasas | AJ6: tasas | AM6: tasas | AS6: Lista selección | BA6: Verde | BB6: SANTANDER | BC6: SI | BD6: SI | BE6: SI | BF6: NO | BG6: NO | BH6: NO | BI6: NO | BJ6: NO | BK6: NO | BL6: =IF($AQ$3=AQ10,"VERDADERO","FALSO") -> FALSO | BN6: Lista selección | BO6: 0.1 | BP6: 0.089 | BV6: 2 | BW6: =VLOOKUP(BV6,Basetasassantander,MATCH($BV$3,$BZ$4:$DV$4,0)) ->  | BZ6: 2 | CA6: 0.1225 | CB6: 0.1225 | CC6: 0.1225 | CD6: 0.1225 | CE6: 0.1225 | CF6: 0.1025 | CG6: 0.121 | CH6: 0.125 | CI6: 0.115 | CJ6: 0.1175 | CK6: 0.1175 | CL6: 0.1175 | CM6: 0.1175 | CN6: 0.1175 | CO6: 0.0975 | CP6: 0.1159 | CQ6: 0.105 | CR6: 0.105 | CS6: 0.105 | CT6: 0.1025 | CU6: 0.12 | CV6: 0.12 | CW6: 0.12 | CX6: 0.1149 | CY6: 0.1149 | CZ6: 0.1149 | DA6: NA | DB6: NA | DC6: NA | DD6: NA | DE6: 0.1025 | DF6: 0.1025 | DG6: 0.1025 | DH6: 0.1025 | DI6: 0.1025 | DJ6: 0.1025 | DK6: 0.1025 | DL6: 0.1025 | DM6: 0.1025 | DN6: 0.1025 | DO6: 0.1025 | DP6: 0.1025 | DQ6: 0.0895 | DR6: 0.0895 | DS6: 0.0895 | DT6: 0.118 | DU6: 0.118 | DV6: 0.118 | DZ6: 2 | EA6: =IF($I$4="Asalariado",VLOOKUP(DZ6,Aforodestino,MATCH($BV$3,$ED$4:$FP$4,0)),IF($I$4="NO asalariado",VLOOKUP(DZ6,AforodestinoNO,MATCH($BV$3,$ED$12:$FM$12,0)))) ->  | ED6: 2 | EE6: =IF(Captura!$F$35>$Z$11,75%,80%) -> 0.8 | EF6: 0.8 | EG6: 1 | EH6: =IF(Captura!$F$35>$Z$11,75%,80%) -> 0.8 | EI6: =IF(Captura!$F$35>$Z$11,75%,80%) -> 0.8 | EJ6: 0.35 | EK6: =IF(Captura!$F$35>$Z$11,75%,80%) -> 0.8 | EL6: 0.6 | EM6: 0.7 | EN6: =IF(Captura!$F$35>$Z$11,75%,80%) -> 0.8 | EO6: 0.8 | EP6: 1 | EQ6: =IF(Captura!$F$35>$Z$11,75%,80%) -> 0.8 | ER6: =IF(Captura!$F$35>$Z$11,75%,80%) -> 0.8 | ES6: 0.35 | ET6: =IF(Captura!$F$35>$Z$11,75%,80%) -> 0.8 | EU6: =IF(Captura!$F$35>$Z$11,75%,80%) -> 0.8 | EV6: 0.8 | EW6: 1 | EX6: =IF(Captura!$F$35>$Z$11,75%,IF($AS$5="SI",90%,80%)) -> 0.8 | EY6: =IF(Captura!$F$35>$Z$11,75%,80%) -> 0.8 | EZ6: 0.8 | FA6: 1 | FB6: =IF(Captura!$F$35>$Z$11,75%,80%) -> 0.8 | FC6: 0.8 | FD6: 1 | FE6: =IF(Captura!$F$35>$Z$11,75%,80%) -> 0.8 | FF6: 0.8 | FG6: 1 | FH6: =IF(Captura!$F$35>$Z$11,75%,80%) -> 0.8 | FI6: 0.8 | FJ6: 1 | FK6: =IF(Captura!$F$35>$Z$11,75%,80%) -> 0.8 | FL6: 0.8 | FM6: 1 | FN6: =IF(Captura!$F$35>$Z$11,75%,80%) -> 0.8 | FO6: 0.8 | FP6: 1 | GC6: Adquisición | GD6: =IF(GC4=GB113,"si","no") -> no | GE6: Crecientes | GF6: 113.14 | GG6: =VLOOKUP(GC4,ListaFree,5,0) ->  | GH6: Lista selección | GI6: Riesgo 4 | GJ6: 1413 | GK6: =IF(GX4=GX15,16%,0) -> 0 | GO6: Lista selección | GP6: 1 | GQ6: 0.000233 | GR6: 0.0002068 | GS6: =0.0001856 -> 0.0001856 | GV6: Valor vivienda capturada /Valor Terreno Construcción | GW6: =IF(GC4=GB116,"Ninguno","") ->  | GX6: =IF(GC4=GB116,"Origen Adquisición","") ->  | GZ6: =GZ4 -> 0 | HG6: 0.1085 | HH6: 10.66 | HI6: 11.15 | HJ6: 11.63 | HK6: 12.74 | HL6: 13.93 | HM6: 15.81 | HO6: 0.1085 | HP6: 9.43 | HQ6: 9.55 | HR6: 9.62 | HS6: 10.92 | HT6: 12.22 | HU6: 14.18 | HW6: 0.1085 | HX6: 0.02 | HY6: 0.028 | HZ6: 0.037 | IA6: 0.036 | IB6: 0.036 | IC6: 0.037 | IG6: Lista selección | IK6: Lista selección | IM6: Alto Valor | IN6: AMBOS | IO6: SI | IP6: SI | IQ6: SI | IR6: NO | IS6: NO | IT6: SI | IU6: NO | IV6: NO | IW6: NO | IX6: FALSO | JB6: 2 | JC6: =VLOOKUP(JB6,basetasasfree,MATCH($JB$3,$JF$4:$KE$4,0)) ->  | JF6: 2 | JG6: 0.1135 | JH6: 0.1135 | JI6: 0.1135 | JJ6: 0.1135 | JK6: 0.1135 | JL6: 0.1135 | JM6: 0.1085 | JN6: 0.1085 | JO6: 0.1085 | JP6: 0.1085 | JQ6: 0.1085 | JR6: 0.1085 | JS6: 0.1135 | JT6: 0.1085 | JU6: 0.1085 | JV6: 0.1085 | JW6: 0.1085 | JX6: 0.1085 | JY6: 0.1085 | JZ6: 0.1085 | KA6: 0.1085 | KB6: 0.1085 | KC6: 0.1085 | KD6: 0.1085 | KE6: 0.1085 | KH6: 2 | KI6: =IF($GH$4="Asalariado",VLOOKUP(KH6,Aforodestinofree,MATCH($JB$3,$KL$4:$LK$4,0)),IF($GH$4="NO asalariado",VLOOKUP(KH6,aforodestinofreeNO,MATCH($JB$3,$KL$12:$LK$12,0)))) ->  | KL6: 2 | KM6: 0.8 | KN6: 0.8 | KO6: 1 | KP6: 0.35 | KQ6: 0.8 | KR6: 0.5 | KS6: 0.8 | KT6: 0.8 | KU6: 1 | KV6: 0.35 | KW6: 0.8 | KX6: 0.5 | KY6: =IF($IG$5="SI",90%,80%) -> 0.8 | KZ6: 0.8 | LA6: 0.8 | LB6: 1 | LC6: 0.8 | LD6: 0.8 | LE6: 1 | LF6: 0.8 | LG6: 0.8 | LH6: 1 | LI6: 0.8 | LJ6: 0.8 | LK6: 1
B7: Adquisición con Apoyo INFONAVIT | C7: Construcción | D7: =IF(VLOOKUP(B4,lista,7,0)="SI","Crecientes","") ->  | E7: =IF(B4=A118,"Adquisición de Terreno y Construcción","") ->  | G7: =G6*30.4 -> 3439.456 | I7: Asalariado | J7: 0.55 | K7: 2586.21 | L7: 0 | M7: 500000 | N7: 2000 | O7: Liquidez Susti | S7: SI | T7: 1 | U7: 0.0005154 | V7: 0.0002635 | W7: =0.2269/1000 -> 0.0002269 | X7: 0.0003 | Z7: 15000 | AA7: 20000000 | AB7: =IF(OR(B4=A116,B4=A117),"Ninguno","") ->  | AC7: =IF(OR(B4=A116,B4=A117,),"Origen Adquisición","") ->  | AG7: 0.095 | AH7: 9.04 | AI7: 0.028 | AJ7: 0.095 | AK7: 8.35 | AL7: 0.018 | AM7: 0.098 | AN7: 8.5 | AO7: 0.0084 | AQ7: LISTA OFERTAS | AS7: =IF(AS3="SI","SI","") ->  | BA7: Alto Valor | BB7: AMBOS | BC7: SI | BD7: SI | BE7: SI | BF7: NO | BG7: NO | BH7: SI | BI7: NO | BJ7: NO | BK7: NO | BL7: =IF($AQ$3=$AQ$11,"VERDADERO","FALSO") -> FALSO | BN7: =IF(BN5="no","","Plan Platino") -> Plan Platino | BO7: 0.102 | BP7: 0.097 | BV7: 3 | BW7: =VLOOKUP(BV7,Basetasassantander,MATCH($BV$3,$BZ$4:$DV$4,0)) ->  | BZ7: 3 | CA7: 0.1095 | CB7: 0.1095 | CC7: 0.1095 | CD7: 0.1095 | CE7: 0.1095 | CF7: 0.1025 | CG7: 0.111 | CH7: 0.115 | CI7: 0.115 | CJ7: 0.1045 | CK7: 0.1045 | CL7: 0.1045 | CM7: 0.1045 | CN7: 0.1045 | CO7: 0.0975 | CP7: 0.1059 | CQ7: 0.098 | CR7: 0.098 | CS7: 0.098 | CT7: 0.1025 | CU7: 0.107 | CV7: 0.107 | CW7: 0.107 | CX7: 0.102 | CY7: 0.102 | CZ7: 0.102 | DA7: 0.1096 | DB7: 0.1096 | DC7: 0.1096 | DD7: 0.1165 | DE7: 0.1025 | DF7: 0.1025 | DG7: 0.1025 | DH7: 0.1025 | DI7: 0.1025 | DJ7: 0.1025 | DK7: 0.1025 | DL7: 0.1025 | DM7: 0.1025 | DN7: 0.1025 | DO7: 0.1025 | DP7: 0.1025 | DQ7: 0.0895 | DR7: 0.0895 | DS7: 0.0895 | DT7: 0.105 | DU7: 0.105 | DV7: 0.105 | DZ7: 3 | EA7: =IF($I$4="Asalariado",VLOOKUP(DZ7,Aforodestino,MATCH($BV$3,$ED$4:$FP$4,0)),IF($I$4="NO asalariado",VLOOKUP(DZ7,AforodestinoNO,MATCH($BV$3,$ED$12:$FM$12,0)))) ->  | ED7: 3 | EE7: =IF(Captura!$F$35>$Z$11,75%,85%) -> 0.85 | EF7: 0.85 | EG7: 1 | EH7: =IF(Captura!$F$35>$Z$11,75%,85%) -> 0.85 | EI7: =IF(Captura!$F$35>$Z$11,75%,80%) -> 0.8 | EJ7: 0.35 | EK7: =IF(Captura!$F$35>$Z$11,75%,85%) -> 0.85 | EL7: 0.7 | EM7: 0.7 | EN7: =IF(Captura!$F$35>$Z$11,75%,85%) -> 0.85 | EO7: 0.85 | EP7: 1 | EQ7: =IF(Captura!$F$35>$Z$11,75%,85%) -> 0.85 | ER7: =IF(Captura!$F$35>$Z$11,75%,80%) -> 0.8 | ES7: 0.35 | ET7: =IF(Captura!$F$35>$Z$11,75%,85%) -> 0.85 | EU7: =IF(Captura!$F$35>$Z$11,75%,85%) -> 0.85 | EV7: 0.85 | EW7: 1 | EX7: =IF(Captura!$F$35>$Z$11,75%,IF($AS$5="SI",90%,80%)) -> 0.8 | EY7: =IF(Captura!$F$35>$Z$11,75%,85%) -> 0.85 | EZ7: 0.85 | FA7: 1 | FB7: =IF(Captura!$F$35>$Z$11,75%,85%) -> 0.85 | FC7: 0.85 | FD7: 1 | FE7: =IF(Captura!$F$35>$Z$11,75%,85%) -> 0.85 | FF7: 0.85 | FG7: 1 | FH7: =IF(Captura!$F$35>$Z$11,75%,85%) -> 0.85 | FI7: 0.85 | FJ7: 1 | FK7: =IF(Captura!$F$35>$Z$11,75%,85%) -> 0.85 | FL7: 0.85 | FM7: 1 | FN7: =IF(Captura!$F$35>$Z$11,75%,85%) -> 0.85 | FO7: 0.85 | FP7: 1 | GC7: Adquisición con Apoyo INFONAVIT | GD7: Terminación de Obra | GE7: Esquema de Pagos Liquidez Twin | GF7: =GF6*30.4 -> 3439.456 | GH7: Asalariado | GI7: 0.55 | GJ7: 18000 | GK7: Liquidez Susti | GO7: SI | GP7: 2 | GQ7: 0.0003731 | GR7: 0.0003686 | GV7: =Free!F25 -> 0 | GW7: =IF(GC4=GB116,"Financiamiento de gastos","") ->  | GX7: =IF(GC4=GB116,"Origen Liquidez","") ->  | HG7: 0.1135 | HH7: 11.01 | HI7: 11.48 | HJ7: 11.95 | HK7: 13.04 | HL7: 14.22 | HM7: 16.09 | HO7: 0.1135 | HP7: 9.77 | HQ7: 9.85 | HR7: 9.91 | HS7: 10.96 | HT7: 12.22 | HU7: 14.18 | HW7: 0.1135 | HX7: 0.02 | HY7: 0.028 | HZ7: 0.037 | IA7: 0.041 | IB7: 0.042 | IC7: 0.043 | ID7: LISTA OFERTAS "Selección lista celdaF142" | IE7: Selección LISTA COLECTIVOS "colectivosfree" | IG7: =IF(IG3="SI","SI","") ->  | IK7: =IF(IK3="SI","SI","") ->  | IM7: Sinergia BEI | IN7: AMBOS | IO7: SI | IP7: SI | IQ7: SI | IR7: NO | IS7: NO | IT7: SI | IU7: NO | IV7: NO | IW7: NO | IX7: FALSO | JB7: 3 | JC7: =VLOOKUP(JB7,basetasasfree,MATCH($JB$3,$JF$4:$KE$4,0)) ->  | JF7: 3 | JG7: 0.1135 | JH7: 0.1135 | JI7: 0.1135 | JJ7: 0.1135 | JK7: 0.1135 | JL7: 0.1135 | JM7: 0.1085 | JN7: 0.1085 | JO7: 0.1085 | JP7: 0.1085 | JQ7: 0.1085 | JR7: 0.1085 | JS7: 0.1135 | JT7: 0.1085 | JU7: 0.1085 | JV7: 0.1085 | JW7: 0.1085 | JX7: 0.1085 | JY7: 0.1085 | JZ7: 0.1085 | KA7: 0.1085 | KB7: 0.1085 | KC7: 0.1085 | KD7: 0.1085 | KE7: 0.1085 | KH7: 3 | KI7: =IF($GH$4="Asalariado",VLOOKUP(KH7,Aforodestinofree,MATCH($JB$3,$KL$4:$LK$4,0)),IF($GH$4="NO asalariado",VLOOKUP(KH7,aforodestinofreeNO,MATCH($JB$3,$KL$12:$LK$12,0)))) ->  | KL7: 3 | KM7: 0.85 | KN7: 0.85 | KO7: 1 | KP7: 0.35 | KQ7: 0.85 | KR7: 0.5 | KS7: 0.85 | KT7: 0.85 | KU7: 1 | KV7: 0.35 | KW7: 0.85 | KX7: 0.5 | KY7: =IF($IG$5="SI",90%,80%) -> 0.8 | KZ7: 0.85 | LA7: 0.85 | LB7: 1 | LC7: 0.85 | LD7: 0.85 | LE7: 1 | LF7: 0.85 | LG7: 0.85 | LH7: 1 | LI7: 0.85 | LJ7: 0.85 | LK7: 1
B8: Cofinavit | C8: =IF(B4=A118,"si","no") -> no | G8: 25 UMAS | H8: VALIDA PLAZO | I8: NO asalariado | J8: Riesgo 3 | K8: Mejoras | L8: 500001 | M8: 1000000 | N8: 3000 | O8: 0.16 | S8: NO | T8: 2 | U8: 0.0008254 | V8: 0.0004964 | Z8: Monto mínimo crédito para mejora condiciones | AA8: Valor vivienda capturada /Valor Terreno Construcción | AB8: =IF(OR(B4=A116,B4=A117),"Financiamiento de gastos","") ->  | AC8: =IF(OR(B4=A116,B4=A117,),"Origen Liquidez","") ->  | AG8: 0.0975 | AH8: 9.19 | AI8: 0.028 | AJ8: 0.0975 | AK8: 8.5 | AL8: 0.018 | AM8: 0.105 | AN8: 9.1 | AO8: 0.0067 | AQ8: Embajadores | AS8: =IF(AS3="SI","NO","") ->  | BA8: Sinergia BEI | BB8: AMBOS | BC8: SI | BD8: SI | BE8: SI | BF8: NO | BG8: NO | BH8: SI | BI8: NO | BJ8: NO | BK8: NO | BL8: =IF($AQ$3=AQ12,"VERDADERO","FALSO") -> FALSO | BN8: =IF(BN5="no","",IF(AQ3=AQ16,"Plan Asalariado","")) ->  | BO8: 0.1025 | BP8: 0.0895 | BV8: 4 | BW8: =VLOOKUP(BV8,Basetasassantander,MATCH($BV$3,$BZ$4:$DV$4,0)) ->  | BZ8: 4 | CA8: 0.1025 | CB8: 0.1025 | CC8: 0.1025 | CD8: 0.1025 | CE8: 0.1025 | CF8: 0.1025 | CG8: 0.111 | CH8: 0.115 | CI8: 0.115 | CJ8: 0.0975 | CK8: 0.0975 | CL8: 0.0975 | CM8: 0.0975 | CN8: 0.0975 | CO8: 0.0975 | CP8: 0.1059 | CQ8: 0.098 | CR8: 0.098 | CS8: 0.098 | CT8: 0.1025 | CU8: 0.1 | CV8: 0.1 | CW8: 0.1 | CX8: 0.095 | CY8: 0.095 | CZ8: 0.095 | DA8: 0.098 | DB8: 0.098 | DC8: 0.098 | DD8: 0.1094 | DE8: 0.1025 | DF8: 0.1025 | DG8: 0.1025 | DH8: 0.1025 | DI8: 0.1025 | DJ8: 0.1025 | DK8: 0.1025 | DL8: 0.1025 | DM8: 0.1025 | DN8: 0.1025 | DO8: 0.1025 | DP8: 0.1025 | DQ8: 0.0895 | DR8: 0.0895 | DS8: 0.0895 | DT8: 0.098 | DU8: 0.098 | DV8: 0.098 | DZ8: 4 | EA8: =IF($I$4="Asalariado",VLOOKUP(DZ8,Aforodestino,MATCH($BV$3,$ED$4:$FP$4,0)),IF($I$4="NO asalariado",VLOOKUP(DZ8,AforodestinoNO,MATCH($BV$3,$ED$12:$FM$12,0)))) ->  | ED8: 4 | EE8: =IF(Captura!$F$35>$Z$11,75%,90%) -> 0.9 | EF8: 0.95 | EG8: 1 | EH8: =IF(Captura!$F$35>$Z$11,75%,90%) -> 0.9 | EI8: =IF(Captura!$F$35>$Z$11,75%,80%) -> 0.8 | EJ8: 0.35 | EK8: =IF(Captura!$F$35>$Z$11,75%,90%) -> 0.9 | EL8: 0.7 | EM8: 0.7 | EN8: =IF(Captura!$F$35>$Z$11,75%,90%) -> 0.9 | EO8: 0.95 | EP8: 1 | EQ8: =IF(Captura!$F$35>$Z$11,75%,90%) -> 0.9 | ER8: =IF(Captura!$F$35>$Z$11,75%,80%) -> 0.8 | ES8: 0.35 | ET8: =IF(Captura!$F$35>$Z$11,75%,90%) -> 0.9 | EU8: =IF(Captura!$F$35>$Z$11,75%,90%) -> 0.9 | EV8: 0.95 | EW8: 1 | EX8: =IF(Captura!$F$35>$Z$11,75%,IF($AS$5="SI",90%,80%)) -> 0.8 | EY8: =IF(Captura!$F$35>$Z$11,75%,90%) -> 0.9 | EZ8: 0.95 | FA8: 1 | FB8: =IF(Captura!$F$35>$Z$11,75%,90%) -> 0.9 | FC8: 0.95 | FD8: 1 | FE8: =IF(Captura!$F$35>$Z$11,75%,90%) -> 0.9 | FF8: 0.95 | FG8: 1 | FH8: =IF(Captura!$F$35>$Z$11,75%,90%) -> 0.9 | FI8: 0.95 | FJ8: 1 | FK8: =IF(Captura!$F$35>$Z$11,75%,90%) -> 0.9 | FL8: 0.95 | FM8: 1 | FN8: =IF(Captura!$F$35>$Z$11,75%,90%) -> 0.9 | FO8: 0.95 | FP8: 1 | GC8: Cofinavit | GD8: =IF(GC4=GB117,"si","no") -> no | GE8: =GE4 -> 0 | GF8: 25 UMAS | GG8: Lista selección | GH8: NO asalariado | GI8: Riesgo 3 | GJ8: Sustitución | GK8: 0.16 | GO8: NO | GP8: 3 | GQ8: 0.0004649 | GR8: 0.0005203 | GV8: Valor vivienda para Seguro Daños = SUMA ASEGURABLE | GW8: =IF(AND(GC4=GB116,GX4=GX15),"",IF(GC4=GB116,"Dinero adicional","")) ->  | ID8: Embajadores | IG8: =IF(IG3="SI","NO","") ->  | IK8: =IF(IK3="SI","NO","") ->  | IM8: Gubernamentales | IN8: AMBOS | IO8: SI | IP8: SI | IQ8: SI | IR8: NO | IS8: NO | IT8: SI | IU8: NO | IV8: NO | IW8: NO | IX8: FALSO | JB8: 4 | JC8: =VLOOKUP(JB8,basetasasfree,MATCH($JB$3,$JF$4:$KE$4,0)) ->  | JF8: 4 | JG8: 0.1135 | JH8: 0.1135 | JI8: 0.1135 | JJ8: 0.1135 | JK8: 0.1135 | JL8: 0.1135 | JM8: 0.1085 | JN8: 0.1085 | JO8: 0.1085 | JP8: 0.1085 | JQ8: 0.1085 | JR8: 0.1085 | JS8: 0.1135 | JT8: 0.1085 | JU8: 0.1085 | JV8: 0.1085 | JW8: 0.1085 | JX8: 0.1085 | JY8: 0.1085 | JZ8: 0.1085 | KA8: 0.1085 | KB8: 0.1085 | KC8: 0.1085 | KD8: 0.1085 | KE8: 0.1085 | KH8: 4 | KI8: =IF($GH$4="Asalariado",VLOOKUP(KH8,Aforodestinofree,MATCH($JB$3,$KL$4:$LK$4,0)),IF($GH$4="NO asalariado",VLOOKUP(KH8,aforodestinofreeNO,MATCH($JB$3,$KL$12:$LK$12,0)))) ->  | KL8: 4 | KM8: 0.9 | KN8: 0.95 | KO8: 1 | KP8: 0.35 | KQ8: 0.9 | KR8: 0.5 | KS8: 0.9 | KT8: 0.95 | KU8: 1 | KV8: 0.35 | KW8: 0.9 | KX8: 0.5 | KY8: =IF($IG$5="SI",90%,80%) -> 0.8 | KZ8: 0.9 | LA8: 0.95 | LB8: 1 | LC8: 0.9 | LD8: 0.95 | LE8: 1 | LF8: 0.9 | LG8: 0.95 | LH8: 1 | LI8: 0.9 | LJ8: 0.95 | LK8: 1
B9: Adquisición Simplificada | C9: Terreno | D9: Esquema de Pagos Liquidez Twin | E9: Metros de la construcción | G9: =G7*25 -> 85986.4 | H9: =VLOOKUP(B4,lista,5,0) ->  | I9: Lista referencia | J9: 0.45 | K9: 2586.21 | L9: 1000001 | M9: 1500000 | N9: 4500 | T9: 3 | U9: 0.0010285 | V9: 0.0007399 | Z9: 200000 | AA9: =IF(B4=A118,Captura!F33+Captura!F35,Captura!F33) -> 0 | AB9: =IF(AND(OR(B4=A116,B4=A117),AC4=AC15),"",IF(OR(B4=A116,B4=A117),"Dinero adicional","")) ->  | AC9: =IF(B4=A117,"Origen Cofinanciamiento","") ->  | AG9: 0.098 | AH9: 9.22 | AI9: 0.028 | AJ9: 0.098 | AK9: 8.54 | AL9: 0.018 | AM9: 0.118 | AN9: 10.13 | AO9: 0.0055 | AQ9: Extranjeros | BA9: Gubernamentales | BB9: AMBOS | BC9: SI | BD9: SI | BE9: SI | BF9: NO | BG9: NO | BH9: SI | BI9: NO | BJ9: NO | BK9: NO | BL9: =IF($AQ$3=AQ13,"VERDADERO","FALSO") -> FALSO | BO9: 0.1045 | BP9: 0.0995 | BV9: 5 | BW9: =VLOOKUP(BV9,Basetasassantander,MATCH($BV$3,$BZ$4:$DV$4,0)) ->  | BZ9: 5 | CA9: 0.1025 | CB9: 0.1025 | CC9: 0.1025 | CD9: 0.1025 | CE9: 0.1025 | CF9: 0.1025 | CG9: 0.111 | CH9: 0.115 | CI9: 0.115 | CJ9: 0.0975 | CK9: 0.0975 | CL9: 0.0975 | CM9: 0.0975 | CN9: 0.0975 | CO9: 0.0975 | CP9: 0.1059 | CQ9: 0.098 | CR9: 0.098 | CS9: 0.098 | CT9: 0.1025 | CU9: 0.1 | CV9: 0.1 | CW9: 0.1 | CX9: 0.095 | CY9: 0.095 | CZ9: 0.095 | DA9: 0.098 | DB9: 0.098 | DC9: 0.098 | DD9: 0.1094 | DE9: 0.1025 | DF9: 0.1025 | DG9: 0.1025 | DH9: 0.1025 | DI9: 0.1025 | DJ9: 0.1025 | DK9: 0.1025 | DL9: 0.1025 | DM9: 0.1025 | DN9: 0.1025 | DO9: 0.1025 | DP9: 0.1025 | DQ9: 0.0895 | DR9: 0.0895 | DS9: 0.0895 | DT9: 0.098 | DU9: 0.098 | DV9: 0.098 | DZ9: 5 | EA9: =IF($I$4="Asalariado",VLOOKUP(DZ9,Aforodestino,MATCH($BV$3,$ED$4:$FP$4,0)),IF($I$4="NO asalariado",VLOOKUP(DZ9,AforodestinoNO,MATCH($BV$3,$ED$12:$FM$12,0)))) ->  | ED9: 5 | EE9: =IF(Captura!$F$35>$Z$11,80%,90%) -> 0.9 | EF9: 0.95 | EG9: 1 | EH9: =IF(Captura!$F$35>$Z$11,80%,90%) -> 0.9 | EI9: 0.8 | EJ9: 0.35 | EK9: =IF(Captura!$F$35>$Z$11,80%,90%) -> 0.9 | EL9: 0.7 | EM9: 0.7 | EN9: =IF(Captura!$F$35>$Z$11,80%,90%) -> 0.9 | EO9: 0.95 | EP9: 1 | EQ9: =IF(Captura!$F$35>$Z$11,80%,90%) -> 0.9 | ER9: 0.8 | ES9: 0.35 | ET9: =IF(Captura!$F$35>$Z$11,80%,90%) -> 0.9 | EU9: =IF(Captura!$F$35>$Z$11,80%,90%) -> 0.9 | EV9: 0.95 | EW9: 1 | EX9: =IF(Captura!$F$35>$Z$11,80%,IF($AS$5="SI",90%,80%)) -> 0.8 | EY9: =IF(Captura!$F$35>$Z$11,80%,90%) -> 0.9 | EZ9: 0.95 | FA9: 1 | FB9: =IF(Captura!$F$35>$Z$11,80%,90%) -> 0.9 | FC9: 0.95 | FD9: 1 | FE9: =IF(Captura!$F$35>$Z$11,80%,90%) -> 0.9 | FF9: 0.95 | FG9: 1 | FH9: =IF(Captura!$F$35>$Z$11,80%,90%) -> 0.9 | FI9: 0.95 | FJ9: 1 | FK9: =IF(Captura!$F$35>$Z$11,80%,90%) -> 0.9 | FL9: 0.95 | FM9: 1 | FN9: =IF(Captura!$F$35>$Z$11,80%,95%) -> 0.95 | FO9: 0.95 | FP9: 1 | GC9: Adquisición Simplificada | GD9: COFIS | GF9: =GF7*25 -> 85986.4 | GG9: PLAZOS FREE "plafree" | GH9: Lista referencia | GI9: 0.45 | GJ9: 2586.21 | GP9: 4 | GQ9: 0.0005863 | GR9: 0.0007205 | GV9: =GV7*GT4 -> 0 | ID9: Extranjeros | IM9: Públicos | IN9: AMBOS | IO9: SI | IP9: SI | IQ9: SI | IR9: NO | IS9: NO | IT9: SI | IU9: NO | IV9: NO | IW9: NO | IX9: FALSO | JB9: 5 | JC9: =VLOOKUP(JB9,basetasasfree,MATCH($JB$3,$JF$4:$KE$4,0)) ->  | JF9: 5 | JG9: 0.1135 | JH9: 0.1135 | JI9: 0.1135 | JJ9: 0.1135 | JK9: 0.1135 | JL9: 0.1135 | JM9: 0.1085 | JN9: 0.1085 | JO9: 0.1085 | JP9: 0.1085 | JQ9: 0.1085 | JR9: 0.1085 | JS9: 0.1135 | JT9: 0.1085 | JU9: 0.1085 | JV9: 0.1085 | JW9: 0.1085 | JX9: 0.1085 | JY9: 0.1085 | JZ9: 0.1085 | KA9: 0.1085 | KB9: 0.1085 | KC9: 0.1085 | KD9: 0.1085 | KE9: 0.1085 | KH9: 5 | KI9: =IF($GH$4="Asalariado",VLOOKUP(KH9,Aforodestinofree,MATCH($JB$3,$KL$4:$LK$4,0)),IF($GH$4="NO asalariado",VLOOKUP(KH9,aforodestinofreeNO,MATCH($JB$3,$KL$12:$LK$12,0)))) ->  | KL9: 5 | KM9: 0.9 | KN9: 0.95 | KO9: 1 | KP9: 0.35 | KQ9: 0.9 | KR9: 0.5 | KS9: 0.9 | KT9: 0.95 | KU9: 1 | KV9: 0.35 | KW9: 0.9 | KX9: 0.5 | KY9: =IF($IG$5="SI",90%,80%) -> 0.8 | KZ9: 0.9 | LA9: 0.95 | LB9: 1 | LC9: 0.9 | LD9: 0.95 | LE9: 1 | LF9: 0.9 | LG9: 0.95 | LH9: 1 | LI9: 0.9 | LJ9: 0.95 | LK9: 1
B10: Sustitución | C10: =IF(B4=A119,"si","no") -> no | D10: =D4 -> 0 | E10: =Captura!N33 -> 0 | I10: Asalariado | J10: Riesgo 2 | L10: 1500001 | M10: 2000000 | N10: 6000 | T10: 4 | U10: 0.0012967 | V10: 0.0010615 | Z10: Monto máximo crédito solicitado para Dif. Aforo | AA10: Valor vivienda para Seguro Daños = SUMA ASEGURABLE | AB10: =IF(AND(B4=A116,AC4=AC15),"",IF(B4=A116,"Remodelación","")) ->  | AG10: 0.1 | AH10: 9.33 | AI10: 0.028 | AJ10: 0.1 | AK10: 8.67 | AL10: 0.018 | AQ10: Verde | BA10: Públicos | BB10: AMBOS | BC10: SI | BD10: SI | BE10: SI | BF10: NO | BG10: NO | BH10: SI | BI10: NO | BJ10: NO | BK10: NO | BL10: =IF($AQ$3=AQ14,"VERDADERO","FALSO") -> FALSO | BO10: 0.105 | BP10: 0.095 | BQ10: 0.103 | GC10: Terminación de Obra y Remodelación | GD10: =IF(GC4=GB114,"si","no") -> no | GG10: =IF(GC4=GB116,8,10) -> 10 | GH10: Asalariado | GI10: Riesgo 2 | GO10: Lista selección | ID10: Alto Valor
B11: Mejora de Condiciones | C11: Liquidez | G11: 11 umas | I11: NO asalariado | J11: 0.35 | L11: 2000001 | M11: 2500000 | N11: 7000 | Z11: 15000000 | AA11: =AA9*Y4 -> 0 | AB11: =IF(AND(B4=A116,AC4=AC15),"",IF(B4=A116,"Remodelación Plus","")) ->  | AG11: 0.102 | AH11: 9.45 | AI11: 0.028 | AJ11: 0.102 | AK11: 9 | AL11: 0.0145 | AQ11: Alto Valor | BA11: Mazda | BB11: SANTANDER | BC11: SI | BD11: SI | BE11: SI | BF11: NO | BG11: NO | BH11: NO | BI11: NO | BJ11: NO | BK11: NO | BL11: =IF($AQ$3=AQ15,"VERDADERO","FALSO") -> FALSO | BO11: 0.1059 | BP11: 0.093 | BU11: Lista Selección OFERTAS | EC11: AFOROS NO ASALARIADO - "AforodestinoNO" | GC11: Sustitución | GD11: Sustitución | GF11: 11 umas | GG11: =IF(GC4=GB116,10,15) -> 15 | GH11: NO asalariado | GI11: 0.35 | GO11: Modalidad de Seguros FREE | GQ11: Polícías FREE | ID11: Sinergia BEI | JA11: Lista Selección OFERTAS | KK11: AFOROS NO ASALARIADO - "AforodestinofreeNO"
B12: Construcción | C12: =IF(B4=A120,"si","no") -> no | E12: Periodo de gracia | J12: Riesgo 1 | L12: 2500001 | M12: 3000000 | N12: 9000 | AG12: 0.1025 | AH12: 9.48 | AI12: 0.028 | AJ12: 0.1025 | AK12: 9.03 | AL12: 0.0145 | AQ12: Sinergia BEI | AU12: ofertas Alto Valor | AV12: ofertas Sinergia BEI | AW12: ofertas Gubernamentales | AX12: ofertas Públicos | BA12: Asalariados | BB12: SANTANDER | BC12: SI | BD12: SI | BE12: SI | BF12: NO | BG12: NO | BH12: NO | BI12: NO | BJ12: NO | BK12: NO | BL12: =IF(I4="No asalariado","FALSO",IF($AQ$3=AQ16,"VERDADERO","FALSO")) -> FALSO | BO12: 0.106 | BP12: 0.096 | BU12: Selecciona | ED12: Perfiles | EE12: AdquisiciónNinguno | EF12: Adquisición con Apoyo INFONAVITNinguno | EG12: CofinavitNinguno | EH12: Mejora de CondicionesNinguno | EI12: ConstrucciónNinguno | EJ12: Adquisición SimplificadaNinguno | EK12: SustituciónNinguno | EL12: LiquidezNinguno | EM12: TerrenoNinguno | EN12: AdquisiciónEmbajadores | EO12: Adquisición con Apoyo INFONAVITEmbajadores | EP12: CofinavitEmbajadores | EQ12: Mejora de CondicionesEmbajadores | ER12: ConstrucciónEmbajadores | ES12: Adquisición SimplificadaEmbajadores | ET12: SustituciónEmbajadores | EU12: AdquisiciónVerde | EV12: Adquisición con Apoyo INFONAVITVerde | EW12: CofinavitVerde | EX12: AdquisiciónExtranjeros | EY12: AdquisiciónAlto Valor | EZ12: Adquisición con Apoyo INFONAVITAlto Valor | FA12: CofinavitAlto Valor | FB12: AdquisiciónSinergia BEI | FC12: Adquisición con Apoyo INFONAVITSinergia BEI | FD12: CofinavitSinergia BEI | FE12: AdquisiciónGubernamentales | FF12: Adquisición con Apoyo INFONAVITGubernamentales | FG12: CofinavitGubernamentales | FH12: AdquisiciónPúblicos | FI12: Adquisición con Apoyo INFONAVITPúblicos | FJ12: CofinavitPúblicos | FK12: AdquisiciónMazda | FL12: Adquisición con Apoyo INFONAVITMazda | FM12: CofinavitMazda | GD12: =IF(GC4=GB116,"si","no") -> no | GG12: =IF(GC4=GB116,12,20) -> 20 | GI12: Riesgo 1 | GO12: =Free!F17 -> Pagados por el Banco | GQ12: 0.0003681 | ID12: Gubernamentales | IH12: ofertas Alto Valor | II12: ofertas Sinergia BEI | IJ12: ofertas Gubernamentales | IK12: ofertas Públicos | JA12: Selecciona | KL12: Perfiles | KM12: AdquisiciónNinguno | KN12: Adquisición con Apoyo INFONAVITNinguno | KO12: CofinavitNinguno | KP12: Adquisición SimplificadaNinguno | KQ12: SustituciónNinguno | KR12: Terminación de Obra y RemodelaciónNinguno | KS12: AdquisiciónEmbajadores | KT12: Adquisición con Apoyo INFONAVITEmbajadores | KU12: CofinavitEmbajadores | KV12: Adquisición SimplificadaEmbajadores | KW12: SustituciónEmbajadores | KX12: Terminación de Obra y RemodelaciónEmbajadores | KY12: AdquisiciónExtranjeros | KZ12: AdquisiciónAlto Valor | LA12: Adquisición con Apoyo INFONAVITAlto Valor | LB12: CofinavitAlto Valor | LC12: AdquisiciónSinergia BEI | LD12: Adquisición con Apoyo INFONAVITSinergia BEI | LE12: CofinavitSinergia BEI | LF12: AdquisiciónGubernamentales | LG12: Adquisición con Apoyo INFONAVITGubernamentales | LH12: CofinavitGubernamentales | LI12: AdquisiciónPúblicos | LJ12: Adquisición con Apoyo INFONAVITPúblicos | LK12: CofinavitPúblicos
B13: Terreno | C13: Terminación de Obra | E13: =IF(E10<=500,12,IF(E10>500,18,0)) -> 12 | G13: =G7*11 -> 37834.016 | J13: 0.3 | L13: 3000001 | M13: 3500000 | N13: 10000 | AB13: Lista referencia gastos | AC13: Lista referencia origen | AG13: 0.1045 | AH13: 9.59 | AI13: 0.028 | AJ13: 0.1045 | AK13: 9.16 | AL13: 0.0145 | AQ13: Gubernamentales | AU13: Ministros de Culto | AV13: Bimbo | AW13: Chihuahua | AX13: Seguridad pública Monterrey | BO13: 0.107 | BP13: 0.097 | BU13: PERFIL 1 | ED13: 1 | EE13: 0.75 | EF13: NA | EG13: NA | EH13: 0.75 | EI13: =IF(Captura!$F$35>$Z$11,75%,80%) -> 0.8 | EJ13: 0.35 | EK13: 0.75 | EL13: 0.6 | EM13: 0.7 | EN13: 0.75 | EO13: NA | EP13: NA | EQ13: 0.75 | ER13: =IF(Captura!$F$35>$Z$11,75%,80%) -> 0.8 | ES13: 0.35 | ET13: 0.75 | EU13: 0.75 | EV13: NA | EW13: NA | EX13: =IF(Captura!$F$35>$Z$11,75%,IF($AS$5="SI",90%,80%)) -> 0.8 | EY13: 0.75 | EZ13: NA | FA13: NA | FB13: 0.75 | FC13: NA | FD13: NA | FE13: 0.75 | FF13: NA | FG13: NA | FH13: 0.75 | FI13: NA | FJ13: NA | FK13: 0.75 | FL13: NA | FM13: NA | GF13: =GF7*11 -> 37834.016 | GG13: =IF(GC4=GB116,15,0) -> 0 | GI13: 0.3 | GO13: Pagados por el Banco | GW13: Lista referencia gastos | GX13: Lista referencia origen | ID13: Públicos | IH13: Ministros de Culto | II13: Bimbo | IJ13: Chihuahua | IK13: Seguridad pública Monterrey | JA13: PERFIL 1 | KL13: 1 | KM13: 0.75 | KN13: NA | KO13: NA | KP13: 0.35 | KQ13: 0.75 | KR13: 0.5 | KS13: 0.75 | KT13: NA | KU13: NA | KV13: 0.35 | KW13: 0.75 | KX13: 0.5 | KY13: =IF($IG$5="SI",90%,80%) -> 0.8 | KZ13: 0.75 | LA13: NA | LB13: NA | LC13: 0.75 | LD13: NA | LE13: NA | LF13: 0.75 | LG13: NA | LH13: NA | LI13: 0.75 | LJ13: NA | LK13: NA
B14: Liquidez | G14: Lista selección Apoyo INFONAVIT Construcción /Sustitución | L14: 3500001 | M14: 4000000 | N14: 11000 | AB14: Ninguno | AC14: Origen Adquisición | AG14: 0.105 | AH14: 9.62 | AI14: 0.028 | AJ14: 0.105 | AK14: 9.2 | AL14: 0.0145 | AQ14: Públicos | AU14: Médicos | AV14: Danone | AW14: Magisterio del Estado de México | AX14: Seguridad pública Yucatán | BO14: 0.1094 | BP14: 0.09 | BU14: PERFIL 2 | ED14: 2 | EE14: =IF(Captura!$F$35>$Z$11,75%,80%) -> 0.8 | EF14: NA | EG14: NA | EH14: =IF(Captura!$F$35>$Z$11,75%,80%) -> 0.8 | EI14: =IF(Captura!$F$35>$Z$11,75%,80%) -> 0.8 | EJ14: 0.35 | EK14: =IF(Captura!$F$35>$Z$11,75%,80%) -> 0.8 | EL14: 0.6 | EM14: 0.7 | EN14: =IF(Captura!$F$35>$Z$11,75%,80%) -> 0.8 | EO14: NA | EP14: NA | EQ14: =IF(Captura!$F$35>$Z$11,75%,80%) -> 0.8 | ER14: =IF(Captura!$F$35>$Z$11,75%,80%) -> 0.8 | ES14: 0.35 | ET14: =IF(Captura!$F$35>$Z$11,75%,80%) -> 0.8 | EU14: =IF(Captura!$F$35>$Z$11,75%,80%) -> 0.8 | EV14: NA | EW14: NA | EX14: =IF(Captura!$F$35>$Z$11,75%,IF($AS$5="SI",90%,80%)) -> 0.8 | EY14: =IF(Captura!$F$35>$Z$11,75%,80%) -> 0.8 | EZ14: NA | FA14: NA | FB14: =IF(Captura!$F$35>$Z$11,75%,80%) -> 0.8 | FC14: NA | FD14: NA | FE14: =IF(Captura!$F$35>$Z$11,75%,80%) -> 0.8 | FF14: NA | FG14: NA | FH14: =IF(Captura!$F$35>$Z$11,75%,80%) -> 0.8 | FI14: NA | FJ14: NA | FK14: =IF(Captura!$F$35>$Z$11,75%,80%) -> 0.8 | FL14: NA | FM14: NA | GF14: Lista selección Apoyo INFONAVIT Construcción /Sustitución | GG14: =IF(GC4=GB116,17,0) -> 0 | GO14: Pagados por el cliente | GW14: Ninguno | GX14: Origen Adquisición | IH14: Médicos | II14: Danone | IJ14: Magisterio del Estado de México | IK14: Seguridad pública Yucatán | IM14: Ofertas- Lista de referencia | JA14: PERFIL 2 | KL14: 2 | KM14: 0.8 | KN14: NA | KO14: NA | KP14: 0.35 | KQ14: 0.8 | KR14: 0.5 | KS14: 0.8 | KT14: NA | KU14: NA | KV14: 0.35 | KW14: 0.8 | KX14: 0.5 | KY14: =IF($IG$5="SI",90%,80%) -> 0.8 | KZ14: 0.8 | LA14: NA | LB14: NA | LC14: 0.8 | LD14: NA | LE14: NA | LF14: 0.8 | LG14: NA | LH14: NA | LI14: 0.8 | LJ14: NA | LK14: NA
C15: COFIS | G15: =IF(B4=A118,"SI",IF(AND(B4=A116,AC4=AC7),"SI","")) ->  | L15: 4000001 | M15: 4500000 | N15: 13500 | AB15: Financiamiento de gastos | AC15: Origen Liquidez | AG15: 0.1059 | AH15: 9.68 | AI15: 0.028 | AJ15: 0.1059 | AK15: 9.26 | AL15: 0.0145 | AQ15: Mazda | AU15: Notarios | AV15: Becton | AW15: Oaxaca | AX15: Seguridad pública Colima | BO15: 0.1095 | BP15: 0.0995 | BU15: PERFIL 3 | ED15: 3 | EE15: =IF(Captura!$F$35>$Z$11,75%,80%) -> 0.8 | EF15: NA | EG15: NA | EH15: =IF(Captura!$F$35>$Z$11,75%,80%) -> 0.8 | EI15: =IF(Captura!$F$35>$Z$11,75%,80%) -> 0.8 | EJ15: 0.35 | EK15: =IF(Captura!$F$35>$Z$11,75%,80%) -> 0.8 | EL15: 0.7 | EM15: 0.7 | EN15: =IF(Captura!$F$35>$Z$11,75%,80%) -> 0.8 | EO15: NA | EP15: NA | EQ15: =IF(Captura!$F$35>$Z$11,75%,80%) -> 0.8 | ER15: =IF(Captura!$F$35>$Z$11,75%,80%) -> 0.8 | ES15: 0.35 | ET15: =IF(Captura!$F$35>$Z$11,75%,80%) -> 0.8 | EU15: =IF(Captura!$F$35>$Z$11,75%,80%) -> 0.8 | EV15: NA | EW15: NA | EX15: =IF(Captura!$F$35>$Z$11,75%,IF($AS$5="SI",90%,80%)) -> 0.8 | EY15: =IF(Captura!$F$35>$Z$11,75%,80%) -> 0.8 | EZ15: NA | FA15: NA | FB15: =IF(Captura!$F$35>$Z$11,75%,80%) -> 0.8 | FC15: NA | FD15: NA | FE15: =IF(Captura!$F$35>$Z$11,75%,80%) -> 0.8 | FF15: NA | FG15: NA | FH15: =IF(Captura!$F$35>$Z$11,75%,80%) -> 0.8 | FI15: NA | FJ15: NA | FK15: =IF(Captura!$F$35>$Z$11,75%,80%) -> 0.8 | FL15: NA | FM15: NA | GF15: =IF(AND(GC4=GB116,GX4=GX14),"SI","") ->  | GG15: =IF(GC4=GB116,20,0) -> 0 | GW15: Financiamiento de gastos | GX15: Origen Liquidez | IH15: Notarios | II15: Becton | IJ15: Oaxaca | IK15: Seguridad pública Colima | IM15: Programa | JA15: PERFIL 3 | KL15: 3 | KM15: 0.8 | KN15: NA | KO15: NA | KP15: 0.35 | KQ15: 0.8 | KR15: 0.5 | KS15: 0.8 | KT15: NA | KU15: NA | KV15: 0.35 | KW15: 0.8 | KX15: 0.5 | KY15: =IF($IG$5="SI",90%,80%) -> 0.8 | KZ15: 0.8 | LA15: NA | LB15: NA | LC15: 0.8 | LD15: NA | LE15: NA | LF15: 0.8 | LG15: NA | LH15: NA | LI15: 0.8 | LJ15: NA | LK15: NA
C16: =IF(B4=A114,"si","no") -> no | G16: =IF(B4=A118,"NO",IF(AND(B4=A116,AC4=AC7),"NO","")) ->  | L16: 4500001 | M16: 5500000 | N16: 14000 | AB16: Dinero adicional | AC16: Origen Cofinanciamiento | AG16: 0.106 | AH16: 9.68 | AI16: 0.028 | AJ16: 0.106 | AK16: 9.26 | AL16: 0.0145 | AQ16: Asalariados | AU16: Pilotos | AV16: x | AW16: Puebla | AX16: Bomberos | BO16: 0.1096 | BP16: 0.095 | BU16: PERFIL 4 | ED16: 4 | EE16: =IF(Captura!$F$35>$Z$11,75%,85%) -> 0.85 | EF16: NA | EG16: NA | EH16: =IF(Captura!$F$35>$Z$11,75%,85%) -> 0.85 | EI16: =IF(Captura!$F$35>$Z$11,75%,80%) -> 0.8 | EJ16: 0.35 | EK16: =IF(Captura!$F$35>$Z$11,75%,85%) -> 0.85 | EL16: 0.7 | EM16: 0.7 | EN16: =IF(Captura!$F$35>$Z$11,75%,85%) -> 0.85 | EO16: NA | EP16: NA | EQ16: =IF(Captura!$F$35>$Z$11,75%,85%) -> 0.85 | ER16: =IF(Captura!$F$35>$Z$11,75%,80%) -> 0.8 | ES16: 0.35 | ET16: =IF(Captura!$F$35>$Z$11,75%,85%) -> 0.85 | EU16: =IF(Captura!$F$35>$Z$11,75%,85%) -> 0.85 | EV16: NA | EW16: NA | EX16: =IF(Captura!$F$35>$Z$11,75%,IF($AS$5="SI",90%,80%)) -> 0.8 | EY16: =IF(Captura!$F$35>$Z$11,75%,85%) -> 0.85 | EZ16: NA | FA16: NA | FB16: =IF(Captura!$F$35>$Z$11,75%,85%) -> 0.85 | FC16: NA | FD16: NA | FE16: =IF(Captura!$F$35>$Z$11,75%,85%) -> 0.85 | FF16: NA | FG16: NA | FH16: =IF(Captura!$F$35>$Z$11,75%,85%) -> 0.85 | FI16: NA | FJ16: NA | FK16: =IF(Captura!$F$35>$Z$11,75%,85%) -> 0.85 | FL16: NA | FM16: NA | GF16: =IF(AND(GC4=GB116,GX4=GX14),"NO","") ->  | GW16: Dinero adicional | IH16: Pilotos | II16: x | IJ16: Puebla | IK16: Bomberos | IO16: Paso1 | IP16: paso2 | IQ16: paso3 | IR16: paso4 | JA16: PERFIL 4 | KL16: 4 | KM16: 0.85 | KN16: NA | KO16: NA | KP16: 0.35 | KQ16: 0.85 | KR16: 0.5 | KS16: 0.85 | KT16: NA | KU16: NA | KV16: 0.35 | KW16: 0.85 | KX16: 0.5 | KY16: =IF($IG$5="SI",90%,80%) -> 0.8 | KZ16: 0.85 | LA16: NA | LB16: NA | LC16: 0.85 | LD16: NA | LE16: NA | LF16: 0.85 | LG16: NA | LH16: NA | LI16: 0.85 | LJ16: NA | LK16: NA
C17: Sustitución | L17: 5500001 | M17: 6000000 | N17: 17000 | AB17: Remodelación | AG17: 0.107 | AH17: 9.74 | AI17: 0.028 | AJ17: 0.107 | AK17: 9.33 | AL17: 0.0145 | AU17: x | AV17: x | AW17: Querétaro | AX17: Seguridad pública Monterrey (uso arma de fuego) | BO17: 0.111 | BP17: 0.093 | ED17: 5 | EE17: =IF(Captura!$F$35>$Z$11,80%,90%) -> 0.9 | EF17: NA | EG17: NA | EH17: =IF(Captura!$F$35>$Z$11,80%,90%) -> 0.9 | EI17: 0.8 | EJ17: 0.35 | EK17: =IF(Captura!$F$35>$Z$11,80%,90%) -> 0.9 | EL17: 0.7 | EM17: 0.7 | EN17: =IF(Captura!$F$35>$Z$11,80%,90%) -> 0.9 | EO17: NA | EP17: NA | EQ17: =IF(Captura!$F$35>$Z$11,80%,90%) -> 0.9 | ER17: 0.8 | ES17: 0.35 | ET17: =IF(Captura!$F$35>$Z$11,80%,90%) -> 0.9 | EU17: =IF(Captura!$F$35>$Z$11,80%,90%) -> 0.9 | EV17: NA | EW17: NA | EX17: =IF(Captura!$F$35>$Z$11,80%,IF($AS$5="SI",90%,80%)) -> 0.8 | EY17: 0.8 | EZ17: NA | FA17: NA | FB17: 0.8 | FC17: NA | FD17: NA | FE17: 0.8 | FF17: NA | FG17: NA | FH17: 0.8 | FI17: NA | FJ17: NA | FK17: 0.8 | FL17: NA | FM17: NA | IH17: x | II17: x | IJ17: Querétaro | IK17: Seguridad pública Monterrey (uso arma de fuego) | IO17: No orden | IP17: copia cod | IQ17: reordenar | IR17: listado "ofertasfree" | KL17: 5 | KM17: 0.9 | KN17: NA | KO17: NA | KP17: 0.35 | KQ17: 0.9 | KR17: 0.5 | KS17: 0.9 | KT17: NA | KU17: NA | KV17: 0.35 | KW17: 0.9 | KX17: 0.5 | KY17: =IF($IG$5="SI",90%,80%) -> 0.8 | KZ17: 0.9 | LA17: NA | LB17: NA | LC17: 0.9 | LD17: NA | LE17: NA | LF17: 0.9 | LG17: NA | LH17: NA | LI17: 0.9 | LJ17: NA | LK17: NA
C18: =IF(B4=A116,"si","no") -> no | L18: 6000001 | M18: 6500000 | N18: 19000 | AB18: Remodelación Plus | AG18: 0.1094 | AH18: 9.89 | AI18: 0.028 | AJ18: 0.1094 | AK18: 9.49 | AL18: 0.0145 | AU18: x | AV18: x | AW18: Tabasco | AX18: Seguridad pública Yucatán (uso arma de fuego) | BO18: 0.112 | BP18: 0.102 | IH18: x | II18: x | IJ18: Tabasco | IK18: Seguridad pública Yucatán (uso arma de fuego) | IM18: Ninguno | IN18: Ninguno | IO18: 1 | IP18: =IN18 -> Ninguno | IQ18: =IF(IP18=0,MAX($IO$18:$IO$24)+1,IO18) -> 1 | IR18: =IFERROR(VLOOKUP(SMALL($IQ$18:$IQ$24,IO18),$IO$18:$IP$24,2,FALSE),"X") -> Ninguno
C19: Mejoras | L19: 6500001 | M19: 8000000 | N19: 20000 | AG19: 0.1095 | AH19: 9.89 | AI19: 0.028 | AJ19: 0.1095 | AK19: 9.5 | AL19: 0.0145 | AU19: x | AV19: x | AW19: Veracuz | AX19: Seguridad pública Colima (uso arma de fuego) | BA19: Ofertas- Lista de referencia | BO19: 0.1149 | BP19: 0.1125 | IH19: x | II19: x | IJ19: Veracuz | IK19: Seguridad pública Colima (uso arma de fuego) | IM19: Alto Valor | IN19: =IF(OR(Adm!$GC$4=Adm!$GB$112,Adm!$GC$4=Adm!$GB$113,Adm!$GC$4=Adm!$GB$114),"Alto valor",0) -> 0 | IO19: 2 | IP19: 0 | IQ19: =IF(IP19=0,MAX($IO$18:$IO$24)+1,IO19) -> 8 | IR19: =IFERROR(VLOOKUP(SMALL($IQ$18:$IQ$24,IO19),$IO$18:$IP$24,2,FALSE),"X") -> X
C20: =IF(B4=A117,"si","no") -> no | L20: 8000001 | M20: 10000000 | N20: 22000 | AG20: 0.1096 | AH20: 9.9 | AI20: 0.028 | AJ20: 0.1096 | AK20: 9.5 | AL20: 0.0145 | AU20: x | AV20: x | AW20: x | AX20: Policías | BA20: Programa | BO20: 0.115 | BP20: 0.1035 | IH20: x | II20: x | IJ20: x | IK20: Policías | IM20: Embajadores | IN20: =IF(OR(Adm!$GC$4=Adm!$GB$112,Adm!$GC$4=Adm!$GB$113,Adm!$GC$4=Adm!$GB$114,Adm!$GC$4=Adm!$GB$116),"Embajadores",0) -> 0 | IO20: 3 | IP20: 0 | IQ20: 8 | IR20: X
C21: Mejoras Cofis | L21: 10000001 | M21: 999999999999 | N21: 24000 | AG21: 0.111 | AH21: 9.98 | AI21: 0.028 | AJ21: 0.111 | AK21: 9.73 | AL21: 0.0123 | BB21: "colectivo" | BC21: Paso1 | BD21: paso2 | BE21: paso3 | BF21: paso4 | BO21: 0.1159 | BP21: 0.1095 | IM21: Extranjeros | IN21: =IF(Adm!$GC$4=Adm!$GB$112,"Extranjeros",0) -> 0 | IO21: 4 | IP21: 0 | IQ21: 8 | IR21: X
C22: =IF(AND(B4=A117,AC4=AC16),"si","no") -> no | AG22: 0.112 | AH22: 10.04 | AI22: 0.028 | AJ22: 0.112 | AK22: 9.8 | AL22: 0.0123 | BC22: No orden | BD22: copia cod | BE22: reordenar | BF22: listado "ofertassantander" | BO22: 0.1165 | BP22: 0.1065 | IM22: Gubernamentales | IN22: =IF(OR(Adm!$GC$4=Adm!$GB$112,Adm!$GC$4=Adm!$GB$113,Adm!$GC$4=Adm!$GB$114,),"Gubernamentales",0) -> 0 | IO22: 5 | IP22: 0 | IQ22: 8 | IR22: X
AG23: 0.1149 | AH23: 10.22 | AI23: 0.028 | AJ23: 0.1149 | AK23: 10 | AL23: 0.0123 | BA23: Ninguno | BB23: Ninguno | BC23: 1 | BD23: =BB23 -> Ninguno | BE23: =IF(BD23=0,MAX($BC$23:$BC$32)+1,BC23) -> 1 | BF23: =IFERROR(VLOOKUP(SMALL($BE$23:$BE$32,BC23),$BC$23:$BD$32,2,FALSE),"X") -> Ninguno | BO23: 0.1175 | BP23: 0.1125 | IM23: Públicos | IN23: =IF(OR(Adm!$GC$4=Adm!$GB$112,Adm!$GC$4=Adm!$GB$113,Adm!$GC$4=Adm!$GB$114),"Públicos",0) -> 0 | IO23: 6 | IP23: =IN23 -> 0 | IQ23: 8 | IR23: X
AG24: 0.1159 | AH24: 10.28 | AI24: 0.028 | AJ24: 0.1159 | AK24: 10.07 | AL24: 0.0123 | BA24: Alto Valor | BB24: =IF(OR(Adm!$B$4=Adm!$A$112,Adm!$B$4=Adm!$A$113,Adm!$B$4=Adm!$A$114),"Alto valor",0) -> 0 | BC24: 2 | BD24: 0 | BE24: =IF(BD24=0,MAX($BC$23:$BC$32)+1,BC24) -> 11 | BF24: =IFERROR(VLOOKUP(SMALL($BE$23:$BE$32,BC24),$BC$23:$BD$32,2,FALSE),"X") -> X | BO24: 0.118 | BP24: 0.1065 | BQ24: 0.115 | IM24: Sinergia BEI | IN24: =IF(OR(Adm!$GC$4=Adm!$GB$112,Adm!$GC$4=Adm!$GB$113,Adm!$GC$4=Adm!$GB$114),"Sinergia BEI",0) -> 0 | IO24: 7 | IP24: =IN24 -> 0 | IQ24: 8 | IR24: X
AG25: 0.1165 | AH25: 10.31 | AI25: 0.028 | AJ25: 0.1165 | AK25: 10.11 | AL25: 0.0123 | BA25: Asalariados | BB25: =IF(AND(I4="Asalariado",OR(Adm!$B$4=Adm!$A$112,Adm!$B$4=Adm!$A$113,Adm!$B$4=Adm!$A$114)),"Asalariados",0) -> 0 | BC25: 3 | BD25: 0 | BE25: 11 | BF25: X | BO25: 0.12 | BP25: 0.1125
AG26: 0.1175 | AH26: 10.38 | AI26: 0.028 | AJ26: 0.1175 | AK26: 10.18 | AL26: 0.0123 | BA26: Embajadores | BB26: =IF(OR(Adm!$B$4=Adm!$A$112,Adm!$B$4=Adm!$A$113,Adm!$B$4=Adm!$A$114,Adm!$B$4=Adm!$A$116),"Embajadores",0) -> 0 | BC26: 4 | BD26: 0 | BE26: 11 | BF26: X | BO26: 0.121 | BP26: 0.1095
AG27: 0.118 | AH27: 10.41 | AI27: 0.028 | AJ27: 0.118 | AK27: 10.21 | AL27: 0.0123 | BA27: Extranjeros | BB27: =IF(Adm!$B$4=Adm!$A$112,"Extranjeros",0) -> 0 | BC27: 5 | BD27: 0 | BE27: 11 | BF27: X | BO27: 0.1225 | BP27: 0.1125
AG28: 0.12 | AH28: 10.53 | AI28: 0.028 | AJ28: 0.12 | AK28: 10.49 | AL28: 0.01 | BA28: Gubernamentales | BB28: =IF(OR(Adm!$B$4=Adm!$A$112,Adm!$B$4=Adm!$A$113,Adm!$B$4=Adm!$A$114,),"Gubernamentales",0) -> 0 | BC28: 6 | BD28: =BB28 -> 0 | BE28: 11 | BF28: X | BO28: 0.124 | BP28: 0.114
AG29: 0.121 | AH29: 10.59 | AI29: 0.028 | AJ29: 0.121 | AK29: 10.56 | AL29: 0.01 | BA29: Mazda | BB29: =IF(OR(Adm!$B$4=Adm!$A$112,Adm!$B$4=Adm!$A$113,Adm!$B$4=Adm!$A$114),"Mazda",0) -> 0 | BC29: 7 | BD29: =BB29 -> 0 | BE29: 11 | BF29: X | BO29: 0.1249 | BP29: 0.1225
AG30: 0.1225 | AH30: 10.68 | AI30: 0.028 | AJ30: 0.1225 | AK30: 10.67 | AL30: 0.01 | BA30: Públicos | BB30: =IF(OR(Adm!$B$4=Adm!$A$112,Adm!$B$4=Adm!$A$113,Adm!$B$4=Adm!$A$114),"Públicos",0) -> 0 | BC30: 8 | BD30: =BB30 -> 0 | BE30: 11 | BF30: X | BO30: 0.125 | BP30: 0.115
AG31: 0.124 | AH31: 10.78 | AI31: 0.028 | AJ31: 0.124 | AK31: 10.77 | AL31: 0.01 | BA31: Sinergia BEI | BB31: =IF(OR(Adm!$B$4=Adm!$A$112,Adm!$B$4=Adm!$A$113,Adm!$B$4=Adm!$A$114),"Sinergia BEI",0) -> 0 | BC31: 9 | BD31: =BB31 -> 0 | BE31: 11 | BF31: X | BO31: 0.1275 | BP31: 0.1225
AG32: 0.1249 | AH32: 10.83 | AI32: 0.028 | AJ32: 0.1249 | AK32: 10.84 | AL32: 0.01 | BA32: Verde | BB32: =IF(OR(Adm!$B$4=Adm!$A$112,Adm!$B$4=Adm!$A$113,Adm!$B$4=Adm!$A$114),"Verde",0) -> 0 | BC32: 10 | BD32: =BB32 -> 0 | BE32: 11 | BF32: X | BO32: 0.13 | BP32: 0.1225
AG33: 0.1275 | AH33: 11 | AI33: 0.028 | AJ33: 0.1275 | AK33: 11.1 | AL33: 0.0088 | BO33: 0.1325 | BP33: 0.1225
AG34: 0.13 | AH34: 11.15 | AI34: 0.028 | AJ34: 0.13 | AK34: 11.27 | AL34: 0.0088
AG35: 0.1325 | AH35: 11.31 | AI35: 0.028 | AJ35: 0.1325 | AK35: 11.45 | AL35: 0.0088
A109: 1 | B109: 2 | C109: 3 | D109: 4 | E109: 5 | F109: 6 | G109: 7 | H109: 8 | I109: 9 | J109: 11 | K109: 12 | GB109: 1 | GC109: 2 | GD109: 3 | GE109: 4 | GF109: 5 | GG109: 6 | GH109: 7 | GI109: 8 | GJ109: 9
A110: LISTA destinos REFERENCIA | B110: COMISION APERTURA | C110: COMISION POR ADMINISTRACION | D110: IVA | E110: VALIDA PLAZOS | F110: HIPOTECA PLUS | G110: Pagos crecientes | H110: Aforos Máximo Crédito Banco | I110: Aforo cofinanciados CREDITOS | GB110: LISTA destinos REFERENCIA | GC110: COMISION APERTURA | GD110: COMISION POR ADMINISTRACION | GE110: IVA | GF110: VALIDA PLAZOS | GG110: HIPOTECA PLUS | GH110: Pagos crecientes | GI110: Aforos Máximo Crédito Banco | GJ110: Aforo cofinanciados CREDITOS
A111: "LISTA" | GB111: "LISTAFREE"
A112: Adquisición | C112: 350 | E112: =IF(AND($AQ$3=$AQ$16,$H$4=300),"VERDADERO",IF(OR($H$4=84,$H$4=96,$H$4=108,$H$4=120,$H$4=132,$H$4=144,$H$4=156,$H$4=168,$H$4=180,$H$4=240),"VERDADERO","FALSO")) -> FALSO | F112: SI | G112: SI | H112: 0.9 | GB112: Adquisición | GC112: 0 | GD112: 0 | GF112: =IF(OR($GG$4=120,$GG$4=180,$GG$4=240),"VERDADERO","FALSO") -> FALSO | GG112: NO | GH112: SI | GI112: 0.9
A113: Adquisición con Apoyo INFONAVIT | B113: 0 | C113: 350 | E113: =IF(AND($AQ$3=$AQ$16,$H$4=300),"VERDADERO",IF(OR($H$4=84,$H$4=96,$H$4=108,$H$4=120,$H$4=132,$H$4=144,$H$4=156,$H$4=168,$H$4=180,$H$4=240),"VERDADERO","FALSO")) -> FALSO | F113: SI | G113: SI | H113: 0.95 | GB113: Adquisición con Apoyo INFONAVIT | GC113: 0 | GD113: 0 | GF113: =IF(OR($GG$4=120,$GG$4=180,$GG$4=240),"VERDADERO","FALSO") -> FALSO | GG113: NO | GH113: SI | GI113: 0.9
A114: Cofinavit | C114: 350 | D114: 0 | E114: =IF(AND($AQ$3=$AQ$16,$H$4=300),"VERDADERO",IF(OR($H$4=84,$H$4=96,$H$4=108,$H$4=120,$H$4=132,$H$4=144,$H$4=156,$H$4=168,$H$4=180,$H$4=240),"VERDADERO","FALSO")) -> FALSO | F114: SI | G114: SI | H114: 0.9 | I114: 1 | GB114: Cofinavit | GD114: 0 | GF114: FALSO | GG114: NO | GH114: SI | GI114: 0.9
A115: Adquisición Simplificada | B115: 0 | C115: 350 | E115: =IF(OR($H$4=84,$H$4=96,$H$4=108,$H$4=120,$H$4=132,$H$4=144,$H$4=156,$H$4=168,$H$4=180,$H$4=240),"VERDADERO","FALSO") -> FALSO | F115: SI | G115: SI | H115: 0.35 | GB115: Adquisición Simplificada | GC115: 0 | GD115: 0 | GF115: FALSO | GG115: NO | GH115: SI | GI115: 0.35
A116: Sustitución | B116: 0 | C116: 350 | E116: =IF(OR($H$4=84,$H$4=96,$H$4=108,$H$4=120,$H$4=132,$H$4=144,$H$4=156,$H$4=168,$H$4=180,$H$4=192,$H$4=204,$H$4=216,$H$4=228,$H$4=240),"VERDADERO","FALSO") -> FALSO | F116: SI | G116: SI | H116: 0.9 | GB116: Sustitución | GC116: 0 | GD116: 0 | GF116: =IF(OR($GG$4=84,$GG$4=96,$GG$4=108,$GG$4=120,$GG$4=132,$GG$4=144,$GG$4=156,$GG$4=168,$GG$4=180,$GG$4=240),"VERDADERO","FALSO") -> FALSO | GG116: NO | GH116: SI | GI116: =IF(GX4=GX15,80%,IF(OR(GW4=GW16,GW4=GW18),70%,90%)) -> 0.7 | GJ116: 1
A117: Mejora de Condiciones | B117: 0 | C117: 350 | E117: =IF(OR($H$4>=84,$H$4<=240),"VERDADERO","FALSO") -> VERDADERO | F117: SI | G117: SI | H117: 0.9 | GB117: Terminación de Obra y Remodelación | GC117: 0 | GD117: 0 | GF117: =IF(OR($GG$4=120,$GG$4=180,$GG$4=240),"VERDADERO","FALSO") -> FALSO | GG117: NO | GH117: SI | GI117: 0.5
A118: Construcción | B118: 0 | C118: 350 | E118: =IF(OR($H$4=84,$H$4=96,$H$4=108,$H$4=120,$H$4=132,$H$4=144,$H$4=156,$H$4=168,$H$4=180,$H$4=240),"VERDADERO","FALSO") -> FALSO | F118: SI | G118: NO | H118: =IF(E4="Construcción en Terreno Propio",100%,80%) -> 0.8
A119: Terreno | B119: 0 | C119: 350 | E119: =IF(OR($H$4=84,$H$4=120,$H$4=180),"VERDADERO","FALSO") -> FALSO | F119: SI | G119: NO | H119: 0.7 | GD119: 0
A120: Liquidez | B120: 0 | C120: 350 | D120: 0.16 | E120: =IF(OR($H$4=60,$H$4=120,$H$4=180),"VERDADERO","FALSO") -> FALSO | F120: SI | G120: NO | H120: 0.7

Sheet Cal (hidden)
A1: SANTANDER | AM1: FREE
B4: Cálculo | C4: Perfil 5 | D4: Perfil 4 | E4: Perfil 3 | F4: Perfil 2 | G4: Perfil 1 | AO4: Cálculo | AP4: Perfil 5 | AQ4: Perfil 4 | AR4: Perfil 3 | AS4: Perfil 2 | AT4: Perfil 1
A5: Valor vivienda capturada | B5: =Captura!F33 -> 0 | C5: =B5 -> 0 | D5: =C5 -> 0 | E5: =D5 -> 0 | F5: =E5 -> 0 | G5: =F5 -> 0 | AN5: Valor vivienda capturada | AO5: =Free!F25 -> 0 | AP5: =AO5 -> 0 | AQ5: =AP5 -> 0 | AR5: =AQ5 -> 0 | AS5: =AR5 -> 0 | AT5: =AS5 -> 0
A6: Aforo máximo por destino | B6: =VLOOKUP(Adm!$B$4,lista,8,0) ->  | AN6: Aforo máximo por destino | AO6: =VLOOKUP(Adm!$B$4,ListaFree,8,0) -> 
B7: Aforo máximo por PERFIL | C7: =Adm!$EA$9 ->  | D7: =Adm!$EA$8 ->  | E7: =Adm!$EA$7 ->  | F7: =Adm!$EA$6 ->  | G7: =Adm!$EA$5 ->  | AO7: Aforo máximo por PERFIL | AP7: =Adm!$KI$9 ->  | AQ7: =Adm!$KI$8 ->  | AR7: =Adm!$KI$7 ->  | AS7: =Adm!$KI$6 ->  | AT7: =Adm!$KI$5 -> 
B8: Crédito Máximo a otorgar por aforo perfil | C8: =C5*C7 ->  | D8: =D5*D7 ->  | AO8: Crédito Máximo a otorgar por aforo perfil | AP8: =AP5*AP7 ->  | AQ8: =AQ5*AQ7 -> 
A9: Monto crédito solicitado (INCLUYE yy MEJORAS COFI) | B9: =Captura!F35 -> 0 | C9: =IF($B$9<C8,$B$9,C8) ->  | D9: =IF($B$9<D8,$B$9,D8) ->  | AN9: Monto crédito solicitado (INCLUYE yy MEJORAS COFI) | AO9: =Free!F27 -> 0 | AP9: =IF($AO$9<AP8,$AO$9,AP8) ->  | AQ9: =IF($AO$9<AQ8,$AO$9,AQ8) -> 
B10: CREDITO FINAL | C10: =IF(C9<Adm!$Z$3,0,C9) ->  | D10: =IF(D9<Adm!$Z$3,0,D9) ->  | E10: =IF(E9<Adm!$Z$3,0,E9) ->  | F10: =IF(F9<Adm!$Z$3,0,F9) ->  | G10: =IF(G9<Adm!$Z$3,0,G9) ->  | AO10: CREDITO FINAL | AP10: =IF(AP9<Adm!$GU$3,0,AP9) ->  | AQ10: =IF(AQ9<Adm!$GU$3,0,AQ9) ->  | AR10: =IF(AR9<Adm!$GU$3,0,AR9) ->  | AS10: =IF(AS9<Adm!$GU$3,0,AS9) ->  | AT10: =IF(AT9<Adm!$GU$3,0,AT9) -> 
A11: Monto INFONAVIT | B11: Aforo final | C11: =C10/C5 ->  | D11: =D10/D5 ->  | AO11: Aforo final | AP11: =AP10/AP5 ->  | AQ11: =AQ10/AQ5 -> 
A12: =Captura!F37 -> 0
B13: Aforo con Susti adicional
A18: COFINAVIT | B18: COFINAVIT | C18: COFINAVIT | D18: COFINAVIT | E18: COFINAVIT | F18: COFINAVIT | G18: COFINAVIT | AN18: COFINAVIT | AO18: COFINAVIT | AP18: COFINAVIT | AQ18: COFINAVIT | AR18: COFINAVIT | AS18: COFINAVIT | AT18: COFINAVIT
A20: Valor de vivienda capturada | B20: =Captura!F33 -> 0 | AN20: Valor de vivienda capturada | AO20: =Free!F25 -> 0
A21: Suma Crédito INFONAVIT | B21: =IF(Adm!B4=Adm!A114,Captura!N13,0) -> 0 | AN21: Suma Crédito INFONAVIT | AO21: =IF(Adm!GC4=Adm!GB114,Free!K11,0) -> 0
A22: SUMA SSV | B22: =IF(Adm!B4=Adm!A114,Captura!N15,0) -> 0 | AN22: SUMA SSV | AO22: =IF(Adm!GC4=Adm!GB114,Free!K13,0) -> 0
B24: Cálculo | C24: Perfil 5 | D24: Perfil 4 | E24: Perfil 3 | F24: Perfil 2 | G24: Perfil 1 | AO24: Cálculo | AP24: Perfil 5 | AQ24: Perfil 4 | AR24: Perfil 3 | AS24: Perfil 2 | AT24: Perfil 1
A25: Aforo máximo Créditos + SSV por destino | B25: 1 | AN25: Aforo máximo Créditos + SSV por destino | AO25: 1
B26: Aforo máximo por PERFIL | C26: =Adm!$EA$9 ->  | D26: =Adm!$EA$8 ->  | E26: =Adm!$EA$7 ->  | F26: =Adm!$EA$6 ->  | G26: =Adm!$EA$5 ->  | AO26: Aforo máximo por PERFIL | AP26: =Adm!$KI$9 ->  | AQ26: =Adm!$KI$8 ->  | AR26: =Adm!$KI$7 ->  | AS26: =Adm!$KI$6 ->  | AT26: =Adm!$KI$5 -> 
A27: Monto crédito solicitado | B27: =Captura!F35 -> 0 | AN27: Monto crédito solicitado | AO27: =Free!F27 -> 0
B28: Crédito Máximo entre solicitado y restando SSV e YY | C28: =IF($B$27+$B$21+$B$22<=$B$20,$B$27,$B$20-$B$21-$B$22) -> 0 | D28: =IF($B$27+$B$21+$B$22<=$B$20,$B$27,$B$20-$B$21-$B$22) -> 0 | E28: 0 | F28: 0 | G28: 0 | AO28: Crédito Máximo entre solicitado y restando SSV e YY | AP28: =IF($AO$27+$AO$21+$AO$22<=$AO$20,$AO$27,$AO$20-$AO$21-$AO$22) -> 0 | AQ28: =IF($AO$27+$AO$21+$AO$22<=$AO$20,$AO$27,$AO$20-$AO$21-$AO$22) -> 0 | AR28: 0 | AS28: 0 | AT28: 0
B29: CREDITO FINAL | C29: =IF(C28<Adm!$Z$3,0,C28) -> 0 | D29: =IF(D28<Adm!$Z$3,0,D28) -> 0 | E29: =IF(E28<Adm!$Z$3,0,E28) -> 0 | F29: =IF(F28<Adm!$Z$3,0,F28) -> 0 | G29: =IF(G28<Adm!$Z$3,0,G28) -> 0 | AO29: CREDITO FINAL | AP29: =IF(AP28<Adm!$Z$3,0,AP28) -> 0 | AQ29: =IF(AQ28<Adm!$Z$3,0,AQ28) -> 0 | AR29: =IF(AR28<Adm!$Z$3,0,AR28) -> 0 | AS29: =IF(AS28<Adm!$Z$3,0,AS28) -> 0 | AT29: =IF(AT28<Adm!$Z$3,0,AT28) -> 0
B30: Aforo REAL solicitado | C30: =C29/$B$20 ->  | D30: =D29/$B$20 ->  | E30: =E29/$B$20 ->  | F30: =F29/$B$20 ->  | G30: =G29/$B$20 ->  | AO30: Aforo REAL solicitado | AP30: =AP29/$AO$20 ->  | AQ30: =AQ29/$AO$20 -> 
A35: SUSTITUCION | B35: SUSTITUCION | C35: SUSTITUCION | D35: SUSTITUCION | E35: SUSTITUCION | F35: SUSTITUCION | G35: SUSTITUCION | AN35: SUSTITUCION | AO35: SUSTITUCION | AP35: SUSTITUCION | AQ35: SUSTITUCION | AR35: SUSTITUCION | AS35: SUSTITUCION | AT35: SUSTITUCION
B38: Cálculo | C38: Perfil 5 | D38: Perfil 4 | E38: Perfil 3 | F38: Perfil 2 | G38: Perfil 1 | AO38: Cálculo | AP38: Perfil 5 | AQ38: Perfil 4 | AR38: Perfil 3 | AS38: Perfil 2 | AT38: Perfil 1
A39: Valor vivienda capturada | B39: =Captura!F33 -> 0 | C39: =B39 -> 0 | D39: =C39 -> 0 | E39: 0 | F39: 0 | G39: 0 | AN39: Valor vivienda capturada | AO39: =Free!F25 -> 0 | AP39: =AO39 -> 0 | AQ39: =AP39 -> 0 | AR39: =AQ39 -> 0 | AS39: =AR39 -> 0 | AT39: =AS39 -> 0
A40: Aforo máximo por destino | B40: =VLOOKUP(Adm!$B$4,lista,8,0) ->  | AN40: Aforo máximo por destino | AO40: =VLOOKUP(Adm!$GC$4,ListaFree,8,0) -> 
B41: Aforo máximo por PERFIL | C41: =IF(AND(OR(Adm!$B$4=Adm!$A$116,Adm!$B$4=Adm!$B$117),OR(Adm!$AB$4=Adm!$AB$16,Adm!$AB$4=Adm!$AB$18)),70%,Adm!$EA$9) ->  | D41: =IF(AND(OR(Adm!$B$4=Adm!$A$116,Adm!$B$4=Adm!$B$117),OR(Adm!$AB$4=Adm!$AB$16,Adm!$AB$4=Adm!$AB$18)),70%,Adm!$EA$8) ->  | E41: =IF(AND(OR(Adm!$B$4=Adm!$A$116,Adm!$B$4=Adm!$B$117),OR(Adm!$AB$4=Adm!$AB$16,Adm!$AB$4=Adm!$AB$18)),70%,Adm!$EA$7) ->  | F41: =IF(AND(OR(Adm!$B$4=Adm!$A$116,Adm!$B$4=Adm!$B$117),OR(Adm!$AB$4=Adm!$AB$16,Adm!$AB$4=Adm!$AB$18)),70%,Adm!$EA$6) ->  | G41: =IF(AND(OR(Adm!$B$4=Adm!$A$116,Adm!$B$4=Adm!$B$117),OR(Adm!$AB$4=Adm!$AB$16,Adm!$AB$4=Adm!$AB$18)),70%,Adm!$EA$5) ->  | AO41: Aforo máximo por PERFIL | AP41: =IF(AND(Adm!$GC$4=Adm!$GB$116,OR(Adm!GW4=Adm!GW16,Adm!GW4=Adm!GW18)),70%,Adm!$KI$9) ->  | AQ41: =IF(AND(Adm!$GC$4=Adm!$GB$116,OR(Adm!GW4=Adm!GW16,Adm!GW4=Adm!GW18)),70%,Adm!$KI$8) ->  | AR41: =IF(AND(Adm!$GC$4=Adm!$GB$116,OR(Adm!GW4=Adm!GW16,Adm!GW4=Adm!GW18)),70%,Adm!$KI$7) ->  | AS41: =IF(AND(Adm!$GC$4=Adm!$GB$116,OR(Adm!GW4=Adm!GW16,Adm!GW4=Adm!GW18)),70%,Adm!$KI$6) ->  | AT41: =IF(AND(Adm!$GC$4=Adm!$GB$116,OR(Adm!GW4=Adm!GW16,Adm!GW4=Adm!GW18)),70%,Adm!$KI$5) -> 
B42: Crédito Máximo a otorgar por aforo perfil | C42: =C39*C41 ->  | D42: =D39*D41 ->  | E42: =E39*E41 ->  | F42: =F39*F41 ->  | G42: =G39*G41 ->  | AO42: Crédito Máximo a otorgar por aforo perfil | AP42: =AP39*AP41 ->  | AQ42: =AQ39*AQ41 -> 
B43: =IF(Adm!C22="si",Captura!F35+Captura!F37,Captura!F35) -> 0 | C43: =IF($B$43<C42,$B$43,C42) ->  | D43: =IF($B$43<D42,$B$43,D42) ->  | AO43: =Free!F27 -> 0 | AP43: =IF($AO$43<AP42,$AO$43,AP42) ->  | AQ43: =IF($AO$43<AQ42,$AO$43,AQ42) -> 
B44: CREDITO FINAL SUSTITUCION | C44: =IF(C43<Adm!$Z$3,0,C43) ->  | D44: =IF(D43<Adm!$Z$3,0,D43) ->  | E44: =IF(E43<Adm!$Z$3,0,E43) ->  | F44: =IF(F43<Adm!$Z$3,0,F43) ->  | G44: =IF(G43<Adm!$Z$3,0,G43) ->  | AO44: CREDITO FINAL SUSTITUCION | AP44: =IF(AP43<Adm!$GU$3,0,AP43) ->  | AQ44: =IF(AQ43<Adm!$GU$3,0,AQ43) ->  | AR44: =IF(AR43<Adm!$GU$3,0,AR43) ->  | AS44: =IF(AS43<Adm!$GU$3,0,AS43) ->  | AT44: =IF(AT43<Adm!$GU$3,0,AT43) -> 
A47: =IF(AND(OR(Adm!$B$4=Adm!$A$116,Adm!$B$4=Adm!$A$117),Adm!$AC$4=Adm!$AC$15),1,0) -> 0 | B47: DETERMINACION OPCION GASTOS FINANCIADOS | C47: =IF(OR(Adm!$AB$4=0,Adm!$AB$4=""),0,IF(OR(Adm!$AB$4=Adm!$AB$14,Adm!$AB$4=Adm!$AB$16,Adm!$AB$4=Adm!$AB$18),0,IF(C44*7%<=0,0,IF((C44+(C44*7%))/$B$39>C41,0,C44*7%)))) -> 0 | D47: =IF(OR(Adm!$AB$4=0,Adm!$AB$4=""),0,IF(OR(Adm!$AB$4=Adm!$AB$14,Adm!$AB$4=Adm!$AB$16,Adm!$AB$4=Adm!$AB$18),0,IF(D44*7%<=0,0,IF((D44+(D44*7%))/$B$39>D41,0,D44*7%)))) -> 0 | E47: =IF(OR(Adm!$AB$4=0,Adm!$AB$4=""),0,IF(OR(Adm!$AB$4=Adm!$AB$14,Adm!$AB$4=Adm!$AB$16,Adm!$AB$4=Adm!$AB$18),0,IF(E44*7%<=0,0,IF((E44+(E44*7%))/$B$39>E41,0,E44*7%)))) -> 0 | F47: =IF(OR(Adm!$AB$4=0,Adm!$AB$4=""),0,IF(OR(Adm!$AB$4=Adm!$AB$14,Adm!$AB$4=Adm!$AB$16,Adm!$AB$4=Adm!$AB$18),0,IF(F44*7%<=0,0,IF((F44+(F44*7%))/$B$39>F41,0,F44*7%)))) -> 0 | G47: =IF(OR(Adm!$AB$4=0,Adm!$AB$4=""),0,IF(OR(Adm!$AB$4=Adm!$AB$14,Adm!$AB$4=Adm!$AB$16,Adm!$AB$4=Adm!$AB$18),0,IF(G44*7%<=0,0,IF((G44+(G44*7%))/$B$39>G41,0,G44*7%)))) -> 0 | AN47: =IF(AND(OR(Adm!$B$4=Adm!$A$116,Adm!$B$4=Adm!$A$117),Adm!$AC$4=Adm!$AC$15),1,0) -> 0 | AO47: DETERMINACION OPCION GASTOS FINANCIADOS | AP47: =IF(OR(Adm!$GW$4=0,Adm!$GW$4="",Adm!$GW4=Adm!$GW$14,Adm!$GW4=Adm!$GW$16),0,IF(AP44*7%<=0,0,IF((AP44+(AP44*7%))/$AO$39>AP41,0,AP44*7%))) -> 0 | AQ47: =IF(OR(Adm!$GW$4=0,Adm!$GW$4="",Adm!$GW4=Adm!$GW$14,Adm!$GW4=Adm!$GW$16),0,IF(AQ44*7%<=0,0,IF((AQ44+(AQ44*7%))/$AO$39>AQ41,0,AQ44*7%))) -> 0 | AR47: =IF(OR(Adm!$GW$4=0,Adm!$GW$4="",Adm!$GW4=Adm!$GW$14,Adm!$GW4=Adm!$GW$16),0,IF(AR44*7%<=0,0,IF((AR44+(AR44*7%))/$AO$39>AR41,0,AR44*7%))) -> 0 | AS47: =IF(OR(Adm!$GW$4=0,Adm!$GW$4="",Adm!$GW4=Adm!$GW$14,Adm!$GW4=Adm!$GW$16),0,IF(AS44*7%<=0,0,IF((AS44+(AS44*7%))/$AO$39>AS41,0,AS44*7%))) -> 0 | AT47: =IF(OR(Adm!$GW$4=0,Adm!$GW$4="",Adm!$GW4=Adm!$GW$14,Adm!$GW4=Adm!$GW$16),0,IF(AT44*7%<=0,0,IF((AT44+(AT44*7%))/$AO$39>AT41,0,AT44*7%))) -> 0
B48: DETERMINACION DEL MONTO DEL CASH OUT | C48: =IF(OR(Adm!$AB$4=0,Adm!$AB$4="",Adm!$AB$4=Adm!$AB$14,Adm!$AB$4=Adm!$AB$15,Adm!$AB$4=Adm!$AB$17),0,IF(C39*0.7-C44<0,0,C39*0.7-C44)) -> 0 | D48: =IF(OR(Adm!$AB$4=0,Adm!$AB$4="",Adm!$AB$4=Adm!$AB$14,Adm!$AB$4=Adm!$AB$15,Adm!$AB$4=Adm!$AB$17),0,IF(D39*0.7-D44<0,0,D39*0.7-D44)) -> 0 | E48: =IF(OR(Adm!$AB$4=0,Adm!$AB$4="",Adm!$AB$4=Adm!$AB$14,Adm!$AB$4=Adm!$AB$15,Adm!$AB$4=Adm!$AB$17),0,IF(E39*0.7-E44<0,0,E39*0.7-E44)) -> 0 | F48: =IF(OR(Adm!$AB$4=0,Adm!$AB$4="",Adm!$AB$4=Adm!$AB$14,Adm!$AB$4=Adm!$AB$15,Adm!$AB$4=Adm!$AB$17),0,IF(F39*0.7-F44<0,0,F39*0.7-F44)) -> 0 | G48: =IF(OR(Adm!$AB$4=0,Adm!$AB$4="",Adm!$AB$4=Adm!$AB$14,Adm!$AB$4=Adm!$AB$15,Adm!$AB$4=Adm!$AB$17),0,IF(G39*0.7-G44<0,0,G39*0.7-G44)) -> 0 | AO48: DETERMINACION DEL MONTO DEL CASH OUT | AP48: =IF(OR(Adm!$GW$4=0,Adm!$GW$4="",Adm!$GW$4=Adm!$GW$14,Adm!$GW$4=Adm!$GW$15),0,IF(AND(Adm!$GC$4=Adm!$GB$116,Adm!$GX$4=Adm!$GX$15),0,IF(AP39*0.7-AP44<0,0,AP39*0.7-AP44))) -> 0 | AQ48: =IF(OR(Adm!$GW$4=0,Adm!$GW$4="",Adm!$GW$4=Adm!$GW$14,Adm!$GW$4=Adm!$GW$15),0,IF(AND(Adm!$GC$4=Adm!$GB$116,Adm!$GX$4=Adm!$GX$15),0,IF(AQ39*0.7-AQ44<0,0,AQ39*0.7-AQ44))) -> 0 | AR48: =IF(OR(Adm!$GW$4=0,Adm!$GW$4="",Adm!$GW$4=Adm!$GW$14,Adm!$GW$4=Adm!$GW$15),0,IF(AND(Adm!$GC$4=Adm!$GB$116,Adm!$GX$4=Adm!$GX$15),0,IF(AR39*0.7-AR44<0,0,AR39*0.7-AR44))) -> 0 | AS48: =IF(OR(Adm!$GW$4=0,Adm!$GW$4="",Adm!$GW$4=Adm!$GW$14,Adm!$GW$4=Adm!$GW$15),0,IF(AND(Adm!$GC$4=Adm!$GB$116,Adm!$GX$4=Adm!$GX$15),0,IF(AS39*0.7-AS44<0,0,AS39*0.7-AS44))) -> 0 | AT48: =IF(OR(Adm!$GW$4=0,Adm!$GW$4="",Adm!$GW$4=Adm!$GW$14,Adm!$GW$4=Adm!$GW$15),0,IF(AND(Adm!$GC$4=Adm!$GB$116,Adm!$GX$4=Adm!$GX$15),0,IF(AT39*0.7-AT44<0,0,AT39*0.7-AT44))) -> 0
B49: CREDITO FINAL LIQUIDEZ | C49: =MAX(C47:C48) -> 0 | D49: =MAX(D47:D48) -> 0 | E49: =MAX(E47:E48) -> 0 | F49: =MAX(F47:F48) -> 0 | G49: =MAX(G47:G48) -> 0 | AO49: CREDITO FINAL LIQUIDEZ | AP49: =MAX(AP47:AP48) -> 0 | AQ49: =MAX(AQ47:AQ48) -> 0 | AR49: =MAX(AR47:AR48) -> 0 | AS49: =MAX(AS47:AS48) -> 0 | AT49: =MAX(AT47:AT48) -> 0
B50: Aforo gastos | C50: =IF(Adm!$AB$4=Adm!$AB$15,(C44+C47)/C39,(C44+C48)/C39) ->  | D50: =IF(Adm!$AB$4=Adm!$AB$15,(D44+D47)/D39,(D44+D48)/D39) ->  | E50: =IF(Adm!$AB$4=Adm!$AB$15,(E44+E47)/E39,(E44+E48)/E39) ->  | F50: =IF(Adm!$AB$4=Adm!$AB$15,(F44+F47)/F39,(F44+F48)/F39) ->  | G50: =IF(Adm!$AB$4=Adm!$AB$15,(G44+G47)/G39,(G44+G48)/G39) -> 
A51: LIQUIDEZ FINAL o Menor dinero adicional solicitado por cliente | B51: =Captura!N23 -> 0 | C51: =IF(AND($B$51>0,$B$51<=C49),$B$51,C49) -> 0 | D51: =IF(AND($B$51>0,$B$51<=D49),$B$51,D49) -> 0 | E51: =IF(AND($B$51>0,$B$51<=E49),$B$51,E49) -> 0 | F51: =IF(AND($B$51>0,$B$51<=F49),$B$51,F49) -> 0 | G51: =IF(AND($B$51>0,$B$51<=G49),$B$51,G49) -> 0 | AN51: LIQUIDEZ FINAL o Menor dinero adicional solicitado por cliente | AO51: =Free!K27 -> 0 | AP51: =IF(AND($AO$51>0,$AO$51<=AP49),$AO$51,AP49) -> 0 | AQ51: =IF(AND($AO$51>0,$AO$51<=AQ49),$AO$51,AQ49) -> 0 | AR51: 0 | AS51: 0 | AT51: 0
C52: =(C44+C51)/C39 ->  | D52: =(D44+D51)/D39 ->  | AO52: Aforo Solicitado Sustitución | AP52: =(AP44+AP51)/AP39 ->  | AQ52: =(AQ44+AQ51)/AQ39 -> 
A58: CONSTRUCCION | B58: CONSTRUCCION | C58: CONSTRUCCION | D58: CONSTRUCCION | E58: CONSTRUCCION | F58: CONSTRUCCION | G58: CONSTRUCCION
A60: Tipo de Construcción | B60: =IF(Adm!B4=Adm!A118,Captura!N31,"") -> 
A61: Metros de la construcción | B61: =Adm!E10 -> 0
A62: Número de ministraciones | B62: =IF(B61<=500,4,5) -> 4
B65: Cálculo | C65: Perfil 5 | D65: Perfil 4 | E65: Perfil 3 | F65: Perfil 2 | G65: Perfil 1
A66: Valor Terreno | B66: =IF(Adm!B4=Adm!A118,B5,0) -> 0
A67: Valor Proyecto | B67: =IF(Adm!B4=Adm!A118,B9,0) -> 0
A68: Total Inmueble (suma) | B68: =B66+B67 -> 0 | C68: =B68 -> 0 | D68: =C68 -> 0 | E68: =D68 -> 0 | F68: =E68 -> 0 | G68: =F68 -> 0
A69: Aforo máximo por destino | B69: =VLOOKUP(Adm!$B$4,lista,8,0) -> 
A70: Aforo terreno Vs. inmueble | B70: Aforo máximo por PERFIL | C70: =Adm!$EA$9 ->  | D70: =Adm!$EA$8 ->  | E70: =Adm!$EA$7 ->  | F70: =Adm!$EA$6 ->  | G70: =Adm!$EA$5 -> 
A71: =B66/B68 ->  | B71: Crédito Máximo a otorgar por aforo perfil | C71: =C68*C70 ->  | D71: =D68*D70 -> 
B72: Determinación monto Crédito Construcción | C72: =IF(AND(Adm!$B$4=Adm!$A$118,Adm!$E$4=Adm!$E$7),0,IF($B$67<C71,$B$67,C71)) ->  | D72: =IF(AND(Adm!$B$4=$A$120,Adm!$E$4=Adm!$E$7),0,IF($B$67<D71,$B$67,D71)) ->  | E72: =IF(AND(Adm!$B$4=$A$120,Adm!$E$4=Adm!$E$7),0,IF($B$67<E71,$B$67,E71)) ->  | F72: =IF(AND(Adm!$B$4=$A$120,Adm!$E$4=Adm!$E$7),0,IF($B$67<F71,$B$67,F71)) ->  | G72: =IF(AND(Adm!$B$4=$A$120,Adm!$E$4=Adm!$E$7),0,IF($B$67<G71,$B$67,G71)) -> 
B73: Determinación monto Crédito Terreno + Construcción | C73: =IF(AND(Adm!$B$4=Adm!$A$118,Adm!$E$4=Adm!$E$6),0,IF($B$68*$B$69<C71,$B$68*$B$69,C71)) ->  | D73: =IF(AND(Adm!$B$4=Adm!$A$118,Adm!$E$4=Adm!$E$6),0,IF($B$68*$B$69<D71,$B$68*$B$69,D71)) ->  | E73: =IF(AND(Adm!$B$4=Adm!$A$118,Adm!$E$4=Adm!$E$6),0,IF($B$68*$B$69<E71,$B$68*$B$69,E71)) ->  | F73: =IF(AND(Adm!$B$4=Adm!$A$118,Adm!$E$4=Adm!$E$6),0,IF($B$68*$B$69<F71,$B$68*$B$69,F71)) ->  | G73: =IF(AND(Adm!$B$4=Adm!$A$118,Adm!$E$4=Adm!$E$6),0,IF($B$68*$B$69<G71,$B$68*$B$69,G71)) -> 
C74: =MAX(C72:C73) ->  | D74: =MAX(D72:D73) -> 
B75: CREDITO FINAL CONSTRUCCION
A76: Nuevo monto de Crédito Solicitado por el cliente | B76: =IF(Captura!N35>0,Captura!N35,0) -> 0 | C76: =IF(AND($B$76>0,$B$76<=C74),$B$76,C74) ->  | D76: =IF(AND($B$76>0,$B$76<=D74),$B$76,D74) -> 
C77: =C76/$B$68 ->  | D77: =D76/$B$68 ->  | E77: =E76/$B$68 ->  | F77: =F76/$B$68 ->  | G77: =G76/$B$68 -> 
A78: Terreno más Construcción. valida primer ministración
A79: 25% Valor del proyecto= Construcción | B79: =IF(B76>0,B66+C76,B68) -> 0 | C79: =B79*0.25 -> 0
A80: 70% Avalúo TERRENO | B80: =B66 -> 0 | C80: =B80*0.7 -> 0
A82: Ministraciones
A83: Terreno más Construcción | D83: Construcción en terreno Propio
A84: Primer Ministración | B84: =IF($B$68*0.25<=($B$66*0.7),$B$68*0.25,$B$66*0.7) -> 0 | D84: Primer Ministración | E84: =IF($B$62=4,$C$76*0.25,$C$76*0.25) -> 
A85: Subsecuentes | B85: =IF(Adm!$E$10<=500,((C76-B84)/3),IF(Adm!$E$10>500,((C76-B84)/4))) ->  | D85: Segunda ministración | E85: =IF($B$62=4,$C$76*0.25,$C$76*0.2) -> 
D86: Tercera ministración | E86: =IF($B$62=4,$C$76*0.25,$C$76*0.2) -> 
D87: Cuarta ministración | E87: =IF($B$62=4,$C$76*0.25,$C$76*0.2) -> 
D88: Quinta ministración | E88: =IF($B$62=5,C76*0.15,0) -> 0
D89: Suma | E89: =SUM(E84:E88) -> 
A90: Ministraciones FINALES
A91: Primer Ministración | B91: =IF($B$60="Construcción en Terreno Propio",E84,B84) -> 0
A92: Segunda ministración | B92: =IF($B$60="Construcción en Terreno Propio",E85,$B$85) -> 
A93: Tercera ministración | B93: =IF($B$60="Construcción en Terreno Propio",E86,$B$85) -> 
A94: Cuarta ministración | B94: =IF($B$60="Construcción en Terreno Propio",E87,$B$85) -> 
A95: Quinta ministración | B95: =IF(Adm!$E$10<=500,0,IF($B$60="Construcción en Terreno Propio",E88,B85)) -> 0
A96: Suma | B96: =SUM(B91:B95) -> 
A103: RESUMEN FINAL | AA103: Lista Selección PARA TABLA | AB103: OFERTA FINAL PARA TABLA | AN103: RESUMEN FINAL | BN103: Lista Selección PARA TABLA | BO103: OFERTA FINAL PARA TABLA
G104: SELECCIÓN OTRO PERFIL ADICIONAL | H104: =Captura!E51 -> Selecciona | AA104: PERFIL 1 | AT104: SELECCIÓN OTRO PERFIL ADICIONAL | AU104: =Free!E40 -> 0 | BN104: PERFIL 1
A105: =Adm!B4 -> 0 | D105: =IF(AND(OR(Adm!$B$4=Adm!$A$116,Adm!$B$4=Adm!$A$117),Adm!$AB$4=Adm!$AB$14),"NO",IF(C51=0,"NO",IF(OR(Adm!$B$4=Adm!$A$116,Adm!$B$4=Adm!$A$117),"SI","NO"))) -> NO | E105: =IF(AND(OR(Adm!$B$4=Adm!$A$116,Adm!$B$4=Adm!$A$117),Adm!$AC$4=Adm!$AC$16),"SI","NO") -> NO | H105: =IF($H$104="Perfil 4",L105,IF($H$104="perfil 3",P105,IF($H$104="perfil 2",T105,IF($H$104="perfil 1",X105,0)))) -> 0 | I105: =IF($H$104="Perfil 4",M105,IF($H$104="perfil 3",Q105,IF($H$104="perfil 2",U105,IF($H$104="perfil 1",Y105,0)))) -> 0 | L105: =IF(AND(OR(Adm!$B$4=Adm!$A$116,Adm!$B$4=Adm!$A$117),Adm!$AB$4=Adm!$AB$14),"NO",IF(D51=0,"NO",IF(OR(Adm!$B$4=Adm!$A$116,Adm!$B$4=Adm!$A$117),"SI","NO"))) -> NO | M105: =IF(AND(OR(Adm!$B$4=Adm!$A$116,Adm!$B$4=Adm!$A$117),Adm!$AC$4=Adm!$AC$16),"SI","NO") -> NO | P105: =IF(AND(OR(Adm!$B$4=Adm!$A$116,Adm!$B$4=Adm!$A$117),Adm!$AB$4=Adm!$AB$14),"NO",IF(E51=0,"NO",IF(OR(Adm!$B$4=Adm!$A$116,Adm!$B$4=Adm!$A$117),"SI","NO"))) -> NO | Q105: =IF(AND(OR(Adm!$B$4=Adm!$A$116,Adm!$B$4=Adm!$A$117),Adm!$AC$4=Adm!$AC$16),"SI","NO") -> NO | T105: =IF(AND(OR(Adm!$B$4=Adm!$A$116,Adm!$B$4=Adm!$A$117),Adm!$AB$4=Adm!$AB$14),"NO",IF(F51=0,"NO",IF(OR(Adm!$B$4=Adm!$A$116,Adm!$B$4=Adm!$A$117),"SI","NO"))) -> NO | U105: =IF(AND(OR(Adm!$B$4=Adm!$A$116,Adm!$B$4=Adm!$A$117),Adm!$AC$4=Adm!$AC$16),"SI","NO") -> NO | X105: =IF(AND(OR(Adm!$B$4=Adm!$A$116,Adm!$B$4=Adm!$A$117),Adm!$AB$4=Adm!$AB$14),"NO",IF(G51=0,"NO",IF(OR(Adm!$B$4=Adm!$A$116,Adm!$B$4=Adm!$A$117),"SI","NO"))) -> NO | Y105: =IF(AND(OR(Adm!$B$4=Adm!$A$116,Adm!$B$4=Adm!$A$117),Adm!$AC$4=Adm!$AC$16),"SI","NO") -> NO | AA105: PERFIL 2 | AC105: =IF($AB$106="Perfil 5",D105,IF($AB$106="Perfil 4",L105,IF($AB$106="perfil 3",P105,IF($AB$106="perfil 2",T105,IF($AB$106="perfil 1",X105,0))))) -> 0 | AD105: =IF($AB$106="Perfil 5",E105,IF($AB$106="Perfil 4",M105,IF($AB$106="perfil 3",Q105,IF($AB$106="perfil 2",U105,IF($AB$106="perfil 1",Y105,0))))) -> 0 | AN105: =Adm!GC4 -> 0 | AQ105: =IF(AND(Adm!GC4=Adm!GB116,AP51>0),"SI","NO") -> NO | AU105: =IF($AU$104="Perfil 4",AY105,IF($AU$104="perfil 3",BC105,IF($AU$104="perfil 2",BG105,IF($AU$104="perfil 1",BK105,0)))) -> 0 | AY105: =IF(AND(Adm!$GC$4=Adm!$GB$116,AQ51>0),"SI","NO") -> NO | BC105: =IF(AND(Adm!$GC$4=Adm!$GB$116,AR51>0),"SI","NO") -> NO | BG105: =IF(AND(Adm!$GC$4=Adm!$GB$116,AS51>0),"SI","NO") -> NO | BK105: =IF(AND(Adm!$GC$4=Adm!$GB$116,AT51>0),"SI","NO") -> NO | BN105: PERFIL 2 | BP105: =IF($BO$106="Perfil 5",AQ105,IF($BO$106="Perfil 4",AY105,IF($BO$106="perfil 3",BC105,IF($BO$106="perfil 2",BG105,IF($BO$106="perfil 1",BK105,0))))) -> 0
B106: 1 | C106: Perfil 5 | D106: Liquidez5 | E106: Sustitución5 | G106: =H104 -> Selecciona | H106: =CONCATENATE("liquidez",H104) -> liquidezSelecciona | I106: =CONCATENATE("Sustitución",H104) -> SustituciónSelecciona | K106: 4 | L106: LiqudezPERFIL 4 | M106: SustituciónPERFIL4 | O106: Perfil 3 | P106: LiqudezPERFIL 3 | Q106: SustituciónPERFIL3 | R106: 1 | S106: Perfil 2 | T106: LiqudezPERFIL2 | U106: SustituciónPERFIL2 | W106: Perfil 1 | X106: LiqudezPERFIL1 | Y106: SustituciónPERFIL1 | AA106: PERFIL 3 | AB106: =Captura!G76 -> 0 | AC106: =CONCATENATE("liquidez",AC103) -> liquidez | AD106: Sustitución | AO106: 1 | AP106: Perfil 5 | AQ106: Liquidez5 | AT106: =AU104 -> 0 | AU106: =CONCATENATE("liquidez",AU104) -> liquidez0 | AX106: 4 | AY106: LiqudezPERFIL 4 | BB106: Perfil 3 | BC106: LiqudezPERFIL 3 | BF106: Perfil 2 | BG106: LiqudezPERFIL2 | BJ106: Perfil 1 | BK106: LiqudezPERFIL1 | BN106: PERFIL 3 | BO106: =Free!F59 -> 0 | BP106: =CONCATENATE("liquidez",BP103) -> liquidez
A107: Valor de la Vivienda | B107: 2 | C107: =IF(Adm!$B$4=Adm!$A$118,$B$68,$C$5) -> 0 | G107: =IF($H$104="Perfil 4",K107,IF($H$104="perfil 3",O107,IF($H$104="perfil 2",S107,IF($H$104="perfil 1",W107,0)))) -> 0 | K107: =IF(Adm!$B$4=Adm!$A$118,$B$68,$C$5) -> 0 | O107: =IF(Adm!$B$4=Adm!$A$118,$B$68,$C$5) -> 0 | S107: =IF(Adm!$B$4=Adm!$A$118,$B$68,$C$5) -> 0 | W107: =IF(Adm!$B$4=Adm!$A$118,$B$68,$C$5) -> 0 | AA107: PERFIL 4 | AB107: =IF($AB$106="Perfil 5",C107,IF($AB$106="Perfil 4",K107,IF($AB$106="perfil 3",O107,IF($AB$106="perfil 2",S107,IF($AB$106="perfil 1",W107,0))))) -> 0 | AN107: Valor de la Vivienda | AO107: 2 | AP107: =$AO$5 -> 0 | AT107: =IF($AU$104="Perfil 4",AX107,IF($AU$104="perfil 3",BB107,IF($AU$104="perfil 2",BF107,IF($AU$104="perfil 1",BJ107,0)))) -> 0 | AU107: =IF($AU$104="Perfil 4",AY107,IF($AU$104="perfil 3",BC107,IF($AU$104="perfil 2",BG107,IF($AU$104="perfil 1",BK107,0)))) -> 0 | AX107: =$AO$5 -> 0 | BB107: =$AO$5 -> 0 | BF107: =$AO$5 -> 0 | BJ107: =$AO$5 -> 0 | BN107: PERFIL 4 | BO107: =IF($BO$106="Perfil 5",AP107,IF($BO$106="Perfil 4",AX107,IF($BO$106="perfil 3",BB107,IF($BO$106="perfil 2",BF107,IF($BO$106="perfil 1",BJ107,0))))) -> 0 | BP107: =IF($BO$106="Perfil 5",AQ107,IF($BO$106="Perfil 4",AY107,IF($BO$106="perfil 3",BC107,IF($BO$106="perfil 2",BG107,IF($BO$106="perfil 1",BK107,0))))) -> 0
A108: Suma Asegurable | B108: 3 | C108: =C107*Adm!$Y$4 -> 0 | G108: =IF($H$104="Perfil 4",K108,IF($H$104="perfil 3",O108,IF($H$104="perfil 2",S108,IF($H$104="perfil 1",W108,0)))) -> 0 | K108: =K107*Adm!$Y$4 -> 0 | O108: =O107*Adm!$Y$4 -> 0 | S108: =S107*Adm!$Y$4 -> 0 | W108: =W107*Adm!$Y$4 -> 0 | AA108: PERFIL 5 | AB108: =IF($AB$106="Perfil 5",C108,IF($AB$106="Perfil 4",K108,IF($AB$106="perfil 3",O108,IF($AB$106="perfil 2",S108,IF($AB$106="perfil 1",W108,0))))) -> 0 | AN108: Suma Asegurable | AO108: 3 | AP108: =AP107*Adm!$GT$4 -> 0 | AT108: =IF($AU$104="Perfil 4",AX108,IF($AU$104="perfil 3",BB108,IF($AU$104="perfil 2",BF108,IF($AU$104="perfil 1",BJ108,0)))) -> 0 | AU108: =IF($AU$104="Perfil 4",AY108,IF($AU$104="perfil 3",BC108,IF($AU$104="perfil 2",BG108,IF($AU$104="perfil 1",BK108,0)))) -> 0 | AX108: =AX107*Adm!$GT$4 -> 0 | BB108: =BB107*Adm!$GT$4 -> 0 | BF108: =BF107*Adm!$GT$4 -> 0 | BJ108: =BJ107*Adm!$GT$4 -> 0 | BN108: PERFIL 5 | BO108: =IF($BO$106="Perfil 5",AP108,IF($BO$106="Perfil 4",AX108,IF($BO$106="perfil 3",BB108,IF($BO$106="perfil 2",BF108,IF($BO$106="perfil 1",BJ108,0))))) -> 0 | BP108: =IF($BO$106="Perfil 5",AQ108,IF($BO$106="Perfil 4",AY108,IF($BO$106="perfil 3",BC108,IF($BO$106="perfil 2",BG108,IF($BO$106="perfil 1",BK108,0))))) -> 0
A109: Plazo | B109: 4 | C109: =Adm!$H$4 -> 0 | G109: 0 | K109: =Adm!$H$4 -> 0 | O109: =Adm!$H$4 -> 0 | S109: =Adm!$H$4 -> 0 | W109: =Adm!$H$4 -> 0 | AB109: =IF($AB$106="Perfil 5",C109,IF($AB$106="Perfil 4",K109,IF($AB$106="perfil 3",O109,IF($AB$106="perfil 2",S109,IF($AB$106="perfil 1",W109,0))))) -> 0 | AC109: =AB109 -> 0 | AD109: =AB109 -> 0 | AN109: Plazo | AO109: 4 | AP109: =Adm!$GG$4 -> 0 | AT109: 0 | AU109: 0 | AX109: =Adm!$GG$4 -> 0 | BB109: =Adm!$GG$4 -> 0 | BF109: =Adm!$GG$4 -> 0 | BJ109: =Adm!$GG$4 -> 0 | BO109: =IF($BO$106="Perfil 5",AP109,IF($BO$106="Perfil 4",AX109,IF($BO$106="perfil 3",BB109,IF($BO$106="perfil 2",BF109,IF($BO$106="perfil 1",BJ109,0))))) -> 0 | BP109: =BO109 -> 0 | BQ109: =BO109 -> 0
A110: Comisión de Apertura | B110: 5 | C110: =C119*Adm!$P$4 ->  | D110: =IF($D$105="no",0,D119*Adm!$P$4) -> 0 | E110: =IF($E$105="NO",0,E119*Adm!$P$4) -> 0 | G110: 0 | H110: =IF($H$105="no",0,IF($H$104="Perfil 4",L110,IF($H$104="perfil 3",P110,IF($H$104="perfil 2",T110,IF($H$104="perfil 1",X110,0))))) -> 0 | I110: =IF($I$105="no",0,IF($H$104="Perfil 4",M110,IF($H$104="perfil 3",Q110,IF($H$104="perfil 2",U110,IF($H$104="perfil 1",Y110,0))))) -> 0 | K110: =K119*Adm!$P$4 ->  | L110: =L119*Adm!$P$4 -> 0 | M110: =M119*Adm!$P$4 -> 0 | O110: =O119*Adm!$P$4 ->  | P110: =P119*Adm!$P$4 -> 0 | Q110: =Q119*Adm!$P$4 -> 0 | S110: =S119*Adm!$P$4 ->  | T110: =T119*Adm!$P$4 -> 0 | U110: =U119*Adm!$P$4 -> 0 | W110: =W119*Adm!$P$4 ->  | X110: =X119*Adm!$P$4 -> 0 | Y110: =Y119*Adm!$P$4 -> 0 | AB110: =IF($AB$106="Perfil 5",C110,IF($AB$106="Perfil 4",K110,IF($AB$106="perfil 3",O110,IF($AB$106="perfil 2",S110,IF($AB$106="perfil 1",W110,0))))) -> 0 | AC110: =IF($AB$106="Perfil 5",D110,IF($AB$106="Perfil 4",L110,IF($AB$106="perfil 3",P110,IF($AB$106="perfil 2",T110,IF($AB$106="perfil 1",X110,0))))) -> 0 | AD110: =IF($AB$106="Perfil 5",E110,IF($AB$106="Perfil 4",M110,IF($AB$106="perfil 3",Q110,IF($AB$106="perfil 2",U110,IF($AB$106="perfil 1",Y110,0))))) -> 0 | AN110: Comisión de Apertura | AO110: 5 | AP110: =AP119*Adm!$GL$4 ->  | AQ110: =AQ119*Adm!$GL$4 -> 0 | AT110: 0 | AU110: 0 | AX110: =AX119*Adm!$GL$4 ->  | AY110: =AY119*Adm!$GL$4 -> 0 | BB110: =BB119*Adm!$GL$4 ->  | BC110: =BC119*Adm!$GL$4 -> 0 | BF110: =BF119*Adm!$GL$4 ->  | BG110: =BG119*Adm!$GL$4 -> 0 | BJ110: =BJ119*Adm!$GL$4 ->  | BK110: =BK119*Adm!$GL$4 -> 0 | BO110: 0 | BP110: 0
A111: Avalúo | B111: 6 | C111: =IF(OR(Adm!$B$4=Adm!$A$117,Adm!$B$4=Adm!$A$116),Adm!$K$9*1.16,Adm!$K$4) -> 2000 | G111: 0 | K111: =IF(OR(Adm!$B$4=Adm!$A$117,Adm!$B$4=Adm!$A$116),Adm!$K$9*1.16,Adm!$K$4) -> 2000 | O111: =IF(OR(Adm!$B$4=Adm!$A$117,Adm!$B$4=Adm!$A$116),Adm!$K$9*1.16,Adm!$K$4) -> 2000 | S111: =IF(OR(Adm!$B$4=Adm!$A$117,Adm!$B$4=Adm!$A$116),Adm!$K$9*1.16,Adm!$K$4) -> 2000 | W111: =IF(OR(Adm!$B$4=Adm!$A$117,Adm!$B$4=Adm!$A$116),Adm!$K$9*1.16,Adm!$K$4) -> 2000 | AB111: 0 | AN111: Avalúo | AO111: 6 | AP111: =Adm!$GJ$4 -> 0.00275 | AT111: 0 | AU111: 0 | AX111: =Adm!$GJ$4 -> 0.00275 | BB111: =Adm!$GJ$4 -> 0.00275 | BF111: =Adm!$GJ$4 -> 0.00275 | BJ111: =Adm!$GJ$4 -> 0.00275 | BO111: 0 | BP111: 0
A112: Gastos Notariales | B112: 7 | C112: =C107*Adm!$R$4 -> 0 | G112: 0 | K112: =K107*Adm!$R$4 -> 0 | O112: =O107*Adm!$R$4 -> 0 | S112: =S107*Adm!$R$4 -> 0 | W112: =W107*Adm!$R$4 -> 0 | AB112: 0 | AN112: Gastos Notariales | AO112: 7 | AP112: =AP107*Adm!$GN$4 -> 0 | AT112: 0 | AU112: 0 | AX112: =AX107*Adm!$GN$4 -> 0 | BB112: =BB107*Adm!$GN$4 -> 0 | BF112: =BF107*Adm!$GN$4 -> 0 | BJ112: =BJ107*Adm!$GN$4 -> 0 | BO112: 0 | BP112: 0
A113: Inspección y seguimiento de obra | B113: 8 | C113: =IF(Adm!$B$4=Adm!$A$118,Adm!$F$4*1.16,0) -> 0 | G113: 0 | K113: =IF(Adm!$B$4=Adm!$A$118,Adm!$F$4*1.16,0) -> 0 | O113: =IF(Adm!$B$4=Adm!$A$118,Adm!$F$4*1.16,0) -> 0 | S113: =IF(Adm!$B$4=Adm!$A$118,Adm!$F$4*1.16,0) -> 0 | W113: =IF(Adm!$B$4=Adm!$A$118,Adm!$F$4*1.16,0) -> 0 | AB113: 0 | AN113: Inspección y seguimiento de obra | AO113: 8 | AT113: 0 | AU113: 0 | BO113: 0 | BP113: 0
A114: Gastos INFONAVIT | B114: 9 | C114: =IF(Adm!$B$4=Adm!$A$114,C130*3%,0) -> 0 | G114: 0 | K114: =IF(Adm!$B$4=Adm!$A$114,K130*3%,0) -> 0 | O114: =IF(Adm!$B$4=Adm!$A$114,O130*3%,0) -> 0 | S114: =IF(Adm!$B$4=Adm!$A$114,S130*3%,0) -> 0 | W114: =IF(Adm!$B$4=Adm!$A$114,W130*3%,0) -> 0 | AB114: 0 | AN114: Gastos INFONAVIT | AO114: 9 | AP114: =IF(Adm!$GC$4=Adm!$GB$114,AP130*3%,0) -> 0 | AT114: 0 | AU114: 0 | AX114: =IF(Adm!$GC$4=Adm!$GB$114,AX130*3%,0) -> 0 | BB114: =IF(Adm!$GC$4=Adm!$GB$114,BB130*3%,0) -> 0 | BF114: =IF(Adm!$GC$4=Adm!$GB$114,BF130*3%,0) -> 0 | BJ114: =IF(Adm!$GC$4=Adm!$GB$114,BJ130*3%,0) -> 0 | BO114: 0 | BP114: 0
A115: Enganche | B115: 10 | C115: =IF(OR(Adm!$B$4=Adm!$A$116,Adm!$B$4=Adm!$A$117),0,IF(Adm!$B$4=Adm!$A$118,0,IF(Adm!$B$4=Adm!$A$120,0,IF(Adm!$B$4=Adm!$A$114,C107-C119-C130-C131,C107-C119)))) ->  | G115: 0 | K115: =IF(OR(Adm!$B$4=Adm!$A$116,Adm!$B$4=Adm!$A$117),0,IF(Adm!$B$4=Adm!$A$118,0,IF(Adm!$B$4=Adm!$A$120,0,IF(Adm!$B$4=Adm!$A$114,K107-K119-K130-K131,K107-K119)))) ->  | O115: =IF(OR(Adm!$B$4=Adm!$A$116,Adm!$B$4=Adm!$A$117),0,IF(Adm!$B$4=Adm!$A$118,0,IF(Adm!$B$4=Adm!$A$120,0,IF(Adm!$B$4=Adm!$A$114,O107-O119-O130-O131,O107-O119)))) ->  | S115: =IF(OR(Adm!$B$4=Adm!$A$116,Adm!$B$4=Adm!$A$117),0,IF(Adm!$B$4=Adm!$A$118,0,IF(Adm!$B$4=Adm!$A$120,0,IF(Adm!$B$4=Adm!$A$114,S107-S119-S130-S131,S107-S119)))) ->  | W115: =IF(OR(Adm!$B$4=Adm!$A$116,Adm!$B$4=Adm!$A$117),0,IF(Adm!$B$4=Adm!$A$118,0,IF(Adm!$B$4=Adm!$A$120,0,IF(Adm!$B$4=Adm!$A$114,W107-W119-W130-W131,W107-W119)))) ->  | AB115: 0 | AN115: Enganche | AO115: 10 | AP115: =IF(Adm!$GC$4=Adm!$GB$116,0,IF(Adm!$GC$4=Adm!$GB$114,AP107-AP119-AP130-AP131,AP107-AP119)) ->  | AT115: 0 | AU115: 0 | AX115: =IF(Adm!$GC$4=Adm!$GB$116,0,IF(Adm!$GC$4=Adm!$GB$114,AX107-AX119-AX130-AX131,AX107-AX119)) ->  | BB115: =IF(Adm!$GC$4=Adm!$GB$116,0,IF(Adm!$GC$4=Adm!$GB$114,BB107-BB119-BB130-BB131,BB107-BB119)) ->  | BF115: =IF(Adm!$GC$4=Adm!$GB$116,0,IF(Adm!$GC$4=Adm!$GB$114,BF107-BF119-BF130-BF131,BF107-BF119)) ->  | BJ115: =IF(Adm!$GC$4=Adm!$GB$116,0,IF(Adm!$GC$4=Adm!$GB$114,BJ107-BJ119-BJ130-BJ131,BJ107-BJ119)) ->  | BO115: 0 | BP115: 0
A116: Tasa de Interés | B116: 11 | C116: =IF(C106="",0,Adm!$BW$9) ->  | D116: =IF($D$105="no",0,C116) -> 0 | E116: =IF($E$105="NO",0,C116) -> 0 | G116: 0 | H116: =IF($H$105="no",0,IF($H$104="Perfil 4",L116,IF($H$104="perfil 3",P116,IF($H$104="perfil 2",T116,IF($H$104="perfil 1",X116,0))))) -> 0 | I116: =IF($I$105="no",0,IF($H$104="Perfil 4",M116,IF($H$104="perfil 3",Q116,IF($H$104="perfil 2",U116,IF($H$104="perfil 1",Y116,0))))) -> 0 | K116: =IF(K106="",0,Adm!$BW$8) ->  | L116: =IF(L106="",0,K116) ->  | M116: =IF(M106="",0,K116) ->  | O116: =IF(O106="",0,Adm!$BW$7) ->  | P116: =IF(P106="",0,O116) ->  | Q116: =IF(Q106="",0,O116) ->  | S116: =IF(S106="",0,Adm!$BW$6) ->  | T116: =IF(T106="",0,S116) ->  | U116: =IF(U106="",0,S116) ->  | W116: =IF(W106="",0,Adm!$BW$5) ->  | X116: =IF(X106="",0,W116) ->  | Y116: =IF(Y106="",0,W116) ->  | AB116: 0 | AC116: =IF($AB$106="Perfil 5",D116,IF($AB$106="Perfil 4",L116,IF($AB$106="perfil 3",P116,IF($AB$106="perfil 2",T116,IF($AB$106="perfil 1",X116,0))))) -> 0 | AD116: =IF($AB$106="Perfil 5",E116,IF($AB$106="Perfil 4",M116,IF($AB$106="perfil 3",Q116,IF($AB$106="perfil 2",U116,IF($AB$106="perfil 1",Y116,0))))) -> 0 | AN116: Tasa de Interés | AO116: 11 | AP116: =IF(AP106="",0,Adm!$JC$9) ->  | AQ116: =IF(AQ106="",0,AP116) ->  | AT116: 0 | AU116: 0 | AX116: =IF(AX106="",0,Adm!$JC$8) ->  | AY116: =IF(AY106="",0,AX116) ->  | BB116: =IF(BB106="",0,Adm!$JC$9) ->  | BC116: =IF(BC106="",0,BB116) ->  | BF116: =IF(BF106="",0,Adm!$JC$9) ->  | BG116: =IF(BG106="",0,BF116) ->  | BJ116: =IF(BJ106="",0,Adm!$JC$9) ->  | BK116: =IF(BK106="",0,BJ116) ->  | BO116: 0 | BP116: 0
A117: Pago por mil | B117: 12 | C117: =IF(Adm!$B$4=Adm!$A$118,PMT(((C116/360)*(365/12)),Adm!$H$4-12,-1000),IF(AND(Adm!$H$4=180,Adm!$D$4=Adm!$D$7),VLOOKUP(C116,mil_15,2,0),IF(AND(Adm!$H$4=240,Adm!$D$4=Adm!$D$7),VLOOKUP(C116,mil_20,2,0),PMT(((C116/360)*(365/12)),Adm!$H$4,-1000)))) ->  | D117: =IF($D$105="no",0,C117) -> 0 | E117: =IF($E$105="NO",0,C117) -> 0 | G117: 0 | H117: =IF($H$105="no",0,IF($H$104="Perfil 4",L117,IF($H$104="perfil 3",P117,IF($H$104="perfil 2",T117,IF($H$104="perfil 1",X117,0))))) -> 0 | I117: =IF($I$105="no",0,IF($H$104="Perfil 4",M117,IF($H$104="perfil 3",Q117,IF($H$104="perfil 2",U117,IF($H$104="perfil 1",Y117,0))))) -> 0 | K117: =IF(Adm!$B$4=Adm!$A$118,PMT(((K116/360)*(365/12)),Adm!$H$4-12,-1000),IF(AND(Adm!$H$4=180,Adm!$D$4=Adm!$D$7),VLOOKUP(K116,mil_15,2,0),IF(AND(Adm!$H$4=240,Adm!$D$4=Adm!$D$7),VLOOKUP(K116,mil_20,2,0),PMT(((K116/360)*(365/12)),Adm!$H$4,-1000)))) ->  | L117: =K117 ->  | M117: =K117 ->  | O117: =IF(Adm!$B$4=Adm!$A$118,PMT(((O116/360)*(365/12)),Adm!$H$4-12,-1000),IF(AND(Adm!$H$4=180,Adm!$D$4=Adm!$D$7),VLOOKUP(O116,mil_15,2,0),IF(AND(Adm!$H$4=240,Adm!$D$4=Adm!$D$7),VLOOKUP(O116,mil_20,2,0),PMT(((O116/360)*(365/12)),Adm!$H$4,-1000)))) ->  | P117: =O117 ->  | Q117: =O117 ->  | S117: =IF(Adm!$B$4=Adm!$A$118,PMT(((S116/360)*(365/12)),Adm!$H$4-12,-1000),IF(AND(Adm!$H$4=180,Adm!$D$4=Adm!$D$7),VLOOKUP(S116,mil_15,2,0),IF(AND(Adm!$H$4=240,Adm!$D$4=Adm!$D$7),VLOOKUP(S116,mil_20,2,0),PMT(((S116/360)*(365/12)),Adm!$H$4,-1000)))) ->  | T117: =S117 ->  | U117: =S117 ->  | W117: =IF(Adm!$B$4=Adm!$A$118,PMT(((W116/360)*(365/12)),Adm!$H$4-12,-1000),IF(AND(Adm!$H$4=180,Adm!$D$4=Adm!$D$7),VLOOKUP(W116,mil_15,2,0),IF(AND(Adm!$H$4=240,Adm!$D$4=Adm!$D$7),VLOOKUP(W116,mil_20,2,0),PMT(((W116/360)*(365/12)),Adm!$H$4,-1000)))) ->  | X117: =W117 ->  | Y117: =W117 ->  | AB117: 0 | AC117: 0 | AD117: 0 | AN117: Pago por mil | AO117: 12 | AP117: =IF(Adm!$GE$4="Fijos",VLOOKUP(Adm!$JC$9,freeConge,MATCH(Adm!$GG$4,Adm!$HG$5:'Adm'!$HM$5,0)),IF(Adm!$GE$4="Crecientes",VLOOKUP(Adm!$JC$9,freeProgra,MATCH(Adm!$GG$4,Adm!$HO$5:'Adm'!$HU$5,0)))) -> FALSE | AQ117: =AP117 -> FALSE | AT117: 0 | AU117: 0 | AX117: =IF(Adm!$GE$4="Fijos",VLOOKUP(Adm!$JC$8,freeConge,MATCH(Adm!$GG$4,Adm!$HG$5:'Adm'!$HM$5,0)),IF(Adm!$GE$4="Crecientes",VLOOKUP(Adm!$JC$8,freeProgra,MATCH(Adm!$GG$4,Adm!$HO$5:'Adm'!$HU$5,0)))) -> FALSE | AY117: =AX117 -> FALSE | BB117: =IF(Adm!$GE$4="Fijos",VLOOKUP(Adm!$JC$7,freeConge,MATCH(Adm!$GG$4,Adm!$HG$5:'Adm'!$HM$5,0)),IF(Adm!$GE$4="Crecientes",VLOOKUP(Adm!$JC$7,freeProgra,MATCH(Adm!$GG$4,Adm!$HO$5:'Adm'!$HU$5,0)))) -> FALSE | BC117: =BB117 -> FALSE | BF117: =IF(Adm!$GE$4="Fijos",VLOOKUP(Adm!$JC$6,freeConge,MATCH(Adm!$GG$4,Adm!$HG$5:'Adm'!$HM$5,0)),IF(Adm!$GE$4="Crecientes",VLOOKUP(Adm!$JC$6,freeProgra,MATCH(Adm!$GG$4,Adm!$HO$5:'Adm'!$HU$5,0)))) -> FALSE | BG117: =BF117 -> FALSE | BJ117: =IF(Adm!$GE$4="Fijos",VLOOKUP(Adm!$JC$5,freeConge,MATCH(Adm!$GG$4,Adm!$HG$5:'Adm'!$HM$5,0)),IF(Adm!$GE$4="Crecientes",VLOOKUP(Adm!$JC$5,freeProgra,MATCH(Adm!$GG$4,Adm!$HO$5:'Adm'!$HU$5,0)))) -> FALSE | BK117: =BJ117 -> FALSE | BO117: 0 | BP117: 0
A118: Aforo | C118: =IF(Cal!$A$105=Adm!$A$118,$C$77,IF(OR(Cal!$A$105=Adm!$A$116,Cal!$A$105=Adm!$A$117),Cal!$C$52,IF(Cal!$A$105=Adm!$A$114,Cal!$C$30,Cal!$C$11))) ->  | G118: 0 | K118: =IF(Cal!$A$105=Adm!$A$118,$D$77,IF(OR(Cal!$A$105=Adm!$A$116,Cal!$A$105=Adm!$A$117),Cal!$D$52,IF(Cal!$A$105=Adm!$A$114,Cal!$D$30,Cal!$D$11))) ->  | O118: =IF(Cal!$A$105=Adm!$A$118,$E$77,IF(OR(Cal!$A$105=Adm!$A$116,Cal!$A$105=Adm!$A$117),Cal!$E$52,IF(Cal!$A$105=Adm!$A$114,Cal!$E$30,Cal!$E$11))) ->  | S118: =IF(Cal!$A$105=Adm!$A$118,$F$77,IF(OR(Cal!$A$105=Adm!$A$116,Cal!$A$105=Adm!$A$117),Cal!$F$52,IF(Cal!$A$105=Adm!$A$114,Cal!$F$30,Cal!$F$11))) ->  | W118: =IF(Cal!$A$105=Adm!$A$118,$G$77,IF(OR(Cal!$A$105=Adm!$A$116,Cal!$A$105=Adm!$A$117),Cal!$G$52,IF(Cal!$A$105=Adm!$A$114,Cal!$G$30,Cal!$G$11))) ->  | AB118: 0 | AN118: Aforo | AO118: 13 | AP118: =IF($AN$105=Adm!$GB$116,$AP$52,IF(Cal!$AN$105=Adm!$GB$114,$AP$30,$AP$11)) ->  | AT118: 0 | AU118: 0 | AX118: =IF($AN$105=Adm!$GB$116,$AQ$52,IF(Cal!$AN$105=Adm!$GB$114,$AQ$30,$AQ$11)) ->  | BB118: =IF($AN$105=Adm!$GB$116,$AR$52,IF(Cal!$AN$105=Adm!$GB$114,$AR$30,$AR$11)) ->  | BF118: =IF($AN$105=Adm!$GB$116,$AS$52,IF(Cal!$AN$105=Adm!$GB$114,$AS$30,$AS$11)) ->  | BJ118: =IF($AN$105=Adm!$GB$116,$AT$52,IF(Cal!$AN$105=Adm!$GB$114,$AT$30,$AT$11)) ->  | BO118: 0 | BP118: 0
A119: CREDITO TOTAL | B119: 14 | C119: =IF(Adm!$B$4=Adm!$A$118,C76,IF(Adm!$B$4=Adm!$A$114,$C$29,IF(Adm!$C$22="si",C44-$A$12,$C$10))) ->  | D119: =$C$51 -> 0 | E119: =IF(E106="",0,$A$12) -> 0 | G119: 0 | H119: =IF($H$105="no",0,IF($H$104="Perfil 4",L119,IF($H$104="perfil 3",P119,IF($H$104="perfil 2",T119,IF($H$104="perfil 1",X119,0))))) -> 0 | I119: =IF($I$105="no",0,IF($H$104="Perfil 4",M119,IF($H$104="perfil 3",Q119,IF($H$104="perfil 2",U119,IF($H$104="perfil 1",Y119,0))))) -> 0 | K119: =IF(Adm!$B$4=Adm!$A$118,$D$76,IF(Adm!$B$4=Adm!$A$114,$D$29,IF(Adm!$C$22="si",$D$44-$A$12,$D$10))) ->  | L119: =$D$51 -> 0 | M119: =IF(M106="",0,$A$12) -> 0 | O119: =IF(Adm!$B$4=Adm!$A$118,$E$76,IF(Adm!$B$4=Adm!$A$114,$E$29,IF(Adm!$C$22="si",$E$44-$A$12,$E$10))) ->  | P119: =$E$51 -> 0 | Q119: =IF(Q106="",0,$A$12) -> 0 | S119: =IF(Adm!$B$4=Adm!$A$118,$F$76,IF(Adm!$B$4=Adm!$A$114,$F$29,IF(Adm!$C$22="si",$F$44-$A$12,$F$10))) ->  | T119: =$F$51 -> 0 | U119: =IF(U106="",0,$A$12) -> 0 | W119: =IF(Adm!$B$4=Adm!$A$118,$G$76,IF(Adm!$B$4=Adm!$A$114,$G$29,IF(Adm!$C$22="si",$G$44-$A$12,$G$10))) ->  | X119: =$G$51 -> 0 | Y119: =IF(Y106="",0,$A$12) -> 0 | AB119: 0 | AC119: 0 | AD119: 0 | AN119: CREDITO TOTAL | AO119: 14 | AP119: =IF($AN$105=Adm!$GB$116,$AP$44,IF(Cal!$AN$105=Adm!$GB$114,$AP$29,$AP$10)) ->  | AQ119: =$AP$51 -> 0 | AT119: 0 | AU119: 0 | AX119: =IF($AN$105=Adm!$GB$116,$AQ$44,IF(Cal!$AN$105=Adm!$GB$114,$AQ$29,$AQ$10)) ->  | AY119: =$AQ$51 -> 0 | BB119: =IF($AN$105=Adm!$GB$116,$AR$44,IF(Cal!$AN$105=Adm!$GB$114,$AR$29,$AR$10)) ->  | BC119: =$AR$51 -> 0 | BF119: =IF($AN$105=Adm!$GB$116,$AS$44,IF(Cal!$AN$105=Adm!$GB$114,$AS$29,$AS$10)) ->  | BG119: =$AS$51 -> 0 | BJ119: =IF($AN$105=Adm!$GB$116,$AT$44,IF(Cal!$AN$105=Adm!$GB$114,$AT$29,$AT$10)) ->  | BK119: =$AT$51 -> 0 | BO119: 0 | BP119: 0
A120: Primer Disposición | B120: 15 | C120: =IF(Adm!$B$4=Adm!$A$118,$B$91,0) -> 0 | G120: 0 | K120: =IF(Adm!$B$4=Adm!$A$118,$B$91,0) -> 0 | O120: =IF(Adm!$B$4=Adm!$A$118,$B$91,0) -> 0 | S120: =IF(Adm!$B$4=Adm!$A$118,$B$91,0) -> 0 | W120: =IF(Adm!$B$4=Adm!$A$118,$B$91,0) -> 0 | AB120: 0 | AN120: Primer Disposición | AO120: 15 | AT120: 0 | BO120: 0 | BP120: 0
A121: 3 Disposiciones subsecuentes | B121: 16 | C121: =IF(Adm!$B$4=Adm!$A$118,$B$92,0) -> 0 | G121: 0 | K121: =IF(Adm!$B$4=Adm!$A$118,$B$92,0) -> 0 | O121: =IF(Adm!$B$4=Adm!$A$118,$B$92,0) -> 0 | S121: =IF(Adm!$B$4=Adm!$A$118,$B$92,0) -> 0 | W121: =IF(Adm!$B$4=Adm!$A$118,$B$92,0) -> 0 | AB121: 0 | AN121: 3 Disposiciones subsecuentes | AO121: 16 | AT121: 0 | BO121: 0 | BP121: 0
A122: Ultima Disposición | B122: 17 | C122: =IF(Adm!$B$4=Adm!$A$118,$B$95,0) -> 0 | G122: 0 | K122: =IF(Adm!$B$4=Adm!$A$118,$B$95,0) -> 0 | O122: =IF(Adm!$B$4=Adm!$A$118,$B$95,0) -> 0 | S122: =IF(Adm!$B$4=Adm!$A$118,$B$95,0) -> 0 | W122: =IF(Adm!$B$4=Adm!$A$118,$B$95,0) -> 0 | AB122: 0 | AN122: Ultima Disposición | AO122: 17 | AT122: 0 | BO122: 0 | BP122: 0
A123: Pago Mensual | B123: 18 | C123: =IF(Adm!$B$4=Adm!$A$118,C120*C116/360*30.4166,C119*C117/1000) ->  | D123: =IF($D$105="no",0,D119*D117/1000) -> 0 | E123: =IF($E$105="NO",0,E119*E117/1000) -> 0 | G123: 0 | H123: =IF($H$105="no",0,IF($H$104="Perfil 4",L123,IF($H$104="perfil 3",P123,IF($H$104="perfil 2",T123,IF($H$104="perfil 1",X123,0))))) -> 0 | I123: =IF($I$105="no",0,IF($H$104="Perfil 4",M123,IF($H$104="perfil 3",Q123,IF($H$104="perfil 2",U123,IF($H$104="perfil 1",Y123,0))))) -> 0 | K123: =IF(Adm!$B$4=Adm!$A$118,K120*K116/360*30.4166,K119*K117/1000) ->  | L123: =L119*L117/1000 ->  | M123: =M119*M117/1000 ->  | O123: =IF(Adm!$B$4=Adm!$A$118,O120*O116/360*30.4166,O119*O117/1000) ->  | P123: =P119*P117/1000 ->  | Q123: =Q119*Q117/1000 ->  | S123: =IF(Adm!$B$4=Adm!$A$118,S120*S116/360*30.4166,S119*S117/1000) ->  | T123: =T119*T117/1000 ->  | U123: =U119*U117/1000 ->  | W123: =IF(Adm!$B$4=Adm!$A$118,W120*W116/360*30.4166,W119*W117/1000) ->  | X123: =X119*X117/1000 ->  | Y123: =Y119*Y117/1000 ->  | AB123: 0 | AC123: 0 | AD123: 0 | AN123: Pago Mensual | AO123: 18 | AP123: =AP119*AP117/1000 ->  | AQ123: =AQ119*AQ117/1000 -> 0 | AT123: 0 | AU123: =IF($AU$104="Perfil 4",AY123,IF($AU$104="perfil 3",BC123,IF($AU$104="perfil 2",BG123,IF($AU$104="perfil 1",BK123,0)))) -> 0 | AX123: =AX119*AX117/1000 ->  | AY123: =AY119*AY117/1000 -> 0 | BB123: =BB119*BB117/1000 ->  | BC123: =BC119*BC117/1000 -> 0 | BF123: =BF119*BF117/1000 ->  | BG123: =BG119*BG117/1000 -> 0 | BJ123: =BJ119*BJ117/1000 ->  | BK123: =BK119*BK117/1000 -> 0 | BO123: 0 | BP123: 0
A124: Seguro de Vida | B124: 19 | C124: =IF(Adm!$S$4=Adm!$S$8,0,IF(Adm!$B$4=Adm!$A$118,C120*Adm!$V$4,C119*Adm!$V$4)) ->  | D124: =IF($D$105="no",0,D119*Adm!$V$4) -> 0 | E124: =IF($E$105="NO",0,E119*Adm!$V$4) -> 0 | G124: 0 | H124: =IF($H$105="no",0,IF($H$104="Perfil 4",L124,IF($H$104="perfil 3",P124,IF($H$104="perfil 2",T124,IF($H$104="perfil 1",X124,0))))) -> 0 | I124: =IF($I$105="no",0,IF($H$104="Perfil 4",M124,IF($H$104="perfil 3",Q124,IF($H$104="perfil 2",U124,IF($H$104="perfil 1",Y124,0))))) -> 0 | K124: =IF(Adm!$S$4=Adm!$S$8,0,IF(Adm!$B$4=Adm!$A$118,K120*Adm!$V$4,K119*Adm!$V$4)) ->  | L124: =L119*Adm!$V$4 -> 0 | M124: =M119*Adm!$V$4 -> 0 | O124: =IF(Adm!$S$4=Adm!$S$8,0,IF(Adm!$B$4=Adm!$A$118,O120*Adm!$V$4,O119*Adm!$V$4)) ->  | P124: =P119*Adm!$V$4 -> 0 | Q124: =Q119*Adm!$V$4 -> 0 | S124: =IF(Adm!$S$4=Adm!$S$8,0,IF(Adm!$B$4=Adm!$A$118,S120*Adm!$V$4,S119*Adm!$V$4)) ->  | T124: =T119*Adm!$V$4 -> 0 | U124: =U119*Adm!$V$4 -> 0 | W124: =IF(Adm!$S$4=Adm!$S$8,0,IF(Adm!$B$4=Adm!$A$118,W120*Adm!$V$4,W119*Adm!$V$4)) ->  | X124: =X119*Adm!$V$4 -> 0 | Y124: =Y119*Adm!$V$4 -> 0 | AB124: 0 | AC124: 0 | AD124: 0 | AN124: Seguro de Vida | AO124: 19 | AP124: =AP119*Adm!$GR$4 ->  | AQ124: =AQ119*Adm!$GR$4 -> 0 | AT124: 0 | AU124: 0 | AX124: =AX119*Adm!$GR$4 ->  | AY124: =AY119*Adm!$GR$4 -> 0 | BB124: =BB119*Adm!$GR$4 ->  | BC124: =BC119*Adm!$GR$4 -> 0 | BF124: =BF119*Adm!$GR$4 ->  | BG124: =BG119*Adm!$GR$4 -> 0 | BJ124: =BJ119*Adm!$GR$4 ->  | BK124: =BK119*Adm!$GR$4 -> 0 | BO124: 0 | BP124: 0
A125: Seguro de Daños /obra | B125: 20 | C125: =IF(Adm!$S$5=Adm!$S$8,0,IF(Adm!$B$4=Adm!$A$118,Adm!$AA$11*Adm!$W$4,IF(Adm!$B$4=Adm!$A$119,0,Adm!$AA$11*Adm!$X$4))) -> 0 | G125: 0 | K125: =IF(Adm!$S$5=Adm!$S$8,0,IF(Adm!$B$4=Adm!$A$118,Adm!$AA$11*Adm!$W$4,IF(Adm!$B$4=Adm!$A$119,0,Adm!$AA$11*Adm!$X$4))) -> 0 | O125: =IF(Adm!$S$5=Adm!$S$8,0,IF(Adm!$B$4=Adm!$A$118,Adm!$AA$11*Adm!$W$4,IF(Adm!$B$4=Adm!$A$119,0,Adm!$AA$11*Adm!$X$4))) -> 0 | S125: =IF(Adm!$S$5=Adm!$S$8,0,IF(Adm!$B$4=Adm!$A$118,Adm!$AA$11*Adm!$W$4,IF(Adm!$B$4=Adm!$A$119,0,Adm!$AA$11*Adm!$X$4))) -> 0 | W125: =IF(Adm!$S$5=Adm!$S$8,0,IF(Adm!$B$4=Adm!$A$118,Adm!$AA$11*Adm!$W$4,IF(Adm!$B$4=Adm!$A$119,0,Adm!$AA$11*Adm!$X$4))) -> 0 | AB125: 0 | AN125: Seguro de Daños /obra | AO125: 20 | AP125: =Adm!$AA$11*Adm!$GS$4 -> 0 | AT125: 0 | AU125: 0 | AX125: =Adm!$AA$11*Adm!$GS$4 -> 0 | BB125: =Adm!$AA$11*Adm!$GS$4 -> 0 | BF125: =Adm!$AA$11*Adm!$GS$4 -> 0 | BJ125: =Adm!$AA$11*Adm!$GS$4 -> 0 | BO125: 0 | BP125: 0
A126: Comisión Mensual | B126: 21 | C126: =Adm!$Q$4*1.16 -> 0 | E126: =IF($E$105="NO",0,Adm!$Q$4*1.16) -> 0 | G126: 0 | I126: =IF($I$105="no",0,IF($H$104="Perfil 4",M126,IF($H$104="perfil 3",Q126,IF($H$104="perfil 2",U126,IF($H$104="perfil 1",Y126,0))))) -> 0 | K126: =Adm!$Q$4*1.16 -> 0 | M126: =Adm!$Q$4*1.16 -> 0 | O126: =Adm!$Q$4*1.16 -> 0 | Q126: =Adm!$Q$4*1.16 -> 0 | S126: =Adm!$Q$4*1.16 -> 0 | U126: =Adm!$Q$4*1.16 -> 0 | W126: =Adm!$Q$4*1.16 -> 0 | Y126: =Adm!$Q$4*1.16 -> 0 | AB126: 0 | AD126: 0 | AN126: Comisión Mensual | AO126: 21 | AP126: =Adm!$GM$4*1.16 -> 0 | AT126: 0 | AU126: 0 | AX126: =Adm!$GM$4*1.16 -> 0 | BB126: =Adm!$GM$4*1.16 -> 0 | BF126: =Adm!$GM$4*1.16 -> 0 | BJ126: =Adm!$GM$4*1.16 -> 0 | BO126: 0 | BP126: 0
A127: Incremento anual al pago | C127: =IF(Adm!$D$4=Adm!$D$6,0,IF(Adm!$H$4=180,VLOOKUP(C116,mil_15,3,0),IF(Adm!$H$4=240,VLOOKUP(C116,mil_20,3,0),IF(Adm!$H$4=300,VLOOKUP(C116,mil_30,3,0),0)))) -> 0 | D127: =IF($D$105="no",0,C127) -> 0 | E127: =IF($E$105="NO",0,C127) -> 0 | G127: 0 | H127: =IF($H$105="no",0,IF($H$104="Perfil 4",L127,IF($H$104="perfil 3",P127,IF($H$104="perfil 2",T127,IF($H$104="perfil 1",X127,0))))) -> 0 | I127: =IF($I$105="no",0,IF($H$104="Perfil 4",M127,IF($H$104="perfil 3",Q127,IF($H$104="perfil 2",U127,IF($H$104="perfil 1",Y127,0))))) -> 0 | K127: =IF(Adm!$D$4=Adm!$D$6,0,IF(Adm!$H$4=180,VLOOKUP(K116,mil_15,3,0),IF(Adm!$H$4=240,VLOOKUP(K116,mil_20,3,0),IF(Adm!$H$4=300,VLOOKUP(K116,mil_30,3,0),0)))) -> 0 | L127: =K127 -> 0 | M127: =K127 -> 0 | O127: =IF(Adm!$D$4=Adm!$D$6,0,IF(Adm!$H$4=180,VLOOKUP(O116,mil_15,3,0),IF(Adm!$H$4=240,VLOOKUP(O116,mil_20,3,0),IF(Adm!$H$4=300,VLOOKUP(O116,mil_30,3,0),0)))) -> 0 | P127: =O127 -> 0 | Q127: =P127 -> 0 | S127: =IF(Adm!$D$4=Adm!$D$6,0,IF(Adm!$H$4=180,VLOOKUP(S116,mil_15,3,0),IF(Adm!$H$4=240,VLOOKUP(S116,mil_20,3,0),IF(Adm!$H$4=300,VLOOKUP(S116,mil_30,3,0))))) -> FALSE | T127: =S127 -> FALSE | U127: =T127 -> FALSE | W127: =IF(Adm!$D$4=Adm!$D$6,0,IF(Adm!$H$4=180,VLOOKUP(W116,mil_15,3,0),IF(Adm!$H$4=240,VLOOKUP(W116,mil_20,3,0),IF(Adm!$H$4=300,VLOOKUP(W116,mil_30,3,0))))) -> FALSE | X127: =W127 -> FALSE | Y127: =X127 -> FALSE | AB127: 0 | AC127: 0 | AD127: 0 | AN127: Incremento anual al pago | AP127: =IF(Adm!$GE$4="Fijos",0,VLOOKUP(Adm!$JC$9,freeajuste,MATCH(Adm!$GG$4,Adm!$HW$5:'Adm'!$IC$5,0))) ->  | AQ127: =AP127 ->  | AT127: 0 | AU127: 0 | AX127: =IF(Adm!$GE$4="Fijos",0,VLOOKUP(Adm!$JC$8,freeajuste,MATCH(Adm!$GG$4,Adm!$HW$5:'Adm'!$IC$5,0))) ->  | AY127: =AX127 ->  | BB127: =IF(Adm!$GE$4="Fijos",0,VLOOKUP(Adm!$JC$7,freeajuste,MATCH(Adm!$GG$4,Adm!$HW$5:'Adm'!$IC$5,0))) ->  | BC127: =BB127 ->  | BF127: =IF(Adm!$GE$4="Fijos",0,VLOOKUP(Adm!$JC$6,freeajuste,MATCH(Adm!$GG$4,Adm!$HW$5:'Adm'!$IC$5,0))) ->  | BG127: =BF127 ->  | BJ127: =IF(Adm!$GE$4="Fijos",0,VLOOKUP(Adm!$JC$5,freeajuste,MATCH(Adm!$GG$4,Adm!$HW$5:'Adm'!$IC$5,0))) ->  | BK127: =BJ127 ->  | BO127: 0 | BP127: 0
A128: Ingresos Requeridos | C128: =(SUM(C123:E126))/Adm!$J$5 ->  | G128: 0 | K128: =(SUM(K123:M126))/Adm!$J$7 ->  | O128: =(SUM(O123:Q126))/Adm!$J$9 ->  | S128: =(SUM(S123:U126))/Adm!$J$11 ->  | W128: =(SUM(W123:Y126))/Adm!$J$13 ->  | AB128: 0 | AD128: 0 | AN128: Ingresos Requeridos | AP128: =(SUM(AP123:AR126))/Adm!$GI$5 ->  | AT128: 0 | AU128: 0 | AX128: =(SUM(AX123:AZ126))/Adm!$GI$7 ->  | BB128: =(SUM(BB123:BD126))/Adm!$GI$9 ->  | BF128: =(SUM(BF123:BH126))/Adm!$GI$11 ->  | BJ128: =(SUM(BJ123:BL126))/Adm!$GI$13 ->  | BO128: 0 | BP128: 0
A129: Iva de intereses | B129: 24 | C129: =IF(AND(Adm!$B$4=Adm!$A$116,OR(Adm!$AC$4=Adm!$AC$15,Adm!$AC$4=Adm!$AC$18)),(C119*C116*30.4166/360)*0.16,IF(Adm!$B$4=Adm!$A$120,(C119*C116*30.4166/360)*0.16,0)) -> 0 | D129: =IF($D$105="no",0,IF(OR(Adm!$AB$4=Adm!$AB$17,Adm!$AB$4=Adm!$AB$18),0,(D119*D116*30.4166/360)*0.16)) -> 0 | G129: 0 | H129: =IF($H$105="no",0,IF($H$104="Perfil 4",L129,IF($H$104="perfil 3",P129,IF($H$104="perfil 2",T129,IF($H$104="perfil 1",X129,0))))) -> 0 | K129: =IF(AND(Adm!$B$4=Adm!$A$116,OR(Adm!$AC$4=Adm!$AC$15,Adm!$AC$4=Adm!$AC$18)),(K119*K116*30.4166/360)*0.16,IF(Adm!$B$4=Adm!$A$120,(K119*K116*30.4166/360)*0.16,0)) -> 0 | L129: =IF(OR(Adm!$AB$4=Adm!$AB$17,Adm!$AB$4=Adm!$AB$18),0,(L119*L116*30.4166/360)*0.16) ->  | O129: =IF(AND(Adm!$B$4=Adm!$A$116,OR(Adm!$AC$4=Adm!$AC$15,Adm!$AC$4=Adm!$AC$18)),(O119*O116*30.4166/360)*0.16,IF(Adm!$B$4=Adm!$A$120,(O119*O116*30.4166/360)*0.16,0)) -> 0 | P129: =IF(OR(Adm!$AB$4=Adm!$AB$17,Adm!$AB$4=Adm!$AB$18),0,(P119*P116*30.4166/360)*0.16) ->  | S129: =IF(AND(Adm!$B$4=Adm!$A$116,OR(Adm!$AC$4=Adm!$AC$15,Adm!$AC$4=Adm!$AC$18)),(S119*S116*30.4166/360)*0.16,IF(Adm!$B$4=Adm!$A$120,(S119*S116*30.4166/360)*0.16,0)) -> 0 | T129: =IF(OR(Adm!$AB$4=Adm!$AB$17,Adm!$AB$4=Adm!$AB$18),0,(T119*T116*30.4166/360)*0.16) ->  | W129: =IF(AND(Adm!$B$4=Adm!$A$116,OR(Adm!$AC$4=Adm!$AC$15,Adm!$AC$4=Adm!$AC$18)),(W119*W116*30.4166/360)*0.16,IF(Adm!$B$4=Adm!$A$120,(W119*W116*30.4166/360)*0.16,0)) -> 0 | X129: =IF(OR(Adm!$AB$4=Adm!$AB$17,Adm!$AB$4=Adm!$AB$18),0,(X119*X116*30.4166/360)*0.16) ->  | AB129: 0 | AC129: 0 | AN129: Iva de intereses | AO129: 24 | AP129: =IF(Adm!$B$4=Adm!$A$116,OR(Adm!$AC$4=Adm!$AC$15,Adm!$AC$4=Adm!$AC$18))*(AP119*AP116*30.4166/360)*0.16 ->  | AQ129: =IF(OR(Adm!$AB$4=Adm!$AB$17,Adm!$AB$4=Adm!$AB$18),0,(AQ119*AQ116*30.4166/360)*0.16) ->  | AT129: 0 | AU129: 0 | AX129: =IF(Adm!$B$4=Adm!$A$116,OR(Adm!$AC$4=Adm!$AC$15,Adm!$AC$4=Adm!$AC$18))*(AX119*AX116*30.4166/360)*0.16 ->  | AY129: =IF(OR(Adm!$AB$4=Adm!$AB$17,Adm!$AB$4=Adm!$AB$18),0,(AY119*AY116*30.4166/360)*0.16) ->  | BB129: =IF(Adm!$B$4=Adm!$A$116,OR(Adm!$AC$4=Adm!$AC$15,Adm!$AC$4=Adm!$AC$18))*(BB119*BB116*30.4166/360)*0.16 ->  | BC129: =IF(OR(Adm!$AB$4=Adm!$AB$17,Adm!$AB$4=Adm!$AB$18),0,(BC119*BC116*30.4166/360)*0.16) ->  | BF129: =IF(Adm!$B$4=Adm!$A$116,OR(Adm!$AC$4=Adm!$AC$15,Adm!$AC$4=Adm!$AC$18))*(BF119*BF116*30.4166/360)*0.16 ->  | BG129: =IF(OR(Adm!$AB$4=Adm!$AB$17,Adm!$AB$4=Adm!$AB$18),0,(BG119*BG116*30.4166/360)*0.16) ->  | BJ129: =IF(Adm!$B$4=Adm!$A$116,OR(Adm!$AC$4=Adm!$AC$15,Adm!$AC$4=Adm!$AC$18))*(BJ119*BJ116*30.4166/360)*0.16 ->  | BK129: =IF(OR(Adm!$AB$4=Adm!$AB$17,Adm!$AB$4=Adm!$AB$18),0,(BK119*BK116*30.4166/360)*0.16) ->  | BO129: 0 | BP129: 0
A130: Crédito INSTITUTO | B130: 25 | C130: =IF(Adm!$B$4=Adm!$A$114,$B$21,0) -> 0 | G130: 0 | K130: =IF(Adm!$B$4=Adm!$A$114,$B$21,0) -> 0 | O130: =IF(Adm!$B$4=Adm!$A$114,$B$21,0) -> 0 | S130: =IF(Adm!$B$4=Adm!$A$114,$B$21,0) -> 0 | W130: =IF(Adm!$B$4=Adm!$A$114,$B$21,0) -> 0 | AB130: 0 | AN130: Crédito INSTITUTO | AO130: 25 | AP130: =IF(Adm!$GC$4=Adm!$GB$114,$AO$21,0) -> 0 | AT130: 0 | AU130: 0 | AX130: =IF(Adm!$GC$4=Adm!$GB$114,$AO$21,0) -> 0 | BB130: =IF(Adm!$GC$4=Adm!$GB$114,$AO$21,0) -> 0 | BF130: =IF(Adm!$GC$4=Adm!$GB$114,$AO$21,0) -> 0 | BJ130: =IF(Adm!$GC$4=Adm!$GB$114,$AO$21,0) -> 0 | BO130: 0 | BP130: 0
A131: ssv INSTITUTO | B131: 26 | C131: =IF(Adm!$B$4=Adm!$A$114,$B$22,0) -> 0 | G131: 0 | K131: =IF(Adm!$B$4=Adm!$A$114,$B$22,0) -> 0 | O131: =IF(Adm!$B$4=Adm!$A$114,$B$22,0) -> 0 | S131: =IF(Adm!$B$4=Adm!$A$114,$B$22,0) -> 0 | W131: =IF(Adm!$B$4=Adm!$A$114,$B$22,0) -> 0 | AB131: 0 | AN131: ssv INSTITUTO | AO131: 26 | AP131: =IF(Adm!$GC$4=Adm!$GB$114,$AO$22,0) -> 0 | AT131: 0 | AU131: 0 | AX131: =IF(Adm!$GC$4=Adm!$GB$114,$AO$22,0) -> 0 | BB131: =IF(Adm!$GC$4=Adm!$GB$114,$AO$22,0) -> 0 | BF131: =IF(Adm!$GC$4=Adm!$GB$114,$AO$22,0) -> 0 | BJ131: =IF(Adm!$GC$4=Adm!$GB$114,$AO$22,0) -> 0 | BO131: 0 | BP131: 0
C132: Primera opcion compara | G132: segunda opcion compara | AB132: FINAL TABLA | AP132: Primera opcion compara | AT132: segunda opcion compara | BO132: FINAL TABLA

Sheet inicio
C22: Versión. 2025-6 Ro (15 diciembre 2025) | L22: BHF-034 (122025)

Sheet Captura
E1: SIMULADOR CREDITO HIPOTECARIO HIPOTECA SANTANDER | N1: =TODAY() -> 2025-12-15 | S1: ="" ->  | W1: =IF(AND(Adm!I4="No asalariado",OR(Adm!C6="Si",Adm!C16="SI")),"No aplican programas del INFONAVIT para no asalariados",IF(AND(Adm!B4>"",F21=0),"Captura plazo",IF(AND(Adm!B4>"",Adm!H9="FALSO"),"Corrige Plazo",IF(AND(F15>"",F33=0),"Captura valor de vivvienda",IF(AND(F15>"",F29=0),"Captura intervinientes",IF(AND(F21>0,F31=""),"Indica esquema de pago",IF(AND(F21>0,F31="Crecientes",Adm!D7=""),"Corrige esquema de pago",IF(AND(F15>"",F35=0),"Captura monto de crédito",IF(AND(Adm!B4=Adm!A119,F33>Adm!AA7),"El valor máximo del terreno es $20,000,000",IF(AND(Adm!B4=Adm!A118,F33<Adm!AA5),"El valor mínimo del Terreno es de $250,000",IF(AND(Adm!B4=Adm!A118,F35<Adm!Z5),"El valor mínimo del proyecto es de $700,000",IF(AND(Adm!B4=Adm!A118,N31=""),"Indica el esquema para Construcción",IF(AND(Adm!B4=Adm!A118,N33=""),"Indica el tamaño de la Construcción",IF(AND(F15>"",Adm!B4=Adm!A119,F33<Adm!AA3),"El valor mínimo del terreno son $250,000",IF(AND(F15>"",F33<Adm!AA3),"El valor mínimo de la vivienda son $250,000",IF(AND(F15>"",Adm!B4=Adm!A117,F35<Adm!Z9),"El monto mínimo de crédito son $200,000",IF(AND(F15>"",F35<Adm!Z3),"El monto mínimo de crédito son $100,000",IF(AND(Adm!B4=Adm!A118,F31="crecientes"),"Sólo pagos fijos. Corrige esquema",IF(AND(Adm!B4=Adm!A119,F21>180),"El plazo máximo es 180 meses",IF(AND(Adm!B4=Adm!A118,Adm!E4=Adm!E6,(F33/(Captura!F33+Captura!F35))<25%),"El valor del Terreno debe ser mayor al 25% del valor del inmueble",IF(AND(OR(Adm!B4=Adm!A116,Adm!B4=Adm!A117),N19=""),"Indica origen del crédito",IF(AND(Adm!B4=Adm!A117,Adm!AB4=""),"Selecciona programa para la liquidez",IF(AND(Adm!B4=Adm!A116,K21<>"",N21=""),"Indica Programa para Liquidez adicional",IF(AND(Adm!C22="SI",F37=0),"Captura el crédito del Instituto","")))))))))))))))))))))))) ->  | X1: =IF(Adm!AQ5="FALSO","Corrige oferta",IF(Adm!H9="VERDADERO","",IF(Adm!H9="FALSO","Corrige plazo"))) -> 
N2: dd mmm aaaa | O2: =TEXT(N1,N2) -> 15 dic 2025 | W2: =IF(X1<>"",X1,W1) -> 
C4: 1. Datos del Solicitante
C6: Nombre del cliente
C8: Atendido por | K8: Teléfono | S8: A113 | T8: Adquisición con Apoyo INFONAVIT
S9: A114 | T9: Cofinavit
S10: A115 | T10: Adquisición Simplificada
C11: 2. Condiciones financieras | S11: A116 | T11: Sustitución
M12: SI(Y(O(Adm!$B$3=Adm!$B$4,Adm!$B$3=Adm!$B$5,Adm!$B$3=Adm!$B$6),Adm!$BC$2=0,Adm!$BD$2=0),"",SI(Adm!BC2="si","",SI(Adm!BD2="si","",SI(Adm!C25="si","¿Oferta Black?","")))) | S12: A117 | T12: Mejora de Condiciones
C13: Tipo de Ingresos | F13: Asalariado | K13: =IF(Adm!$B$4="Cofinavit","Monto de Crédito que otorga el INFONAVIT","") ->  | S13: A118 | T13: Construcción
S14: A119 | T14: Terreno
C15: Destino | K15: =IF(Adm!$B$4="Cofinavit","Saldo de la Subcuenta de Vivienda","") ->  | S15: A120 | T15: Liquidez
E17: Indica Oferta | F17: Ninguno | L17: =IF(Adm!$B$4="Cofinavit","* Para créditos conyugales deberás capturar la suma de los dos créditos","") -> 
C19: =IF(Adm!$AS$3="SI","¿Con referencias crediticias en México?","") ->  | J19: =IF(Adm!B4=Adm!A116,"SUSTITUCION",IF(Adm!B4=Adm!A117,"Mejora de Condiciones","")) ->  | K19: =IF(OR(Adm!B4=Adm!A116,Adm!B4=Adm!A117),"Origen del crédito","") -> 
C21: =IF(Adm!B4=Adm!A119,"Plazos únicos 84,120 y 180 meses",IF(Adm!B4=Adm!A120,"Plazos únicos 60,120 y 180 meses",IF(Adm!$AQ$3=Adm!$AQ$16,"Plazo en meses (mínimo 84 y máximo 300","Plazo en meses (mínimo 84 y máximo 240)"))) -> Plazo en meses (mínimo 84 y máximo 240) | K21: =IF(OR(Adm!B4=Adm!A116,Adm!B4=Adm!A117),"Indique Programa para crédito adicional","") ->  | S21: =IF(AND(Adm!B4>"",F21=0),"Captura plazo","") -> 
C23: ¿Contratará seguro de Vida con el Banco? | F23: SI | I23: Prima Mensual | J23: =IF(OR(Adm!$AB$4=Adm!$AB$14,Adm!$AB$4=Adm!$AB$15,Adm!$AB$4=Adm!$AB$17),"",IF(AND(Adm!$B$4=Adm!$A$116,Adm!$AB$4=Adm!$AB$18),"¿Deseas menor monto de Remodelación? Captura importe",IF(OR(Adm!$B$4=Adm!$A$116,Adm!$B$4=Adm!$A$117),"¿Deseas menor monto del crédito de liquidez adicional? Captura importe",""))) -> 
C25: =IF(F15=Adm!A119,"","¿Contratará seguro de Daños con el Banco?") -> ¿Contratará seguro de Daños con el Banco? | F25: SI | M25: =IF(Adm!B4=Adm!A118,"¿Desea Apoyo INFONAVIT?",IF(AND(Adm!B4=Adm!A116,Adm!AC4=Adm!AC14),"¿Desea Apoyo INFONAVIT?","")) -> 
C27: Porcentaje estimado de gastos notariales | K27: =IF(OR(Adm!AB4="",Adm!AB4=Adm!AB14),"",IF(AND(OR(Adm!B4=Adm!A116,Adm!B4=Adm!A117),OR(Adm!AB4=Adm!AB17,Adm!AB4=Adm!AB18)),"",IF(OR(Adm!B4=Adm!A116,Adm!B4=Adm!A117),"Si el aforo lo permite, le financiamos los gastos para evitarle desembolsos.",""))) -> 
C29: Intervinientes | F29: 1 | K29: =IF(AND(OR(Adm!B4=Adm!A116,Adm!B4=Adm!A117),OR(Adm!AB4=Adm!AB15,Adm!AB4=Adm!AB16)),"Al crédito de Liquidez le aplicarán las mismas condiciones que elija para su crédito principal.",IF(AND(OR(Adm!B4=Adm!A116,Adm!B4=Adm!A117),OR(Adm!AB4=Adm!AB17,Adm!AB4=Adm!AB18)),"ESTA OFERTA SOLO APLICA PARA EL ESTADO DE COAHUILA.","")) -> 
C31: Selecciona el esquema de Pagos | J31: =IF(Adm!B4=Adm!A118,"CONSTRUCCION","") ->  | K31: =IF(Adm!B4=Adm!A118,"Selecciona Esquema","") -> 
C33: =IF(Adm!B4=Adm!A118,"Valor del Terreno",IF(Adm!B4=Adm!A119,"Valor del Terreno","Valor de la vivienda")) -> Valor de la vivienda | K33: =IF(Adm!B4=Adm!A118,"Indica el tamaño de la construcción en M2","") -> 
C35: =IF(Adm!B4=Adm!A116,"Saldo crédito actual",IF(Adm!B4=Adm!A118,"Valor del Proyecto","Monto de Crédito solicitado")) -> Monto de Crédito solicitado | H35: =IF(AND(Adm!B4=Adm!A116,Adm!AC4=Adm!AC14),"Si es cofinanciado debes sumarle el crédito INFONAVIT","") ->  | K35: =IF(Adm!B4=Adm!A118,"Si desea un monto menor al propuesto capture nuevo Importe","") -> 
C37: =IF(Adm!C22="si","Monto del crédito del INFONAVIT/ FOVISSSTE","") -> 
C39: =IF(Adm!B4=0,"",W2) -> 
C40: 3. Conoce las ofertas y compara
C42: =IF(OR(Adm!$B$4=Adm!$A$119,Adm!$B$4=Adm!$A$120),"El aforo final estará en función de la Evaluación de Crédito","Te mostramos las tasas a las que podrías acceder de acuerdo al Perfil de Riesgo y condiciones indicadas. La tasa y el aforo final estarán en función de la Evaluación de Crédito") -> Te mostramos las tasas a las que podrías acceder de acuerdo al Perfil de Riesgo y condiciones indicadas. La tasa y el aforo final estarán en función de la Evaluación de Crédito
C44: Condiciones financieras | H44: =IF(Adm!$B$4=0,"",IF($C$39<>"","",IF(Cal!C106="","","Tasa Perfil 5"))) ->  | L44: =IF(Adm!$B$4=0,"",IF($C$39<>"","",IF(OR(E51="Selecciona",E51=""),"",IF(Cal!S106="","",CONCATENATE("Tasa"," ",E51))))) -> 
C45: Valor del inmueble | E45: =IF($C$39<>"","",Cal!C107) -> 0 | H45: =IF(Adm!$B$4=0,"",IF($C$39<>"","",IF(Cal!C106="","","Crédito Principal"))) ->  | I45: =IF(Adm!$B$4=0,"",IF($C$39<>"","",IF(Cal!D105="NO","",IF(OR(Adm!$AB$4=Adm!$AB$10,Adm!$AB$4=Adm!$AB$11),"Remodelación","Crédito Liquidez")))) ->  | J45: =IF(Adm!$B$4=0,"",IF($C$39<>"","",IF(Cal!E105="NO","","Crédito Sustitución"))) ->  | L45: =IF(Adm!$B$4=0,"",IF($C$39<>"","",IF(OR(E51="Selecciona",E51=""),"",IF(Cal!G106="","","Crédito Principal")))) ->  | M45: =IF(Adm!$B$4=0,"",IF($C$39<>"","",IF(OR(E51="Selecciona",E51=""),"",IF(Cal!H105="NO","",IF(OR(Adm!$AB$4=Adm!$AB$10,Adm!$AB$4=Adm!$AB$11),"Remodelación","Crédito Liquidez"))))) ->  | N45: =IF(Adm!$B$4=0,"",IF($C$39<>"","",IF(OR(E51="Selecciona",E51=""),"",IF(Cal!I105="NO","","Crédito Sustitución")))) -> 
C46: Suma asegurable | E46: =IF($C$39<>"","",Cal!C108) -> 0 | G46: =IF($H$45="","",IF(Adm!B4=Adm!A118,"Aforo máximo","Financiamiento máximo")) ->  | H46: =IF($H$45="",0,Cal!C118) -> 0 | L46: =IF($L$45="",0,Cal!G118) -> 0 | M46: =IF($M$45="",0,Cal!H118) -> 0 | N46: =IF($N$45="",0,Cal!I118) -> 0
C47: Plazo (meses) | E47: =IF($C$39<>"","",Cal!C109) -> 0 | G47: =IF($H$45="","","Tasa de Interés") ->  | H47: =IF($H$45="",0,Cal!C116) -> 0 | I47: =IF($I$45="",0,Cal!D116) -> 0 | J47: =IF($J$45="",0,Cal!E116) -> 0 | L47: =IF($L$45="",0,Cal!G116) -> 0 | M47: =IF($M$45="",0,Cal!H116) -> 0 | N47: =IF($N$45="",0,Cal!I116) -> 0
G48: =IF($H$45="","","Total Crédito") ->  | H48: =IF($H$45="",0,Cal!C119) -> 0 | I48: =IF($I$45="",0,Cal!D119) -> 0 | J48: =IF($J$45="",0,Cal!E119) -> 0 | L48: =IF($L$45="",0,Cal!G119) -> 0 | M48: =IF($M$45="",0,Cal!H119) -> 0 | N48: =IF($N$45="",0,Cal!I119) -> 0
G49: =IF($H$45="","",IF(Adm!B4=Adm!A118,"Primer Disposición","")) ->  | H49: =IF($H$45="",0,Cal!C120) -> 0 | I49: =IF($I$45="",0,Cal!D120) -> 0 | L49: =IF($L$45="",0,Cal!G120) -> 0 | M49: =IF($M$45="",0,Cal!H120) -> 0 | N49: =IF($N$45="",0,Cal!I120) -> 0
C50: Selecciona para consultar otro perfil | G50: =IF($H$45="","",IF(Adm!B4=Adm!A118,"3 disposiciones de","")) ->  | H50: =IF($H$45="",0,Cal!C121) -> 0 | I50: =IF($I$45="",0,Cal!D121) -> 0 | L50: =IF($L$45="",0,Cal!G121) -> 0 | M50: =IF($M$45="",0,Cal!H121) -> 0 | N50: =IF($N$45="",0,Cal!I121) -> 0
E51: Selecciona | G51: =IF($H$45="","",IF(AND(Adm!B4=Adm!A118,Cal!B62=5),"Ultima disposición de","")) ->  | H51: =IF($H$45="",0,Cal!C122) -> 0 | I51: =IF($I$45="",0,Cal!D122) -> 0 | L51: =IF($L$45="",0,Cal!G122) -> 0 | M51: =IF($M$45="",0,Cal!H122) -> 0 | N51: =IF($N$45="",0,Cal!I122) -> 0
G52: =IF($H$45="","",IF(Adm!B4=Adm!A116,"","Ingresos mín. requeridos")) ->  | H52: =IF($H$45="",0,IF(Adm!$B$4=Adm!$A$116,0,Cal!C128)) -> 0 | I52: =IF($I$45="",0,IF(Adm!$B$4=Adm!$A$116,0,Cal!D128)) -> 0 | L52: =IF($L$45="",0,IF(Adm!$B$4=Adm!$A$116,0,Cal!G128)) -> 0 | M52: =IF($M$45="",0,IF(Adm!$B$4=Adm!$A$116,0,Cal!H128)) -> 0 | N52: =IF($N$45="",0,IF(Adm!$B$4=Adm!$A$116,0,Cal!I128)) -> 0
G54: =IF($H$45="","","GASTOS MENSUALES") -> 
G55: =IF($H$45="","",IF(Adm!B4=Adm!A118,"Pago Inicial sólo intereses","Pago Mensual inicial (k+ i)")) ->  | H55: =IF($H$45="",0,Cal!C123) -> 0 | I55: =IF($I$45="",0,Cal!D123) -> 0 | J55: =IF($J$45="",0,Cal!E123) -> 0 | L55: =IF($L$45="",0,Cal!G123) -> 0 | M55: =IF($M$45="",0,Cal!H123) -> 0 | N55: =IF($N$45="",0,Cal!I123) -> 0
G56: =IF($H$45="","","Seguro de Vida") ->  | H56: =IF($H$45="",0,Cal!C124) -> 0 | I56: =IF($I$45="",0,Cal!D124) -> 0 | J56: =IF($J$45="",0,Cal!E124) -> 0 | L56: =IF($L$45="",0,Cal!G124) -> 0 | M56: =IF($M$45="",0,Cal!H124) -> 0 | N56: =IF($N$45="",0,Cal!I124) -> 0
G57: =IF($H$45="","",IF(Adm!B4=Adm!A119,"",IF(Adm!B4=Adm!A118,"Seguro de Obra","Seguro de Daños"))) ->  | H57: =IF($H$45="",0,Cal!C125) -> 0 | I57: =IF($I$45="",0,Cal!D125) -> 0 | L57: =IF($L$45="",0,Cal!G125) -> 0 | M57: =IF($M$45="",0,Cal!H125) -> 0 | N57: =IF($N$45="",0,Cal!I125) -> 0
G58: =IF($H$45="","","Comisión mensual (+ IVA)") ->  | H58: =IF($H$45="",0,Cal!C126) -> 0 | I58: =IF($I$45="",0,Cal!D126) -> 0 | J58: =IF($J$45="",0,Cal!E126) -> 0 | L58: =IF($L$45="",0,Cal!G126) -> 0 | M58: =IF($M$45="",0,Cal!H126) -> 0 | N58: =IF($N$45="",0,Cal!I126) -> 0
G59: =IF($H$45="","",IF(OR(Adm!B4=Adm!A116,Adm!B4=Adm!A117),"IVA de Intereses",IF(Adm!B4=Adm!A120,"IVA de Intereses",""))) ->  | H59: =IF($H$45="",0,Cal!C129) -> 0 | I59: =IF($I$45="",0,Cal!D129) -> 0 | L59: =IF($L$45="",0,Cal!G129) -> 0 | M59: =IF($M$45="",0,Cal!H129) -> 0 | N59: =IF($N$45="",0,Cal!I129) -> 0
G60: =IF($H$45="","","Total mensualidad Inicial") ->  | H60: =IF($H$45="",0,SUM(H55:H59)) -> 0 | I60: =IF($I$45="",0,SUM(I55:I59)) -> 0 | J60: =IF($J$45="",0,SUM(J55:J59)) -> 0 | L60: =IF($L$45="",0,SUM(L55:L59)) -> 0 | M60: =IF($M$45="",0,SUM(M55:M59)) -> 0 | N60: =IF($N$45="",0,SUM(N55:N59)) -> 0
G61: =IF($H$45="","",IF(Adm!D4=Adm!D7,"Incremento anual en el pago","")) ->  | H61: =IF($H$45="",0,Cal!C127) -> 0 | I61: =IF($I$45="",0,Cal!D127) -> 0 | J61: =IF($J$45="",0,Cal!E127) -> 0 | L61: =IF($L$45="",0,Cal!G127) -> 0 | M61: =IF($M$45="",0,Cal!H127) -> 0 | N61: =IF($N$45="",0,Cal!I127) -> 0
G62: =IF($H$45="","","GASTOS INICIALES") -> 
G64: =IF($H$45="","","Comisión apertura") ->  | H64: =IF($H$45="",0,Cal!C110) -> 0 | I64: =IF($I$45="",0,Cal!D110) -> 0 | J64: =IF($I$45="",0,Cal!E110) -> 0 | L64: =IF($L$45="",0,Cal!G110) -> 0
G65: =IF($H$45="","","Avalúo") ->  | H65: =IF($H$45="",0,Cal!C111) -> 0 | J65: =Cal!E110 -> 0 | L65: =IF($L$45="",0,Cal!G111) -> 0 | M65: =IF($M$45="",0,Cal!H110) -> 0 | N65: =Cal!I110 -> 0
G66: =IF($H$45="","","Gastos Notariales") ->  | H66: =IF($H$45="",0,Cal!C112) -> 0 | L66: =IF($L$45="",0,Cal!G112) -> 0
G67: =IF($H$45="","","Enganche") ->  | H67: =IF($H$45="",0,Cal!C115) -> 0 | L67: =IF($L$45="",0,Cal!G115) -> 0
G68: =IF($H$45="","",IF(Adm!$B$4=Adm!$A$114,"Gastos INFONAVIT","")) ->  | H68: =IF($H$45="",0,Cal!C114) -> 0 | L68: =IF($L$45="",0,Cal!G114) -> 0
G69: =IF($H$45="","",IF(Adm!$B$4=Adm!$A$118,"Inspección y seguimiento obra","")) ->  | H69: =IF($H$45="",0,Cal!C113) -> 0 | L69: =IF($L$45="",0,Cal!G113) -> 0
G70: =IF($H$45="","","Subtotal Gastos") ->  | H70: =IF($H$45="",0,SUM(H64:H69)) -> 0 | I70: =SUM(I64:I69) -> 0 | J70: =SUM(J64:J69) -> 0 | L70: =IF($L$45="",0,SUM(L64:L69)) -> 0 | M70: =SUM(M64:M69) -> 0 | N70: =SUM(N64:N69) -> 0
I71: =SUM(I65:I70) -> 0
C73: 4. Selección de oferta y Tabla de Amortización
I74: CONDICIONES FINANCIERAS | L74: GASTOS INICIALES
I75: Valor del inmueble | J75: =IF($C$39<>"",0,Cal!C107) -> 0 | L75: Comisión apertura | M75: =IF($C$39<>"",0,Cal!AB110) -> 0
C76: Selecciona la oferta final para hacer tu tabla | I76: Suma asegurable | J76: =IF($C$39<>"",0,Cal!C108) -> 0 | L76: Avalúo | M76: =IF($C$39<>"",0,Cal!AB111) -> 0
I77: Plazo (meses) | J77: =IF($C$39<>"",0,Cal!C109) -> 0 | L77: Gastos notariales | M77: =IF($C$39<>"",0,Cal!AB112) -> 0
C78: =IF(Adm!BN5="no","","Selecciona el plan de Hipoteca Plus") -> Selecciona el plan de Hipoteca Plus | L78: Enganche | M78: =IF($C$39<>"",0,Cal!AB115) -> 0
I79: Financiamiento máximo | J79: =Cal!AB118 -> 0 | L79: =IF(Adm!B4=Adm!A114,"Gastos INFONAVIT","") ->  | M79: =IF($C$39<>"",0,Cal!AB114) -> 0
D80: =IF(Cal!AC105="SI","Ver tabla liquidez adicional","") ->  | F80: =IF(Cal!AD105="SI","Ver tabla Sustitución","") ->  | I80: Tasa de Interés | J80: =Cal!AB116 -> 0 | L80: =IF(Adm!B4=Adm!A118,"Inspección y seguimiento obra","") ->  | M80: =IF($C$39<>"",0,Cal!AB113) -> 0 | Y80: Plazo real | AB80: Reducción Plazo | AD80: 1=pagos fijos, 2= pagos crecientes | AJ80: Monto crédito | AK80: 1000000 | AQ80: Monto crédito | AR80: 1000000
I81: Monto Crédito | J81: =Cal!AB119 -> 0 | L81: Total gastos | M81: =SUM(M76:M80) -> 0 | Y81: =MAXA(C87:C387) -> 0 | AB81: Reducción cuota | AJ81: TASA | AK81: =Adm!AE6 -> 0 | AQ81: TASA | AR81: =Adm!AE6 -> 0
V82: Ajuste anual | AB82: =IF(O83=AB80,1,IF(O83=AB81,2,1)) -> 1 | AC82: Esquema | AD82: =IF(Adm!D4="Fijos",1,2) -> 2 | AG82: Busqueda | AJ82: pago por mil | AK82: =Adm!AF4 -> 0 | AQ82: pago por mil | AR82: 8.393773199 | AT82: =AR82+0.000001 -> 8.393774199
C83: CAT Promedio | E83: =CAT!E20 ->  | F83: Sin IVA Informativo | N83: Selecciona el efecto de los Pagos anticipados | AG83: =IF(Adm!D4="Crecientes",1,0) -> 0 | AJ83: INCREMENTO | AK83: =Adm!AP3 -> 0 | AQ83: INCREMENTO | AR83: =Adm!AP3 -> 0
C84: =CONCATENATE("Calculado al"," ",O2," ",".Para fines informativos y de comparación.") -> Calculado al 15 dic 2025 .Para fines informativos y de comparación. | K84: =IF(AND(Adm!B4=Adm!A118,Adm!G4=Adm!G15),"El salario es mayor? Sólo para ver las Aportaciones Patronales captura el salario",IF(Adm!B4=Adm!A113,"¿El salario es mayor? Sólo para ver las Aportaciones Patronales captura el salario",IF(AND(Adm!B4=Adm!A116,Adm!AC4=Adm!AC7),"El salario es mayor? Sólo para ver las Aportaciones Patronales captura el salario",""))) ->  | N84: Su crédito se amortizará en | O84: =CONCATENATE(Y81," ","meses","") -> 0 meses | Y84: Base Aportación INFONAVIT | Z84: Aportación Patronal Bimestral | AB84: Pagos Anticipados | AC84: Tasa | AD84: =D88 -> 0 | AJ84: Plazo | AK84: =Cal!AB109 -> 0 | AQ84: Plazo | AR84: =Cal!AB109 -> 0
A86: Mes | B86: Plazo remanente | C86: Periodo | D86: Tasa de Interés Anual Ordinaria | E86: Intereses | F86: Amortización | G86: Pago de Crédito | H86: =IF(H389>0,"Seguro Vida","") ->  | I86: =IF(I389>0,"Seguro Daños","") ->  | J86: Comisión Aut. Crédito Diferida | K86: =IF(Adm!O4>0,"IVA de Intereses","") ->  | L86: Pago Total | M86: =IF(Adm!G4="si","Aportaciones Patronales","") ->  | N86: Saldo al Final del Periodo | O86: Pagos Anticipados | P86: =IF(Adm!B4=Adm!A118,"Disposiciones de Crédito para Construcción","") ->  | V86: Mes | W86: Creci.pago | Y86: =Cal!AB128 -> 0 | AB86: Nueva Cuota | AC86: Congelados | AD86: Cuota Congelados | AE86: Cuota Programados | AF86: Capital Programados | AG86: Factor Programados | AJ86: Mes | AK86: Intereses | AL86: Amortización | AM86: Pago Crédito | AN86: Saldo al final del periodo | AQ86: Mes | AR86: Intereses | AS86: Amortización | AT86: Pago Crédito | AU86: Saldo al final del periodo
A87: =MONTH(N1) -> 12 | B87: =Adm!H4 -> 0 | C87: 0 | N87: =IF($C$39<>"",0,IF(Adm!B4=0,0,IF(G76=0,0,IF(Adm!B4=Adm!A118,Cal!AB120,Cal!AB119)))) -> 0 | V87: 12 | W87: P. Programados | AG87: FINAL | AI87: 1 | AN87: =AK80 -> 1000000 | AR87: -4.253478881e+27 | AU87: =AK80 -> 1000000
A88: =IF(A87=12,1,A87+1) -> 1 | B88: =IF(N87>0,B87-1,0) -> 0 | C88: =IF(N87>0,C87+1,0) -> 0 | D88: =IF(N87>0,Adm!AE6,0) -> 0 | E88: =IF(N87<0.01,0,N87*D88*30.4166/360) -> 0 | F88: =IF(N87<0.01,0,IF(Adm!$B$4=Adm!$A$118,0,G88-E88)) -> 0 | G88: =IF(N87<0.1,0,IF(Adm!$B$4=Adm!$A$118,E88,IF(Adm!D4=Adm!D7,Captura!N87*Adm!AF4/1000,PMT(((Adm!AE6/360)*(365/12)),Cal!AB109,-Captura!N87)))) -> 0 | H88: =IF(N87<0.01,0,IF(Adm!$S$4=Adm!$S$8,0,N87*Adm!$V$4)) -> 0 | I88: =IF(N87<0.01,0,IF(Adm!$S$5=Adm!$S$8,0,IF(Adm!$B$4=Adm!$A$118,Adm!$AA$11*Adm!$W$4,Adm!$AA$11*Adm!$X$4))) -> 0 | J88: =IF(N87<0.01,0,Adm!$Q$4*1.16) -> 0 | K88: =IF(N87<0.01,0,IF(Adm!$O$4>0,E88*Adm!$O$4,0)) -> 0 | L88: =G88+H88+I88+J88+K88 -> 0 | M88: =IF(Adm!$G$4="si",MIN(N87+E88+H88+I88+J88-L88,Z88),0) -> 0 | N88: =IF(N87<0.001,0,+N87-F88-M88-O88) -> 0 | V88: =IF(V87=12,1,V87+1) -> 1 | Y88: =IF(AND(Adm!G4="si",L84>0,L84<Adm!G9),Captura!L84,IF(AND(Adm!G4="si",Captura!L84>0,Captura!L84>Adm!G9),Adm!G9,IF(AND(Adm!G4="si",Captura!L84=0,Captura!Y86<Adm!G9),Captura!Y86,IF(AND(Adm!G4="si",Captura!L84=0,Captura!Y86>Adm!G9),Adm!G9,0)))) -> 0 | Z88: 0 | AG88: =HLOOKUP($AG$83,anticipado,2,0) ->  | AI88: =AL88/AN87 -> 0 | AJ88: 1 | AK88: =AN87*$AK$81*30.4166/360 -> 0 | AL88: =AM88-AK88 -> 0 | AM88: =AN87*AK82/1000 -> 0 | AN88: =IF(AN87<0.001,0,AN87-AL88-AO88) -> 1000000 | AQ88: 1 | AR88: =AU87*$AR$81*30.4166/360 -> 0 | AS88: =AT88-AR88 -> 8393.773199 | AT88: =AU87*AR82/1000 -> 8393.773199 | AU88: =IF(AU87<0.001,0,AU87-AS88-AV88) -> 991606.2268
A89: 2 | B89: =IF(N88>0,B88-1,0) -> 0 | C89: =IF(N88<0.01,0,C88+1) -> 0 | D89: =IF(N88<0.01,0,D88) -> 0 | E89: =IF(N88<0.01,0,N88*D89*30.4166/360) -> 0 | F89: =IF(N88<0.01,0,IF(Adm!$B$4=Adm!$A$118,0,G89-E89)) -> 0 | G89: =IF(N88<0.1,0,MIN(N88+E89,IF(AB89>0,AB89,IF(Adm!$B$4=Adm!$A$118,E89,G88*(1+W89))))) -> 0 | H89: =IF(N88<0.01,0,IF(Adm!$S$4=Adm!$S$8,0,N88*Adm!$V$4)) -> 0 | I89: =IF(N88<0.01,0,IF(Adm!$S$5=Adm!$S$8,0,IF(Adm!$B$4=Adm!$A$118,Adm!$AA$11*Adm!$W$4,Adm!$AA$11*Adm!$X$4))) -> 0 | J89: =IF(N88<0.01,0,Adm!$Q$4*1.16) -> 0 | K89: =IF(N88<0.01,0,IF(Adm!$O$4>0,E89*Adm!$O$4,0)) -> 0 | L89: =G89+H89+I89+J89+K89 -> 0 | M89: =IF(Adm!$G$4="si",MIN(N88+E89+H89+I89+J89-L89,Z89),0) -> 0 | N89: =IF(N88<0.001,0,+N88-F89-M89-O89) -> 0 | V89: =IF(V88=12,1,V88+1) -> 2 | W89: =IF(V89=1,Cal!$AB$127,0) -> 0 | Y89: =Y88 -> 0 | Z89: =IF(MOD(A89,2)=0,Y89*0.05*2,0) -> 0 | AB89: =IF(AC89>1,AC89,IF(AE89>1,AE89,0)) -> 0 | AC89: =IF(AND($AD$82=1,O88>0.1),AD89,0) -> 0 | AD89: =IF(AND($AD$82=1,$AB$82=2),PMT((($D$88/360)*(365/12)),B88,-N88),0) -> 0 | AE89: =IF(AND(AF89>0.01,$AB$82=2),AF89,0) -> 0 | AF89: =IF(AND($AD$82=2,O88<0.01),0,IF($AD$82=2,(N88*AG89)+E89,0)) -> 0 | AG89: =HLOOKUP($AG$83,anticipado,3,0) ->  | AI89: =AL89/AN88 -> 0 | AJ89: =IF(AN88<=0,"",AJ88+1) -> 2 | AK89: =AN88*$AK$81*30.4166/360 -> 0 | AL89: 0 | AM89: =MIN(AN88+AK89,AM88) -> 0 | AN89: =IF(AN88<0.001,0,AN88-AL89-AO89) -> 1000000 | AQ89: =IF(AU88<=0,"",AQ88+1) -> 2 | AR89: =AU88*$AR$81*30.4166/360 -> 0 | AS89: 8393.773199 | AT89: =MIN(AU88+AR89,AT88) -> 8393.773199 | AU89: =IF(AU88<0.001,0,AU88-AS89) -> 983212.4536
A90: 3 | B90: 0 | C90: =IF(N89<0.01,0,C89+1) -> 0 | D90: =IF(N89<0.01,0,D89) -> 0 | E90: 0 | F90: =IF(N89<0.01,0,IF(Adm!$B$4=Adm!$A$118,0,G90-E90)) -> 0 | G90: =IF(N89<0.1,0,MIN(N89+E90,IF(AB90>0,AB90,IF(Adm!$B$4=Adm!$A$118,E90,G89*(1+W90))))) -> 0 | H90: =IF(N89<0.01,0,IF(Adm!$S$4=Adm!$S$8,0,N89*Adm!$V$4)) -> 0 | I90: =IF(N89<0.01,0,IF(Adm!$S$5=Adm!$S$8,0,IF(Adm!$B$4=Adm!$A$118,Adm!$AA$11*Adm!$W$4,Adm!$AA$11*Adm!$X$4))) -> 0 | J90: =IF(N89<0.01,0,Adm!$Q$4*1.16) -> 0 | K90: =IF(N89<0.01,0,IF(Adm!$O$4>0,E90*Adm!$O$4,0)) -> 0 | L90: 0 | M90: =IF(Adm!$G$4="si",MIN(N89+E90+H90+I90+J90-L90,Z90),0) -> 0 | N90: =IF(N89<0.001,0,+N89-F90-M90-O90+P90) -> 0 | P90: =IF(G76=0,0,IF(AND(Adm!$B$4=Adm!$A$118,Adm!$E$13=12),Cal!$C$121,0)) -> 0 | V90: 3 | W90: =IF(V90=1,Cal!$AB$127,0) -> 0 | Y90: =Y89 -> 0 | Z90: 0 | AB90: =IF(AC90>1,AC90,IF(AE90>1,AE90,0)) -> 0 | AC90: =IF(AND($AD$82=1,O89>0.1),AD90,0) -> 0 | AD90: =IF(AND($AD$82=1,$AB$82=2),PMT((($D$88/360)*(365/12)),B89,-N89),0) -> 0 | AE90: =IF(AND(AF90>0.01,$AB$82=2),AF90,0) -> 0 | AF90: =IF(AND($AD$82=2,O89<0.01),0,IF($AD$82=2,(N89*AG90)+E90,0)) -> 0 | AG90: =HLOOKUP($AG$83,anticipado,4,0) ->  | AI90: 0 | AJ90: =IF(AN89<=0,"",AJ89+1) -> 3 | AK90: 0 | AL90: =AM90-AK90 -> 0 | AM90: =MIN(AN89+AK90,AM89) -> 0 | AN90: 1000000 | AQ90: =IF(AU89<=0,"",AQ89+1) -> 3 | AR90: 0 | AS90: 8393.773199 | AT90: =MIN(AU89+AR90,AT89) -> 8393.773199 | AU90: =IF(AU89<0.001,0,AU89-AS90) -> 974818.6804
A91: 4 | B91: 0 | C91: 0 | D91: 0 | E91: 0 | F91: =IF(N90<0.01,0,IF(Adm!$B$4=Adm!$A$118,0,G91-E91)) -> 0 | G91: =IF(N90<0.1,0,MIN(N90+E91,IF(AB91>0,AB91,IF(Adm!$B$4=Adm!$A$118,E91,G90*(1+W91))))) -> 0 | H91: =IF(N90<0.01,0,IF(Adm!$S$4=Adm!$S$8,0,N90*Adm!$V$4)) -> 0 | I91: =IF(N90<0.01,0,IF(Adm!$S$5=Adm!$S$8,0,IF(Adm!$B$4=Adm!$A$118,Adm!$AA$11*Adm!$W$4,Adm!$AA$11*Adm!$X$4))) -> 0 | J91: =IF(N90<0.01,0,Adm!$Q$4*1.16) -> 0 | K91: =IF(N90<0.01,0,IF(Adm!$O$4>0,E91*Adm!$O$4,0)) -> 0 | L91: 0 | M91: =IF(Adm!$G$4="si",MIN(N90+E91+H91+I91+J91-L91,Z91),0) -> 0 | N91: =IF(N90<0.001,0,+N90-F91-M91-O91+P91) -> 0 | P91: =IF(G76=0,0,IF(AND(Adm!$B$4=Adm!$A$118,Adm!$E$13=18),Cal!$C$121,0)) -> 0 | V91: 4 | W91: =IF(V91=1,Cal!$AB$127,0) -> 0 | Y91: 0 | Z91: 0 | AB91: 0 | AC91: 0 | AD91: =IF(AND($AD$82=1,$AB$82=2),PMT((($D$88/360)*(365/12)),B90,-N90),0) -> 0 | AE91: 0 | AF91: 0 | AG91: =HLOOKUP($AG$83,anticipado,5,0) ->  | AI91: 0 | AJ91: =IF(AN90<=0,"",AJ90+1) -> 4 | AK91: 0 | AL91: =AM91-AK91 -> 0 | AM91: 0 | AN91: 1000000 | AQ91: =IF(AU90<=0,"",AQ90+1) -> 4 | AR91: 0 | AS91: 8393.773199 | AT91: 8393.773199 | AU91: 966424.9072
A92: 5 | B92: 0 | C92: 0 | D92: 0 | E92: 0 | F92: =IF(N91<0.01,0,IF(Adm!$B$4=Adm!$A$118,0,G92-E92)) -> 0 | G92: =IF(N91<0.1,0,MIN(N91+E92,IF(AB92>0,AB92,IF(Adm!$B$4=Adm!$A$118,E92,G91*(1+W92))))) -> 0 | H92: =IF(N91<0.01,0,IF(Adm!$S$4=Adm!$S$8,0,N91*Adm!$V$4)) -> 0 | I92: =IF(N91<0.01,0,IF(Adm!$S$5=Adm!$S$8,0,IF(Adm!$B$4=Adm!$A$118,Adm!$AA$11*Adm!$W$4,Adm!$AA$11*Adm!$X$4))) -> 0 | J92: =IF(N91<0.01,0,Adm!$Q$4*1.16) -> 0 | K92: =IF(N91<0.01,0,IF(Adm!$O$4>0,E92*Adm!$O$4,0)) -> 0 | L92: 0 | M92: =IF(Adm!$G$4="si",MIN(N91+E92+H92+I92+J92-L92,Z92),0) -> 0 | N92: =IF(N91<0.001,0,+N91-F92-M92-O92) -> 0 | V92: 5 | W92: =IF(V92=1,Cal!$AB$127,0) -> 0 | Y92: 0 | Z92: 0 | AB92: 0 | AC92: 0 | AD92: 0 | AE92: 0 | AF92: 0 | AG92: =HLOOKUP($AG$83,anticipado,6,0) ->  | AI92: 0 | AJ92: 5 | AK92: 0 | AL92: 0 | AM92: 0 | AN92: 1000000 | AQ92: 5 | AR92: 0 | AS92: 8393.773199 | AT92: 8393.773199 | AU92: 958031.134
A93: 6 | B93: 0 | C93: 0 | D93: 0 | E93: 0 | F93: =IF(N92<0.01,0,IF(Adm!$B$4=Adm!$A$118,0,G93-E93)) -> 0 | G93: =IF(N92<0.1,0,MIN(N92+E93,IF(AB93>0,AB93,IF(Adm!$B$4=Adm!$A$118,E93,G92*(1+W93))))) -> 0 | H93: =IF(N92<0.01,0,IF(Adm!$S$4=Adm!$S$8,0,N92*Adm!$V$4)) -> 0 | I93: =IF(N92<0.01,0,IF(Adm!$S$5=Adm!$S$8,0,IF(Adm!$B$4=Adm!$A$118,Adm!$AA$11*Adm!$W$4,Adm!$AA$11*Adm!$X$4))) -> 0 | J93: =IF(N92<0.01,0,Adm!$Q$4*1.16) -> 0 | K93: =IF(N92<0.01,0,IF(Adm!$O$4>0,E93*Adm!$O$4,0)) -> 0 | L93: 0 | M93: =IF(Adm!$G$4="si",MIN(N92+E93+H93+I93+J93-L93,Z93),0) -> 0 | N93: =IF(N92<0.001,0,+N92-F93-M93-O93+P93) -> 0 | P93: =IF(G76=0,0,IF(AND(Adm!$B$4=Adm!$A$118,Adm!$E$13=12),Cal!$C$121,0)) -> 0 | V93: 6 | W93: =IF(V93=1,Cal!$AB$127,0) -> 0 | Y93: 0 | Z93: 0 | AB93: 0 | AC93: 0 | AD93: 0 | AE93: 0 | AF93: 0 | AG93: =HLOOKUP($AG$83,anticipado,7,0) ->  | AI93: 0 | AJ93: 6 | AK93: 0 | AL93: 0 | AM93: 0 | AN93: 1000000 | AQ93: 6 | AR93: 0 | AS93: 8393.773199 | AT93: 8393.773199 | AU93: 949637.3608
A94: 7 | B94: 0 | C94: 0 | D94: 0 | E94: 0 | F94: =IF(N93<0.01,0,IF(Adm!$B$4=Adm!$A$118,0,G94-E94)) -> 0 | G94: =IF(N93<0.1,0,MIN(N93+E94,IF(AB94>0,AB94,IF(Adm!$B$4=Adm!$A$118,E94,G93*(1+W94))))) -> 0 | H94: =IF(N93<0.01,0,IF(Adm!$S$4=Adm!$S$8,0,N93*Adm!$V$4)) -> 0 | I94: =IF(N93<0.01,0,IF(Adm!$S$5=Adm!$S$8,0,IF(Adm!$B$4=Adm!$A$118,Adm!$AA$11*Adm!$W$4,Adm!$AA$11*Adm!$X$4))) -> 0 | J94: =IF(N93<0.01,0,Adm!$Q$4*1.16) -> 0 | K94: =IF(N93<0.01,0,IF(Adm!$O$4>0,E94*Adm!$O$4,0)) -> 0 | L94: 0 | M94: =IF(Adm!$G$4="si",MIN(N93+E94+H94+I94+J94-L94,Z94),0) -> 0 | N94: =IF(N93<0.001,0,+N93-F94-M94-O94) -> 0 | V94: 7 | W94: =IF(V94=1,Cal!$AB$127,0) -> 0 | Y94: 0 | Z94: 0 | AB94: 0 | AC94: 0 | AD94: 0 | AE94: 0 | AF94: 0 | AG94: =HLOOKUP($AG$83,anticipado,8,0) ->  | AI94: 0 | AJ94: 7 | AK94: 0 | AL94: 0 | AM94: 0 | AN94: 1000000 | AQ94: 7 | AR94: 0 | AS94: 8393.773199 | AT94: 8393.773199 | AU94: 941243.5876
A95: 8 | B95: 0 | C95: 0 | D95: 0 | E95: 0 | F95: =IF(N94<0.01,0,IF(Adm!$B$4=Adm!$A$118,0,G95-E95)) -> 0 | G95: =IF(N94<0.1,0,MIN(N94+E95,IF(AB95>0,AB95,IF(Adm!$B$4=Adm!$A$118,E95,G94*(1+W95))))) -> 0 | H95: =IF(N94<0.01,0,IF(Adm!$S$4=Adm!$S$8,0,N94*Adm!$V$4)) -> 0 | I95: =IF(N94<0.01,0,IF(Adm!$S$5=Adm!$S$8,0,IF(Adm!$B$4=Adm!$A$118,Adm!$AA$11*Adm!$W$4,Adm!$AA$11*Adm!$X$4))) -> 0 | J95: =IF(N94<0.01,0,Adm!$Q$4*1.16) -> 0 | K95: =IF(N94<0.01,0,IF(Adm!$O$4>0,E95*Adm!$O$4,0)) -> 0 | L95: 0 | M95: =IF(Adm!$G$4="si",MIN(N94+E95+H95+I95+J95-L95,Z95),0) -> 0 | N95: =IF(N94<0.001,0,+N94-F95-M95-O95+P95) -> 0 | P95: =IF(G76=0,0,IF(AND(Adm!$B$4=Adm!$A$118,Adm!$E$13=18),Cal!$C$121,0)) -> 0 | V95: 8 | W95: =IF(V95=1,Cal!$AB$127,0) -> 0 | Y95: 0 | Z95: 0 | AB95: 0 | AC95: 0 | AD95: 0 | AE95: 0 | AF95: 0 | AG95: =HLOOKUP($AG$83,anticipado,9,0) ->  | AI95: 0 | AJ95: 8 | AK95: 0 | AL95: 0 | AM95: 0 | AN95: 1000000 | AQ95: 8 | AR95: 0 | AS95: 8393.773199 | AT95: 8393.773199 | AU95: 932849.8144
A96: 9 | B96: 0 | C96: 0 | D96: 0 | E96: 0 | F96: =IF(N95<0.01,0,IF(Adm!$B$4=Adm!$A$118,0,G96-E96)) -> 0 | G96: =IF(N95<0.1,0,MIN(N95+E96,IF(AB96>0,AB96,IF(Adm!$B$4=Adm!$A$118,E96,G95*(1+W96))))) -> 0 | H96: =IF(N95<0.01,0,IF(Adm!$S$4=Adm!$S$8,0,N95*Adm!$V$4)) -> 0 | I96: =IF(N95<0.01,0,IF(Adm!$S$5=Adm!$S$8,0,IF(Adm!$B$4=Adm!$A$118,Adm!$AA$11*Adm!$W$4,Adm!$AA$11*Adm!$X$4))) -> 0 | J96: =IF(N95<0.01,0,Adm!$Q$4*1.16) -> 0 | K96: =IF(N95<0.01,0,IF(Adm!$O$4>0,E96*Adm!$O$4,0)) -> 0 | L96: 0 | M96: =IF(Adm!$G$4="si",MIN(N95+E96+H96+I96+J96-L96,Z96),0) -> 0 | N96: =IF(N95<0.001,0,+N95-F96-M96-O96+P96) -> 0 | P96: =IF(G76=0,0,IF(AND(Adm!$B$4=Adm!$A$118,Adm!$E$13=12),Cal!$C$121,0)) -> 0 | V96: 9 | W96: =IF(V96=1,Cal!$AB$127,0) -> 0 | Y96: 0 | Z96: 0 | AB96: 0 | AC96: 0 | AD96: 0 | AE96: 0 | AF96: 0 | AG96: =HLOOKUP($AG$83,anticipado,10,0) ->  | AI96: 0 | AJ96: 9 | AK96: 0 | AL96: 0 | AM96: 0 | AN96: 1000000 | AQ96: 9 | AR96: 0 | AS96: 8393.773199 | AT96: 8393.773199 | AU96: 924456.0412
A97: 10 | B97: 0 | C97: 0 | D97: 0 | E97: 0 | F97: =IF(N96<0.01,0,IF(Adm!$B$4=Adm!$A$118,0,G97-E97)) -> 0 | G97: =IF(N96<0.1,0,MIN(N96+E97,IF(AB97>0,AB97,IF(Adm!$B$4=Adm!$A$118,E97,G96*(1+W97))))) -> 0 | H97: =IF(N96<0.01,0,IF(Adm!$S$4=Adm!$S$8,0,N96*Adm!$V$4)) -> 0 | I97: =IF(N96<0.01,0,IF(Adm!$S$5=Adm!$S$8,0,IF(Adm!$B$4=Adm!$A$118,Adm!$AA$11*Adm!$W$4,Adm!$AA$11*Adm!$X$4))) -> 0 | J97: =IF(N96<0.01,0,Adm!$Q$4*1.16) -> 0 | K97: =IF(N96<0.01,0,IF(Adm!$O$4>0,E97*Adm!$O$4,0)) -> 0 | L97: 0 | M97: =IF(Adm!$G$4="si",MIN(N96+E97+H97+I97+J97-L97,Z97),0) -> 0 | N97: 0 | V97: 10 | W97: =IF(V97=1,Cal!$AB$127,0) -> 0 | Y97: 0 | Z97: 0 | AB97: 0 | AC97: 0 | AD97: 0 | AE97: 0 | AF97: 0 | AG97: =HLOOKUP($AG$83,anticipado,11,0) ->  | AI97: 0 | AJ97: 10 | AK97: 0 | AL97: 0 | AM97: 0 | AN97: 1000000 | AQ97: 10 | AR97: 0 | AS97: 8393.773199 | AT97: 8393.773199 | AU97: 916062.268
A98: 11 | B98: 0 | C98: 0 | D98: 0 | E98: 0 | F98: =IF(N97<0.01,0,IF(Adm!$B$4=Adm!$A$118,0,G98-E98)) -> 0 | G98: =IF(N97<0.1,0,MIN(N97+E98,IF(AB98>0,AB98,IF(Adm!$B$4=Adm!$A$118,E98,G97*(1+W98))))) -> 0 | H98: =IF(N97<0.01,0,IF(Adm!$S$4=Adm!$S$8,0,N97*Adm!$V$4)) -> 0 | I98: =IF(N97<0.01,0,IF(Adm!$S$5=Adm!$S$8,0,IF(Adm!$B$4=Adm!$A$118,Adm!$AA$11*Adm!$W$4,Adm!$AA$11*Adm!$X$4))) -> 0 | J98: =IF(N97<0.01,0,Adm!$Q$4*1.16) -> 0 | K98: =IF(N97<0.01,0,IF(Adm!$O$4>0,E98*Adm!$O$4,0)) -> 0 | L98: 0 | M98: =IF(Adm!$G$4="si",MIN(N97+E98+H98+I98+J98-L98,Z98),0) -> 0 | N98: 0 | V98: 11 | W98: =IF(V98=1,Cal!$AB$127,0) -> 0 | Y98: 0 | Z98: 0 | AB98: 0 | AC98: 0 | AD98: 0 | AE98: 0 | AF98: 0 | AG98: =HLOOKUP($AG$83,anticipado,12,0) ->  | AI98: 0 | AJ98: 11 | AK98: 0 | AL98: 0 | AM98: 0 | AN98: 1000000 | AQ98: 11 | AR98: 0 | AS98: 8393.773199 | AT98: 8393.773199 | AU98: 907668.4948
A99: 12 | B99: 0 | C99: 0 | D99: 0 | E99: 0 | F99: =IF(N98<0.01,0,IF(Adm!$B$4=Adm!$A$118,0,G99-E99)) -> 0 | G99: =IF(N98<0.1,0,MIN(N98+E99,IF(AB99>0,AB99,IF(Adm!$B$4=Adm!$A$118,E99,G98*(1+W99))))) -> 0 | H99: =IF(N98<0.01,0,IF(Adm!$S$4=Adm!$S$8,0,N98*Adm!$V$4)) -> 0 | I99: =IF(N98<0.01,0,IF(Adm!$S$5=Adm!$S$8,0,IF(Adm!$B$4=Adm!$A$118,Adm!$AA$11*Adm!$W$4,Adm!$AA$11*Adm!$X$4))) -> 0 | J99: =IF(N98<0.01,0,Adm!$Q$4*1.16) -> 0 | K99: =IF(N98<0.01,0,IF(Adm!$O$4>0,E99*Adm!$O$4,0)) -> 0 | L99: 0 | M99: =IF(Adm!$G$4="si",MIN(N98+E99+H99+I99+J99-L99,Z99),0) -> 0 | N99: =IF(N98<0.001,0,+N98-F99-M99-O99+P99) -> 0 | P99: =IF(G76=0,0,IF(AND(Adm!$B$4=Adm!$A$118,Adm!$E$13=18),Cal!$C$121,0)) -> 0 | U99: Construccion | V99: 12 | W99: =IF(V99=1,Cal!$AB$127,0) -> 0 | Y99: 0 | Z99: 0 | AB99: 0 | AC99: 0 | AD99: 0 | AE99: 0 | AF99: 0 | AG99: =HLOOKUP($AG$83,anticipado,13,0) ->  | AI99: 0 | AJ99: 12 | AK99: 0 | AL99: 0 | AM99: 0 | AN99: 1000000 | AQ99: 12 | AR99: 0 | AS99: 8393.773199 | AT99: 8393.773199 | AU99: 899274.7216
A100: 1 | B100: 0 | C100: 0 | D100: 0 | E100: 0 | F100: =IF(N99<0.01,0,IF(AND(Adm!$B$4=Adm!$A$118,Adm!$E$13=18),0,G100-E100)) -> 0 | G100: =IF(N99<0.1,0,MIN(N99+E100,IF(AB100>0,AB100,IF(AND(Adm!$B$4=Adm!$A$118,Adm!$E$13=12),U100,IF(AND(Adm!$B$4=Adm!$A$118,Adm!$E$13=18),E100,G99*(1+W100)))))) -> 0 | H100: =IF(N99<0.01,0,IF(Adm!$S$4=Adm!$S$8,0,N99*Adm!$V$4)) -> 0 | I100: =IF(N99<0.01,0,IF(Adm!$S$5=Adm!$S$8,0,Adm!$AA$11*Adm!$X$4)) -> 0 | J100: =IF(N99<0.01,0,Adm!$Q$4*1.16) -> 0 | K100: =IF(N99<0.01,0,IF(Adm!$O$4>0,E100*Adm!$O$4,0)) -> 0 | L100: 0 | M100: =IF(Adm!$G$4="si",MIN(N99+E100+H100+I100+J100-L100,Z100),0) -> 0 | N100: 0 | U100: =IF(AND(Adm!B4=Adm!A118,Adm!$E$13=12),PMT(((Adm!AE6/360)*(365/12)),Adm!H4-12,-N99),0) -> 0 | V100: 1 | W100: =IF(V100=1,Cal!$AB$127,0) -> 0 | Y100: 0 | Z100: 0 | AB100: 0 | AC100: 0 | AD100: 0 | AE100: 0 | AF100: 0 | AG100: =HLOOKUP($AG$83,anticipado,14,0) ->  | AI100: 0 | AJ100: 13 | AK100: 0 | AL100: 0 | AM100: =MIN(AN99+AK100,AM99*(1+$AK$83)) -> 0 | AN100: 1000000 | AQ100: 13 | AR100: 0 | AS100: 8393.773199 | AT100: =MIN(AU99+AR100,AT99*(1+$AR$83)) -> 8393.773199 | AU100: 890880.9484
A101: 2 | B101: 0 | C101: 0 | D101: 0 | E101: 0 | F101: =IF(N100<0.01,0,IF(AND(Adm!$B$4=Adm!$A$118,Adm!$E$13=18),0,G101-E101)) -> 0 | G101: =IF(N100<0.1,0,MIN(N100+E101,IF(AB101>0,AB101,IF(AND(Adm!$B$4=Adm!$A$118,Adm!$E$13=18),E101,G100*(1+W101))))) -> 0 | H101: =IF(N100<0.01,0,IF(Adm!$S$4=Adm!$S$8,0,N100*Adm!$V$4)) -> 0 | I101: =IF(N100<0.01,0,IF(Adm!$S$5=Adm!$S$8,0,Adm!$AA$11*Adm!$X$4)) -> 0 | J101: =IF(N100<0.01,0,Adm!$Q$4*1.16) -> 0 | K101: =IF(N100<0.01,0,IF(Adm!$O$4>0,E101*Adm!$O$4,0)) -> 0 | L101: 0 | M101: =IF(Adm!$G$4="si",MIN(N100+E101+H101+I101+J101-L101,Z101),0) -> 0 | N101: 0 | V101: 2 | W101: =IF(V101=1,Cal!$AB$127,0) -> 0 | Y101: 0 | Z101: 0 | AB101: 0 | AC101: 0 | AD101: 0 | AE101: 0 | AF101: 0 | AG101: =HLOOKUP($AG$83,anticipado,15,0) ->  | AI101: 0 | AJ101: 14 | AK101: 0 | AL101: 0 | AM101: 0 | AN101: 1000000 | AQ101: 14 | AR101: 0 | AS101: 8393.773199 | AT101: =MIN(AU100+AR101,AT100) -> 8393.773199 | AU101: 882487.1752
A102: 3 | B102: 0 | C102: 0 | D102: 0 | E102: 0 | F102: =IF(N101<0.01,0,IF(AND(Adm!$B$4=Adm!$A$118,Adm!$E$13=18),0,G102-E102)) -> 0 | G102: =IF(N101<0.1,0,MIN(N101+E102,IF(AB102>0,AB102,IF(AND(Adm!$B$4=Adm!$A$118,Adm!$E$13=18),E102,G101*(1+W102))))) -> 0 | H102: =IF(N101<0.01,0,IF(Adm!$S$4=Adm!$S$8,0,N101*Adm!$V$4)) -> 0 | I102: =IF(N101<0.01,0,IF(Adm!$S$5=Adm!$S$8,0,Adm!$AA$11*Adm!$X$4)) -> 0 | J102: =IF(N101<0.01,0,Adm!$Q$4*1.16) -> 0 | K102: =IF(N101<0.01,0,IF(Adm!$O$4>0,E102*Adm!$O$4,0)) -> 0 | L102: 0 | M102: =IF(Adm!$G$4="si",MIN(N101+E102+H102+I102+J102-L102,Z102),0) -> 0 | N102: 0 | V102: 3 | W102: =IF(V102=1,Cal!$AB$127,0) -> 0 | Y102: 0 | Z102: 0 | AB102: 0 | AC102: 0 | AD102: 0 | AE102: 0 | AF102: 0 | AG102: =HLOOKUP($AG$83,anticipado,16,0) ->  | AI102: 0 | AJ102: 15 | AK102: 0 | AL102: 0 | AM102: 0 | AN102: 1000000 | AQ102: 15 | AR102: 0 | AS102: 8393.773199 | AT102: 8393.773199 | AU102: 874093.402
A103: 4 | B103: 0 | C103: 0 | D103: 0 | E103: 0 | F103: =IF(N102<0.01,0,IF(AND(Adm!$B$4=Adm!$A$118,Adm!$E$13=18),0,G103-E103)) -> 0 | G103: =IF(N102<0.1,0,MIN(N102+E103,IF(AB103>0,AB103,IF(AND(Adm!$B$4=Adm!$A$118,Adm!$E$13=18),E103,G102*(1+W103))))) -> 0 | H103: =IF(N102<0.01,0,IF(Adm!$S$4=Adm!$S$8,0,N102*Adm!$V$4)) -> 0 | I103: =IF(N102<0.01,0,IF(Adm!$S$5=Adm!$S$8,0,Adm!$AA$11*Adm!$X$4)) -> 0 | J103: =IF(N102<0.01,0,Adm!$Q$4*1.16) -> 0 | K103: =IF(N102<0.01,0,IF(Adm!$O$4>0,E103*Adm!$O$4,0)) -> 0 | L103: 0 | M103: =IF(Adm!$G$4="si",MIN(N102+E103+H103+I103+J103-L103,Z103),0) -> 0 | N103: =IF(N102<0.001,0,+N102-F103-M103-O103+P103) -> 0 | P103: =IF(G76=0,0,IF(AND(Adm!$B$4=Adm!$A$118,Adm!$E$13=18),Cal!$C$122,0)) -> 0 | V103: 4 | W103: =IF(V103=1,Cal!$AB$127,0) -> 0 | Y103: 0 | Z103: 0 | AB103: 0 | AC103: 0 | AD103: 0 | AE103: 0 | AF103: 0 | AG103: =HLOOKUP($AG$83,anticipado,17,0) ->  | AI103: 0 | AJ103: 16 | AK103: 0 | AL103: 0 | AM103: 0 | AN103: 1000000 | AQ103: 16 | AR103: 0 | AS103: 8393.773199 | AT103: 8393.773199 | AU103: 865699.6288
A104: 5 | B104: 0 | C104: 0 | D104: 0 | E104: 0 | F104: =IF(N103<0.01,0,IF(AND(Adm!$B$4=Adm!$A$118,Adm!$E$13=18),0,G104-E104)) -> 0 | G104: =IF(N103<0.1,0,MIN(N103+E104,IF(AB104>0,AB104,IF(AND(Adm!$B$4=Adm!$A$118,Adm!$E$13=18),E104,G103*(1+W104))))) -> 0 | H104: =IF(N103<0.01,0,IF(Adm!$S$4=Adm!$S$8,0,N103*Adm!$V$4)) -> 0 | I104: =IF(N103<0.01,0,IF(Adm!$S$5=Adm!$S$8,0,Adm!$AA$11*Adm!$X$4)) -> 0 | J104: =IF(N103<0.01,0,Adm!$Q$4*1.16) -> 0 | K104: =IF(N103<0.01,0,IF(Adm!$O$4>0,E104*Adm!$O$4,0)) -> 0 | L104: 0 | M104: =IF(Adm!$G$4="si",MIN(N103+E104+H104+I104+J104-L104,Z104),0) -> 0 | N104: 0 | V104: 5 | W104: =IF(V104=1,Cal!$AB$127,0) -> 0 | Y104: 0 | Z104: 0 | AB104: 0 | AC104: 0 | AD104: 0 | AE104: 0 | AF104: 0 | AG104: =HLOOKUP($AG$83,anticipado,18,0) ->  | AI104: 0 | AJ104: 17 | AK104: 0 | AL104: 0 | AM104: 0 | AN104: 1000000 | AQ104: 17 | AR104: 0 | AS104: 8393.773199 | AT104: 8393.773199 | AU104: 857305.8556
A105: 6 | B105: 0 | C105: 0 | D105: 0 | E105: 0 | F105: =IF(N104<0.01,0,IF(AND(Adm!$B$4=Adm!$A$118,Adm!$E$13=18),0,G105-E105)) -> 0 | G105: =IF(N104<0.1,0,MIN(N104+E105,IF(AB105>0,AB105,IF(AND(Adm!$B$4=Adm!$A$118,Adm!$E$13=18),E105,G104*(1+W105))))) -> 0 | H105: =IF(N104<0.01,0,IF(Adm!$S$4=Adm!$S$8,0,N104*Adm!$V$4)) -> 0 | I105: =IF(N104<0.01,0,IF(Adm!$S$5=Adm!$S$8,0,Adm!$AA$11*Adm!$X$4)) -> 0 | J105: =IF(N104<0.01,0,Adm!$Q$4*1.16) -> 0 | K105: =IF(N104<0.01,0,IF(Adm!$O$4>0,E105*Adm!$O$4,0)) -> 0 | L105: 0 | M105: =IF(Adm!$G$4="si",MIN(N104+E105+H105+I105+J105-L105,Z105),0) -> 0 | N105: 0 | U105: Construccion | V105: 6 | W105: =IF(V105=1,Cal!$AB$127,0) -> 0 | Y105: 0 | Z105: 0 | AB105: 0 | AC105: 0 | AD105: 0 | AE105: 0 | AF105: 0 | AG105: =HLOOKUP($AG$83,anticipado,19,0) ->  | AI105: 0 | AJ105: 18 | AK105: 0 | AL105: 0 | AM105: 0 | AN105: 1000000 | AQ105: 18 | AR105: 0 | AS105: 8393.773199 | AT105: 8393.773199 | AU105: 848912.0824
A106: 7 | B106: 0 | C106: 0 | D106: 0 | E106: 0 | F106: =IF(N105<0.01,0,G106-E106) -> 0 | G106: =IF(N105<0.1,0,MIN(N105+E106,IF(AB106>0,AB106,IF(AND(Adm!$B$4=Adm!$A$118,Adm!$E$13=18),U106,G105*(1+W106))))) -> 0 | H106: =IF(N105<0.01,0,IF(Adm!$S$4=Adm!$S$8,0,N105*Adm!$V$4)) -> 0 | I106: =IF(N105<0.01,0,IF(Adm!$S$5=Adm!$S$8,0,Adm!$AA$11*Adm!$X$4)) -> 0 | J106: =IF(N105<0.01,0,Adm!$Q$4*1.16) -> 0 | K106: =IF(N105<0.01,0,IF(Adm!$O$4>0,E106*Adm!$O$4,0)) -> 0 | L106: 0 | M106: =IF(Adm!$G$4="si",MIN(N105+E106+H106+I106+J106-L106,Z106),0) -> 0 | N106: 0 | U106: =IF(AND(Adm!$B$4=Adm!$A$118,Adm!$E$13=18),PMT(((Adm!AE6/360)*(365/12)),Adm!H4-18,-N105),0) -> 0 | V106: 7 | W106: =IF(V106=1,Cal!$AB$127,0) -> 0 | Y106: 0 | Z106: 0 | AB106: 0 | AC106: 0 | AD106: 0 | AE106: 0 | AF106: 0 | AG106: =HLOOKUP($AG$83,anticipado,20,0) ->  | AI106: 0 | AJ106: 19 | AK106: 0 | AL106: 0 | AM106: 0 | AN106: 1000000 | AQ106: 19 | AR106: 0 | AS106: 8393.773199 | AT106: 8393.773199 | AU106: 840518.3092
A107: 8 | B107: 0 | C107: 0 | D107: 0 | E107: 0 | F107: 0 | G107: =IF(N106<0.1,0,MIN(N106+E107,IF(AB107>0,AB107,G106*(1+W107)))) -> 0 | H107: =IF(N106<0.01,0,IF(Adm!$S$4=Adm!$S$8,0,N106*Adm!$V$4)) -> 0 | I107: =IF(N106<0.01,0,IF(Adm!$S$5=Adm!$S$8,0,Adm!$AA$11*Adm!$X$4)) -> 0 | J107: =IF(N106<0.01,0,Adm!$Q$4*1.16) -> 0 | K107: =IF(N106<0.01,0,IF(Adm!$O$4>0,E107*Adm!$O$4,0)) -> 0 | L107: 0 | M107: =IF(Adm!$G$4="si",MIN(N106+E107+H107+I107+J107-L107,Z107),0) -> 0 | N107: 0 | V107: 8 | W107: =IF(V107=1,Cal!$AB$127,0) -> 0 | Y107: 0 | Z107: 0 | AB107: 0 | AC107: 0 | AD107: 0 | AE107: 0 | AF107: 0 | AG107: =HLOOKUP($AG$83,anticipado,21,0) ->  | AI107: 0 | AJ107: 20 | AK107: 0 | AL107: 0 | AM107: 0 | AN107: 1000000 | AQ107: 20 | AR107: 0 | AS107: 8393.773199 | AT107: 8393.773199 | AU107: 832124.536
A108: 9 | B108: 0 | C108: 0 | D108: 0 | E108: 0 | F108: 0 | G108: 0 | H108: =IF(N107<0.01,0,IF(Adm!$S$4=Adm!$S$8,0,N107*Adm!$V$4)) -> 0 | I108: =IF(N107<0.01,0,IF(Adm!$S$5=Adm!$S$8,0,Adm!$AA$11*Adm!$X$4)) -> 0 | J108: =IF(N107<0.01,0,Adm!$Q$4*1.16) -> 0 | K108: =IF(N107<0.01,0,IF(Adm!$O$4>0,E108*Adm!$O$4,0)) -> 0 | L108: 0 | M108: =IF(Adm!$G$4="si",MIN(N107+E108+H108+I108+J108-L108,Z108),0) -> 0 | N108: 0 | V108: 9 | W108: =IF(V108=1,Cal!$AB$127,0) -> 0 | Y108: 0 | Z108: 0 | AB108: 0 | AC108: 0 | AD108: 0 | AE108: 0 | AF108: 0 | AG108: =HLOOKUP($AG$83,anticipado,22,0) ->  | AI108: 0 | AJ108: 21 | AK108: 0 | AL108: 0 | AM108: 0 | AN108: 1000000 | AQ108: 21 | AR108: 0 | AS108: 8393.773199 | AT108: 8393.773199 | AU108: 823730.7628
A109: 10 | B109: 0 | C109: 0 | D109: 0 | E109: 0 | F109: 0 | G109: 0 | H109: =IF(N108<0.01,0,IF(Adm!$S$4=Adm!$S$8,0,N108*Adm!$V$4)) -> 0 | I109: =IF(N108<0.01,0,IF(Adm!$S$5=Adm!$S$8,0,Adm!$AA$11*Adm!$X$4)) -> 0 | J109: =IF(N108<0.01,0,Adm!$Q$4*1.16) -> 0 | K109: =IF(N108<0.01,0,IF(Adm!$O$4>0,E109*Adm!$O$4,0)) -> 0 | L109: 0 | M109: =IF(Adm!$G$4="si",MIN(N108+E109+H109+I109+J109-L109,Z109),0) -> 0 | N109: 0 | V109: 10 | W109: =IF(V109=1,Cal!$AB$127,0) -> 0 | Y109: 0 | Z109: 0 | AB109: 0 | AC109: 0 | AD109: 0 | AE109: 0 | AF109: 0 | AG109: =HLOOKUP($AG$83,anticipado,23,0) ->  | AI109: 0 | AJ109: 22 | AK109: 0 | AL109: 0 | AM109: 0 | AN109: 1000000 | AQ109: 22 | AR109: 0 | AS109: 8393.773199 | AT109: 8393.773199 | AU109: 815336.9896
A110: 11 | B110: 0 | C110: 0 | D110: 0 | E110: 0 | F110: 0 | G110: 0 | H110: =IF(N109<0.01,0,IF(Adm!$S$4=Adm!$S$8,0,N109*Adm!$V$4)) -> 0 | I110: =IF(N109<0.01,0,IF(Adm!$S$5=Adm!$S$8,0,Adm!$AA$11*Adm!$X$4)) -> 0 | J110: =IF(N109<0.01,0,Adm!$Q$4*1.16) -> 0 | K110: =IF(N109<0.01,0,IF(Adm!$O$4>0,E110*Adm!$O$4,0)) -> 0 | L110: 0 | M110: =IF(Adm!$G$4="si",MIN(N109+E110+H110+I110+J110-L110,Z110),0) -> 0 | N110: 0 | V110: 11 | W110: =IF(V110=1,Cal!$AB$127,0) -> 0 | Y110: 0 | Z110: 0 | AB110: 0 | AC110: 0 | AD110: 0 | AE110: 0 | AF110: 0 | AG110: =HLOOKUP($AG$83,anticipado,24,0) ->  | AI110: 0 | AJ110: 23 | AK110: 0 | AL110: 0 | AM110: 0 | AN110: 1000000 | AQ110: 23 | AR110: 0 | AS110: 8393.773199 | AT110: 8393.773199 | AU110: 806943.2164
A111: 12 | B111: 0 | C111: 0 | D111: 0 | E111: 0 | F111: 0 | G111: 0 | H111: =IF(N110<0.01,0,IF(Adm!$S$4=Adm!$S$8,0,N110*Adm!$V$4)) -> 0 | I111: =IF(N110<0.01,0,IF(Adm!$S$5=Adm!$S$8,0,Adm!$AA$11*Adm!$X$4)) -> 0 | J111: =IF(N110<0.01,0,Adm!$Q$4*1.16) -> 0 | K111: =IF(N110<0.01,0,IF(Adm!$O$4>0,E111*Adm!$O$4,0)) -> 0 | L111: 0 | M111: =IF(Adm!$G$4="si",MIN(N110+E111+H111+I111+J111-L111,Z111),0) -> 0 | N111: 0 | V111: 12 | W111: =IF(V111=1,Cal!$AB$127,0) -> 0 | Y111: 0 | Z111: 0 | AB111: 0 | AC111: 0 | AD111: 0 | AE111: 0 | AF111: 0 | AG111: =HLOOKUP($AG$83,anticipado,25,0) ->  | AI111: 0 | AJ111: 24 | AK111: 0 | AL111: 0 | AM111: 0 | AN111: 1000000 | AQ111: 24 | AR111: 0 | AS111: 8393.773199 | AT111: 8393.773199 | AU111: 798549.4432
A112: 1 | B112: 0 | C112: 0 | D112: 0 | E112: 0 | F112: 0 | G112: 0 | H112: =IF(N111<0.01,0,IF(Adm!$S$4=Adm!$S$8,0,N111*Adm!$V$4)) -> 0 | I112: =IF(N111<0.01,0,IF(Adm!$S$5=Adm!$S$8,0,Adm!$AA$11*Adm!$X$4)) -> 0 | J112: =IF(N111<0.01,0,Adm!$Q$4*1.16) -> 0 | K112: =IF(N111<0.01,0,IF(Adm!$O$4>0,E112*Adm!$O$4,0)) -> 0 | L112: 0 | M112: =IF(Adm!$G$4="si",MIN(N111+E112+H112+I112+J112-L112,Z112),0) -> 0 | N112: 0 | V112: 1 | W112: =IF(V112=1,Cal!$AB$127,0) -> 0 | Y112: 0 | Z112: 0 | AB112: 0 | AC112: 0 | AD112: 0 | AE112: 0 | AF112: 0 | AG112: =HLOOKUP($AG$83,anticipado,26,0) ->  | AI112: 0 | AJ112: 25 | AK112: 0 | AL112: 0 | AM112: =MIN(AN111+AK112,AM111*(1+$AK$83)) -> 0 | AN112: 1000000 | AQ112: 25 | AR112: 0 | AS112: 8393.773199 | AT112: =MIN(AU111+AR112,AT111*(1+$AR$83)) -> 8393.773199 | AU112: 790155.67
A113: 2 | B113: 0 | C113: 0 | D113: 0 | E113: 0 | F113: 0 | G113: 0 | H113: =IF(N112<0.01,0,IF(Adm!$S$4=Adm!$S$8,0,N112*Adm!$V$4)) -> 0 | I113: =IF(N112<0.01,0,IF(Adm!$S$5=Adm!$S$8,0,Adm!$AA$11*Adm!$X$4)) -> 0 | J113: =IF(N112<0.01,0,Adm!$Q$4*1.16) -> 0 | K113: =IF(N112<0.01,0,IF(Adm!$O$4>0,E113*Adm!$O$4,0)) -> 0 | L113: 0 | M113: =IF(Adm!$G$4="si",MIN(N112+E113+H113+I113+J113-L113,Z113),0) -> 0 | N113: 0 | V113: 2 | W113: =IF(V113=1,Cal!$AB$127,0) -> 0 | Y113: 0 | Z113: 0 | AB113: 0 | AC113: 0 | AD113: 0 | AE113: 0 | AF113: 0 | AG113: =HLOOKUP($AG$83,anticipado,27,0) ->  | AI113: 0 | AJ113: 26 | AK113: 0 | AL113: 0 | AM113: 0 | AN113: 1000000 | AQ113: 26 | AR113: 0 | AS113: 8393.773199 | AT113: =MIN(AU112+AR113,AT112) -> 8393.773199 | AU113: 781761.8968
A114: 3 | B114: 0 | C114: 0 | D114: 0 | E114: 0 | F114: 0 | G114: 0 | H114: =IF(N113<0.01,0,IF(Adm!$S$4=Adm!$S$8,0,N113*Adm!$V$4)) -> 0 | I114: =IF(N113<0.01,0,IF(Adm!$S$5=Adm!$S$8,0,Adm!$AA$11*Adm!$X$4)) -> 0 | J114: =IF(N113<0.01,0,Adm!$Q$4*1.16) -> 0 | K114: =IF(N113<0.01,0,IF(Adm!$O$4>0,E114*Adm!$O$4,0)) -> 0 | L114: 0 | M114: =IF(Adm!$G$4="si",MIN(N113+E114+H114+I114+J114-L114,Z114),0) -> 0 | N114: 0 | V114: 3 | W114: =IF(V114=1,Cal!$AB$127,0) -> 0 | Y114: 0 | Z114: 0 | AB114: 0 | AC114: 0 | AD114: 0 | AE114: 0 | AF114: 0 | AG114: =HLOOKUP($AG$83,anticipado,28,0) ->  | AI114: 0 | AJ114: 27 | AK114: 0 | AL114: 0 | AM114: 0 | AN114: 1000000 | AQ114: 27 | AR114: 0 | AS114: 8393.773199 | AT114: 8393.773199 | AU114: 773368.1236
A115: 4 | B115: 0 | C115: 0 | D115: 0 | E115: 0 | F115: 0 | G115: 0 | H115: =IF(N114<0.01,0,IF(Adm!$S$4=Adm!$S$8,0,N114*Adm!$V$4)) -> 0 | I115: =IF(N114<0.01,0,IF(Adm!$S$5=Adm!$S$8,0,Adm!$AA$11*Adm!$X$4)) -> 0 | J115: =IF(N114<0.01,0,Adm!$Q$4*1.16) -> 0 | K115: =IF(N114<0.01,0,IF(Adm!$O$4>0,E115*Adm!$O$4,0)) -> 0 | L115: 0 | M115: =IF(Adm!$G$4="si",MIN(N114+E115+H115+I115+J115-L115,Z115),0) -> 0 | N115: 0 | V115: 4 | W115: =IF(V115=1,Cal!$AB$127,0) -> 0 | Y115: 0 | Z115: 0 | AB115: 0 | AC115: 0 | AD115: 0 | AE115: 0 | AF115: 0 | AG115: =HLOOKUP($AG$83,anticipado,29,0) ->  | AI115: 0 | AJ115: 28 | AK115: 0 | AL115: 0 | AM115: 0 | AN115: 1000000 | AQ115: 28 | AR115: 0 | AS115: 8393.773199 | AT115: 8393.773199 | AU115: 764974.3504
A116: 5 | B116: 0 | C116: 0 | D116: 0 | E116: 0 | F116: 0 | G116: 0 | H116: =IF(N115<0.01,0,IF(Adm!$S$4=Adm!$S$8,0,N115*Adm!$V$4)) -> 0 | I116: =IF(N115<0.01,0,IF(Adm!$S$5=Adm!$S$8,0,Adm!$AA$11*Adm!$X$4)) -> 0 | J116: =IF(N115<0.01,0,Adm!$Q$4*1.16) -> 0 | K116: =IF(N115<0.01,0,IF(Adm!$O$4>0,E116*Adm!$O$4,0)) -> 0 | L116: 0 | M116: =IF(Adm!$G$4="si",MIN(N115+E116+H116+I116+J116-L116,Z116),0) -> 0 | N116: 0 | V116: 5 | W116: =IF(V116=1,Cal!$AB$127,0) -> 0 | Y116: 0 | Z116: 0 | AB116: 0 | AC116: 0 | AD116: 0 | AE116: 0 | AF116: 0 | AG116: =HLOOKUP($AG$83,anticipado,30,0) ->  | AI116: 0 | AJ116: 29 | AK116: 0 | AL116: 0 | AM116: 0 | AN116: 1000000 | AQ116: 29 | AR116: 0 | AS116: 8393.773199 | AT116: 8393.773199 | AU116: 756580.5772
A117: 6 | B117: 0 | C117: 0 | D117: 0 | E117: 0 | F117: 0 | G117: 0 | H117: =IF(N116<0.01,0,IF(Adm!$S$4=Adm!$S$8,0,N116*Adm!$V$4)) -> 0 | I117: =IF(N116<0.01,0,IF(Adm!$S$5=Adm!$S$8,0,Adm!$AA$11*Adm!$X$4)) -> 0 | J117: =IF(N116<0.01,0,Adm!$Q$4*1.16) -> 0 | K117: =IF(N116<0.01,0,IF(Adm!$O$4>0,E117*Adm!$O$4,0)) -> 0 | L117: 0 | M117: =IF(Adm!$G$4="si",MIN(N116+E117+H117+I117+J117-L117,Z117),0) -> 0 | N117: 0 | V117: 6 | W117: =IF(V117=1,Cal!$AB$127,0) -> 0 | Y117: 0 | Z117: 0 | AB117: 0 | AC117: 0 | AD117: 0 | AE117: 0 | AF117: 0 | AG117: =HLOOKUP($AG$83,anticipado,31,0) ->  | AI117: 0 | AJ117: 30 | AK117: 0 | AL117: 0 | AM117: 0 | AN117: 1000000 | AQ117: 30 | AR117: 0 | AS117: 8393.773199 | AT117: 8393.773199 | AU117: 748186.804
A118: 7 | B118: 0 | C118: 0 | D118: 0 | E118: 0 | F118: 0 | G118: 0 | H118: =IF(N117<0.01,0,IF(Adm!$S$4=Adm!$S$8,0,N117*Adm!$V$4)) -> 0 | I118: =IF(N117<0.01,0,IF(Adm!$S$5=Adm!$S$8,0,Adm!$AA$11*Adm!$X$4)) -> 0 | J118: =IF(N117<0.01,0,Adm!$Q$4*1.16) -> 0 | K118: =IF(N117<0.01,0,IF(Adm!$O$4>0,E118*Adm!$O$4,0)) -> 0 | L118: 0 | M118: =IF(Adm!$G$4="si",MIN(N117+E118+H118+I118+J118-L118,Z118),0) -> 0 | N118: 0 | V118: 7 | W118: =IF(V118=1,Cal!$AB$127,0) -> 0 | Y118: 0 | Z118: 0 | AB118: 0 | AC118: 0 | AD118: 0 | AE118: 0 | AF118: 0 | AG118: =HLOOKUP($AG$83,anticipado,32,0) ->  | AI118: 0 | AJ118: 31 | AK118: 0 | AL118: 0 | AM118: 0 | AN118: 1000000 | AQ118: 31 | AR118: 0 | AS118: 8393.773199 | AT118: 8393.773199 | AU118: 739793.0308
A119: 8 | B119: 0 | C119: 0 | D119: 0 | E119: 0 | F119: 0 | G119: 0 | H119: =IF(N118<0.01,0,IF(Adm!$S$4=Adm!$S$8,0,N118*Adm!$V$4)) -> 0 | I119: =IF(N118<0.01,0,IF(Adm!$S$5=Adm!$S$8,0,Adm!$AA$11*Adm!$X$4)) -> 0 | J119: =IF(N118<0.01,0,Adm!$Q$4*1.16) -> 0 | K119: =IF(N118<0.01,0,IF(Adm!$O$4>0,E119*Adm!$O$4,0)) -> 0 | L119: 0 | M119: =IF(Adm!$G$4="si",MIN(N118+E119+H119+I119+J119-L119,Z119),0) -> 0 | N119: 0 | V119: 8 | W119: =IF(V119=1,Cal!$AB$127,0) -> 0 | Y119: 0 | Z119: 0 | AB119: 0 | AC119: 0 | AD119: 0 | AE119: 0 | AF119: 0 | AG119: =HLOOKUP($AG$83,anticipado,33,0) ->  | AI119: 0 | AJ119: 32 | AK119: 0 | AL119: 0 | AM119: 0 | AN119: 1000000 | AQ119: 32 | AR119: 0 | AS119: 8393.773199 | AT119: 8393.773199 | AU119: 731399.2576
A120: 9 | B120: 0 | C120: 0 | D120: 0 | E120: 0 | F120: 0 | G120: 0 | H120: =IF(N119<0.01,0,IF(Adm!$S$4=Adm!$S$8,0,N119*Adm!$V$4)) -> 0 | I120: =IF(N119<0.01,0,IF(Adm!$S$5=Adm!$S$8,0,Adm!$AA$11*Adm!$X$4)) -> 0 | J120: =IF(N119<0.01,0,Adm!$Q$4*1.16) -> 0 | K120: =IF(N119<0.01,0,IF(Adm!$O$4>0,E120*Adm!$O$4,0)) -> 0 | L120: 0 | M120: =IF(Adm!$G$4="si",MIN(N119+E120+H120+I120+J120-L120,Z120),0) -> 0 | N120: 0 | V120: 9 | W120: =IF(V120=1,Cal!$AB$127,0) -> 0 | Y120: 0 | Z120: 0 | AB120: 0 | AC120: 0 | AD120: 0 | AE120: 0 | AF120: 0 | AG120: =HLOOKUP($AG$83,anticipado,34,0) ->  | AI120: 0 | AJ120: 33 | AK120: 0 | AL120: 0 | AM120: 0 | AN120: 1000000 | AQ120: 33 | AR120: 0 | AS120: 8393.773199 | AT120: 8393.773199 | AU120: 723005.4844
A121: 10 | B121: 0 | C121: 0 | D121: 0 | E121: 0 | F121: 0 | G121: 0 | H121: =IF(N120<0.01,0,IF(Adm!$S$4=Adm!$S$8,0,N120*Adm!$V$4)) -> 0 | I121: =IF(N120<0.01,0,IF(Adm!$S$5=Adm!$S$8,0,Adm!$AA$11*Adm!$X$4)) -> 0 | J121: =IF(N120<0.01,0,Adm!$Q$4*1.16) -> 0 | K121: =IF(N120<0.01,0,IF(Adm!$O$4>0,E121*Adm!$O$4,0)) -> 0 | L121: 0 | M121: =IF(Adm!$G$4="si",MIN(N120+E121+H121+I121+J121-L121,Z121),0) -> 0 | N121: 0 | V121: 10 | W121: =IF(V121=1,Cal!$AB$127,0) -> 0 | Y121: 0 | Z121: 0 | AB121: 0 | AC121: 0 | AD121: 0 | AE121: 0 | AF121: 0 | AG121: =HLOOKUP($AG$83,anticipado,35,0) ->  | AI121: 0 | AJ121: 34 | AK121: 0 | AL121: 0 | AM121: 0 | AN121: 1000000 | AQ121: 34 | AR121: 0 | AS121: 8393.773199 | AT121: 8393.773199 | AU121: 714611.7112
A122: 11 | B122: 0 | C122: 0 | D122: 0 | E122: 0 | F122: 0 | G122: 0 | H122: =IF(N121<0.01,0,IF(Adm!$S$4=Adm!$S$8,0,N121*Adm!$V$4)) -> 0 | I122: =IF(N121<0.01,0,IF(Adm!$S$5=Adm!$S$8,0,Adm!$AA$11*Adm!$X$4)) -> 0 | J122: =IF(N121<0.01,0,Adm!$Q$4*1.16) -> 0 | K122: =IF(N121<0.01,0,IF(Adm!$O$4>0,E122*Adm!$O$4,0)) -> 0 | L122: 0 | M122: =IF(Adm!$G$4="si",MIN(N121+E122+H122+I122+J122-L122,Z122),0) -> 0 | N122: 0 | V122: 11 | W122: =IF(V122=1,Cal!$AB$127,0) -> 0 | Y122: 0 | Z122: 0 | AB122: 0 | AC122: 0 | AD122: 0 | AE122: 0 | AF122: 0 | AG122: =HLOOKUP($AG$83,anticipado,36,0) ->  | AI122: 0 | AJ122: 35 | AK122: 0 | AL122: 0 | AM122: 0 | AN122: 1000000 | AQ122: 35 | AR122: 0 | AS122: 8393.773199 | AT122: 8393.773199 | AU122: 706217.938
A123: 12 | B123: 0 | C123: 0 | D123: 0 | E123: 0 | F123: 0 | G123: 0 | H123: =IF(N122<0.01,0,IF(Adm!$S$4=Adm!$S$8,0,N122*Adm!$V$4)) -> 0 | I123: =IF(N122<0.01,0,IF(Adm!$S$5=Adm!$S$8,0,Adm!$AA$11*Adm!$X$4)) -> 0 | J123: =IF(N122<0.01,0,Adm!$Q$4*1.16) -> 0 | K123: =IF(N122<0.01,0,IF(Adm!$O$4>0,E123*Adm!$O$4,0)) -> 0 | L123: 0 | M123: =IF(Adm!$G$4="si",MIN(N122+E123+H123+I123+J123-L123,Z123),0) -> 0 | N123: 0 | V123: 12 | W123: =IF(V123=1,Cal!$AB$127,0) -> 0 | Y123: 0 | Z123: 0 | AB123: 0 | AC123: 0 | AD123: 0 | AE123: 0 | AF123: 0 | AG123: =HLOOKUP($AG$83,anticipado,37,0) ->  | AI123: 0 | AJ123: 36 | AK123: 0 | AL123: 0 | AM123: 0 | AN123: 1000000 | AQ123: 36 | AR123: 0 | AS123: 8393.773199 | AT123: 8393.773199 | AU123: 697824.1648
A124: 1 | B124: 0 | C124: 0 | D124: 0 | E124: 0 | F124: 0 | G124: 0 | H124: =IF(N123<0.01,0,IF(Adm!$S$4=Adm!$S$8,0,N123*Adm!$V$4)) -> 0 | I124: =IF(N123<0.01,0,IF(Adm!$S$5=Adm!$S$8,0,Adm!$AA$11*Adm!$X$4)) -> 0 | J124: =IF(N123<0.01,0,Adm!$Q$4*1.16) -> 0 | K124: =IF(N123<0.01,0,IF(Adm!$O$4>0,E124*Adm!$O$4,0)) -> 0 | L124: 0 | M124: =IF(Adm!$G$4="si",MIN(N123+E124+H124+I124+J124-L124,Z124),0) -> 0 | N124: 0 | V124: 1 | W124: =IF(V124=1,Cal!$AB$127,0) -> 0 | Y124: 0 | Z124: 0 | AB124: 0 | AC124: 0 | AD124: 0 | AE124: 0 | AF124: 0 | AG124: =HLOOKUP($AG$83,anticipado,38,0) ->  | AI124: 0 | AJ124: 37 | AK124: 0 | AL124: 0 | AM124: =MIN(AN123+AK124,AM123*(1+$AK$83)) -> 0 | AN124: 1000000 | AQ124: 37 | AR124: 0 | AS124: 8393.773199 | AT124: =MIN(AU123+AR124,AT123*(1+$AR$83)) -> 8393.773199 | AU124: 689430.3916
A125: 2 | B125: 0 | C125: 0 | D125: 0 | E125: 0 | F125: 0 | G125: 0 | H125: =IF(N124<0.01,0,IF(Adm!$S$4=Adm!$S$8,0,N124*Adm!$V$4)) -> 0 | I125: =IF(N124<0.01,0,IF(Adm!$S$5=Adm!$S$8,0,Adm!$AA$11*Adm!$X$4)) -> 0 | J125: =IF(N124<0.01,0,Adm!$Q$4*1.16) -> 0 | K125: =IF(N124<0.01,0,IF(Adm!$O$4>0,E125*Adm!$O$4,0)) -> 0 | L125: 0 | M125: =IF(Adm!$G$4="si",MIN(N124+E125+H125+I125+J125-L125,Z125),0) -> 0 | N125: 0 | V125: 2 | W125: =IF(V125=1,Cal!$AB$127,0) -> 0 | Y125: 0 | Z125: 0 | AB125: 0 | AC125: 0 | AD125: 0 | AE125: 0 | AF125: 0 | AG125: =HLOOKUP($AG$83,anticipado,39,0) ->  | AI125: 0 | AJ125: 38 | AK125: 0 | AL125: 0 | AM125: 0 | AN125: 1000000 | AQ125: 38 | AR125: 0 | AS125: 8393.773199 | AT125: =MIN(AU124+AR125,AT124) -> 8393.773199 | AU125: 681036.6184
A126: 3 | B126: 0 | C126: 0 | D126: 0 | E126: 0 | F126: 0 | G126: 0 | H126: =IF(N125<0.01,0,IF(Adm!$S$4=Adm!$S$8,0,N125*Adm!$V$4)) -> 0 | I126: =IF(N125<0.01,0,IF(Adm!$S$5=Adm!$S$8,0,Adm!$AA$11*Adm!$X$4)) -> 0 | J126: =IF(N125<0.01,0,Adm!$Q$4*1.16) -> 0 | K126: =IF(N125<0.01,0,IF(Adm!$O$4>0,E126*Adm!$O$4,0)) -> 0 | L126: 0 | M126: =IF(Adm!$G$4="si",MIN(N125+E126+H126+I126+J126-L126,Z126),0) -> 0 | N126: 0 | V126: 3 | W126: =IF(V126=1,Cal!$AB$127,0) -> 0 | Y126: 0 | Z126: 0 | AB126: 0 | AC126: 0 | AD126: 0 | AE126: 0 | AF126: 0 | AG126: =HLOOKUP($AG$83,anticipado,40,0) ->  | AI126: 0 | AJ126: 39 | AK126: 0 | AL126: 0 | AM126: 0 | AN126: 1000000 | AQ126: 39 | AR126: 0 | AS126: 8393.773199 | AT126: 8393.773199 | AU126: 672642.8452
A127: 4 | B127: 0 | C127: 0 | D127: 0 | E127: 0 | F127: 0 | G127: 0 | H127: =IF(N126<0.01,0,IF(Adm!$S$4=Adm!$S$8,0,N126*Adm!$V$4)) -> 0 | I127: =IF(N126<0.01,0,IF(Adm!$S$5=Adm!$S$8,0,Adm!$AA$11*Adm!$X$4)) -> 0 | J127: =IF(N126<0.01,0,Adm!$Q$4*1.16) -> 0 | K127: =IF(N126<0.01,0,IF(Adm!$O$4>0,E127*Adm!$O$4,0)) -> 0 | L127: 0 | M127: =IF(Adm!$G$4="si",MIN(N126+E127+H127+I127+J127-L127,Z127),0) -> 0 | N127: 0 | V127: 4 | W127: =IF(V127=1,Cal!$AB$127,0) -> 0 | Y127: 0 | Z127: 0 | AB127: 0 | AC127: 0 | AD127: 0 | AE127: 0 | AF127: 0 | AG127: =HLOOKUP($AG$83,anticipado,41,0) ->  | AI127: 0 | AJ127: 40 | AK127: 0 | AL127: 0 | AM127: 0 | AN127: 1000000 | AQ127: 40 | AR127: 0 | AS127: 8393.773199 | AT127: 8393.773199 | AU127: 664249.072
A128: 5 | B128: 0 | C128: 0 | D128: 0 | E128: 0 | F128: 0 | G128: 0 | H128: =IF(N127<0.01,0,IF(Adm!$S$4=Adm!$S$8,0,N127*Adm!$V$4)) -> 0 | I128: =IF(N127<0.01,0,IF(Adm!$S$5=Adm!$S$8,0,Adm!$AA$11*Adm!$X$4)) -> 0 | J128: =IF(N127<0.01,0,Adm!$Q$4*1.16) -> 0 | K128: =IF(N127<0.01,0,IF(Adm!$O$4>0,E128*Adm!$O$4,0)) -> 0 | L128: 0 | M128: =IF(Adm!$G$4="si",MIN(N127+E128+H128+I128+J128-L128,Z128),0) -> 0 | N128: 0 | V128: 5 | W128: =IF(V128=1,Cal!$AB$127,0) -> 0 | Y128: 0 | Z128: 0 | AB128: 0 | AC128: 0 | AD128: 0 | AE128: 0 | AF128: 0 | AG128: =HLOOKUP($AG$83,anticipado,42,0) ->  | AI128: 0 | AJ128: 41 | AK128: 0 | AL128: 0 | AM128: 0 | AN128: 1000000 | AQ128: 41 | AR128: 0 | AS128: 8393.773199 | AT128: 8393.773199 | AU128: 655855.2988
A129: 6 | B129: 0 | C129: 0 | D129: 0 | E129: 0 | F129: 0 | G129: 0 | H129: =IF(N128<0.01,0,IF(Adm!$S$4=Adm!$S$8,0,N128*Adm!$V$4)) -> 0 | I129: =IF(N128<0.01,0,IF(Adm!$S$5=Adm!$S$8,0,Adm!$AA$11*Adm!$X$4)) -> 0 | J129: =IF(N128<0.01,0,Adm!$Q$4*1.16) -> 0 | K129: =IF(N128<0.01,0,IF(Adm!$O$4>0,E129*Adm!$O$4,0)) -> 0 | L129: 0 | M129: =IF(Adm!$G$4="si",MIN(N128+E129+H129+I129+J129-L129,Z129),0) -> 0 | N129: 0 | V129: 6 | W129: =IF(V129=1,Cal!$AB$127,0) -> 0 | Y129: 0 | Z129: 0 | AB129: 0 | AC129: 0 | AD129: 0 | AE129: 0 | AF129: 0 | AG129: =HLOOKUP($AG$83,anticipado,43,0) ->  | AI129: 0 | AJ129: 42 | AK129: 0 | AL129: 0 | AM129: 0 | AN129: 1000000 | AQ129: 42 | AR129: 0 | AS129: 8393.773199 | AT129: 8393.773199 | AU129: 647461.5256
A130: 7 | B130: 0 | C130: 0 | D130: 0 | E130: 0 | F130: 0 | G130: 0 | H130: =IF(N129<0.01,0,IF(Adm!$S$4=Adm!$S$8,0,N129*Adm!$V$4)) -> 0 | I130: =IF(N129<0.01,0,IF(Adm!$S$5=Adm!$S$8,0,Adm!$AA$11*Adm!$X$4)) -> 0 | J130: =IF(N129<0.01,0,Adm!$Q$4*1.16) -> 0 | K130: =IF(N129<0.01,0,IF(Adm!$O$4>0,E130*Adm!$O$4,0)) -> 0 | L130: 0 | M130: =IF(Adm!$G$4="si",MIN(N129+E130+H130+I130+J130-L130,Z130),0) -> 0 | N130: 0 | V130: 7 | W130: =IF(V130=1,Cal!$AB$127,0) -> 0 | Y130: 0 | Z130: 0 | AB130: 0 | AC130: 0 | AD130: 0 | AE130: 0 | AF130: 0 | AG130: =HLOOKUP($AG$83,anticipado,44,0) ->  | AI130: 0 | AJ130: 43 | AK130: 0 | AL130: 0 | AM130: 0 | AN130: 1000000 | AQ130: 43 | AR130: 0 | AS130: 8393.773199 | AT130: 8393.773199 | AU130: 639067.7524
A131: 8 | B131: 0 | C131: 0 | D131: 0 | E131: 0 | F131: 0 | G131: 0 | H131: =IF(N130<0.01,0,IF(Adm!$S$4=Adm!$S$8,0,N130*Adm!$V$4)) -> 0 | I131: =IF(N130<0.01,0,IF(Adm!$S$5=Adm!$S$8,0,Adm!$AA$11*Adm!$X$4)) -> 0 | J131: =IF(N130<0.01,0,Adm!$Q$4*1.16) -> 0 | K131: =IF(N130<0.01,0,IF(Adm!$O$4>0,E131*Adm!$O$4,0)) -> 0 | L131: 0 | M131: =IF(Adm!$G$4="si",MIN(N130+E131+H131+I131+J131-L131,Z131),0) -> 0 | N131: 0 | V131: 8 | W131: =IF(V131=1,Cal!$AB$127,0) -> 0 | Y131: 0 | Z131: 0 | AB131: 0 | AC131: 0 | AD131: 0 | AE131: 0 | AF131: 0 | AG131: =HLOOKUP($AG$83,anticipado,45,0) ->  | AI131: 0 | AJ131: 44 | AK131: 0 | AL131: 0 | AM131: 0 | AN131: 1000000 | AQ131: 44 | AR131: 0 | AS131: 8393.773199 | AT131: 8393.773199 | AU131: 630673.9792
A132: 9 | B132: 0 | C132: 0 | D132: 0 | E132: 0 | F132: 0 | G132: 0 | H132: =IF(N131<0.01,0,IF(Adm!$S$4=Adm!$S$8,0,N131*Adm!$V$4)) -> 0 | I132: =IF(N131<0.01,0,IF(Adm!$S$5=Adm!$S$8,0,Adm!$AA$11*Adm!$X$4)) -> 0 | J132: =IF(N131<0.01,0,Adm!$Q$4*1.16) -> 0 | K132: =IF(N131<0.01,0,IF(Adm!$O$4>0,E132*Adm!$O$4,0)) -> 0 | L132: 0 | M132: =IF(Adm!$G$4="si",MIN(N131+E132+H132+I132+J132-L132,Z132),0) -> 0 | N132: 0 | V132: 9 | W132: =IF(V132=1,Cal!$AB$127,0) -> 0 | Y132: 0 | Z132: 0 | AB132: 0 | AC132: 0 | AD132: 0 | AE132: 0 | AF132: 0 | AG132: =HLOOKUP($AG$83,anticipado,46,0) ->  | AI132: 0 | AJ132: 45 | AK132: 0 | AL132: 0 | AM132: 0 | AN132: 1000000 | AQ132: 45 | AR132: 0 | AS132: 8393.773199 | AT132: 8393.773199 | AU132: 622280.206
A133: 10 | B133: 0 | C133: 0 | D133: 0 | E133: 0 | F133: 0 | G133: 0 | H133: =IF(N132<0.01,0,IF(Adm!$S$4=Adm!$S$8,0,N132*Adm!$V$4)) -> 0 | I133: =IF(N132<0.01,0,IF(Adm!$S$5=Adm!$S$8,0,Adm!$AA$11*Adm!$X$4)) -> 0 | J133: =IF(N132<0.01,0,Adm!$Q$4*1.16) -> 0 | K133: =IF(N132<0.01,0,IF(Adm!$O$4>0,E133*Adm!$O$4,0)) -> 0 | L133: 0 | M133: =IF(Adm!$G$4="si",MIN(N132+E133+H133+I133+J133-L133,Z133),0) -> 0 | N133: 0 | V133: 10 | W133: =IF(V133=1,Cal!$AB$127,0) -> 0 | Y133: 0 | Z133: 0 | AB133: 0 | AC133: 0 | AD133: 0 | AE133: 0 | AF133: 0 | AG133: =HLOOKUP($AG$83,anticipado,47,0) ->  | AI133: 0 | AJ133: 46 | AK133: 0 | AL133: 0 | AM133: 0 | AN133: 1000000 | AQ133: 46 | AR133: 0 | AS133: 8393.773199 | AT133: 8393.773199 | AU133: 613886.4328
A134: 11 | B134: 0 | C134: 0 | D134: 0 | E134: 0 | F134: 0 | G134: 0 | H134: =IF(N133<0.01,0,IF(Adm!$S$4=Adm!$S$8,0,N133*Adm!$V$4)) -> 0 | I134: =IF(N133<0.01,0,IF(Adm!$S$5=Adm!$S$8,0,Adm!$AA$11*Adm!$X$4)) -> 0 | J134: =IF(N133<0.01,0,Adm!$Q$4*1.16) -> 0 | K134: =IF(N133<0.01,0,IF(Adm!$O$4>0,E134*Adm!$O$4,0)) -> 0 | L134: 0 | M134: =IF(Adm!$G$4="si",MIN(N133+E134+H134+I134+J134-L134,Z134),0) -> 0 | N134: 0 | V134: 11 | W134: =IF(V134=1,Cal!$AB$127,0) -> 0 | Y134: 0 | Z134: 0 | AB134: 0 | AC134: 0 | AD134: 0 | AE134: 0 | AF134: 0 | AG134: =HLOOKUP($AG$83,anticipado,48,0) ->  | AI134: 0 | AJ134: 47 | AK134: 0 | AL134: 0 | AM134: 0 | AN134: 1000000 | AQ134: 47 | AR134: 0 | AS134: 8393.773199 | AT134: 8393.773199 | AU134: 605492.6596
A135: 12 | B135: 0 | C135: 0 | D135: 0 | E135: 0 | F135: 0 | G135: 0 | H135: =IF(N134<0.01,0,IF(Adm!$S$4=Adm!$S$8,0,N134*Adm!$V$4)) -> 0 | I135: =IF(N134<0.01,0,IF(Adm!$S$5=Adm!$S$8,0,Adm!$AA$11*Adm!$X$4)) -> 0 | J135: =IF(N134<0.01,0,Adm!$Q$4*1.16) -> 0 | K135: =IF(N134<0.01,0,IF(Adm!$O$4>0,E135*Adm!$O$4,0)) -> 0 | L135: 0 | M135: =IF(Adm!$G$4="si",MIN(N134+E135+H135+I135+J135-L135,Z135),0) -> 0 | N135: 0 | V135: 12 | W135: =IF(V135=1,Cal!$AB$127,0) -> 0 | Y135: 0 | Z135: 0 | AB135: 0 | AC135: 0 | AD135: 0 | AE135: 0 | AF135: 0 | AG135: =HLOOKUP($AG$83,anticipado,49,0) ->  | AI135: 0 | AJ135: 48 | AK135: 0 | AL135: 0 | AM135: 0 | AN135: 1000000 | AQ135: 48 | AR135: 0 | AS135: 8393.773199 | AT135: 8393.773199 | AU135: 597098.8864
A136: 1 | B136: 0 | C136: 0 | D136: 0 | E136: 0 | F136: 0 | G136: 0 | H136: =IF(N135<0.01,0,IF(Adm!$S$4=Adm!$S$8,0,N135*Adm!$V$4)) -> 0 | I136: =IF(N135<0.01,0,IF(Adm!$S$5=Adm!$S$8,0,Adm!$AA$11*Adm!$X$4)) -> 0 | J136: =IF(N135<0.01,0,Adm!$Q$4*1.16) -> 0 | K136: =IF(N135<0.01,0,IF(Adm!$O$4>0,E136*Adm!$O$4,0)) -> 0 | L136: 0 | M136: =IF(Adm!$G$4="si",MIN(N135+E136+H136+I136+J136-L136,Z136),0) -> 0 | N136: 0 | V136: 1 | W136: =IF(V136=1,Cal!$AB$127,0) -> 0 | Y136: 0 | Z136: 0 | AB136: 0 | AC136: 0 | AD136: 0 | AE136: 0 | AF136: 0 | AG136: =HLOOKUP($AG$83,anticipado,50,0) ->  | AI136: 0 | AJ136: 49 | AK136: 0 | AL136: 0 | AM136: =MIN(AN135+AK136,AM135*(1+$AK$83)) -> 0 | AN136: 1000000 | AQ136: 49 | AR136: 0 | AS136: 8393.773199 | AT136: =MIN(AU135+AR136,AT135*(1+$AR$83)) -> 8393.773199 | AU136: 588705.1132
A137: 2 | B137: 0 | C137: 0 | D137: 0 | E137: 0 | F137: 0 | G137: 0 | H137: =IF(N136<0.01,0,IF(Adm!$S$4=Adm!$S$8,0,N136*Adm!$V$4)) -> 0 | I137: =IF(N136<0.01,0,IF(Adm!$S$5=Adm!$S$8,0,Adm!$AA$11*Adm!$X$4)) -> 0 | J137: =IF(N136<0.01,0,Adm!$Q$4*1.16) -> 0 | K137: =IF(N136<0.01,0,IF(Adm!$O$4>0,E137*Adm!$O$4,0)) -> 0 | L137: 0 | M137: =IF(Adm!$G$4="si",MIN(N136+E137+H137+I137+J137-L137,Z137),0) -> 0 | N137: 0 | V137: 2 | W137: =IF(V137=1,Cal!$AB$127,0) -> 0 | Y137: 0 | Z137: 0 | AB137: 0 | AC137: 0 | AD137: 0 | AE137: 0 | AF137: 0 | AG137: =HLOOKUP($AG$83,anticipado,51,0) ->  | AI137: 0 | AJ137: 50 | AK137: 0 | AL137: 0 | AM137: 0 | AN137: 1000000 | AQ137: 50 | AR137: 0 | AS137: 8393.773199 | AT137: =MIN(AU136+AR137,AT136) -> 8393.773199 | AU137: 580311.34
A138: 3 | B138: 0 | C138: 0 | D138: 0 | E138: 0 | F138: 0 | G138: 0 | H138: =IF(N137<0.01,0,IF(Adm!$S$4=Adm!$S$8,0,N137*Adm!$V$4)) -> 0 | I138: =IF(N137<0.01,0,IF(Adm!$S$5=Adm!$S$8,0,Adm!$AA$11*Adm!$X$4)) -> 0 | J138: =IF(N137<0.01,0,Adm!$Q$4*1.16) -> 0 | K138: =IF(N137<0.01,0,IF(Adm!$O$4>0,E138*Adm!$O$4,0)) -> 0 | L138: 0 | M138: =IF(Adm!$G$4="si",MIN(N137+E138+H138+I138+J138-L138,Z138),0) -> 0 | N138: 0 | V138: 3 | W138: =IF(V138=1,Cal!$AB$127,0) -> 0 | Y138: 0 | Z138: 0 | AB138: 0 | AC138: 0 | AD138: 0 | AE138: 0 | AF138: 0 | AG138: =HLOOKUP($AG$83,anticipado,52,0) ->  | AI138: 0 | AJ138: 51 | AK138: 0 | AL138: 0 | AM138: 0 | AN138: 1000000 | AQ138: 51 | AR138: 0 | AS138: 8393.773199 | AT138: 8393.773199 | AU138: 571917.5668
A139: 4 | B139: 0 | C139: 0 | D139: 0 | E139: 0 | F139: 0 | G139: 0 | H139: =IF(N138<0.01,0,IF(Adm!$S$4=Adm!$S$8,0,N138*Adm!$V$4)) -> 0 | I139: =IF(N138<0.01,0,IF(Adm!$S$5=Adm!$S$8,0,Adm!$AA$11*Adm!$X$4)) -> 0 | J139: =IF(N138<0.01,0,Adm!$Q$4*1.16) -> 0 | K139: =IF(N138<0.01,0,IF(Adm!$O$4>0,E139*Adm!$O$4,0)) -> 0 | L139: 0 | M139: =IF(Adm!$G$4="si",MIN(N138+E139+H139+I139+J139-L139,Z139),0) -> 0 | N139: 0 | V139: 4 | W139: =IF(V139=1,Cal!$AB$127,0) -> 0 | Y139: 0 | Z139: 0 | AB139: 0 | AC139: 0 | AD139: 0 | AE139: 0 | AF139: 0 | AG139: =HLOOKUP($AG$83,anticipado,53,0) ->  | AI139: 0 | AJ139: 52 | AK139: 0 | AL139: 0 | AM139: 0 | AN139: 1000000 | AQ139: 52 | AR139: 0 | AS139: 8393.773199 | AT139: 8393.773199 | AU139: 563523.7936
A140: 5 | B140: 0 | C140: 0 | D140: 0 | E140: 0 | F140: 0 | G140: 0 | H140: =IF(N139<0.01,0,IF(Adm!$S$4=Adm!$S$8,0,N139*Adm!$V$4)) -> 0 | I140: =IF(N139<0.01,0,IF(Adm!$S$5=Adm!$S$8,0,Adm!$AA$11*Adm!$X$4)) -> 0 | J140: =IF(N139<0.01,0,Adm!$Q$4*1.16) -> 0 | K140: =IF(N139<0.01,0,IF(Adm!$O$4>0,E140*Adm!$O$4,0)) -> 0 | L140: 0 | M140: =IF(Adm!$G$4="si",MIN(N139+E140+H140+I140+J140-L140,Z140),0) -> 0 | N140: 0 | V140: 5 | W140: =IF(V140=1,Cal!$AB$127,0) -> 0 | Y140: 0 | Z140: 0 | AB140: 0 | AC140: 0 | AD140: 0 | AE140: 0 | AF140: 0 | AG140: =HLOOKUP($AG$83,anticipado,54,0) ->  | AI140: 0 | AJ140: 53 | AK140: 0 | AL140: 0 | AM140: 0 | AN140: 1000000 | AQ140: 53 | AR140: 0 | AS140: 8393.773199 | AT140: 8393.773199 | AU140: 555130.0204
A141: 6 | B141: 0 | C141: 0 | D141: 0 | E141: 0 | F141: 0 | G141: 0 | H141: =IF(N140<0.01,0,IF(Adm!$S$4=Adm!$S$8,0,N140*Adm!$V$4)) -> 0 | I141: =IF(N140<0.01,0,IF(Adm!$S$5=Adm!$S$8,0,Adm!$AA$11*Adm!$X$4)) -> 0 | J141: =IF(N140<0.01,0,Adm!$Q$4*1.16) -> 0 | K141: =IF(N140<0.01,0,IF(Adm!$O$4>0,E141*Adm!$O$4,0)) -> 0 | L141: 0 | M141: =IF(Adm!$G$4="si",MIN(N140+E141+H141+I141+J141-L141,Z141),0) -> 0 | N141: 0 | V141: 6 | W141: =IF(V141=1,Cal!$AB$127,0) -> 0 | Y141: 0 | Z141: 0 | AB141: 0 | AC141: 0 | AD141: 0 | AE141: 0 | AF141: 0 | AG141: =HLOOKUP($AG$83,anticipado,55,0) ->  | AI141: 0 | AJ141: 54 | AK141: 0 | AL141: 0 | AM141: 0 | AN141: 1000000 | AQ141: 54 | AR141: 0 | AS141: 8393.773199 | AT141: 8393.773199 | AU141: 546736.2472
A142: 7 | B142: 0 | C142: 0 | D142: 0 | E142: 0 | F142: 0 | G142: 0 | H142: =IF(N141<0.01,0,IF(Adm!$S$4=Adm!$S$8,0,N141*Adm!$V$4)) -> 0 | I142: =IF(N141<0.01,0,IF(Adm!$S$5=Adm!$S$8,0,Adm!$AA$11*Adm!$X$4)) -> 0 | J142: =IF(N141<0.01,0,Adm!$Q$4*1.16) -> 0 | K142: =IF(N141<0.01,0,IF(Adm!$O$4>0,E142*Adm!$O$4,0)) -> 0 | L142: 0 | M142: =IF(Adm!$G$4="si",MIN(N141+E142+H142+I142+J142-L142,Z142),0) -> 0 | N142: 0 | V142: 7 | W142: =IF(V142=1,Cal!$AB$127,0) -> 0 | Y142: 0 | Z142: 0 | AB142: 0 | AC142: 0 | AD142: 0 | AE142: 0 | AF142: 0 | AG142: =HLOOKUP($AG$83,anticipado,56,0) ->  | AI142: 0 | AJ142: 55 | AK142: 0 | AL142: 0 | AM142: 0 | AN142: 1000000 | AQ142: 55 | AR142: 0 | AS142: 8393.773199 | AT142: 8393.773199 | AU142: 538342.474
A143: 8 | B143: 0 | C143: 0 | D143: 0 | E143: 0 | F143: 0 | G143: 0 | H143: =IF(N142<0.01,0,IF(Adm!$S$4=Adm!$S$8,0,N142*Adm!$V$4)) -> 0 | I143: =IF(N142<0.01,0,IF(Adm!$S$5=Adm!$S$8,0,Adm!$AA$11*Adm!$X$4)) -> 0 | J143: =IF(N142<0.01,0,Adm!$Q$4*1.16) -> 0 | K143: =IF(N142<0.01,0,IF(Adm!$O$4>0,E143*Adm!$O$4,0)) -> 0 | L143: 0 | M143: =IF(Adm!$G$4="si",MIN(N142+E143+H143+I143+J143-L143,Z143),0) -> 0 | N143: 0 | V143: 8 | W143: =IF(V143=1,Cal!$AB$127,0) -> 0 | Y143: 0 | Z143: 0 | AB143: 0 | AC143: 0 | AD143: 0 | AE143: 0 | AF143: 0 | AG143: =HLOOKUP($AG$83,anticipado,57,0) ->  | AI143: 0 | AJ143: 56 | AK143: 0 | AL143: 0 | AM143: 0 | AN143: 1000000 | AQ143: 56 | AR143: 0 | AS143: 8393.773199 | AT143: 8393.773199 | AU143: 529948.7008
A144: 9 | B144: 0 | C144: 0 | D144: 0 | E144: 0 | F144: 0 | G144: 0 | H144: =IF(N143<0.01,0,IF(Adm!$S$4=Adm!$S$8,0,N143*Adm!$V$4)) -> 0 | I144: =IF(N143<0.01,0,IF(Adm!$S$5=Adm!$S$8,0,Adm!$AA$11*Adm!$X$4)) -> 0 | J144: =IF(N143<0.01,0,Adm!$Q$4*1.16) -> 0 | K144: =IF(N143<0.01,0,IF(Adm!$O$4>0,E144*Adm!$O$4,0)) -> 0 | L144: 0 | M144: =IF(Adm!$G$4="si",MIN(N143+E144+H144+I144+J144-L144,Z144),0) -> 0 | N144: 0 | V144: 9 | W144: =IF(V144=1,Cal!$AB$127,0) -> 0 | Y144: 0 | Z144: 0 | AB144: 0 | AC144: 0 | AD144: 0 | AE144: 0 | AF144: 0 | AG144: =HLOOKUP($AG$83,anticipado,58,0) ->  | AI144: 0 | AJ144: 57 | AK144: 0 | AL144: 0 | AM144: 0 | AN144: 1000000 | AQ144: 57 | AR144: 0 | AS144: 8393.773199 | AT144: 8393.773199 | AU144: 521554.9276
A145: 10 | B145: 0 | C145: 0 | D145: 0 | E145: 0 | F145: 0 | G145: 0 | H145: =IF(N144<0.01,0,IF(Adm!$S$4=Adm!$S$8,0,N144*Adm!$V$4)) -> 0 | I145: =IF(N144<0.01,0,IF(Adm!$S$5=Adm!$S$8,0,Adm!$AA$11*Adm!$X$4)) -> 0 | J145: =IF(N144<0.01,0,Adm!$Q$4*1.16) -> 0 | K145: =IF(N144<0.01,0,IF(Adm!$O$4>0,E145*Adm!$O$4,0)) -> 0 | L145: 0 | M145: =IF(Adm!$G$4="si",MIN(N144+E145+H145+I145+J145-L145,Z145),0) -> 0 | N145: 0 | V145: 10 | W145: =IF(V145=1,Cal!$AB$127,0) -> 0 | Y145: 0 | Z145: 0 | AB145: 0 | AC145: 0 | AD145: 0 | AE145: 0 | AF145: 0 | AG145: =HLOOKUP($AG$83,anticipado,59,0) ->  | AI145: 0 | AJ145: 58 | AK145: 0 | AL145: 0 | AM145: 0 | AN145: 1000000 | AQ145: 58 | AR145: 0 | AS145: 8393.773199 | AT145: 8393.773199 | AU145: 513161.1544
A146: 11 | B146: 0 | C146: 0 | D146: 0 | E146: 0 | F146: 0 | G146: 0 | H146: =IF(N145<0.01,0,IF(Adm!$S$4=Adm!$S$8,0,N145*Adm!$V$4)) -> 0 | I146: =IF(N145<0.01,0,IF(Adm!$S$5=Adm!$S$8,0,Adm!$AA$11*Adm!$X$4)) -> 0 | J146: =IF(N145<0.01,0,Adm!$Q$4*1.16) -> 0 | K146: =IF(N145<0.01,0,IF(Adm!$O$4>0,E146*Adm!$O$4,0)) -> 0 | L146: 0 | M146: =IF(Adm!$G$4="si",MIN(N145+E146+H146+I146+J146-L146,Z146),0) -> 0 | N146: 0 | V146: 11 | W146: =IF(V146=1,Cal!$AB$127,0) -> 0 | Y146: 0 | Z146: 0 | AB146: 0 | AC146: 0 | AD146: 0 | AE146: 0 | AF146: 0 | AG146: =HLOOKUP($AG$83,anticipado,60,0) ->  | AI146: 0 | AJ146: 59 | AK146: 0 | AL146: 0 | AM146: 0 | AN146: 1000000 | AQ146: 59 | AR146: 0 | AS146: 8393.773199 | AT146: 8393.773199 | AU146: 504767.3812
A147: 12 | B147: 0 | C147: 0 | D147: 0 | E147: 0 | F147: 0 | G147: 0 | H147: =IF(N146<0.01,0,IF(Adm!$S$4=Adm!$S$8,0,N146*Adm!$V$4)) -> 0 | I147: =IF(N146<0.01,0,IF(Adm!$S$5=Adm!$S$8,0,Adm!$AA$11*Adm!$X$4)) -> 0 | J147: =IF(N146<0.01,0,Adm!$Q$4*1.16) -> 0 | K147: =IF(N146<0.01,0,IF(Adm!$O$4>0,E147*Adm!$O$4,0)) -> 0 | L147: 0 | M147: =IF(Adm!$G$4="si",MIN(N146+E147+H147+I147+J147-L147,Z147),0) -> 0 | N147: 0 | V147: 12 | W147: =IF(V147=1,Cal!$AB$127,0) -> 0 | Y147: 0 | Z147: 0 | AB147: 0 | AC147: 0 | AD147: 0 | AE147: 0 | AF147: 0 | AG147: =HLOOKUP($AG$83,anticipado,61,0) ->  | AI147: 0 | AJ147: 60 | AK147: 0 | AL147: 0 | AM147: 0 | AN147: 1000000 | AQ147: 60 | AR147: 0 | AS147: 8393.773199 | AT147: 8393.773199 | AU147: 496373.6081
A148: 1 | B148: 0 | C148: 0 | D148: 0 | E148: 0 | F148: 0 | G148: 0 | H148: =IF(N147<0.01,0,IF(Adm!$S$4=Adm!$S$8,0,N147*Adm!$V$4)) -> 0 | I148: =IF(N147<0.01,0,IF(Adm!$S$5=Adm!$S$8,0,Adm!$AA$11*Adm!$X$4)) -> 0 | J148: =IF(N147<0.01,0,Adm!$Q$4*1.16) -> 0 | K148: =IF(N147<0.01,0,IF(Adm!$O$4>0,E148*Adm!$O$4,0)) -> 0 | L148: 0 | M148: =IF(Adm!$G$4="si",MIN(N147+E148+H148+I148+J148-L148,Z148),0) -> 0 | N148: 0 | V148: 1 | W148: =IF(V148=1,Cal!$AB$127,0) -> 0 | Y148: 0 | Z148: 0 | AB148: 0 | AC148: 0 | AD148: 0 | AE148: 0 | AF148: 0 | AG148: =HLOOKUP($AG$83,anticipado,62,0) ->  | AI148: 0 | AJ148: 61 | AK148: 0 | AL148: 0 | AM148: =MIN(AN147+AK148,AM147*(1+$AK$83)) -> 0 | AN148: 1000000 | AQ148: 61 | AR148: 0 | AS148: 8393.773199 | AT148: =MIN(AU147+AR148,AT147*(1+$AR$83)) -> 8393.773199 | AU148: 487979.8349
A149: 2 | B149: 0 | C149: 0 | D149: 0 | E149: 0 | F149: 0 | G149: 0 | H149: =IF(N148<0.01,0,IF(Adm!$S$4=Adm!$S$8,0,N148*Adm!$V$4)) -> 0 | I149: =IF(N148<0.01,0,IF(Adm!$S$5=Adm!$S$8,0,Adm!$AA$11*Adm!$X$4)) -> 0 | J149: =IF(N148<0.01,0,Adm!$Q$4*1.16) -> 0 | K149: =IF(N148<0.01,0,IF(Adm!$O$4>0,E149*Adm!$O$4,0)) -> 0 | L149: 0 | M149: =IF(Adm!$G$4="si",MIN(N148+E149+H149+I149+J149-L149,Z149),0) -> 0 | N149: 0 | V149: 2 | W149: =IF(V149=1,Cal!$AB$127,0) -> 0 | Y149: 0 | Z149: 0 | AB149: 0 | AC149: 0 | AD149: 0 | AE149: 0 | AF149: 0 | AG149: =HLOOKUP($AG$83,anticipado,63,0) ->  | AI149: 0 | AJ149: 62 | AK149: 0 | AL149: 0 | AM149: 0 | AN149: 1000000 | AQ149: 62 | AR149: 0 | AS149: 8393.773199 | AT149: =MIN(AU148+AR149,AT148) -> 8393.773199 | AU149: 479586.0617
A150: 3 | B150: 0 | C150: 0 | D150: 0 | E150: 0 | F150: 0 | G150: 0 | H150: =IF(N149<0.01,0,IF(Adm!$S$4=Adm!$S$8,0,N149*Adm!$V$4)) -> 0 | I150: =IF(N149<0.01,0,IF(Adm!$S$5=Adm!$S$8,0,Adm!$AA$11*Adm!$X$4)) -> 0 | J150: =IF(N149<0.01,0,Adm!$Q$4*1.16) -> 0 | K150: =IF(N149<0.01,0,IF(Adm!$O$4>0,E150*Adm!$O$4,0)) -> 0 | L150: 0 | M150: =IF(Adm!$G$4="si",MIN(N149+E150+H150+I150+J150-L150,Z150),0) -> 0 | N150: 0 | V150: 3 | W150: =IF(V150=1,Cal!$AB$127,0) -> 0 | Y150: 0 | Z150: 0 | AB150: 0 | AC150: 0 | AD150: 0 | AE150: 0 | AF150: 0 | AG150: =HLOOKUP($AG$83,anticipado,64,0) ->  | AI150: 0 | AJ150: 63 | AK150: 0 | AL150: 0 | AM150: 0 | AN150: 1000000 | AQ150: 63 | AR150: 0 | AS150: 8393.773199 | AT150: 8393.773199 | AU150: 471192.2885
A151: 4 | B151: 0 | C151: 0 | D151: 0 | E151: 0 | F151: 0 | G151: 0 | H151: =IF(N150<0.01,0,IF(Adm!$S$4=Adm!$S$8,0,N150*Adm!$V$4)) -> 0 | I151: =IF(N150<0.01,0,IF(Adm!$S$5=Adm!$S$8,0,Adm!$AA$11*Adm!$X$4)) -> 0 | J151: =IF(N150<0.01,0,Adm!$Q$4*1.16) -> 0 | K151: =IF(N150<0.01,0,IF(Adm!$O$4>0,E151*Adm!$O$4,0)) -> 0 | L151: 0 | M151: =IF(Adm!$G$4="si",MIN(N150+E151+H151+I151+J151-L151,Z151),0) -> 0 | N151: 0 | V151: 4 | W151: =IF(V151=1,Cal!$AB$127,0) -> 0 | Y151: 0 | Z151: 0 | AB151: 0 | AC151: 0 | AD151: 0 | AE151: 0 | AF151: 0 | AG151: =HLOOKUP($AG$83,anticipado,65,0) ->  | AI151: 0 | AJ151: 64 | AK151: 0 | AL151: 0 | AM151: 0 | AN151: 1000000 | AQ151: 64 | AR151: 0 | AS151: 8393.773199 | AT151: 8393.773199 | AU151: 462798.5153
A152: =IF(A151=12,1,A151+1) -> 5 | B152: 0 | C152: 0 | D152: 0 | E152: 0 | F152: 0 | G152: 0 | H152: =IF(N151<0.01,0,IF(Adm!$S$4=Adm!$S$8,0,N151*Adm!$V$4)) -> 0 | I152: =IF(N151<0.01,0,IF(Adm!$S$5=Adm!$S$8,0,Adm!$AA$11*Adm!$X$4)) -> 0 | J152: =IF(N151<0.01,0,Adm!$Q$4*1.16) -> 0 | K152: =IF(N151<0.01,0,IF(Adm!$O$4>0,E152*Adm!$O$4,0)) -> 0 | L152: 0 | M152: =IF(Adm!$G$4="si",MIN(N151+E152+H152+I152+J152-L152,Z152),0) -> 0 | N152: 0 | V152: 5 | W152: =IF(V152=1,Cal!$AB$127,0) -> 0 | Y152: 0 | Z152: 0 | AB152: 0 | AC152: 0 | AD152: 0 | AE152: 0 | AF152: =IF(AND($AD$82=2,O151<0.01),0,IF($AD$82=2,(N151*AG152)+E152,0)) -> 0 | AG152: =HLOOKUP($AG$83,anticipado,66,0) ->  | AI152: 0 | AJ152: 65 | AK152: 0 | AL152: 0 | AM152: 0 | AN152: 1000000 | AQ152: 65 | AR152: 0 | AS152: =AT152-AR152 -> 8393.773199 | AT152: 8393.773199 | AU152: 454404.7421
A153: 6 | B153: =IF(N152>0,B152-1,0) -> 0 | C153: 0 | D153: 0 | E153: =IF(N152<0.01,0,N152*D153*30.4166/360) -> 0 | F153: 0 | G153: 0 | H153: =IF(N152<0.01,0,IF(Adm!$S$4=Adm!$S$8,0,N152*Adm!$V$4)) -> 0 | I153: =IF(N152<0.01,0,IF(Adm!$S$5=Adm!$S$8,0,Adm!$AA$11*Adm!$X$4)) -> 0 | J153: =IF(N152<0.01,0,Adm!$Q$4*1.16) -> 0 | K153: =IF(N152<0.01,0,IF(Adm!$O$4>0,E153*Adm!$O$4,0)) -> 0 | L153: =G153+H153+I153+J153+K153 -> 0 | M153: =IF(Adm!$G$4="si",MIN(N152+E153+H153+I153+J153-L153,Z153),0) -> 0 | N153: =IF(N152<0.001,0,+N152-F153-M153-O153) -> 0 | V153: =IF(V152=12,1,V152+1) -> 6 | W153: =IF(V153=1,Cal!$AB$127,0) -> 0 | Y153: 0 | Z153: =IF(MOD(A153,2)=0,Y153*0.05*2,0) -> 0 | AB153: 0 | AC153: 0 | AD153: 0 | AE153: 0 | AF153: 0 | AG153: =HLOOKUP($AG$83,anticipado,67,0) ->  | AI153: =AL153/AN152 -> 0 | AJ153: 66 | AK153: =AN152*$AK$81*30.4166/360 -> 0 | AL153: 0 | AM153: 0 | AN153: =IF(AN152<0.001,0,AN152-AL153-AO153) -> 1000000 | AQ153: 66 | AR153: =AU152*$AR$81*30.4166/360 -> 0 | AS153: 8393.773199 | AT153: 8393.773199 | AU153: 446010.9689
A154: 7 | B154: 0 | C154: =IF(N153<0.01,0,C153+1) -> 0 | D154: =IF(N153<0.01,0,D153) -> 0 | E154: 0 | F154: 0 | G154: 0 | H154: =IF(N153<0.01,0,IF(Adm!$S$4=Adm!$S$8,0,N153*Adm!$V$4)) -> 0 | I154: =IF(N153<0.01,0,IF(Adm!$S$5=Adm!$S$8,0,Adm!$AA$11*Adm!$X$4)) -> 0 | J154: =IF(N153<0.01,0,Adm!$Q$4*1.16) -> 0 | K154: =IF(N153<0.01,0,IF(Adm!$O$4>0,E154*Adm!$O$4,0)) -> 0 | L154: 0 | M154: =IF(Adm!$G$4="si",MIN(N153+E154+H154+I154+J154-L154,Z154),0) -> 0 | N154: 0 | V154: 7 | W154: =IF(V154=1,Cal!$AB$127,0) -> 0 | Y154: =Y153 -> 0 | Z154: 0 | AB154: =IF(AC154>1,AC154,IF(AE154>1,AE154,0)) -> 0 | AC154: =IF(AND($AD$82=1,O153>0.1),AD154,0) -> 0 | AD154: 0 | AE154: =IF(AND(AF154>0.01,$AB$82=2),AF154,0) -> 0 | AF154: 0 | AG154: =HLOOKUP($AG$83,anticipado,68,0) ->  | AI154: 0 | AJ154: 67 | AK154: 0 | AL154: 0 | AM154: =MIN(AN153+AK154,AM153) -> 0 | AN154: 1000000 | AQ154: 67 | AR154: 0 | AS154: 8393.773199 | AT154: 8393.773199 | AU154: =IF(AU153<0.001,0,AU153-AS154) -> 437617.1957
A155: 8 | B155: 0 | C155: 0 | D155: 0 | E155: 0 | F155: 0 | G155: 0 | H155: =IF(N154<0.01,0,IF(Adm!$S$4=Adm!$S$8,0,N154*Adm!$V$4)) -> 0 | I155: =IF(N154<0.01,0,IF(Adm!$S$5=Adm!$S$8,0,Adm!$AA$11*Adm!$X$4)) -> 0 | J155: =IF(N154<0.01,0,Adm!$Q$4*1.16) -> 0 | K155: =IF(N154<0.01,0,IF(Adm!$O$4>0,E155*Adm!$O$4,0)) -> 0 | L155: 0 | M155: =IF(Adm!$G$4="si",MIN(N154+E155+H155+I155+J155-L155,Z155),0) -> 0 | N155: 0 | V155: 8 | W155: =IF(V155=1,Cal!$AB$127,0) -> 0 | Y155: 0 | Z155: 0 | AB155: 0 | AC155: 0 | AD155: =IF(AND($AD$82=1,$AB$82=2),PMT((($D$88/360)*(365/12)),B154,-N154),0) -> 0 | AE155: 0 | AF155: 0 | AG155: =HLOOKUP($AG$83,anticipado,69,0) ->  | AI155: 0 | AJ155: =IF(AN154<=0,"",AJ154+1) -> 68 | AK155: 0 | AL155: =AM155-AK155 -> 0 | AM155: 0 | AN155: 1000000 | AQ155: =IF(AU154<=0,"",AQ154+1) -> 68 | AR155: 0 | AS155: 8393.773199 | AT155: 8393.773199 | AU155: 429223.4225
A156: 9 | B156: 0 | C156: 0 | D156: 0 | E156: 0 | F156: 0 | G156: 0 | H156: =IF(N155<0.01,0,IF(Adm!$S$4=Adm!$S$8,0,N155*Adm!$V$4)) -> 0 | I156: =IF(N155<0.01,0,IF(Adm!$S$5=Adm!$S$8,0,Adm!$AA$11*Adm!$X$4)) -> 0 | J156: =IF(N155<0.01,0,Adm!$Q$4*1.16) -> 0 | K156: =IF(N155<0.01,0,IF(Adm!$O$4>0,E156*Adm!$O$4,0)) -> 0 | L156: 0 | M156: =IF(Adm!$G$4="si",MIN(N155+E156+H156+I156+J156-L156,Z156),0) -> 0 | N156: 0 | V156: 9 | W156: =IF(V156=1,Cal!$AB$127,0) -> 0 | Y156: 0 | Z156: 0 | AB156: 0 | AC156: 0 | AD156: 0 | AE156: 0 | AF156: 0 | AG156: =HLOOKUP($AG$83,anticipado,70,0) ->  | AI156: 0 | AJ156: 69 | AK156: 0 | AL156: 0 | AM156: 0 | AN156: 1000000 | AQ156: 69 | AR156: 0 | AS156: 8393.773199 | AT156: 8393.773199 | AU156: 420829.6493
A157: 10 | B157: 0 | C157: 0 | D157: 0 | E157: 0 | F157: 0 | G157: 0 | H157: =IF(N156<0.01,0,IF(Adm!$S$4=Adm!$S$8,0,N156*Adm!$V$4)) -> 0 | I157: =IF(N156<0.01,0,IF(Adm!$S$5=Adm!$S$8,0,Adm!$AA$11*Adm!$X$4)) -> 0 | J157: =IF(N156<0.01,0,Adm!$Q$4*1.16) -> 0 | K157: =IF(N156<0.01,0,IF(Adm!$O$4>0,E157*Adm!$O$4,0)) -> 0 | L157: 0 | M157: =IF(Adm!$G$4="si",MIN(N156+E157+H157+I157+J157-L157,Z157),0) -> 0 | N157: 0 | V157: 10 | W157: =IF(V157=1,Cal!$AB$127,0) -> 0 | Y157: 0 | Z157: 0 | AB157: 0 | AC157: 0 | AD157: 0 | AE157: 0 | AF157: 0 | AG157: =HLOOKUP($AG$83,anticipado,71,0) ->  | AI157: 0 | AJ157: 70 | AK157: 0 | AL157: 0 | AM157: 0 | AN157: 1000000 | AQ157: 70 | AR157: 0 | AS157: 8393.773199 | AT157: 8393.773199 | AU157: 412435.8761
A158: 11 | B158: 0 | C158: 0 | D158: 0 | E158: 0 | F158: 0 | G158: 0 | H158: =IF(N157<0.01,0,IF(Adm!$S$4=Adm!$S$8,0,N157*Adm!$V$4)) -> 0 | I158: =IF(N157<0.01,0,IF(Adm!$S$5=Adm!$S$8,0,Adm!$AA$11*Adm!$X$4)) -> 0 | J158: =IF(N157<0.01,0,Adm!$Q$4*1.16) -> 0 | K158: =IF(N157<0.01,0,IF(Adm!$O$4>0,E158*Adm!$O$4,0)) -> 0 | L158: 0 | M158: =IF(Adm!$G$4="si",MIN(N157+E158+H158+I158+J158-L158,Z158),0) -> 0 | N158: 0 | V158: 11 | W158: =IF(V158=1,Cal!$AB$127,0) -> 0 | Y158: 0 | Z158: 0 | AB158: 0 | AC158: 0 | AD158: 0 | AE158: 0 | AF158: 0 | AG158: =HLOOKUP($AG$83,anticipado,72,0) ->  | AI158: 0 | AJ158: 71 | AK158: 0 | AL158: 0 | AM158: 0 | AN158: 1000000 | AQ158: 71 | AR158: 0 | AS158: 8393.773199 | AT158: 8393.773199 | AU158: 404042.1029
A159: 12 | B159: 0 | C159: 0 | D159: 0 | E159: 0 | F159: 0 | G159: 0 | H159: =IF(N158<0.01,0,IF(Adm!$S$4=Adm!$S$8,0,N158*Adm!$V$4)) -> 0 | I159: =IF(N158<0.01,0,IF(Adm!$S$5=Adm!$S$8,0,Adm!$AA$11*Adm!$X$4)) -> 0 | J159: =IF(N158<0.01,0,Adm!$Q$4*1.16) -> 0 | K159: =IF(N158<0.01,0,IF(Adm!$O$4>0,E159*Adm!$O$4,0)) -> 0 | L159: 0 | M159: =IF(Adm!$G$4="si",MIN(N158+E159+H159+I159+J159-L159,Z159),0) -> 0 | N159: 0 | V159: 12 | W159: =IF(V159=1,Cal!$AB$127,0) -> 0 | Y159: 0 | Z159: 0 | AB159: 0 | AC159: 0 | AD159: 0 | AE159: 0 | AF159: 0 | AG159: =HLOOKUP($AG$83,anticipado,73,0) ->  | AI159: 0 | AJ159: 72 | AK159: 0 | AL159: 0 | AM159: 0 | AN159: 1000000 | AQ159: 72 | AR159: 0 | AS159: 8393.773199 | AT159: 8393.773199 | AU159: 395648.3297
A160: 1 | B160: 0 | C160: 0 | D160: 0 | E160: 0 | F160: 0 | G160: 0 | H160: =IF(N159<0.01,0,IF(Adm!$S$4=Adm!$S$8,0,N159*Adm!$V$4)) -> 0 | I160: =IF(N159<0.01,0,IF(Adm!$S$5=Adm!$S$8,0,Adm!$AA$11*Adm!$X$4)) -> 0 | J160: =IF(N159<0.01,0,Adm!$Q$4*1.16) -> 0 | K160: =IF(N159<0.01,0,IF(Adm!$O$4>0,E160*Adm!$O$4,0)) -> 0 | L160: 0 | M160: =IF(Adm!$G$4="si",MIN(N159+E160+H160+I160+J160-L160,Z160),0) -> 0 | N160: 0 | V160: 1 | W160: =IF(V160=1,Cal!$AB$127,0) -> 0 | Y160: 0 | Z160: 0 | AB160: 0 | AC160: 0 | AD160: 0 | AE160: 0 | AF160: 0 | AG160: =HLOOKUP($AG$83,anticipado,74,0) ->  | AI160: 0 | AJ160: 73 | AK160: 0 | AL160: 0 | AM160: =MIN(AN159+AK160,AM159*(1+$AK$83)) -> 0 | AN160: 1000000 | AQ160: 73 | AR160: 0 | AS160: 8393.773199 | AT160: =MIN(AU159+AR160,AT159*(1+$AR$83)) -> 8393.773199 | AU160: 387254.5565
A161: 2 | B161: 0 | C161: 0 | D161: 0 | E161: 0 | F161: 0 | G161: 0 | H161: =IF(N160<0.01,0,IF(Adm!$S$4=Adm!$S$8,0,N160*Adm!$V$4)) -> 0 | I161: =IF(N160<0.01,0,IF(Adm!$S$5=Adm!$S$8,0,Adm!$AA$11*Adm!$X$4)) -> 0 | J161: =IF(N160<0.01,0,Adm!$Q$4*1.16) -> 0 | K161: =IF(N160<0.01,0,IF(Adm!$O$4>0,E161*Adm!$O$4,0)) -> 0 | L161: 0 | M161: =IF(Adm!$G$4="si",MIN(N160+E161+H161+I161+J161-L161,Z161),0) -> 0 | N161: 0 | V161: 2 | W161: =IF(V161=1,Cal!$AB$127,0) -> 0 | Y161: 0 | Z161: 0 | AB161: 0 | AC161: 0 | AD161: 0 | AE161: 0 | AF161: 0 | AG161: =HLOOKUP($AG$83,anticipado,75,0) ->  | AI161: 0 | AJ161: 74 | AK161: 0 | AL161: 0 | AM161: 0 | AN161: 1000000 | AQ161: 74 | AR161: 0 | AS161: 8393.773199 | AT161: =MIN(AU160+AR161,AT160) -> 8393.773199 | AU161: 378860.7833
A162: 3 | B162: 0 | C162: 0 | D162: 0 | E162: 0 | F162: 0 | G162: 0 | H162: =IF(N161<0.01,0,IF(Adm!$S$4=Adm!$S$8,0,N161*Adm!$V$4)) -> 0 | I162: =IF(N161<0.01,0,IF(Adm!$S$5=Adm!$S$8,0,Adm!$AA$11*Adm!$X$4)) -> 0 | J162: =IF(N161<0.01,0,Adm!$Q$4*1.16) -> 0 | K162: =IF(N161<0.01,0,IF(Adm!$O$4>0,E162*Adm!$O$4,0)) -> 0 | L162: 0 | M162: =IF(Adm!$G$4="si",MIN(N161+E162+H162+I162+J162-L162,Z162),0) -> 0 | N162: 0 | V162: 3 | W162: =IF(V162=1,Cal!$AB$127,0) -> 0 | Y162: 0 | Z162: 0 | AB162: 0 | AC162: 0 | AD162: 0 | AE162: 0 | AF162: 0 | AG162: =HLOOKUP($AG$83,anticipado,76,0) ->  | AI162: 0 | AJ162: 75 | AK162: 0 | AL162: 0 | AM162: 0 | AN162: 1000000 | AQ162: 75 | AR162: 0 | AS162: 8393.773199 | AT162: 8393.773199 | AU162: 370467.0101
A163: 4 | B163: 0 | C163: 0 | D163: 0 | E163: 0 | F163: 0 | G163: 0 | H163: =IF(N162<0.01,0,IF(Adm!$S$4=Adm!$S$8,0,N162*Adm!$V$4)) -> 0 | I163: =IF(N162<0.01,0,IF(Adm!$S$5=Adm!$S$8,0,Adm!$AA$11*Adm!$X$4)) -> 0 | J163: =IF(N162<0.01,0,Adm!$Q$4*1.16) -> 0 | K163: =IF(N162<0.01,0,IF(Adm!$O$4>0,E163*Adm!$O$4,0)) -> 0 | L163: 0 | M163: =IF(Adm!$G$4="si",MIN(N162+E163+H163+I163+J163-L163,Z163),0) -> 0 | N163: 0 | V163: 4 | W163: =IF(V163=1,Cal!$AB$127,0) -> 0 | Y163: 0 | Z163: 0 | AB163: 0 | AC163: 0 | AD163: 0 | AE163: 0 | AF163: 0 | AG163: =HLOOKUP($AG$83,anticipado,77,0) ->  | AI163: 0 | AJ163: 76 | AK163: 0 | AL163: 0 | AM163: 0 | AN163: 1000000 | AQ163: 76 | AR163: 0 | AS163: 8393.773199 | AT163: 8393.773199 | AU163: 362073.2369
A164: 5 | B164: 0 | C164: 0 | D164: 0 | E164: 0 | F164: 0 | G164: 0 | H164: =IF(N163<0.01,0,IF(Adm!$S$4=Adm!$S$8,0,N163*Adm!$V$4)) -> 0 | I164: =IF(N163<0.01,0,IF(Adm!$S$5=Adm!$S$8,0,Adm!$AA$11*Adm!$X$4)) -> 0 | J164: =IF(N163<0.01,0,Adm!$Q$4*1.16) -> 0 | K164: =IF(N163<0.01,0,IF(Adm!$O$4>0,E164*Adm!$O$4,0)) -> 0 | L164: 0 | M164: =IF(Adm!$G$4="si",MIN(N163+E164+H164+I164+J164-L164,Z164),0) -> 0 | N164: 0 | V164: 5 | W164: =IF(V164=1,Cal!$AB$127,0) -> 0 | Y164: 0 | Z164: 0 | AB164: 0 | AC164: 0 | AD164: 0 | AE164: 0 | AF164: 0 | AG164: =HLOOKUP($AG$83,anticipado,78,0) ->  | AI164: 0 | AJ164: 77 | AK164: 0 | AL164: 0 | AM164: 0 | AN164: 1000000 | AQ164: 77 | AR164: 0 | AS164: 8393.773199 | AT164: 8393.773199 | AU164: 353679.4637
A165: 6 | B165: 0 | C165: 0 | D165: 0 | E165: 0 | F165: =IF(N164<0.01,0,G165-E165) -> 0 | G165: 0 | H165: =IF(N164<0.01,0,IF(Adm!$S$4=Adm!$S$8,0,N164*Adm!$V$4)) -> 0 | I165: =IF(N164<0.01,0,IF(Adm!$S$5=Adm!$S$8,0,Adm!$AA$11*Adm!$X$4)) -> 0 | J165: =IF(N164<0.01,0,Adm!$Q$4*1.16) -> 0 | K165: =IF(N164<0.01,0,IF(Adm!$O$4>0,E165*Adm!$O$4,0)) -> 0 | L165: 0 | M165: =IF(Adm!$G$4="si",MIN(N164+E165+H165+I165+J165-L165,Z165),0) -> 0 | N165: 0 | V165: 6 | W165: =IF(V165=1,Cal!$AB$127,0) -> 0 | Y165: 0 | Z165: 0 | AB165: 0 | AC165: 0 | AD165: 0 | AE165: 0 | AF165: 0 | AG165: =HLOOKUP($AG$83,anticipado,79,0) ->  | AI165: 0 | AJ165: 78 | AK165: 0 | AL165: 0 | AM165: 0 | AN165: 1000000 | AQ165: 78 | AR165: 0 | AS165: 8393.773199 | AT165: 8393.773199 | AU165: 345285.6905
A166: 7 | B166: 0 | C166: 0 | D166: 0 | E166: 0 | F166: 0 | G166: =IF(N165<0.1,0,MIN(N165+E166,IF(AB166>0,AB166,G165*(1+W166)))) -> 0 | H166: =IF(N165<0.01,0,IF(Adm!$S$4=Adm!$S$8,0,N165*Adm!$V$4)) -> 0 | I166: =IF(N165<0.01,0,IF(Adm!$S$5=Adm!$S$8,0,Adm!$AA$11*Adm!$X$4)) -> 0 | J166: =IF(N165<0.01,0,Adm!$Q$4*1.16) -> 0 | K166: =IF(N165<0.01,0,IF(Adm!$O$4>0,E166*Adm!$O$4,0)) -> 0 | L166: 0 | M166: =IF(Adm!$G$4="si",MIN(N165+E166+H166+I166+J166-L166,Z166),0) -> 0 | N166: 0 | V166: 7 | W166: =IF(V166=1,Cal!$AB$127,0) -> 0 | Y166: 0 | Z166: 0 | AB166: 0 | AC166: 0 | AD166: 0 | AE166: 0 | AF166: 0 | AG166: =HLOOKUP($AG$83,anticipado,80,0) ->  | AI166: 0 | AJ166: 79 | AK166: 0 | AL166: 0 | AM166: 0 | AN166: 1000000 | AQ166: 79 | AR166: 0 | AS166: 8393.773199 | AT166: 8393.773199 | AU166: 336891.9173
A167: 8 | B167: 0 | C167: 0 | D167: 0 | E167: 0 | F167: 0 | G167: 0 | H167: =IF(N166<0.01,0,IF(Adm!$S$4=Adm!$S$8,0,N166*Adm!$V$4)) -> 0 | I167: =IF(N166<0.01,0,IF(Adm!$S$5=Adm!$S$8,0,Adm!$AA$11*Adm!$X$4)) -> 0 | J167: =IF(N166<0.01,0,Adm!$Q$4*1.16) -> 0 | K167: =IF(N166<0.01,0,IF(Adm!$O$4>0,E167*Adm!$O$4,0)) -> 0 | L167: 0 | M167: =IF(Adm!$G$4="si",MIN(N166+E167+H167+I167+J167-L167,Z167),0) -> 0 | N167: 0 | V167: 8 | W167: =IF(V167=1,Cal!$AB$127,0) -> 0 | Y167: 0 | Z167: 0 | AB167: 0 | AC167: 0 | AD167: 0 | AE167: 0 | AF167: 0 | AG167: =HLOOKUP($AG$83,anticipado,81,0) ->  | AI167: 0 | AJ167: 80 | AK167: 0 | AL167: 0 | AM167: 0 | AN167: 1000000 | AQ167: 80 | AR167: 0 | AS167: 8393.773199 | AT167: 8393.773199 | AU167: 328498.1441
A168: 9 | B168: 0 | C168: 0 | D168: 0 | E168: 0 | F168: 0 | G168: 0 | H168: =IF(N167<0.01,0,IF(Adm!$S$4=Adm!$S$8,0,N167*Adm!$V$4)) -> 0 | I168: =IF(N167<0.01,0,IF(Adm!$S$5=Adm!$S$8,0,Adm!$AA$11*Adm!$X$4)) -> 0 | J168: =IF(N167<0.01,0,Adm!$Q$4*1.16) -> 0 | K168: =IF(N167<0.01,0,IF(Adm!$O$4>0,E168*Adm!$O$4,0)) -> 0 | L168: 0 | M168: =IF(Adm!$G$4="si",MIN(N167+E168+H168+I168+J168-L168,Z168),0) -> 0 | N168: 0 | V168: 9 | W168: =IF(V168=1,Cal!$AB$127,0) -> 0 | Y168: 0 | Z168: 0 | AB168: 0 | AC168: 0 | AD168: 0 | AE168: 0 | AF168: 0 | AG168: =HLOOKUP($AG$83,anticipado,82,0) ->  | AI168: 0 | AJ168: 81 | AK168: 0 | AL168: 0 | AM168: 0 | AN168: 1000000 | AQ168: 81 | AR168: 0 | AS168: 8393.773199 | AT168: 8393.773199 | AU168: 320104.3709
A169: 10 | B169: 0 | C169: 0 | D169: 0 | E169: 0 | F169: 0 | G169: 0 | H169: =IF(N168<0.01,0,IF(Adm!$S$4=Adm!$S$8,0,N168*Adm!$V$4)) -> 0 | I169: =IF(N168<0.01,0,IF(Adm!$S$5=Adm!$S$8,0,Adm!$AA$11*Adm!$X$4)) -> 0 | J169: =IF(N168<0.01,0,Adm!$Q$4*1.16) -> 0 | K169: =IF(N168<0.01,0,IF(Adm!$O$4>0,E169*Adm!$O$4,0)) -> 0 | L169: 0 | M169: =IF(Adm!$G$4="si",MIN(N168+E169+H169+I169+J169-L169,Z169),0) -> 0 | N169: 0 | V169: 10 | W169: =IF(V169=1,Cal!$AB$127,0) -> 0 | Y169: 0 | Z169: 0 | AB169: 0 | AC169: 0 | AD169: 0 | AE169: 0 | AF169: 0 | AG169: =HLOOKUP($AG$83,anticipado,83,0) ->  | AI169: 0 | AJ169: 82 | AK169: 0 | AL169: 0 | AM169: 0 | AN169: 1000000 | AQ169: 82 | AR169: 0 | AS169: 8393.773199 | AT169: 8393.773199 | AU169: 311710.5977
A170: 11 | B170: 0 | C170: 0 | D170: 0 | E170: 0 | F170: 0 | G170: 0 | H170: =IF(N169<0.01,0,IF(Adm!$S$4=Adm!$S$8,0,N169*Adm!$V$4)) -> 0 | I170: =IF(N169<0.01,0,IF(Adm!$S$5=Adm!$S$8,0,Adm!$AA$11*Adm!$X$4)) -> 0 | J170: =IF(N169<0.01,0,Adm!$Q$4*1.16) -> 0 | K170: =IF(N169<0.01,0,IF(Adm!$O$4>0,E170*Adm!$O$4,0)) -> 0 | L170: 0 | M170: =IF(Adm!$G$4="si",MIN(N169+E170+H170+I170+J170-L170,Z170),0) -> 0 | N170: 0 | V170: 11 | W170: =IF(V170=1,Cal!$AB$127,0) -> 0 | Y170: 0 | Z170: 0 | AB170: 0 | AC170: 0 | AD170: 0 | AE170: 0 | AF170: 0 | AG170: =HLOOKUP($AG$83,anticipado,84,0) ->  | AI170: 0 | AJ170: 83 | AK170: 0 | AL170: 0 | AM170: 0 | AN170: 1000000 | AQ170: 83 | AR170: 0 | AS170: 8393.773199 | AT170: 8393.773199 | AU170: 303316.8245
A171: 12 | B171: 0 | C171: 0 | D171: 0 | E171: 0 | F171: 0 | G171: 0 | H171: =IF(N170<0.01,0,IF(Adm!$S$4=Adm!$S$8,0,N170*Adm!$V$4)) -> 0 | I171: =IF(N170<0.01,0,IF(Adm!$S$5=Adm!$S$8,0,Adm!$AA$11*Adm!$X$4)) -> 0 | J171: =IF(N170<0.01,0,Adm!$Q$4*1.16) -> 0 | K171: =IF(N170<0.01,0,IF(Adm!$O$4>0,E171*Adm!$O$4,0)) -> 0 | L171: 0 | M171: =IF(Adm!$G$4="si",MIN(N170+E171+H171+I171+J171-L171,Z171),0) -> 0 | N171: 0 | V171: 12 | W171: =IF(V171=1,Cal!$AB$127,0) -> 0 | Y171: 0 | Z171: 0 | AB171: 0 | AC171: 0 | AD171: 0 | AE171: 0 | AF171: 0 | AG171: =HLOOKUP($AG$83,anticipado,85,0) ->  | AI171: 0 | AJ171: 84 | AK171: 0 | AL171: 0 | AM171: 0 | AN171: 1000000 | AQ171: 84 | AR171: 0 | AS171: 8393.773199 | AT171: 8393.773199 | AU171: 294923.0513
A172: 1 | B172: 0 | C172: 0 | D172: 0 | E172: 0 | F172: 0 | G172: 0 | H172: =IF(N171<0.01,0,IF(Adm!$S$4=Adm!$S$8,0,N171*Adm!$V$4)) -> 0 | I172: =IF(N171<0.01,0,IF(Adm!$S$5=Adm!$S$8,0,Adm!$AA$11*Adm!$X$4)) -> 0 | J172: =IF(N171<0.01,0,Adm!$Q$4*1.16) -> 0 | K172: =IF(N171<0.01,0,IF(Adm!$O$4>0,E172*Adm!$O$4,0)) -> 0 | L172: 0 | M172: =IF(Adm!$G$4="si",MIN(N171+E172+H172+I172+J172-L172,Z172),0) -> 0 | N172: 0 | V172: 1 | W172: =IF(V172=1,Cal!$AB$127,0) -> 0 | Y172: 0 | Z172: 0 | AB172: 0 | AC172: 0 | AD172: 0 | AE172: 0 | AF172: 0 | AG172: =HLOOKUP($AG$83,anticipado,86,0) ->  | AI172: 0 | AJ172: 85 | AK172: 0 | AL172: 0 | AM172: =MIN(AN171+AK172,AM171*(1+$AK$83)) -> 0 | AN172: 1000000 | AQ172: 85 | AR172: 0 | AS172: 8393.773199 | AT172: =MIN(AU171+AR172,AT171*(1+$AR$83)) -> 8393.773199 | AU172: 286529.2781
A173: 2 | B173: 0 | C173: 0 | D173: 0 | E173: 0 | F173: 0 | G173: 0 | H173: =IF(N172<0.01,0,IF(Adm!$S$4=Adm!$S$8,0,N172*Adm!$V$4)) -> 0 | I173: =IF(N172<0.01,0,IF(Adm!$S$5=Adm!$S$8,0,Adm!$AA$11*Adm!$X$4)) -> 0 | J173: =IF(N172<0.01,0,Adm!$Q$4*1.16) -> 0 | K173: =IF(N172<0.01,0,IF(Adm!$O$4>0,E173*Adm!$O$4,0)) -> 0 | L173: 0 | M173: =IF(Adm!$G$4="si",MIN(N172+E173+H173+I173+J173-L173,Z173),0) -> 0 | N173: 0 | V173: 2 | W173: =IF(V173=1,Cal!$AB$127,0) -> 0 | Y173: 0 | Z173: 0 | AB173: 0 | AC173: 0 | AD173: 0 | AE173: 0 | AF173: 0 | AG173: =HLOOKUP($AG$83,anticipado,87,0) ->  | AI173: 0 | AJ173: 86 | AK173: 0 | AL173: 0 | AM173: 0 | AN173: 1000000 | AQ173: 86 | AR173: 0 | AS173: 8393.773199 | AT173: =MIN(AU172+AR173,AT172) -> 8393.773199 | AU173: 278135.5049
A174: 3 | B174: 0 | C174: 0 | D174: 0 | E174: 0 | F174: 0 | G174: 0 | H174: =IF(N173<0.01,0,IF(Adm!$S$4=Adm!$S$8,0,N173*Adm!$V$4)) -> 0 | I174: =IF(N173<0.01,0,IF(Adm!$S$5=Adm!$S$8,0,Adm!$AA$11*Adm!$X$4)) -> 0 | J174: =IF(N173<0.01,0,Adm!$Q$4*1.16) -> 0 | K174: =IF(N173<0.01,0,IF(Adm!$O$4>0,E174*Adm!$O$4,0)) -> 0 | L174: 0 | M174: =IF(Adm!$G$4="si",MIN(N173+E174+H174+I174+J174-L174,Z174),0) -> 0 | N174: 0 | V174: 3 | W174: =IF(V174=1,Cal!$AB$127,0) -> 0 | Y174: 0 | Z174: 0 | AB174: 0 | AC174: 0 | AD174: 0 | AE174: 0 | AF174: 0 | AG174: =HLOOKUP($AG$83,anticipado,88,0) ->  | AI174: 0 | AJ174: 87 | AK174: 0 | AL174: 0 | AM174: 0 | AN174: 1000000 | AQ174: 87 | AR174: 0 | AS174: 8393.773199 | AT174: 8393.773199 | AU174: 269741.7317
A175: 4 | B175: 0 | C175: 0 | D175: 0 | E175: 0 | F175: 0 | G175: 0 | H175: =IF(N174<0.01,0,IF(Adm!$S$4=Adm!$S$8,0,N174*Adm!$V$4)) -> 0 | I175: =IF(N174<0.01,0,IF(Adm!$S$5=Adm!$S$8,0,Adm!$AA$11*Adm!$X$4)) -> 0 | J175: =IF(N174<0.01,0,Adm!$Q$4*1.16) -> 0 | K175: =IF(N174<0.01,0,IF(Adm!$O$4>0,E175*Adm!$O$4,0)) -> 0 | L175: 0 | M175: =IF(Adm!$G$4="si",MIN(N174+E175+H175+I175+J175-L175,Z175),0) -> 0 | N175: 0 | V175: 4 | W175: =IF(V175=1,Cal!$AB$127,0) -> 0 | Y175: 0 | Z175: 0 | AB175: 0 | AC175: 0 | AD175: 0 | AE175: 0 | AF175: 0 | AG175: =HLOOKUP($AG$83,anticipado,89,0) ->  | AI175: 0 | AJ175: 88 | AK175: 0 | AL175: 0 | AM175: 0 | AN175: 1000000 | AQ175: 88 | AR175: 0 | AS175: 8393.773199 | AT175: 8393.773199 | AU175: 261347.9585
A176: 5 | B176: 0 | C176: 0 | D176: 0 | E176: 0 | F176: 0 | G176: 0 | H176: =IF(N175<0.01,0,IF(Adm!$S$4=Adm!$S$8,0,N175*Adm!$V$4)) -> 0 | I176: =IF(N175<0.01,0,IF(Adm!$S$5=Adm!$S$8,0,Adm!$AA$11*Adm!$X$4)) -> 0 | J176: =IF(N175<0.01,0,Adm!$Q$4*1.16) -> 0 | K176: =IF(N175<0.01,0,IF(Adm!$O$4>0,E176*Adm!$O$4,0)) -> 0 | L176: 0 | M176: =IF(Adm!$G$4="si",MIN(N175+E176+H176+I176+J176-L176,Z176),0) -> 0 | N176: 0 | V176: 5 | W176: =IF(V176=1,Cal!$AB$127,0) -> 0 | Y176: 0 | Z176: 0 | AB176: 0 | AC176: 0 | AD176: 0 | AE176: 0 | AF176: 0 | AG176: =HLOOKUP($AG$83,anticipado,90,0) ->  | AI176: 0 | AJ176: 89 | AK176: 0 | AL176: 0 | AM176: 0 | AN176: 1000000 | AQ176: 89 | AR176: 0 | AS176: 8393.773199 | AT176: 8393.773199 | AU176: 252954.1853
A177: 6 | B177: 0 | C177: 0 | D177: 0 | E177: 0 | F177: 0 | G177: 0 | H177: =IF(N176<0.01,0,IF(Adm!$S$4=Adm!$S$8,0,N176*Adm!$V$4)) -> 0 | I177: =IF(N176<0.01,0,IF(Adm!$S$5=Adm!$S$8,0,Adm!$AA$11*Adm!$X$4)) -> 0 | J177: =IF(N176<0.01,0,Adm!$Q$4*1.16) -> 0 | K177: =IF(N176<0.01,0,IF(Adm!$O$4>0,E177*Adm!$O$4,0)) -> 0 | L177: 0 | M177: =IF(Adm!$G$4="si",MIN(N176+E177+H177+I177+J177-L177,Z177),0) -> 0 | N177: 0 | V177: 6 | W177: =IF(V177=1,Cal!$AB$127,0) -> 0 | Y177: 0 | Z177: 0 | AB177: 0 | AC177: 0 | AD177: 0 | AE177: 0 | AF177: 0 | AG177: =HLOOKUP($AG$83,anticipado,91,0) ->  | AI177: 0 | AJ177: 90 | AK177: 0 | AL177: 0 | AM177: 0 | AN177: 1000000 | AQ177: 90 | AR177: 0 | AS177: 8393.773199 | AT177: 8393.773199 | AU177: 244560.4121
A178: 7 | B178: 0 | C178: 0 | D178: 0 | E178: 0 | F178: 0 | G178: 0 | H178: =IF(N177<0.01,0,IF(Adm!$S$4=Adm!$S$8,0,N177*Adm!$V$4)) -> 0 | I178: =IF(N177<0.01,0,IF(Adm!$S$5=Adm!$S$8,0,Adm!$AA$11*Adm!$X$4)) -> 0 | J178: =IF(N177<0.01,0,Adm!$Q$4*1.16) -> 0 | K178: =IF(N177<0.01,0,IF(Adm!$O$4>0,E178*Adm!$O$4,0)) -> 0 | L178: 0 | M178: =IF(Adm!$G$4="si",MIN(N177+E178+H178+I178+J178-L178,Z178),0) -> 0 | N178: 0 | V178: 7 | W178: =IF(V178=1,Cal!$AB$127,0) -> 0 | Y178: 0 | Z178: 0 | AB178: 0 | AC178: 0 | AD178: 0 | AE178: 0 | AF178: 0 | AG178: =HLOOKUP($AG$83,anticipado,92,0) ->  | AI178: 0 | AJ178: 91 | AK178: 0 | AL178: 0 | AM178: 0 | AN178: 1000000 | AQ178: 91 | AR178: 0 | AS178: 8393.773199 | AT178: 8393.773199 | AU178: 236166.6389
A179: 8 | B179: 0 | C179: 0 | D179: 0 | E179: 0 | F179: 0 | G179: 0 | H179: =IF(N178<0.01,0,IF(Adm!$S$4=Adm!$S$8,0,N178*Adm!$V$4)) -> 0 | I179: =IF(N178<0.01,0,IF(Adm!$S$5=Adm!$S$8,0,Adm!$AA$11*Adm!$X$4)) -> 0 | J179: =IF(N178<0.01,0,Adm!$Q$4*1.16) -> 0 | K179: =IF(N178<0.01,0,IF(Adm!$O$4>0,E179*Adm!$O$4,0)) -> 0 | L179: 0 | M179: =IF(Adm!$G$4="si",MIN(N178+E179+H179+I179+J179-L179,Z179),0) -> 0 | N179: 0 | V179: 8 | W179: =IF(V179=1,Cal!$AB$127,0) -> 0 | Y179: 0 | Z179: 0 | AB179: 0 | AC179: 0 | AD179: 0 | AE179: 0 | AF179: 0 | AG179: =HLOOKUP($AG$83,anticipado,93,0) ->  | AI179: 0 | AJ179: 92 | AK179: 0 | AL179: 0 | AM179: 0 | AN179: 1000000 | AQ179: 92 | AR179: 0 | AS179: 8393.773199 | AT179: 8393.773199 | AU179: 227772.8657
A180: 9 | B180: 0 | C180: 0 | D180: 0 | E180: 0 | F180: 0 | G180: 0 | H180: =IF(N179<0.01,0,IF(Adm!$S$4=Adm!$S$8,0,N179*Adm!$V$4)) -> 0 | I180: =IF(N179<0.01,0,IF(Adm!$S$5=Adm!$S$8,0,Adm!$AA$11*Adm!$X$4)) -> 0 | J180: =IF(N179<0.01,0,Adm!$Q$4*1.16) -> 0 | K180: =IF(N179<0.01,0,IF(Adm!$O$4>0,E180*Adm!$O$4,0)) -> 0 | L180: 0 | M180: =IF(Adm!$G$4="si",MIN(N179+E180+H180+I180+J180-L180,Z180),0) -> 0 | N180: 0 | V180: 9 | W180: =IF(V180=1,Cal!$AB$127,0) -> 0 | Y180: 0 | Z180: 0 | AB180: 0 | AC180: 0 | AD180: 0 | AE180: 0 | AF180: 0 | AG180: =HLOOKUP($AG$83,anticipado,94,0) ->  | AI180: 0 | AJ180: 93 | AK180: 0 | AL180: 0 | AM180: 0 | AN180: 1000000 | AQ180: 93 | AR180: 0 | AS180: 8393.773199 | AT180: 8393.773199 | AU180: 219379.0925
A181: 10 | B181: 0 | C181: 0 | D181: 0 | E181: 0 | F181: 0 | G181: 0 | H181: =IF(N180<0.01,0,IF(Adm!$S$4=Adm!$S$8,0,N180*Adm!$V$4)) -> 0 | I181: =IF(N180<0.01,0,IF(Adm!$S$5=Adm!$S$8,0,Adm!$AA$11*Adm!$X$4)) -> 0 | J181: =IF(N180<0.01,0,Adm!$Q$4*1.16) -> 0 | K181: =IF(N180<0.01,0,IF(Adm!$O$4>0,E181*Adm!$O$4,0)) -> 0 | L181: 0 | M181: =IF(Adm!$G$4="si",MIN(N180+E181+H181+I181+J181-L181,Z181),0) -> 0 | N181: 0 | V181: 10 | W181: =IF(V181=1,Cal!$AB$127,0) -> 0 | Y181: 0 | Z181: 0 | AB181: 0 | AC181: 0 | AD181: 0 | AE181: 0 | AF181: 0 | AG181: =HLOOKUP($AG$83,anticipado,95,0) ->  | AI181: 0 | AJ181: 94 | AK181: 0 | AL181: 0 | AM181: 0 | AN181: 1000000 | AQ181: 94 | AR181: 0 | AS181: 8393.773199 | AT181: 8393.773199 | AU181: 210985.3193
A182: 11 | B182: 0 | C182: 0 | D182: 0 | E182: 0 | F182: 0 | G182: 0 | H182: =IF(N181<0.01,0,IF(Adm!$S$4=Adm!$S$8,0,N181*Adm!$V$4)) -> 0 | I182: =IF(N181<0.01,0,IF(Adm!$S$5=Adm!$S$8,0,Adm!$AA$11*Adm!$X$4)) -> 0 | J182: =IF(N181<0.01,0,Adm!$Q$4*1.16) -> 0 | K182: =IF(N181<0.01,0,IF(Adm!$O$4>0,E182*Adm!$O$4,0)) -> 0 | L182: 0 | M182: =IF(Adm!$G$4="si",MIN(N181+E182+H182+I182+J182-L182,Z182),0) -> 0 | N182: 0 | V182: 11 | W182: =IF(V182=1,Cal!$AB$127,0) -> 0 | Y182: 0 | Z182: 0 | AB182: 0 | AC182: 0 | AD182: 0 | AE182: 0 | AF182: 0 | AG182: =HLOOKUP($AG$83,anticipado,96,0) ->  | AI182: 0 | AJ182: 95 | AK182: 0 | AL182: 0 | AM182: 0 | AN182: 1000000 | AQ182: 95 | AR182: 0 | AS182: 8393.773199 | AT182: 8393.773199 | AU182: 202591.5461
A183: 12 | B183: 0 | C183: 0 | D183: 0 | E183: 0 | F183: 0 | G183: 0 | H183: =IF(N182<0.01,0,IF(Adm!$S$4=Adm!$S$8,0,N182*Adm!$V$4)) -> 0 | I183: =IF(N182<0.01,0,IF(Adm!$S$5=Adm!$S$8,0,Adm!$AA$11*Adm!$X$4)) -> 0 | J183: =IF(N182<0.01,0,Adm!$Q$4*1.16) -> 0 | K183: =IF(N182<0.01,0,IF(Adm!$O$4>0,E183*Adm!$O$4,0)) -> 0 | L183: 0 | M183: =IF(Adm!$G$4="si",MIN(N182+E183+H183+I183+J183-L183,Z183),0) -> 0 | N183: 0 | V183: 12 | W183: =IF(V183=1,Cal!$AB$127,0) -> 0 | Y183: 0 | Z183: 0 | AB183: 0 | AC183: 0 | AD183: 0 | AE183: 0 | AF183: 0 | AG183: =HLOOKUP($AG$83,anticipado,97,0) ->  | AI183: 0 | AJ183: 96 | AK183: 0 | AL183: 0 | AM183: 0 | AN183: 1000000 | AQ183: 96 | AR183: 0 | AS183: 8393.773199 | AT183: 8393.773199 | AU183: 194197.7729
A184: 1 | B184: 0 | C184: 0 | D184: 0 | E184: 0 | F184: 0 | G184: 0 | H184: =IF(N183<0.01,0,IF(Adm!$S$4=Adm!$S$8,0,N183*Adm!$V$4)) -> 0 | I184: =IF(N183<0.01,0,IF(Adm!$S$5=Adm!$S$8,0,Adm!$AA$11*Adm!$X$4)) -> 0 | J184: =IF(N183<0.01,0,Adm!$Q$4*1.16) -> 0 | K184: =IF(N183<0.01,0,IF(Adm!$O$4>0,E184*Adm!$O$4,0)) -> 0 | L184: 0 | M184: =IF(Adm!$G$4="si",MIN(N183+E184+H184+I184+J184-L184,Z184),0) -> 0 | N184: 0 | V184: 1 | W184: =IF(V184=1,Cal!$AB$127,0) -> 0 | Y184: 0 | Z184: 0 | AB184: 0 | AC184: 0 | AD184: 0 | AE184: 0 | AF184: 0 | AG184: =HLOOKUP($AG$83,anticipado,98,0) ->  | AI184: 0 | AJ184: 97 | AK184: 0 | AL184: 0 | AM184: =MIN(AN183+AK184,AM183*(1+$AK$83)) -> 0 | AN184: 1000000 | AQ184: 97 | AR184: 0 | AS184: 8393.773199 | AT184: =MIN(AU183+AR184,AT183*(1+$AR$83)) -> 8393.773199 | AU184: 185803.9997
A185: 2 | B185: 0 | C185: 0 | D185: 0 | E185: 0 | F185: 0 | G185: 0 | H185: =IF(N184<0.01,0,IF(Adm!$S$4=Adm!$S$8,0,N184*Adm!$V$4)) -> 0 | I185: =IF(N184<0.01,0,IF(Adm!$S$5=Adm!$S$8,0,Adm!$AA$11*Adm!$X$4)) -> 0 | J185: =IF(N184<0.01,0,Adm!$Q$4*1.16) -> 0 | K185: =IF(N184<0.01,0,IF(Adm!$O$4>0,E185*Adm!$O$4,0)) -> 0 | L185: 0 | M185: =IF(Adm!$G$4="si",MIN(N184+E185+H185+I185+J185-L185,Z185),0) -> 0 | N185: 0 | V185: 2 | W185: =IF(V185=1,Cal!$AB$127,0) -> 0 | Y185: 0 | Z185: 0 | AB185: 0 | AC185: 0 | AD185: 0 | AE185: 0 | AF185: 0 | AG185: =HLOOKUP($AG$83,anticipado,99,0) ->  | AI185: 0 | AJ185: 98 | AK185: 0 | AL185: 0 | AM185: 0 | AN185: 1000000 | AQ185: 98 | AR185: 0 | AS185: 8393.773199 | AT185: =MIN(AU184+AR185,AT184) -> 8393.773199 | AU185: 177410.2265
A186: 3 | B186: 0 | C186: 0 | D186: 0 | E186: 0 | F186: 0 | G186: 0 | H186: =IF(N185<0.01,0,IF(Adm!$S$4=Adm!$S$8,0,N185*Adm!$V$4)) -> 0 | I186: =IF(N185<0.01,0,IF(Adm!$S$5=Adm!$S$8,0,Adm!$AA$11*Adm!$X$4)) -> 0 | J186: =IF(N185<0.01,0,Adm!$Q$4*1.16) -> 0 | K186: =IF(N185<0.01,0,IF(Adm!$O$4>0,E186*Adm!$O$4,0)) -> 0 | L186: 0 | M186: =IF(Adm!$G$4="si",MIN(N185+E186+H186+I186+J186-L186,Z186),0) -> 0 | N186: 0 | V186: 3 | W186: =IF(V186=1,Cal!$AB$127,0) -> 0 | Y186: 0 | Z186: 0 | AB186: 0 | AC186: 0 | AD186: 0 | AE186: 0 | AF186: 0 | AG186: =HLOOKUP($AG$83,anticipado,100,0) ->  | AI186: 0 | AJ186: 99 | AK186: 0 | AL186: 0 | AM186: 0 | AN186: 1000000 | AQ186: 99 | AR186: 0 | AS186: 8393.773199 | AT186: 8393.773199 | AU186: 169016.4533
A187: 4 | B187: 0 | C187: 0 | D187: 0 | E187: 0 | F187: 0 | G187: 0 | H187: =IF(N186<0.01,0,IF(Adm!$S$4=Adm!$S$8,0,N186*Adm!$V$4)) -> 0 | I187: =IF(N186<0.01,0,IF(Adm!$S$5=Adm!$S$8,0,Adm!$AA$11*Adm!$X$4)) -> 0 | J187: =IF(N186<0.01,0,Adm!$Q$4*1.16) -> 0 | K187: =IF(N186<0.01,0,IF(Adm!$O$4>0,E187*Adm!$O$4,0)) -> 0 | L187: 0 | M187: =IF(Adm!$G$4="si",MIN(N186+E187+H187+I187+J187-L187,Z187),0) -> 0 | N187: 0 | V187: 4 | W187: =IF(V187=1,Cal!$AB$127,0) -> 0 | Y187: 0 | Z187: 0 | AB187: 0 | AC187: 0 | AD187: 0 | AE187: 0 | AF187: 0 | AG187: =HLOOKUP($AG$83,anticipado,101,0) ->  | AI187: 0 | AJ187: 100 | AK187: 0 | AL187: 0 | AM187: 0 | AN187: 1000000 | AQ187: 100 | AR187: 0 | AS187: 8393.773199 | AT187: 8393.773199 | AU187: 160622.6801
A188: 5 | B188: 0 | C188: 0 | D188: 0 | E188: 0 | F188: 0 | G188: 0 | H188: =IF(N187<0.01,0,IF(Adm!$S$4=Adm!$S$8,0,N187*Adm!$V$4)) -> 0 | I188: =IF(N187<0.01,0,IF(Adm!$S$5=Adm!$S$8,0,Adm!$AA$11*Adm!$X$4)) -> 0 | J188: =IF(N187<0.01,0,Adm!$Q$4*1.16) -> 0 | K188: =IF(N187<0.01,0,IF(Adm!$O$4>0,E188*Adm!$O$4,0)) -> 0 | L188: 0 | M188: =IF(Adm!$G$4="si",MIN(N187+E188+H188+I188+J188-L188,Z188),0) -> 0 | N188: 0 | V188: 5 | W188: =IF(V188=1,Cal!$AB$127,0) -> 0 | Y188: 0 | Z188: 0 | AB188: 0 | AC188: 0 | AD188: 0 | AE188: 0 | AF188: 0 | AG188: =HLOOKUP($AG$83,anticipado,102,0) ->  | AI188: 0 | AJ188: 101 | AK188: 0 | AL188: 0 | AM188: 0 | AN188: 1000000 | AQ188: 101 | AR188: 0 | AS188: 8393.773199 | AT188: 8393.773199 | AU188: 152228.9069
A189: 6 | B189: 0 | C189: 0 | D189: 0 | E189: 0 | F189: 0 | G189: 0 | H189: =IF(N188<0.01,0,IF(Adm!$S$4=Adm!$S$8,0,N188*Adm!$V$4)) -> 0 | I189: =IF(N188<0.01,0,IF(Adm!$S$5=Adm!$S$8,0,Adm!$AA$11*Adm!$X$4)) -> 0 | J189: =IF(N188<0.01,0,Adm!$Q$4*1.16) -> 0 | K189: =IF(N188<0.01,0,IF(Adm!$O$4>0,E189*Adm!$O$4,0)) -> 0 | L189: 0 | M189: =IF(Adm!$G$4="si",MIN(N188+E189+H189+I189+J189-L189,Z189),0) -> 0 | N189: 0 | V189: 6 | W189: =IF(V189=1,Cal!$AB$127,0) -> 0 | Y189: 0 | Z189: 0 | AB189: 0 | AC189: 0 | AD189: 0 | AE189: 0 | AF189: 0 | AG189: =HLOOKUP($AG$83,anticipado,103,0) ->  | AI189: 0 | AJ189: 102 | AK189: 0 | AL189: 0 | AM189: 0 | AN189: 1000000 | AQ189: 102 | AR189: 0 | AS189: 8393.773199 | AT189: 8393.773199 | AU189: 143835.1337
A190: 7 | B190: 0 | C190: 0 | D190: 0 | E190: 0 | F190: 0 | G190: 0 | H190: =IF(N189<0.01,0,IF(Adm!$S$4=Adm!$S$8,0,N189*Adm!$V$4)) -> 0 | I190: =IF(N189<0.01,0,IF(Adm!$S$5=Adm!$S$8,0,Adm!$AA$11*Adm!$X$4)) -> 0 | J190: =IF(N189<0.01,0,Adm!$Q$4*1.16) -> 0 | K190: =IF(N189<0.01,0,IF(Adm!$O$4>0,E190*Adm!$O$4,0)) -> 0 | L190: 0 | M190: =IF(Adm!$G$4="si",MIN(N189+E190+H190+I190+J190-L190,Z190),0) -> 0 | N190: 0 | V190: 7 | W190: =IF(V190=1,Cal!$AB$127,0) -> 0 | Y190: 0 | Z190: 0 | AB190: 0 | AC190: 0 | AD190: 0 | AE190: 0 | AF190: 0 | AG190: =HLOOKUP($AG$83,anticipado,104,0) ->  | AI190: 0 | AJ190: 103 | AK190: 0 | AL190: 0 | AM190: 0 | AN190: 1000000 | AQ190: 103 | AR190: 0 | AS190: 8393.773199 | AT190: 8393.773199 | AU190: 135441.3605
A191: 8 | B191: 0 | C191: 0 | D191: 0 | E191: 0 | F191: 0 | G191: 0 | H191: =IF(N190<0.01,0,IF(Adm!$S$4=Adm!$S$8,0,N190*Adm!$V$4)) -> 0 | I191: =IF(N190<0.01,0,IF(Adm!$S$5=Adm!$S$8,0,Adm!$AA$11*Adm!$X$4)) -> 0 | J191: =IF(N190<0.01,0,Adm!$Q$4*1.16) -> 0 | K191: =IF(N190<0.01,0,IF(Adm!$O$4>0,E191*Adm!$O$4,0)) -> 0 | L191: 0 | M191: =IF(Adm!$G$4="si",MIN(N190+E191+H191+I191+J191-L191,Z191),0) -> 0 | N191: 0 | V191: 8 | W191: =IF(V191=1,Cal!$AB$127,0) -> 0 | Y191: 0 | Z191: 0 | AB191: 0 | AC191: 0 | AD191: 0 | AE191: 0 | AF191: 0 | AG191: =HLOOKUP($AG$83,anticipado,105,0) ->  | AI191: 0 | AJ191: 104 | AK191: 0 | AL191: 0 | AM191: 0 | AN191: 1000000 | AQ191: 104 | AR191: 0 | AS191: 8393.773199 | AT191: 8393.773199 | AU191: 127047.5873
A192: 9 | B192: 0 | C192: 0 | D192: 0 | E192: 0 | F192: 0 | G192: 0 | H192: =IF(N191<0.01,0,IF(Adm!$S$4=Adm!$S$8,0,N191*Adm!$V$4)) -> 0 | I192: =IF(N191<0.01,0,IF(Adm!$S$5=Adm!$S$8,0,Adm!$AA$11*Adm!$X$4)) -> 0 | J192: =IF(N191<0.01,0,Adm!$Q$4*1.16) -> 0 | K192: =IF(N191<0.01,0,IF(Adm!$O$4>0,E192*Adm!$O$4,0)) -> 0 | L192: 0 | M192: =IF(Adm!$G$4="si",MIN(N191+E192+H192+I192+J192-L192,Z192),0) -> 0 | N192: 0 | V192: 9 | W192: =IF(V192=1,Cal!$AB$127,0) -> 0 | Y192: 0 | Z192: 0 | AB192: 0 | AC192: 0 | AD192: 0 | AE192: 0 | AF192: 0 | AG192: =HLOOKUP($AG$83,anticipado,106,0) ->  | AI192: 0 | AJ192: 105 | AK192: 0 | AL192: 0 | AM192: 0 | AN192: 1000000 | AQ192: 105 | AR192: 0 | AS192: 8393.773199 | AT192: 8393.773199 | AU192: 118653.8141
A193: 10 | B193: 0 | C193: 0 | D193: 0 | E193: 0 | F193: 0 | G193: 0 | H193: =IF(N192<0.01,0,IF(Adm!$S$4=Adm!$S$8,0,N192*Adm!$V$4)) -> 0 | I193: =IF(N192<0.01,0,IF(Adm!$S$5=Adm!$S$8,0,Adm!$AA$11*Adm!$X$4)) -> 0 | J193: =IF(N192<0.01,0,Adm!$Q$4*1.16) -> 0 | K193: =IF(N192<0.01,0,IF(Adm!$O$4>0,E193*Adm!$O$4,0)) -> 0 | L193: 0 | M193: =IF(Adm!$G$4="si",MIN(N192+E193+H193+I193+J193-L193,Z193),0) -> 0 | N193: 0 | V193: 10 | W193: =IF(V193=1,Cal!$AB$127,0) -> 0 | Y193: 0 | Z193: 0 | AB193: 0 | AC193: 0 | AD193: 0 | AE193: 0 | AF193: 0 | AG193: =HLOOKUP($AG$83,anticipado,107,0) ->  | AI193: 0 | AJ193: 106 | AK193: 0 | AL193: 0 | AM193: 0 | AN193: 1000000 | AQ193: 106 | AR193: 0 | AS193: 8393.773199 | AT193: 8393.773199 | AU193: 110260.0409
A194: 11 | B194: 0 | C194: 0 | D194: 0 | E194: 0 | F194: 0 | G194: 0 | H194: =IF(N193<0.01,0,IF(Adm!$S$4=Adm!$S$8,0,N193*Adm!$V$4)) -> 0 | I194: =IF(N193<0.01,0,IF(Adm!$S$5=Adm!$S$8,0,Adm!$AA$11*Adm!$X$4)) -> 0 | J194: =IF(N193<0.01,0,Adm!$Q$4*1.16) -> 0 | K194: =IF(N193<0.01,0,IF(Adm!$O$4>0,E194*Adm!$O$4,0)) -> 0 | L194: 0 | M194: =IF(Adm!$G$4="si",MIN(N193+E194+H194+I194+J194-L194,Z194),0) -> 0 | N194: 0 | V194: 11 | W194: =IF(V194=1,Cal!$AB$127,0) -> 0 | Y194: 0 | Z194: 0 | AB194: 0 | AC194: 0 | AD194: 0 | AE194: 0 | AF194: 0 | AG194: =HLOOKUP($AG$83,anticipado,108,0) ->  | AI194: 0 | AJ194: 107 | AK194: 0 | AL194: 0 | AM194: 0 | AN194: 1000000 | AQ194: 107 | AR194: 0 | AS194: 8393.773199 | AT194: 8393.773199 | AU194: 101866.2677
A195: 12 | B195: 0 | C195: 0 | D195: 0 | E195: 0 | F195: 0 | G195: 0 | H195: =IF(N194<0.01,0,IF(Adm!$S$4=Adm!$S$8,0,N194*Adm!$V$4)) -> 0 | I195: =IF(N194<0.01,0,IF(Adm!$S$5=Adm!$S$8,0,Adm!$AA$11*Adm!$X$4)) -> 0 | J195: =IF(N194<0.01,0,Adm!$Q$4*1.16) -> 0 | K195: =IF(N194<0.01,0,IF(Adm!$O$4>0,E195*Adm!$O$4,0)) -> 0 | L195: 0 | M195: =IF(Adm!$G$4="si",MIN(N194+E195+H195+I195+J195-L195,Z195),0) -> 0 | N195: 0 | V195: 12 | W195: =IF(V195=1,Cal!$AB$127,0) -> 0 | Y195: 0 | Z195: 0 | AB195: 0 | AC195: 0 | AD195: 0 | AE195: 0 | AF195: 0 | AG195: =HLOOKUP($AG$83,anticipado,109,0) ->  | AI195: 0 | AJ195: 108 | AK195: 0 | AL195: 0 | AM195: 0 | AN195: 1000000 | AQ195: 108 | AR195: 0 | AS195: 8393.773199 | AT195: 8393.773199 | AU195: 93472.49449
A196: 1 | B196: 0 | C196: 0 | D196: 0 | E196: 0 | F196: 0 | G196: 0 | H196: =IF(N195<0.01,0,IF(Adm!$S$4=Adm!$S$8,0,N195*Adm!$V$4)) -> 0 | I196: =IF(N195<0.01,0,IF(Adm!$S$5=Adm!$S$8,0,Adm!$AA$11*Adm!$X$4)) -> 0 | J196: =IF(N195<0.01,0,Adm!$Q$4*1.16) -> 0 | K196: =IF(N195<0.01,0,IF(Adm!$O$4>0,E196*Adm!$O$4,0)) -> 0 | L196: 0 | M196: =IF(Adm!$G$4="si",MIN(N195+E196+H196+I196+J196-L196,Z196),0) -> 0 | N196: 0 | V196: 1 | W196: =IF(V196=1,Cal!$AB$127,0) -> 0 | Y196: 0 | Z196: 0 | AB196: 0 | AC196: 0 | AD196: 0 | AE196: 0 | AF196: 0 | AG196: =HLOOKUP($AG$83,anticipado,110,0) ->  | AI196: 0 | AJ196: 109 | AK196: 0 | AL196: 0 | AM196: =MIN(AN195+AK196,AM195*(1+$AK$83)) -> 0 | AN196: 1000000 | AQ196: 109 | AR196: 0 | AS196: 8393.773199 | AT196: =MIN(AU195+AR196,AT195*(1+$AR$83)) -> 8393.773199 | AU196: 85078.72129
A197: 2 | B197: 0 | C197: 0 | D197: 0 | E197: 0 | F197: 0 | G197: 0 | H197: =IF(N196<0.01,0,IF(Adm!$S$4=Adm!$S$8,0,N196*Adm!$V$4)) -> 0 | I197: =IF(N196<0.01,0,IF(Adm!$S$5=Adm!$S$8,0,Adm!$AA$11*Adm!$X$4)) -> 0 | J197: =IF(N196<0.01,0,Adm!$Q$4*1.16) -> 0 | K197: =IF(N196<0.01,0,IF(Adm!$O$4>0,E197*Adm!$O$4,0)) -> 0 | L197: 0 | M197: =IF(Adm!$G$4="si",MIN(N196+E197+H197+I197+J197-L197,Z197),0) -> 0 | N197: 0 | V197: 2 | W197: =IF(V197=1,Cal!$AB$127,0) -> 0 | Y197: 0 | Z197: 0 | AB197: 0 | AC197: 0 | AD197: 0 | AE197: 0 | AF197: 0 | AG197: =HLOOKUP($AG$83,anticipado,111,0) ->  | AI197: 0 | AJ197: 110 | AK197: 0 | AL197: 0 | AM197: 0 | AN197: 1000000 | AQ197: 110 | AR197: 0 | AS197: 8393.773199 | AT197: =MIN(AU196+AR197,AT196) -> 8393.773199 | AU197: 76684.94809
A198: 3 | B198: 0 | C198: 0 | D198: 0 | E198: 0 | F198: 0 | G198: 0 | H198: =IF(N197<0.01,0,IF(Adm!$S$4=Adm!$S$8,0,N197*Adm!$V$4)) -> 0 | I198: =IF(N197<0.01,0,IF(Adm!$S$5=Adm!$S$8,0,Adm!$AA$11*Adm!$X$4)) -> 0 | J198: =IF(N197<0.01,0,Adm!$Q$4*1.16) -> 0 | K198: =IF(N197<0.01,0,IF(Adm!$O$4>0,E198*Adm!$O$4,0)) -> 0 | L198: 0 | M198: =IF(Adm!$G$4="si",MIN(N197+E198+H198+I198+J198-L198,Z198),0) -> 0 | N198: 0 | V198: 3 | W198: =IF(V198=1,Cal!$AB$127,0) -> 0 | Y198: 0 | Z198: 0 | AB198: 0 | AC198: 0 | AD198: 0 | AE198: 0 | AF198: 0 | AG198: =HLOOKUP($AG$83,anticipado,112,0) ->  | AI198: 0 | AJ198: 111 | AK198: 0 | AL198: 0 | AM198: 0 | AN198: 1000000 | AQ198: 111 | AR198: 0 | AS198: 8393.773199 | AT198: 8393.773199 | AU198: 68291.17489
A199: 4 | B199: 0 | C199: 0 | D199: 0 | E199: 0 | F199: 0 | G199: 0 | H199: =IF(N198<0.01,0,IF(Adm!$S$4=Adm!$S$8,0,N198*Adm!$V$4)) -> 0 | I199: =IF(N198<0.01,0,IF(Adm!$S$5=Adm!$S$8,0,Adm!$AA$11*Adm!$X$4)) -> 0 | J199: =IF(N198<0.01,0,Adm!$Q$4*1.16) -> 0 | K199: =IF(N198<0.01,0,IF(Adm!$O$4>0,E199*Adm!$O$4,0)) -> 0 | L199: 0 | M199: =IF(Adm!$G$4="si",MIN(N198+E199+H199+I199+J199-L199,Z199),0) -> 0 | N199: 0 | V199: 4 | W199: =IF(V199=1,Cal!$AB$127,0) -> 0 | Y199: 0 | Z199: 0 | AB199: 0 | AC199: 0 | AD199: 0 | AE199: 0 | AF199: 0 | AG199: =HLOOKUP($AG$83,anticipado,113,0) ->  | AI199: 0 | AJ199: 112 | AK199: 0 | AL199: 0 | AM199: 0 | AN199: 1000000 | AQ199: 112 | AR199: 0 | AS199: 8393.773199 | AT199: 8393.773199 | AU199: 59897.40169
A200: 5 | B200: 0 | C200: 0 | D200: 0 | E200: 0 | F200: 0 | G200: 0 | H200: =IF(N199<0.01,0,IF(Adm!$S$4=Adm!$S$8,0,N199*Adm!$V$4)) -> 0 | I200: =IF(N199<0.01,0,IF(Adm!$S$5=Adm!$S$8,0,Adm!$AA$11*Adm!$X$4)) -> 0 | J200: =IF(N199<0.01,0,Adm!$Q$4*1.16) -> 0 | K200: =IF(N199<0.01,0,IF(Adm!$O$4>0,E200*Adm!$O$4,0)) -> 0 | L200: 0 | M200: =IF(Adm!$G$4="si",MIN(N199+E200+H200+I200+J200-L200,Z200),0) -> 0 | N200: 0 | V200: 5 | W200: =IF(V200=1,Cal!$AB$127,0) -> 0 | Y200: 0 | Z200: 0 | AB200: 0 | AC200: 0 | AD200: 0 | AE200: 0 | AF200: 0 | AG200: =HLOOKUP($AG$83,anticipado,114,0) ->  | AI200: 0 | AJ200: 113 | AK200: 0 | AL200: 0 | AM200: 0 | AN200: 1000000 | AQ200: 113 | AR200: 0 | AS200: 8393.773199 | AT200: 8393.773199 | AU200: 51503.6285
A201: 6 | B201: 0 | C201: 0 | D201: 0 | E201: 0 | F201: 0 | G201: 0 | H201: =IF(N200<0.01,0,IF(Adm!$S$4=Adm!$S$8,0,N200*Adm!$V$4)) -> 0 | I201: =IF(N200<0.01,0,IF(Adm!$S$5=Adm!$S$8,0,Adm!$AA$11*Adm!$X$4)) -> 0 | J201: =IF(N200<0.01,0,Adm!$Q$4*1.16) -> 0 | K201: =IF(N200<0.01,0,IF(Adm!$O$4>0,E201*Adm!$O$4,0)) -> 0 | L201: 0 | M201: =IF(Adm!$G$4="si",MIN(N200+E201+H201+I201+J201-L201,Z201),0) -> 0 | N201: 0 | V201: 6 | W201: =IF(V201=1,Cal!$AB$127,0) -> 0 | Y201: 0 | Z201: 0 | AB201: 0 | AC201: 0 | AD201: 0 | AE201: 0 | AF201: 0 | AG201: =HLOOKUP($AG$83,anticipado,115,0) ->  | AI201: 0 | AJ201: 114 | AK201: 0 | AL201: 0 | AM201: 0 | AN201: 1000000 | AQ201: 114 | AR201: 0 | AS201: 8393.773199 | AT201: 8393.773199 | AU201: 43109.8553
A202: 7 | B202: 0 | C202: 0 | D202: 0 | E202: 0 | F202: 0 | G202: 0 | H202: =IF(N201<0.01,0,IF(Adm!$S$4=Adm!$S$8,0,N201*Adm!$V$4)) -> 0 | I202: =IF(N201<0.01,0,IF(Adm!$S$5=Adm!$S$8,0,Adm!$AA$11*Adm!$X$4)) -> 0 | J202: =IF(N201<0.01,0,Adm!$Q$4*1.16) -> 0 | K202: =IF(N201<0.01,0,IF(Adm!$O$4>0,E202*Adm!$O$4,0)) -> 0 | L202: 0 | M202: =IF(Adm!$G$4="si",MIN(N201+E202+H202+I202+J202-L202,Z202),0) -> 0 | N202: 0 | V202: 7 | W202: =IF(V202=1,Cal!$AB$127,0) -> 0 | Y202: 0 | Z202: 0 | AB202: 0 | AC202: 0 | AD202: 0 | AE202: 0 | AF202: 0 | AG202: =HLOOKUP($AG$83,anticipado,116,0) ->  | AI202: 0 | AJ202: 115 | AK202: 0 | AL202: 0 | AM202: 0 | AN202: 1000000 | AQ202: 115 | AR202: 0 | AS202: 8393.773199 | AT202: 8393.773199 | AU202: 34716.0821
A203: 8 | B203: 0 | C203: 0 | D203: 0 | E203: 0 | F203: 0 | G203: 0 | H203: =IF(N202<0.01,0,IF(Adm!$S$4=Adm!$S$8,0,N202*Adm!$V$4)) -> 0 | I203: =IF(N202<0.01,0,IF(Adm!$S$5=Adm!$S$8,0,Adm!$AA$11*Adm!$X$4)) -> 0 | J203: =IF(N202<0.01,0,Adm!$Q$4*1.16) -> 0 | K203: =IF(N202<0.01,0,IF(Adm!$O$4>0,E203*Adm!$O$4,0)) -> 0 | L203: 0 | M203: =IF(Adm!$G$4="si",MIN(N202+E203+H203+I203+J203-L203,Z203),0) -> 0 | N203: 0 | V203: 8 | W203: =IF(V203=1,Cal!$AB$127,0) -> 0 | Y203: 0 | Z203: 0 | AB203: 0 | AC203: 0 | AD203: 0 | AE203: 0 | AF203: 0 | AG203: =HLOOKUP($AG$83,anticipado,117,0) ->  | AI203: 0 | AJ203: 116 | AK203: 0 | AL203: 0 | AM203: 0 | AN203: 1000000 | AQ203: 116 | AR203: 0 | AS203: 8393.773199 | AT203: 8393.773199 | AU203: 26322.3089
A204: 9 | B204: 0 | C204: 0 | D204: 0 | E204: 0 | F204: 0 | G204: 0 | H204: =IF(N203<0.01,0,IF(Adm!$S$4=Adm!$S$8,0,N203*Adm!$V$4)) -> 0 | I204: =IF(N203<0.01,0,IF(Adm!$S$5=Adm!$S$8,0,Adm!$AA$11*Adm!$X$4)) -> 0 | J204: =IF(N203<0.01,0,Adm!$Q$4*1.16) -> 0 | K204: =IF(N203<0.01,0,IF(Adm!$O$4>0,E204*Adm!$O$4,0)) -> 0 | L204: 0 | M204: =IF(Adm!$G$4="si",MIN(N203+E204+H204+I204+J204-L204,Z204),0) -> 0 | N204: 0 | V204: 9 | W204: =IF(V204=1,Cal!$AB$127,0) -> 0 | Y204: 0 | Z204: 0 | AB204: 0 | AC204: 0 | AD204: 0 | AE204: 0 | AF204: 0 | AG204: =HLOOKUP($AG$83,anticipado,118,0) ->  | AI204: 0 | AJ204: 117 | AK204: 0 | AL204: 0 | AM204: 0 | AN204: 1000000 | AQ204: 117 | AR204: 0 | AS204: 8393.773199 | AT204: 8393.773199 | AU204: 17928.5357
A205: 10 | B205: 0 | C205: 0 | D205: 0 | E205: 0 | F205: 0 | G205: 0 | H205: =IF(N204<0.01,0,IF(Adm!$S$4=Adm!$S$8,0,N204*Adm!$V$4)) -> 0 | I205: =IF(N204<0.01,0,IF(Adm!$S$5=Adm!$S$8,0,Adm!$AA$11*Adm!$X$4)) -> 0 | J205: =IF(N204<0.01,0,Adm!$Q$4*1.16) -> 0 | K205: =IF(N204<0.01,0,IF(Adm!$O$4>0,E205*Adm!$O$4,0)) -> 0 | L205: 0 | M205: =IF(Adm!$G$4="si",MIN(N204+E205+H205+I205+J205-L205,Z205),0) -> 0 | N205: 0 | V205: 10 | W205: =IF(V205=1,Cal!$AB$127,0) -> 0 | Y205: 0 | Z205: 0 | AB205: 0 | AC205: 0 | AD205: 0 | AE205: 0 | AF205: 0 | AG205: =HLOOKUP($AG$83,anticipado,119,0) ->  | AI205: 0 | AJ205: 118 | AK205: 0 | AL205: 0 | AM205: 0 | AN205: 1000000 | AQ205: 118 | AR205: 0 | AS205: 8393.773199 | AT205: 8393.773199 | AU205: 9534.7625
A206: 11 | B206: 0 | C206: 0 | D206: 0 | E206: 0 | F206: 0 | G206: 0 | H206: =IF(N205<0.01,0,IF(Adm!$S$4=Adm!$S$8,0,N205*Adm!$V$4)) -> 0 | I206: =IF(N205<0.01,0,IF(Adm!$S$5=Adm!$S$8,0,Adm!$AA$11*Adm!$X$4)) -> 0 | J206: =IF(N205<0.01,0,Adm!$Q$4*1.16) -> 0 | K206: =IF(N205<0.01,0,IF(Adm!$O$4>0,E206*Adm!$O$4,0)) -> 0 | L206: 0 | M206: =IF(Adm!$G$4="si",MIN(N205+E206+H206+I206+J206-L206,Z206),0) -> 0 | N206: 0 | V206: 11 | W206: =IF(V206=1,Cal!$AB$127,0) -> 0 | Y206: 0 | Z206: 0 | AB206: 0 | AC206: 0 | AD206: 0 | AE206: 0 | AF206: 0 | AG206: =HLOOKUP($AG$83,anticipado,120,0) ->  | AI206: 0 | AJ206: 119 | AK206: 0 | AL206: 0 | AM206: 0 | AN206: 1000000 | AQ206: 119 | AR206: 0 | AS206: 8393.773199 | AT206: 8393.773199 | AU206: 1140.989301
A207: 12 | B207: 0 | C207: 0 | D207: 0 | E207: 0 | F207: 0 | G207: 0 | H207: =IF(N206<0.01,0,IF(Adm!$S$4=Adm!$S$8,0,N206*Adm!$V$4)) -> 0 | I207: =IF(N206<0.01,0,IF(Adm!$S$5=Adm!$S$8,0,Adm!$AA$11*Adm!$X$4)) -> 0 | J207: =IF(N206<0.01,0,Adm!$Q$4*1.16) -> 0 | K207: =IF(N206<0.01,0,IF(Adm!$O$4>0,E207*Adm!$O$4,0)) -> 0 | L207: 0 | M207: =IF(Adm!$G$4="si",MIN(N206+E207+H207+I207+J207-L207,Z207),0) -> 0 | N207: 0 | V207: 12 | W207: =IF(V207=1,Cal!$AB$127,0) -> 0 | Y207: 0 | Z207: 0 | AB207: 0 | AC207: 0 | AD207: 0 | AE207: 0 | AF207: 0 | AG207: =HLOOKUP($AG$83,anticipado,121,0) ->  | AI207: 0 | AJ207: 120 | AK207: 0 | AL207: 0 | AM207: 0 | AN207: 1000000 | AQ207: 120 | AR207: 0 | AS207: 1140.989301 | AT207: 1140.989301 | AU207: 0
A208: 1 | B208: 0 | C208: 0 | D208: 0 | E208: 0 | F208: 0 | G208: 0 | H208: =IF(N207<0.01,0,IF(Adm!$S$4=Adm!$S$8,0,N207*Adm!$V$4)) -> 0 | I208: =IF(N207<0.01,0,IF(Adm!$S$5=Adm!$S$8,0,Adm!$AA$11*Adm!$X$4)) -> 0 | J208: =IF(N207<0.01,0,Adm!$Q$4*1.16) -> 0 | K208: =IF(N207<0.01,0,IF(Adm!$O$4>0,E208*Adm!$O$4,0)) -> 0 | L208: 0 | M208: =IF(Adm!$G$4="si",MIN(N207+E208+H208+I208+J208-L208,Z208),0) -> 0 | N208: 0 | V208: 1 | W208: =IF(V208=1,Cal!$AB$127,0) -> 0 | Y208: 0 | Z208: 0 | AB208: 0 | AC208: 0 | AD208: 0 | AE208: 0 | AF208: 0 | AG208: =HLOOKUP($AG$83,anticipado,122,0) ->  | AI208: 0 | AJ208: 121 | AK208: 0 | AL208: 0 | AM208: =MIN(AN207+AK208,AM207*(1+$AK$83)) -> 0 | AN208: 1000000 | AR208: 0 | AS208: 0 | AT208: =MIN(AU207+AR208,AT207*(1+$AR$83)) -> 0 | AU208: 0
A209: 2 | B209: 0 | C209: 0 | D209: 0 | E209: 0 | F209: 0 | G209: 0 | H209: =IF(N208<0.01,0,IF(Adm!$S$4=Adm!$S$8,0,N208*Adm!$V$4)) -> 0 | I209: =IF(N208<0.01,0,IF(Adm!$S$5=Adm!$S$8,0,Adm!$AA$11*Adm!$X$4)) -> 0 | J209: =IF(N208<0.01,0,Adm!$Q$4*1.16) -> 0 | K209: =IF(N208<0.01,0,IF(Adm!$O$4>0,E209*Adm!$O$4,0)) -> 0 | L209: 0 | M209: =IF(Adm!$G$4="si",MIN(N208+E209+H209+I209+J209-L209,Z209),0) -> 0 | N209: 0 | V209: 2 | W209: =IF(V209=1,Cal!$AB$127,0) -> 0 | Y209: 0 | Z209: 0 | AB209: 0 | AC209: 0 | AD209: 0 | AE209: 0 | AF209: 0 | AG209: =HLOOKUP($AG$83,anticipado,123,0) ->  | AI209: 0 | AJ209: 122 | AK209: 0 | AL209: 0 | AM209: 0 | AN209: 1000000 | AR209: 0 | AS209: 0 | AT209: =MIN(AU208+AR209,AT208) -> 0 | AU209: 0
A210: 3 | B210: 0 | C210: 0 | D210: 0 | E210: 0 | F210: 0 | G210: 0 | H210: =IF(N209<0.01,0,IF(Adm!$S$4=Adm!$S$8,0,N209*Adm!$V$4)) -> 0 | I210: =IF(N209<0.01,0,IF(Adm!$S$5=Adm!$S$8,0,Adm!$AA$11*Adm!$X$4)) -> 0 | J210: =IF(N209<0.01,0,Adm!$Q$4*1.16) -> 0 | K210: =IF(N209<0.01,0,IF(Adm!$O$4>0,E210*Adm!$O$4,0)) -> 0 | L210: 0 | M210: =IF(Adm!$G$4="si",MIN(N209+E210+H210+I210+J210-L210,Z210),0) -> 0 | N210: 0 | V210: 3 | W210: =IF(V210=1,Cal!$AB$127,0) -> 0 | Y210: 0 | Z210: 0 | AB210: 0 | AC210: 0 | AD210: 0 | AE210: 0 | AF210: 0 | AG210: =HLOOKUP($AG$83,anticipado,124,0) ->  | AI210: 0 | AJ210: 123 | AK210: 0 | AL210: 0 | AM210: 0 | AN210: 1000000 | AR210: 0 | AS210: 0 | AT210: 0 | AU210: 0
A211: 4 | B211: 0 | C211: 0 | D211: 0 | E211: 0 | F211: 0 | G211: 0 | H211: =IF(N210<0.01,0,IF(Adm!$S$4=Adm!$S$8,0,N210*Adm!$V$4)) -> 0 | I211: =IF(N210<0.01,0,IF(Adm!$S$5=Adm!$S$8,0,Adm!$AA$11*Adm!$X$4)) -> 0 | J211: =IF(N210<0.01,0,Adm!$Q$4*1.16) -> 0 | K211: =IF(N210<0.01,0,IF(Adm!$O$4>0,E211*Adm!$O$4,0)) -> 0 | L211: 0 | M211: =IF(Adm!$G$4="si",MIN(N210+E211+H211+I211+J211-L211,Z211),0) -> 0 | N211: 0 | V211: 4 | W211: =IF(V211=1,Cal!$AB$127,0) -> 0 | Y211: 0 | Z211: 0 | AB211: 0 | AC211: 0 | AD211: 0 | AE211: 0 | AF211: 0 | AG211: =HLOOKUP($AG$83,anticipado,125,0) ->  | AI211: 0 | AJ211: 124 | AK211: 0 | AL211: 0 | AM211: 0 | AN211: 1000000 | AR211: 0 | AS211: 0 | AT211: 0 | AU211: 0
A212: 5 | B212: 0 | C212: 0 | D212: 0 | E212: 0 | F212: 0 | G212: 0 | H212: =IF(N211<0.01,0,IF(Adm!$S$4=Adm!$S$8,0,N211*Adm!$V$4)) -> 0 | I212: =IF(N211<0.01,0,IF(Adm!$S$5=Adm!$S$8,0,Adm!$AA$11*Adm!$X$4)) -> 0 | J212: =IF(N211<0.01,0,Adm!$Q$4*1.16) -> 0 | K212: =IF(N211<0.01,0,IF(Adm!$O$4>0,E212*Adm!$O$4,0)) -> 0 | L212: 0 | M212: =IF(Adm!$G$4="si",MIN(N211+E212+H212+I212+J212-L212,Z212),0) -> 0 | N212: 0 | V212: 5 | W212: =IF(V212=1,Cal!$AB$127,0) -> 0 | Y212: 0 | Z212: 0 | AB212: 0 | AC212: 0 | AD212: 0 | AE212: 0 | AF212: 0 | AG212: =HLOOKUP($AG$83,anticipado,125,0) ->  | AI212: 0 | AJ212: 125 | AK212: 0 | AL212: 0 | AM212: 0 | AN212: 1000000 | AR212: 0 | AS212: 0 | AT212: 0 | AU212: 0
A213: 6 | B213: 0 | C213: 0 | D213: 0 | E213: 0 | F213: 0 | G213: 0 | H213: =IF(N212<0.01,0,IF(Adm!$S$4=Adm!$S$8,0,N212*Adm!$V$4)) -> 0 | I213: =IF(N212<0.01,0,IF(Adm!$S$5=Adm!$S$8,0,Adm!$AA$11*Adm!$X$4)) -> 0 | J213: =IF(N212<0.01,0,Adm!$Q$4*1.16) -> 0 | K213: =IF(N212<0.01,0,IF(Adm!$O$4>0,E213*Adm!$O$4,0)) -> 0 | L213: 0 | M213: =IF(Adm!$G$4="si",MIN(N212+E213+H213+I213+J213-L213,Z213),0) -> 0 | N213: 0 | V213: 6 | W213: =IF(V213=1,Cal!$AB$127,0) -> 0 | Y213: 0 | Z213: 0 | AB213: 0 | AC213: 0 | AD213: 0 | AE213: 0 | AF213: 0 | AG213: =HLOOKUP($AG$83,anticipado,127,0) ->  | AI213: 0 | AJ213: 126 | AK213: 0 | AL213: 0 | AM213: 0 | AN213: 1000000 | AR213: 0 | AS213: 0 | AT213: 0 | AU213: 0
A214: 7 | B214: 0 | C214: 0 | D214: 0 | E214: 0 | F214: 0 | G214: 0 | H214: =IF(N213<0.01,0,IF(Adm!$S$4=Adm!$S$8,0,N213*Adm!$V$4)) -> 0 | I214: =IF(N213<0.01,0,IF(Adm!$S$5=Adm!$S$8,0,Adm!$AA$11*Adm!$X$4)) -> 0 | J214: =IF(N213<0.01,0,Adm!$Q$4*1.16) -> 0 | K214: =IF(N213<0.01,0,IF(Adm!$O$4>0,E214*Adm!$O$4,0)) -> 0 | L214: 0 | M214: =IF(Adm!$G$4="si",MIN(N213+E214+H214+I214+J214-L214,Z214),0) -> 0 | N214: 0 | V214: 7 | W214: =IF(V214=1,Cal!$AB$127,0) -> 0 | Y214: 0 | Z214: 0 | AB214: 0 | AC214: 0 | AD214: 0 | AE214: 0 | AF214: 0 | AG214: =HLOOKUP($AG$83,anticipado,128,0) ->  | AI214: 0 | AJ214: 127 | AK214: 0 | AL214: 0 | AM214: 0 | AN214: 1000000 | AR214: 0 | AS214: 0 | AT214: 0 | AU214: 0
A215: 8 | B215: 0 | C215: 0 | D215: 0 | E215: 0 | F215: 0 | G215: 0 | H215: =IF(N214<0.01,0,IF(Adm!$S$4=Adm!$S$8,0,N214*Adm!$V$4)) -> 0 | I215: =IF(N214<0.01,0,IF(Adm!$S$5=Adm!$S$8,0,Adm!$AA$11*Adm!$X$4)) -> 0 | J215: =IF(N214<0.01,0,Adm!$Q$4*1.16) -> 0 | K215: =IF(N214<0.01,0,IF(Adm!$O$4>0,E215*Adm!$O$4,0)) -> 0 | L215: 0 | M215: =IF(Adm!$G$4="si",MIN(N214+E215+H215+I215+J215-L215,Z215),0) -> 0 | N215: 0 | V215: 8 | W215: =IF(V215=1,Cal!$AB$127,0) -> 0 | Y215: 0 | Z215: 0 | AB215: 0 | AC215: 0 | AD215: 0 | AE215: 0 | AF215: 0 | AG215: =HLOOKUP($AG$83,anticipado,129,0) ->  | AI215: 0 | AJ215: 128 | AK215: 0 | AL215: 0 | AM215: 0 | AN215: 1000000 | AR215: 0 | AS215: 0 | AT215: 0 | AU215: 0
A216: =IF(A215=12,1,A215+1) -> 9 | B216: 0 | C216: 0 | D216: 0 | E216: 0 | F216: 0 | G216: 0 | H216: =IF(N215<0.01,0,IF(Adm!$S$4=Adm!$S$8,0,N215*Adm!$V$4)) -> 0 | I216: =IF(N215<0.01,0,IF(Adm!$S$5=Adm!$S$8,0,Adm!$AA$11*Adm!$X$4)) -> 0 | J216: =IF(N215<0.01,0,Adm!$Q$4*1.16) -> 0 | K216: =IF(N215<0.01,0,IF(Adm!$O$4>0,E216*Adm!$O$4,0)) -> 0 | L216: 0 | M216: =IF(Adm!$G$4="si",MIN(N215+E216+H216+I216+J216-L216,Z216),0) -> 0 | N216: 0 | V216: 9 | W216: =IF(V216=1,Cal!$AB$127,0) -> 0 | Y216: 0 | Z216: 0 | AB216: 0 | AC216: 0 | AD216: 0 | AE216: 0 | AF216: =IF(AND($AD$82=2,O215<0.01),0,IF($AD$82=2,(N215*AG216)+E216,0)) -> 0 | AG216: =HLOOKUP($AG$83,anticipado,130,0) ->  | AI216: 0 | AJ216: 129 | AK216: 0 | AL216: 0 | AM216: 0 | AN216: 1000000 | AR216: 0 | AS216: =AT216-AR216 -> 0 | AT216: 0 | AU216: 0
A217: 10 | B217: =IF(N216>0,B216-1,0) -> 0 | C217: 0 | D217: 0 | E217: =IF(N216<0.01,0,N216*D217*30.4166/360) -> 0 | F217: 0 | G217: 0 | H217: =IF(N216<0.01,0,IF(Adm!$S$4=Adm!$S$8,0,N216*Adm!$V$4)) -> 0 | I217: =IF(N216<0.01,0,IF(Adm!$S$5=Adm!$S$8,0,Adm!$AA$11*Adm!$X$4)) -> 0 | J217: =IF(N216<0.01,0,Adm!$Q$4*1.16) -> 0 | K217: =IF(N216<0.01,0,IF(Adm!$O$4>0,E217*Adm!$O$4,0)) -> 0 | L217: =G217+H217+I217+J217+K217 -> 0 | M217: =IF(Adm!$G$4="si",MIN(N216+E217+H217+I217+J217-L217,Z217),0) -> 0 | N217: =IF(N216<0.001,0,+N216-F217-M217-O217) -> 0 | V217: =IF(V216=12,1,V216+1) -> 10 | W217: =IF(V217=1,Cal!$AB$127,0) -> 0 | Y217: 0 | Z217: =IF(MOD(A217,2)=0,Y217*0.05*2,0) -> 0 | AB217: 0 | AC217: 0 | AD217: 0 | AE217: 0 | AF217: 0 | AG217: =HLOOKUP($AG$83,anticipado,131,0) ->  | AI217: =AL217/AN216 -> 0 | AJ217: 130 | AK217: =AN216*$AK$81*30.4166/360 -> 0 | AL217: 0 | AM217: 0 | AN217: =IF(AN216<0.001,0,AN216-AL217-AO217) -> 1000000 | AR217: =AU216*$AR$81*30.4166/360 -> 0 | AS217: 0 | AT217: 0 | AU217: 0
A218: 11 | B218: 0 | C218: =IF(N217<0.01,0,C217+1) -> 0 | D218: =IF(N217<0.01,0,D217) -> 0 | E218: 0 | F218: 0 | G218: 0 | H218: =IF(N217<0.01,0,IF(Adm!$S$4=Adm!$S$8,0,N217*Adm!$V$4)) -> 0 | I218: =IF(N217<0.01,0,IF(Adm!$S$5=Adm!$S$8,0,Adm!$AA$11*Adm!$X$4)) -> 0 | J218: =IF(N217<0.01,0,Adm!$Q$4*1.16) -> 0 | K218: =IF(N217<0.01,0,IF(Adm!$O$4>0,E218*Adm!$O$4,0)) -> 0 | L218: 0 | M218: =IF(Adm!$G$4="si",MIN(N217+E218+H218+I218+J218-L218,Z218),0) -> 0 | N218: 0 | V218: 11 | W218: =IF(V218=1,Cal!$AB$127,0) -> 0 | Y218: =Y217 -> 0 | Z218: 0 | AB218: =IF(AC218>1,AC218,IF(AE218>1,AE218,0)) -> 0 | AC218: =IF(AND($AD$82=1,O217>0.1),AD218,0) -> 0 | AD218: 0 | AE218: =IF(AND(AF218>0.01,$AB$82=2),AF218,0) -> 0 | AF218: 0 | AG218: =HLOOKUP($AG$83,anticipado,132,0) ->  | AI218: 0 | AJ218: 131 | AK218: 0 | AL218: 0 | AM218: =MIN(AN217+AK218,AM217) -> 0 | AN218: 1000000 | AR218: 0 | AS218: 0 | AT218: 0 | AU218: =IF(AU217<0.001,0,AU217-AS218) -> 0
A219: 12 | B219: 0 | C219: 0 | D219: 0 | E219: 0 | F219: 0 | G219: 0 | H219: =IF(N218<0.01,0,IF(Adm!$S$4=Adm!$S$8,0,N218*Adm!$V$4)) -> 0 | I219: =IF(N218<0.01,0,IF(Adm!$S$5=Adm!$S$8,0,Adm!$AA$11*Adm!$X$4)) -> 0 | J219: =IF(N218<0.01,0,Adm!$Q$4*1.16) -> 0 | K219: =IF(N218<0.01,0,IF(Adm!$O$4>0,E219*Adm!$O$4,0)) -> 0 | L219: 0 | M219: =IF(Adm!$G$4="si",MIN(N218+E219+H219+I219+J219-L219,Z219),0) -> 0 | N219: 0 | V219: 12 | W219: =IF(V219=1,Cal!$AB$127,0) -> 0 | Y219: 0 | Z219: 0 | AB219: 0 | AC219: 0 | AD219: =IF(AND($AD$82=1,$AB$82=2),PMT((($D$88/360)*(365/12)),B218,-N218),0) -> 0 | AE219: 0 | AF219: 0 | AG219: =HLOOKUP($AG$83,anticipado,133,0) ->  | AI219: 0 | AJ219: =IF(AN218<=0,"",AJ218+1) -> 132 | AK219: 0 | AL219: =AM219-AK219 -> 0 | AM219: 0 | AN219: 1000000 | AQ219: =IF(AU218<=0,"",AQ218+1) ->  | AR219: 0 | AS219: 0 | AT219: 0 | AU219: 0
A220: 1 | B220: 0 | C220: 0 | D220: 0 | E220: 0 | F220: 0 | G220: 0 | H220: =IF(N219<0.01,0,IF(Adm!$S$4=Adm!$S$8,0,N219*Adm!$V$4)) -> 0 | I220: =IF(N219<0.01,0,IF(Adm!$S$5=Adm!$S$8,0,Adm!$AA$11*Adm!$X$4)) -> 0 | J220: =IF(N219<0.01,0,Adm!$Q$4*1.16) -> 0 | K220: =IF(N219<0.01,0,IF(Adm!$O$4>0,E220*Adm!$O$4,0)) -> 0 | L220: 0 | M220: =IF(Adm!$G$4="si",MIN(N219+E220+H220+I220+J220-L220,Z220),0) -> 0 | N220: 0 | V220: 1 | W220: =IF(V220=1,Cal!$AB$127,0) -> 0 | Y220: 0 | Z220: 0 | AB220: 0 | AC220: 0 | AD220: 0 | AE220: 0 | AF220: 0 | AG220: =HLOOKUP($AG$83,anticipado,134,0) ->  | AI220: 0 | AJ220: 133 | AK220: 0 | AL220: 0 | AM220: =MIN(AN219+AK220,AM219*(1+$AK$83)) -> 0 | AN220: 1000000 | AR220: 0 | AS220: 0 | AT220: =MIN(AU219+AR220,AT219*(1+$AR$83)) -> 0 | AU220: 0
A221: 2 | B221: 0 | C221: 0 | D221: 0 | E221: 0 | F221: 0 | G221: 0 | H221: =IF(N220<0.01,0,IF(Adm!$S$4=Adm!$S$8,0,N220*Adm!$V$4)) -> 0 | I221: =IF(N220<0.01,0,IF(Adm!$S$5=Adm!$S$8,0,Adm!$AA$11*Adm!$X$4)) -> 0 | J221: =IF(N220<0.01,0,Adm!$Q$4*1.16) -> 0 | K221: =IF(N220<0.01,0,IF(Adm!$O$4>0,E221*Adm!$O$4,0)) -> 0 | L221: 0 | M221: =IF(Adm!$G$4="si",MIN(N220+E221+H221+I221+J221-L221,Z221),0) -> 0 | N221: 0 | V221: 2 | W221: =IF(V221=1,Cal!$AB$127,0) -> 0 | Y221: 0 | Z221: 0 | AB221: 0 | AC221: 0 | AD221: 0 | AE221: 0 | AF221: 0 | AG221: =HLOOKUP($AG$83,anticipado,135,0) ->  | AI221: 0 | AJ221: 134 | AK221: 0 | AL221: 0 | AM221: 0 | AN221: 1000000 | AR221: 0 | AS221: 0 | AT221: =MIN(AU220+AR221,AT220) -> 0 | AU221: 0
... 182 more rows

Sheet Liquidez
F1: SIMULADOR CREDITO HIPOTECARIO HIPOTECA SANTANDER | K1: =TODAY() -> 2025-12-15
L2: Hoja 2/2
C3: 1. Datos del Solicitante
C5: Nombre del cliente | E5: =Captura!F6 -> 0
Z6: Plazo real
C7: Atendido por | E7: =Captura!F8 -> 0 | J7: Teléfono | K7: =Captura!N8 -> 0 | Z7: =MAXA(C18:C257) -> 0
Z8: =Z7/12 -> 0
AC9: Reducción Plazo
AC10: Reducción cuota | AE10: 1=pagos fijos, 2= pagos crecientes
J11: Su crédito se amortizará en | K11: =Z7 -> 0 | L11: =IF(K11>0,"meses","") -> 
AC12: =IF(L14=AC9,1,IF(L14=AC10,2,0)) -> 0 | AD12: Esquema | AE12: =IF(Adm!D4="Fijos",1,2) -> 2 | AH12: Busqueda
C13: CAT Promedio | D13: =CAT!AB20 ->  | E13: Sin IVA Informativo | AH13: =IF(Adm!D4="Crecientes",1,0) -> 0
C14: =CONCATENATE("Calculado al"," ",Captura!O2," ",".Para fines informativos y de comparación.") -> Calculado al 15 dic 2025 .Para fines informativos y de comparación. | K14: Efecto en Pagos anticipados
C15: Tabla liquidez | AC15: Pagos Anticipados
A16: Mes | B16: Plazo remanente | C16: Periodo | D16: Tasa de Interés Anual Ordinaria | E16: Intereses | F16: Amortización | G16: Pago de Crédito | H16: =IF(Captura!H86>"","Seguro Vida","") ->  | I16: =IF(OR(Adm!$AB$4=Adm!$AB$17,Adm!$AB$4=Adm!$AB$18),"","IVA de intereses") -> IVA de intereses | J16: Pago Total | K16: Saldo al Final del Periodo | L16: Pagos Anticipados Selecciona efecto y captura Monto | W16: Mes | X16: Creci.pago | AC16: Nueva Cuota | AD16: Congelados | AE16: Cuota Congelados | AF16: Cuota Programados | AG16: Capital Programados | AH16: Factor Programados
A17: =MONTH(K1) -> 12 | B17: =Adm!H4 -> 0 | C17: 0 | K17: =IF(Adm!B4=0,0,IF(Captura!C39<>"",0,IF(Captura!G76="",0,IF(OR(Adm!B4=Adm!A116,Adm!B4=Adm!A117),Cal!AC119,0)))) -> 0 | W17: 12 | X17: P. Programados | AH17: FINAL | AJ17: 1
A18: =IF(A17=12,1,A17+1) -> 1 | B18: =IF(K17<0.01,0,B17-1) -> 0 | C18: =IF(K17<0.01,0,C17+1) -> 0 | D18: =IF(K17<0.01,0,Adm!AE6) -> 0 | E18: =IF(K17<0.01,0,K17*D18*30.4166/360) -> 0 | F18: =IF(K17<0.01,0,G18-E18) -> 0 | G18: =IF(K17<0.01,0,IF(Adm!D4=Adm!D7,K17*Adm!AF4/1000,IF(OR(Adm!B4=Adm!A116,Adm!B4=Adm!A117),PMT(((Adm!AE6/360)*(365/12)),Cal!AC109,-K17)))) -> 0 | H18: =IF(K17<0.01,0,IF(Adm!$S$4=Adm!$S$8,0,K17*Adm!$V$4)) -> 0 | I18: =IF(K17<0.01,0,IF($I$16<>"",E18*Adm!$O$8,0)) -> 0 | J18: =G18+H18+I18 -> 0 | K18: =IF(K17<0.01,0,K17-F18-L18) -> 0 | W18: =IF(W17=12,1,W17+1) -> 1 | AH18: =HLOOKUP($AH$13,liquidez,2,0) ->  | AJ18: =Captura!AI88 -> 0
A19: 2 | B19: 0 | C19: 0 | D19: =IF(K18<0.01,0,D18) -> 0 | E19: =IF(K18<0.01,0,K18*D19*30.4166/360) -> 0 | F19: 0 | G19: =IF(K18<0.1,0,MIN(K18+E19,IF(AC19>0,AC19,G18*(1+X19)))) -> 0 | H19: =IF(K18<0.01,0,IF(Adm!$S$4=Adm!$S$8,0,K18*Adm!$V$4)) -> 0 | I19: =IF(K18<0.01,0,IF($I$16<>"",E19*Adm!$O$8,0)) -> 0 | J19: 0 | K19: 0 | W19: =IF(W18=12,1,W18+1) -> 2 | X19: =IF(W19=1,Cal!$AC$127,0) -> 0 | AC19: =IF(AD19>1,AD19,IF(AF19>1,AF19,0)) -> 0 | AD19: =IF(AND($AE$12=1,L18>0.1),AE19,0) -> 0 | AE19: =IF(AND($AE$12=1,$AC$12=2),PMT((($D$18/360)*(365/12)),B18,-K18),0) -> 0 | AF19: =IF(AND(AG19>0.01,$AC$12=2),AG19,0) -> 0 | AG19: =IF(AND($AE$12=2,L18<0.01),0,IF($AE$12=2,(K18*AH19)+E19,0)) -> 0 | AH19: =HLOOKUP($AH$13,liquidez,3,0) ->  | AJ19: =Captura!AI89 -> 0
A20: 3 | B20: 0 | C20: 0 | D20: 0 | E20: 0 | F20: 0 | G20: 0 | H20: =IF(K19<0.01,0,IF(Adm!$S$4=Adm!$S$8,0,K19*Adm!$V$4)) -> 0 | I20: =IF(K19<0.01,0,IF($I$16<>"",E20*Adm!$O$8,0)) -> 0 | J20: 0 | K20: 0 | W20: 3 | X20: =IF(W20=1,Cal!$AC$127,0) -> 0 | AC20: =IF(AD20>1,AD20,IF(AF20>1,AF20,0)) -> 0 | AD20: =IF(AND($AE$12=1,L19>0.1),AE20,0) -> 0 | AE20: =IF(AND($AE$12=1,$AC$12=2),PMT((($D$18/360)*(365/12)),B19,-K19),0) -> 0 | AF20: =IF(AND(AG20>0.01,$AC$12=2),AG20,0) -> 0 | AG20: 0 | AH20: =HLOOKUP($AH$13,liquidez,4,0) ->  | AJ20: =Captura!AI90 -> 0
A21: 4 | B21: 0 | C21: 0 | D21: 0 | E21: 0 | F21: 0 | G21: 0 | H21: =IF(K20<0.01,0,IF(Adm!$S$4=Adm!$S$8,0,K20*Adm!$V$4)) -> 0 | I21: =IF(K20<0.01,0,IF($I$16<>"",E21*Adm!$O$8,0)) -> 0 | J21: 0 | K21: 0 | W21: 4 | X21: =IF(W21=1,Cal!$AC$127,0) -> 0 | AC21: =IF(AD21>1,AD21,IF(AF21>1,AF21,0)) -> 0 | AD21: =IF(AND($AE$12=1,L20>0.1),AE21,0) -> 0 | AE21: =IF(AND($AE$12=1,$AC$12=2),PMT((($D$18/360)*(365/12)),B20,-K20),0) -> 0 | AF21: 0 | AG21: 0 | AH21: =HLOOKUP($AH$13,liquidez,5,0) ->  | AJ21: =Captura!AI91 -> 0
A22: 5 | B22: 0 | C22: 0 | D22: 0 | E22: 0 | F22: 0 | G22: 0 | H22: =IF(K21<0.01,0,IF(Adm!$S$4=Adm!$S$8,0,K21*Adm!$V$4)) -> 0 | I22: =IF(K21<0.01,0,IF($I$16<>"",E22*Adm!$O$8,0)) -> 0 | J22: 0 | K22: 0 | W22: 5 | X22: =IF(W22=1,Cal!$AC$127,0) -> 0 | AC22: 0 | AD22: 0 | AE22: 0 | AF22: 0 | AG22: 0 | AH22: =HLOOKUP($AH$13,liquidez,6,0) ->  | AJ22: =Captura!AI92 -> 0
A23: 6 | B23: 0 | C23: 0 | D23: 0 | E23: 0 | F23: 0 | G23: 0 | H23: =IF(K22<0.01,0,IF(Adm!$S$4=Adm!$S$8,0,K22*Adm!$V$4)) -> 0 | I23: =IF(K22<0.01,0,IF($I$16<>"",E23*Adm!$O$8,0)) -> 0 | J23: 0 | K23: 0 | W23: 6 | X23: =IF(W23=1,Cal!$AC$127,0) -> 0 | AC23: 0 | AD23: 0 | AE23: 0 | AF23: 0 | AG23: 0 | AH23: =HLOOKUP($AH$13,liquidez,7,0) ->  | AJ23: =Captura!AI93 -> 0
A24: 7 | B24: 0 | C24: 0 | D24: 0 | E24: 0 | F24: 0 | G24: 0 | H24: =IF(K23<0.01,0,IF(Adm!$S$4=Adm!$S$8,0,K23*Adm!$V$4)) -> 0 | I24: =IF(K23<0.01,0,IF($I$16<>"",E24*Adm!$O$8,0)) -> 0 | J24: 0 | K24: 0 | W24: 7 | X24: =IF(W24=1,Cal!$AC$127,0) -> 0 | AC24: 0 | AD24: 0 | AE24: 0 | AF24: 0 | AG24: 0 | AH24: =HLOOKUP($AH$13,liquidez,8,0) ->  | AJ24: =Captura!AI94 -> 0
A25: 8 | B25: 0 | C25: 0 | D25: 0 | E25: 0 | F25: 0 | G25: 0 | H25: =IF(K24<0.01,0,IF(Adm!$S$4=Adm!$S$8,0,K24*Adm!$V$4)) -> 0 | I25: =IF(K24<0.01,0,IF($I$16<>"",E25*Adm!$O$8,0)) -> 0 | J25: 0 | K25: 0 | W25: 8 | X25: =IF(W25=1,Cal!$AC$127,0) -> 0 | AC25: 0 | AD25: 0 | AE25: 0 | AF25: 0 | AG25: 0 | AH25: =HLOOKUP($AH$13,liquidez,9,0) ->  | AJ25: =Captura!AI95 -> 0
A26: 9 | B26: 0 | C26: 0 | D26: 0 | E26: 0 | F26: 0 | G26: 0 | H26: =IF(K25<0.01,0,IF(Adm!$S$4=Adm!$S$8,0,K25*Adm!$V$4)) -> 0 | I26: =IF(K25<0.01,0,IF($I$16<>"",E26*Adm!$O$8,0)) -> 0 | J26: 0 | K26: 0 | W26: 9 | X26: =IF(W26=1,Cal!$AC$127,0) -> 0 | AC26: 0 | AD26: 0 | AE26: 0 | AF26: 0 | AG26: 0 | AH26: =HLOOKUP($AH$13,liquidez,10,0) ->  | AJ26: =Captura!AI96 -> 0
A27: 10 | B27: 0 | C27: 0 | D27: 0 | E27: 0 | F27: 0 | G27: 0 | H27: =IF(K26<0.01,0,IF(Adm!$S$4=Adm!$S$8,0,K26*Adm!$V$4)) -> 0 | I27: =IF(K26<0.01,0,IF($I$16<>"",E27*Adm!$O$8,0)) -> 0 | J27: 0 | K27: 0 | W27: 10 | X27: =IF(W27=1,Cal!$AC$127,0) -> 0 | AC27: 0 | AD27: 0 | AE27: 0 | AF27: 0 | AG27: 0 | AH27: =HLOOKUP($AH$13,liquidez,11,0) ->  | AJ27: =Captura!AI97 -> 0
A28: 11 | B28: 0 | C28: 0 | D28: 0 | E28: 0 | F28: 0 | G28: 0 | H28: =IF(K27<0.01,0,IF(Adm!$S$4=Adm!$S$8,0,K27*Adm!$V$4)) -> 0 | I28: =IF(K27<0.01,0,IF($I$16<>"",E28*Adm!$O$8,0)) -> 0 | J28: 0 | K28: 0 | W28: 11 | X28: =IF(W28=1,Cal!$AC$127,0) -> 0 | AC28: 0 | AD28: 0 | AE28: 0 | AF28: 0 | AG28: 0 | AH28: =HLOOKUP($AH$13,liquidez,12,0) ->  | AJ28: =Captura!AI98 -> 0
A29: 12 | B29: 0 | C29: 0 | D29: 0 | E29: 0 | F29: 0 | G29: 0 | H29: =IF(K28<0.01,0,IF(Adm!$S$4=Adm!$S$8,0,K28*Adm!$V$4)) -> 0 | I29: =IF(K28<0.01,0,IF($I$16<>"",E29*Adm!$O$8,0)) -> 0 | J29: 0 | K29: 0 | W29: 12 | X29: =IF(W29=1,Cal!$AC$127,0) -> 0 | AC29: 0 | AD29: 0 | AE29: 0 | AF29: 0 | AG29: 0 | AH29: =HLOOKUP($AH$13,liquidez,13,0) ->  | AJ29: =Captura!AI99 -> 0
A30: 1 | B30: 0 | C30: 0 | D30: 0 | E30: 0 | F30: 0 | G30: 0 | H30: =IF(K29<0.01,0,IF(Adm!$S$4=Adm!$S$8,0,K29*Adm!$V$4)) -> 0 | I30: =IF(K29<0.01,0,IF($I$16<>"",E30*Adm!$O$8,0)) -> 0 | J30: 0 | K30: 0 | W30: 1 | X30: =IF(W30=1,Cal!$AC$127,0) -> 0 | AC30: 0 | AD30: 0 | AE30: 0 | AF30: 0 | AG30: 0 | AH30: =HLOOKUP($AH$13,liquidez,14,0) ->  | AJ30: =Captura!AI100 -> 0
A31: 2 | B31: 0 | C31: 0 | D31: 0 | E31: 0 | F31: 0 | G31: 0 | H31: =IF(K30<0.01,0,IF(Adm!$S$4=Adm!$S$8,0,K30*Adm!$V$4)) -> 0 | I31: =IF(K30<0.01,0,IF($I$16<>"",E31*Adm!$O$8,0)) -> 0 | J31: 0 | K31: 0 | W31: 2 | X31: =IF(W31=1,Cal!$AC$127,0) -> 0 | AC31: 0 | AD31: 0 | AE31: 0 | AF31: 0 | AG31: 0 | AH31: =HLOOKUP($AH$13,liquidez,15,0) ->  | AJ31: =Captura!AI101 -> 0
A32: 3 | B32: 0 | C32: 0 | D32: 0 | E32: 0 | F32: 0 | G32: 0 | H32: =IF(K31<0.01,0,IF(Adm!$S$4=Adm!$S$8,0,K31*Adm!$V$4)) -> 0 | I32: =IF(K31<0.01,0,IF($I$16<>"",E32*Adm!$O$8,0)) -> 0 | J32: 0 | K32: 0 | W32: 3 | X32: =IF(W32=1,Cal!$AC$127,0) -> 0 | AC32: 0 | AD32: 0 | AE32: 0 | AF32: 0 | AG32: 0 | AH32: =HLOOKUP($AH$13,liquidez,16,0) ->  | AJ32: =Captura!AI102 -> 0
A33: 4 | B33: 0 | C33: 0 | D33: 0 | E33: 0 | F33: 0 | G33: 0 | H33: =IF(K32<0.01,0,IF(Adm!$S$4=Adm!$S$8,0,K32*Adm!$V$4)) -> 0 | I33: =IF(K32<0.01,0,IF($I$16<>"",E33*Adm!$O$8,0)) -> 0 | J33: 0 | K33: 0 | W33: 4 | X33: =IF(W33=1,Cal!$AC$127,0) -> 0 | AC33: 0 | AD33: 0 | AE33: 0 | AF33: 0 | AG33: 0 | AH33: =HLOOKUP($AH$13,liquidez,17,0) ->  | AJ33: =Captura!AI103 -> 0
A34: 5 | B34: 0 | C34: 0 | D34: 0 | E34: 0 | F34: 0 | G34: 0 | H34: =IF(K33<0.01,0,IF(Adm!$S$4=Adm!$S$8,0,K33*Adm!$V$4)) -> 0 | I34: =IF(K33<0.01,0,IF($I$16<>"",E34*Adm!$O$8,0)) -> 0 | J34: 0 | K34: 0 | W34: 5 | X34: =IF(W34=1,Cal!$AC$127,0) -> 0 | AC34: 0 | AD34: 0 | AE34: 0 | AF34: 0 | AG34: 0 | AH34: =HLOOKUP($AH$13,liquidez,18,0) ->  | AJ34: =Captura!AI104 -> 0
A35: 6 | B35: 0 | C35: 0 | D35: 0 | E35: 0 | F35: 0 | G35: 0 | H35: =IF(K34<0.01,0,IF(Adm!$S$4=Adm!$S$8,0,K34*Adm!$V$4)) -> 0 | I35: =IF(K34<0.01,0,IF($I$16<>"",E35*Adm!$O$8,0)) -> 0 | J35: 0 | K35: 0 | W35: 6 | X35: =IF(W35=1,Cal!$AC$127,0) -> 0 | AC35: 0 | AD35: 0 | AE35: 0 | AF35: 0 | AG35: 0 | AH35: =HLOOKUP($AH$13,liquidez,19,0) ->  | AJ35: =Captura!AI105 -> 0
A36: 7 | B36: 0 | C36: 0 | D36: 0 | E36: 0 | F36: 0 | G36: 0 | H36: =IF(K35<0.01,0,IF(Adm!$S$4=Adm!$S$8,0,K35*Adm!$V$4)) -> 0 | I36: =IF(K35<0.01,0,IF($I$16<>"",E36*Adm!$O$8,0)) -> 0 | J36: 0 | K36: 0 | W36: 7 | X36: =IF(W36=1,Cal!$AC$127,0) -> 0 | AC36: 0 | AD36: 0 | AE36: 0 | AF36: 0 | AG36: 0 | AH36: =HLOOKUP($AH$13,liquidez,20,0) ->  | AJ36: =Captura!AI106 -> 0
A37: 8 | B37: 0 | C37: 0 | D37: 0 | E37: 0 | F37: 0 | G37: 0 | H37: =IF(K36<0.01,0,IF(Adm!$S$4=Adm!$S$8,0,K36*Adm!$V$4)) -> 0 | I37: =IF(K36<0.01,0,IF($I$16<>"",E37*Adm!$O$8,0)) -> 0 | J37: 0 | K37: 0 | W37: 8 | X37: =IF(W37=1,Cal!$AC$127,0) -> 0 | AC37: 0 | AD37: 0 | AE37: 0 | AF37: 0 | AG37: 0 | AH37: =HLOOKUP($AH$13,liquidez,21,0) ->  | AJ37: =Captura!AI107 -> 0
A38: 9 | B38: 0 | C38: 0 | D38: 0 | E38: 0 | F38: 0 | G38: 0 | H38: =IF(K37<0.01,0,IF(Adm!$S$4=Adm!$S$8,0,K37*Adm!$V$4)) -> 0 | I38: =IF(K37<0.01,0,IF($I$16<>"",E38*Adm!$O$8,0)) -> 0 | J38: 0 | K38: 0 | W38: 9 | X38: =IF(W38=1,Cal!$AC$127,0) -> 0 | AC38: 0 | AD38: 0 | AE38: 0 | AF38: 0 | AG38: 0 | AH38: =HLOOKUP($AH$13,liquidez,22,0) ->  | AJ38: =Captura!AI108 -> 0
A39: 10 | B39: 0 | C39: 0 | D39: 0 | E39: 0 | F39: 0 | G39: 0 | H39: =IF(K38<0.01,0,IF(Adm!$S$4=Adm!$S$8,0,K38*Adm!$V$4)) -> 0 | I39: =IF(K38<0.01,0,IF($I$16<>"",E39*Adm!$O$8,0)) -> 0 | J39: 0 | K39: 0 | W39: 10 | X39: =IF(W39=1,Cal!$AC$127,0) -> 0 | AC39: 0 | AD39: 0 | AE39: 0 | AF39: 0 | AG39: 0 | AH39: =HLOOKUP($AH$13,liquidez,23,0) ->  | AJ39: =Captura!AI109 -> 0
A40: 11 | B40: 0 | C40: 0 | D40: 0 | E40: 0 | F40: 0 | G40: 0 | H40: =IF(K39<0.01,0,IF(Adm!$S$4=Adm!$S$8,0,K39*Adm!$V$4)) -> 0 | I40: =IF(K39<0.01,0,IF($I$16<>"",E40*Adm!$O$8,0)) -> 0 | J40: 0 | K40: 0 | W40: 11 | X40: =IF(W40=1,Cal!$AC$127,0) -> 0 | AC40: 0 | AD40: 0 | AE40: 0 | AF40: 0 | AG40: 0 | AH40: =HLOOKUP($AH$13,liquidez,24,0) ->  | AJ40: =Captura!AI110 -> 0
A41: 12 | B41: 0 | C41: 0 | D41: 0 | E41: 0 | F41: 0 | G41: 0 | H41: =IF(K40<0.01,0,IF(Adm!$S$4=Adm!$S$8,0,K40*Adm!$V$4)) -> 0 | I41: =IF(K40<0.01,0,IF($I$16<>"",E41*Adm!$O$8,0)) -> 0 | J41: 0 | K41: 0 | W41: 12 | X41: =IF(W41=1,Cal!$AC$127,0) -> 0 | AC41: 0 | AD41: 0 | AE41: 0 | AF41: 0 | AG41: 0 | AH41: =HLOOKUP($AH$13,liquidez,25,0) ->  | AJ41: =Captura!AI111 -> 0
A42: 1 | B42: 0 | C42: 0 | D42: 0 | E42: 0 | F42: 0 | G42: 0 | H42: =IF(K41<0.01,0,IF(Adm!$S$4=Adm!$S$8,0,K41*Adm!$V$4)) -> 0 | I42: =IF(K41<0.01,0,IF($I$16<>"",E42*Adm!$O$8,0)) -> 0 | J42: 0 | K42: 0 | W42: 1 | X42: =IF(W42=1,Cal!$AC$127,0) -> 0 | AC42: 0 | AD42: 0 | AE42: 0 | AF42: 0 | AG42: 0 | AH42: =HLOOKUP($AH$13,liquidez,26,0) ->  | AJ42: =Captura!AI112 -> 0
A43: 2 | B43: 0 | C43: 0 | D43: 0 | E43: 0 | F43: 0 | G43: 0 | H43: =IF(K42<0.01,0,IF(Adm!$S$4=Adm!$S$8,0,K42*Adm!$V$4)) -> 0 | I43: =IF(K42<0.01,0,IF($I$16<>"",E43*Adm!$O$8,0)) -> 0 | J43: 0 | K43: 0 | W43: 2 | X43: =IF(W43=1,Cal!$AC$127,0) -> 0 | AC43: 0 | AD43: 0 | AE43: 0 | AF43: 0 | AG43: 0 | AH43: =HLOOKUP($AH$13,liquidez,27,0) ->  | AJ43: =Captura!AI113 -> 0
A44: 3 | B44: 0 | C44: 0 | D44: 0 | E44: 0 | F44: 0 | G44: 0 | H44: =IF(K43<0.01,0,IF(Adm!$S$4=Adm!$S$8,0,K43*Adm!$V$4)) -> 0 | I44: =IF(K43<0.01,0,IF($I$16<>"",E44*Adm!$O$8,0)) -> 0 | J44: 0 | K44: 0 | W44: 3 | X44: =IF(W44=1,Cal!$AC$127,0) -> 0 | AC44: 0 | AD44: 0 | AE44: 0 | AF44: 0 | AG44: 0 | AH44: =HLOOKUP($AH$13,liquidez,28,0) ->  | AJ44: =Captura!AI114 -> 0
A45: 4 | B45: 0 | C45: 0 | D45: 0 | E45: 0 | F45: 0 | G45: 0 | H45: =IF(K44<0.01,0,IF(Adm!$S$4=Adm!$S$8,0,K44*Adm!$V$4)) -> 0 | I45: =IF(K44<0.01,0,IF($I$16<>"",E45*Adm!$O$8,0)) -> 0 | J45: 0 | K45: 0 | W45: 4 | X45: =IF(W45=1,Cal!$AC$127,0) -> 0 | AC45: 0 | AD45: 0 | AE45: 0 | AF45: 0 | AG45: 0 | AH45: =HLOOKUP($AH$13,liquidez,29,0) ->  | AJ45: =Captura!AI115 -> 0
A46: 5 | B46: 0 | C46: 0 | D46: 0 | E46: 0 | F46: 0 | G46: 0 | H46: =IF(K45<0.01,0,IF(Adm!$S$4=Adm!$S$8,0,K45*Adm!$V$4)) -> 0 | I46: =IF(K45<0.01,0,IF($I$16<>"",E46*Adm!$O$8,0)) -> 0 | J46: 0 | K46: 0 | W46: 5 | X46: =IF(W46=1,Cal!$AC$127,0) -> 0 | AC46: 0 | AD46: 0 | AE46: 0 | AF46: 0 | AG46: 0 | AH46: =HLOOKUP($AH$13,liquidez,30,0) ->  | AJ46: =Captura!AI116 -> 0
A47: 6 | B47: 0 | C47: 0 | D47: 0 | E47: 0 | F47: 0 | G47: 0 | H47: =IF(K46<0.01,0,IF(Adm!$S$4=Adm!$S$8,0,K46*Adm!$V$4)) -> 0 | I47: =IF(K46<0.01,0,IF($I$16<>"",E47*Adm!$O$8,0)) -> 0 | J47: 0 | K47: 0 | W47: 6 | X47: =IF(W47=1,Cal!$AC$127,0) -> 0 | AC47: 0 | AD47: 0 | AE47: 0 | AF47: 0 | AG47: 0 | AH47: =HLOOKUP($AH$13,liquidez,31,0) ->  | AJ47: =Captura!AI117 -> 0
A48: 7 | B48: 0 | C48: 0 | D48: 0 | E48: 0 | F48: 0 | G48: 0 | H48: =IF(K47<0.01,0,IF(Adm!$S$4=Adm!$S$8,0,K47*Adm!$V$4)) -> 0 | I48: =IF(K47<0.01,0,IF($I$16<>"",E48*Adm!$O$8,0)) -> 0 | J48: 0 | K48: 0 | W48: 7 | X48: =IF(W48=1,Cal!$AC$127,0) -> 0 | AC48: 0 | AD48: 0 | AE48: 0 | AF48: 0 | AG48: 0 | AH48: =HLOOKUP($AH$13,liquidez,32,0) ->  | AJ48: =Captura!AI118 -> 0
A49: 8 | B49: 0 | C49: 0 | D49: 0 | E49: 0 | F49: 0 | G49: 0 | H49: =IF(K48<0.01,0,IF(Adm!$S$4=Adm!$S$8,0,K48*Adm!$V$4)) -> 0 | I49: =IF(K48<0.01,0,IF($I$16<>"",E49*Adm!$O$8,0)) -> 0 | J49: 0 | K49: 0 | W49: 8 | X49: =IF(W49=1,Cal!$AC$127,0) -> 0 | AC49: 0 | AD49: 0 | AE49: 0 | AF49: 0 | AG49: 0 | AH49: =HLOOKUP($AH$13,liquidez,33,0) ->  | AJ49: =Captura!AI119 -> 0
A50: 9 | B50: 0 | C50: 0 | D50: 0 | E50: 0 | F50: 0 | G50: 0 | H50: =IF(K49<0.01,0,IF(Adm!$S$4=Adm!$S$8,0,K49*Adm!$V$4)) -> 0 | I50: =IF(K49<0.01,0,IF($I$16<>"",E50*Adm!$O$8,0)) -> 0 | J50: 0 | K50: 0 | W50: 9 | X50: =IF(W50=1,Cal!$AC$127,0) -> 0 | AC50: 0 | AD50: 0 | AE50: 0 | AF50: 0 | AG50: 0 | AH50: =HLOOKUP($AH$13,liquidez,34,0) ->  | AJ50: =Captura!AI120 -> 0
A51: 10 | B51: 0 | C51: 0 | D51: 0 | E51: 0 | F51: 0 | G51: 0 | H51: =IF(K50<0.01,0,IF(Adm!$S$4=Adm!$S$8,0,K50*Adm!$V$4)) -> 0 | I51: =IF(K50<0.01,0,IF($I$16<>"",E51*Adm!$O$8,0)) -> 0 | J51: 0 | K51: 0 | W51: 10 | X51: =IF(W51=1,Cal!$AC$127,0) -> 0 | AC51: 0 | AD51: 0 | AE51: 0 | AF51: 0 | AG51: 0 | AH51: =HLOOKUP($AH$13,liquidez,35,0) ->  | AJ51: =Captura!AI121 -> 0
A52: 11 | B52: 0 | C52: 0 | D52: 0 | E52: 0 | F52: 0 | G52: 0 | H52: =IF(K51<0.01,0,IF(Adm!$S$4=Adm!$S$8,0,K51*Adm!$V$4)) -> 0 | I52: =IF(K51<0.01,0,IF($I$16<>"",E52*Adm!$O$8,0)) -> 0 | J52: 0 | K52: 0 | W52: 11 | X52: =IF(W52=1,Cal!$AC$127,0) -> 0 | AC52: 0 | AD52: 0 | AE52: 0 | AF52: 0 | AG52: 0 | AH52: =HLOOKUP($AH$13,liquidez,36,0) ->  | AJ52: =Captura!AI122 -> 0
A53: 12 | B53: 0 | C53: 0 | D53: 0 | E53: 0 | F53: 0 | G53: 0 | H53: =IF(K52<0.01,0,IF(Adm!$S$4=Adm!$S$8,0,K52*Adm!$V$4)) -> 0 | I53: =IF(K52<0.01,0,IF($I$16<>"",E53*Adm!$O$8,0)) -> 0 | J53: 0 | K53: 0 | W53: 12 | X53: =IF(W53=1,Cal!$AC$127,0) -> 0 | AC53: 0 | AD53: 0 | AE53: 0 | AF53: 0 | AG53: 0 | AH53: =HLOOKUP($AH$13,liquidez,37,0) ->  | AJ53: =Captura!AI123 -> 0
A54: 1 | B54: 0 | C54: 0 | D54: 0 | E54: 0 | F54: 0 | G54: 0 | H54: =IF(K53<0.01,0,IF(Adm!$S$4=Adm!$S$8,0,K53*Adm!$V$4)) -> 0 | I54: =IF(K53<0.01,0,IF($I$16<>"",E54*Adm!$O$8,0)) -> 0 | J54: 0 | K54: 0 | W54: 1 | X54: =IF(W54=1,Cal!$AC$127,0) -> 0 | AC54: 0 | AD54: 0 | AE54: 0 | AF54: 0 | AG54: 0 | AH54: =HLOOKUP($AH$13,liquidez,38,0) ->  | AJ54: =Captura!AI124 -> 0
A55: 2 | B55: 0 | C55: 0 | D55: 0 | E55: 0 | F55: 0 | G55: 0 | H55: =IF(K54<0.01,0,IF(Adm!$S$4=Adm!$S$8,0,K54*Adm!$V$4)) -> 0 | I55: =IF(K54<0.01,0,IF($I$16<>"",E55*Adm!$O$8,0)) -> 0 | J55: 0 | K55: 0 | W55: 2 | X55: =IF(W55=1,Cal!$AC$127,0) -> 0 | AC55: 0 | AD55: 0 | AE55: 0 | AF55: 0 | AG55: 0 | AH55: =HLOOKUP($AH$13,liquidez,39,0) ->  | AJ55: =Captura!AI125 -> 0
A56: 3 | B56: 0 | C56: 0 | D56: 0 | E56: 0 | F56: 0 | G56: 0 | H56: =IF(K55<0.01,0,IF(Adm!$S$4=Adm!$S$8,0,K55*Adm!$V$4)) -> 0 | I56: =IF(K55<0.01,0,IF($I$16<>"",E56*Adm!$O$8,0)) -> 0 | J56: 0 | K56: 0 | W56: 3 | X56: =IF(W56=1,Cal!$AC$127,0) -> 0 | AC56: 0 | AD56: 0 | AE56: 0 | AF56: 0 | AG56: 0 | AH56: =HLOOKUP($AH$13,liquidez,40,0) ->  | AJ56: =Captura!AI126 -> 0
A57: 4 | B57: 0 | C57: 0 | D57: 0 | E57: 0 | F57: 0 | G57: 0 | H57: =IF(K56<0.01,0,IF(Adm!$S$4=Adm!$S$8,0,K56*Adm!$V$4)) -> 0 | I57: =IF(K56<0.01,0,IF($I$16<>"",E57*Adm!$O$8,0)) -> 0 | J57: 0 | K57: 0 | W57: 4 | X57: =IF(W57=1,Cal!$AC$127,0) -> 0 | AC57: 0 | AD57: 0 | AE57: 0 | AF57: 0 | AG57: 0 | AH57: =HLOOKUP($AH$13,liquidez,41,0) ->  | AJ57: =Captura!AI127 -> 0
A58: 5 | B58: 0 | C58: 0 | D58: 0 | E58: 0 | F58: 0 | G58: 0 | H58: =IF(K57<0.01,0,IF(Adm!$S$4=Adm!$S$8,0,K57*Adm!$V$4)) -> 0 | I58: =IF(K57<0.01,0,IF($I$16<>"",E58*Adm!$O$8,0)) -> 0 | J58: 0 | K58: 0 | W58: 5 | X58: =IF(W58=1,Cal!$AC$127,0) -> 0 | AC58: 0 | AD58: 0 | AE58: 0 | AF58: 0 | AG58: 0 | AH58: =HLOOKUP($AH$13,liquidez,42,0) ->  | AJ58: =Captura!AI128 -> 0
A59: 6 | B59: 0 | C59: 0 | D59: 0 | E59: 0 | F59: 0 | G59: 0 | H59: =IF(K58<0.01,0,IF(Adm!$S$4=Adm!$S$8,0,K58*Adm!$V$4)) -> 0 | I59: =IF(K58<0.01,0,IF($I$16<>"",E59*Adm!$O$8,0)) -> 0 | J59: 0 | K59: 0 | W59: 6 | X59: =IF(W59=1,Cal!$AC$127,0) -> 0 | AC59: 0 | AD59: 0 | AE59: 0 | AF59: 0 | AG59: 0 | AH59: =HLOOKUP($AH$13,liquidez,43,0) ->  | AJ59: =Captura!AI129 -> 0
A60: 7 | B60: 0 | C60: 0 | D60: 0 | E60: 0 | F60: 0 | G60: 0 | H60: =IF(K59<0.01,0,IF(Adm!$S$4=Adm!$S$8,0,K59*Adm!$V$4)) -> 0 | I60: =IF(K59<0.01,0,IF($I$16<>"",E60*Adm!$O$8,0)) -> 0 | J60: 0 | K60: 0 | W60: 7 | X60: =IF(W60=1,Cal!$AC$127,0) -> 0 | AC60: 0 | AD60: 0 | AE60: 0 | AF60: 0 | AG60: 0 | AH60: =HLOOKUP($AH$13,liquidez,44,0) ->  | AJ60: =Captura!AI130 -> 0
A61: 8 | B61: 0 | C61: 0 | D61: 0 | E61: 0 | F61: 0 | G61: 0 | H61: =IF(K60<0.01,0,IF(Adm!$S$4=Adm!$S$8,0,K60*Adm!$V$4)) -> 0 | I61: =IF(K60<0.01,0,IF($I$16<>"",E61*Adm!$O$8,0)) -> 0 | J61: 0 | K61: 0 | W61: 8 | X61: =IF(W61=1,Cal!$AC$127,0) -> 0 | AC61: 0 | AD61: 0 | AE61: 0 | AF61: 0 | AG61: 0 | AH61: =HLOOKUP($AH$13,liquidez,45,0) ->  | AJ61: =Captura!AI131 -> 0
A62: 9 | B62: 0 | C62: 0 | D62: 0 | E62: 0 | F62: 0 | G62: 0 | H62: =IF(K61<0.01,0,IF(Adm!$S$4=Adm!$S$8,0,K61*Adm!$V$4)) -> 0 | I62: =IF(K61<0.01,0,IF($I$16<>"",E62*Adm!$O$8,0)) -> 0 | J62: 0 | K62: 0 | W62: 9 | X62: =IF(W62=1,Cal!$AC$127,0) -> 0 | AC62: 0 | AD62: 0 | AE62: 0 | AF62: 0 | AG62: 0 | AH62: =HLOOKUP($AH$13,liquidez,46,0) ->  | AJ62: =Captura!AI132 -> 0
A63: 10 | B63: 0 | C63: 0 | D63: 0 | E63: 0 | F63: 0 | G63: 0 | H63: =IF(K62<0.01,0,IF(Adm!$S$4=Adm!$S$8,0,K62*Adm!$V$4)) -> 0 | I63: =IF(K62<0.01,0,IF($I$16<>"",E63*Adm!$O$8,0)) -> 0 | J63: 0 | K63: 0 | W63: 10 | X63: =IF(W63=1,Cal!$AC$127,0) -> 0 | AC63: 0 | AD63: 0 | AE63: 0 | AF63: 0 | AG63: 0 | AH63: =HLOOKUP($AH$13,liquidez,47,0) ->  | AJ63: =Captura!AI133 -> 0
A64: 11 | B64: 0 | C64: 0 | D64: 0 | E64: 0 | F64: 0 | G64: 0 | H64: =IF(K63<0.01,0,IF(Adm!$S$4=Adm!$S$8,0,K63*Adm!$V$4)) -> 0 | I64: =IF(K63<0.01,0,IF($I$16<>"",E64*Adm!$O$8,0)) -> 0 | J64: 0 | K64: 0 | W64: 11 | X64: =IF(W64=1,Cal!$AC$127,0) -> 0 | AC64: 0 | AD64: 0 | AE64: 0 | AF64: 0 | AG64: 0 | AH64: =HLOOKUP($AH$13,liquidez,48,0) ->  | AJ64: =Captura!AI134 -> 0
A65: 12 | B65: 0 | C65: 0 | D65: 0 | E65: 0 | F65: 0 | G65: 0 | H65: =IF(K64<0.01,0,IF(Adm!$S$4=Adm!$S$8,0,K64*Adm!$V$4)) -> 0 | I65: =IF(K64<0.01,0,IF($I$16<>"",E65*Adm!$O$8,0)) -> 0 | J65: 0 | K65: 0 | W65: 12 | X65: =IF(W65=1,Cal!$AC$127,0) -> 0 | AC65: 0 | AD65: 0 | AE65: 0 | AF65: 0 | AG65: 0 | AH65: =HLOOKUP($AH$13,liquidez,49,0) ->  | AJ65: =Captura!AI135 -> 0
A66: 1 | B66: 0 | C66: 0 | D66: 0 | E66: 0 | F66: 0 | G66: 0 | H66: =IF(K65<0.01,0,IF(Adm!$S$4=Adm!$S$8,0,K65*Adm!$V$4)) -> 0 | I66: =IF(K65<0.01,0,IF($I$16<>"",E66*Adm!$O$8,0)) -> 0 | J66: 0 | K66: 0 | W66: 1 | X66: =IF(W66=1,Cal!$AC$127,0) -> 0 | AC66: 0 | AD66: 0 | AE66: 0 | AF66: 0 | AG66: 0 | AH66: =HLOOKUP($AH$13,liquidez,50,0) ->  | AJ66: =Captura!AI136 -> 0
A67: 2 | B67: 0 | C67: 0 | D67: 0 | E67: 0 | F67: 0 | G67: 0 | H67: =IF(K66<0.01,0,IF(Adm!$S$4=Adm!$S$8,0,K66*Adm!$V$4)) -> 0 | I67: =IF(K66<0.01,0,IF($I$16<>"",E67*Adm!$O$8,0)) -> 0 | J67: 0 | K67: 0 | W67: 2 | X67: =IF(W67=1,Cal!$AC$127,0) -> 0 | AC67: 0 | AD67: 0 | AE67: 0 | AF67: 0 | AG67: 0 | AH67: =HLOOKUP($AH$13,liquidez,51,0) ->  | AJ67: =Captura!AI137 -> 0
A68: 3 | B68: 0 | C68: 0 | D68: 0 | E68: 0 | F68: 0 | G68: 0 | H68: =IF(K67<0.01,0,IF(Adm!$S$4=Adm!$S$8,0,K67*Adm!$V$4)) -> 0 | I68: =IF(K67<0.01,0,IF($I$16<>"",E68*Adm!$O$8,0)) -> 0 | J68: 0 | K68: 0 | W68: 3 | X68: =IF(W68=1,Cal!$AC$127,0) -> 0 | AC68: 0 | AD68: 0 | AE68: 0 | AF68: 0 | AG68: 0 | AH68: =HLOOKUP($AH$13,liquidez,52,0) ->  | AJ68: =Captura!AI138 -> 0
A69: 4 | B69: 0 | C69: 0 | D69: 0 | E69: 0 | F69: 0 | G69: 0 | H69: =IF(K68<0.01,0,IF(Adm!$S$4=Adm!$S$8,0,K68*Adm!$V$4)) -> 0 | I69: =IF(K68<0.01,0,IF($I$16<>"",E69*Adm!$O$8,0)) -> 0 | J69: 0 | K69: 0 | W69: 4 | X69: =IF(W69=1,Cal!$AC$127,0) -> 0 | AC69: 0 | AD69: 0 | AE69: 0 | AF69: 0 | AG69: 0 | AH69: =HLOOKUP($AH$13,liquidez,53,0) ->  | AJ69: =Captura!AI139 -> 0
A70: 5 | B70: 0 | C70: 0 | D70: 0 | E70: 0 | F70: 0 | G70: 0 | H70: =IF(K69<0.01,0,IF(Adm!$S$4=Adm!$S$8,0,K69*Adm!$V$4)) -> 0 | I70: =IF(K69<0.01,0,IF($I$16<>"",E70*Adm!$O$8,0)) -> 0 | J70: 0 | K70: 0 | W70: 5 | X70: =IF(W70=1,Cal!$AC$127,0) -> 0 | AC70: 0 | AD70: 0 | AE70: 0 | AF70: 0 | AG70: 0 | AH70: =HLOOKUP($AH$13,liquidez,54,0) ->  | AJ70: =Captura!AI140 -> 0
A71: 6 | B71: 0 | C71: 0 | D71: 0 | E71: 0 | F71: 0 | G71: 0 | H71: =IF(K70<0.01,0,IF(Adm!$S$4=Adm!$S$8,0,K70*Adm!$V$4)) -> 0 | I71: =IF(K70<0.01,0,IF($I$16<>"",E71*Adm!$O$8,0)) -> 0 | J71: 0 | K71: 0 | W71: 6 | X71: =IF(W71=1,Cal!$AC$127,0) -> 0 | AC71: 0 | AD71: 0 | AE71: 0 | AF71: 0 | AG71: 0 | AH71: =HLOOKUP($AH$13,liquidez,55,0) ->  | AJ71: =Captura!AI141 -> 0
A72: 7 | B72: 0 | C72: 0 | D72: 0 | E72: 0 | F72: 0 | G72: 0 | H72: =IF(K71<0.01,0,IF(Adm!$S$4=Adm!$S$8,0,K71*Adm!$V$4)) -> 0 | I72: =IF(K71<0.01,0,IF($I$16<>"",E72*Adm!$O$8,0)) -> 0 | J72: 0 | K72: 0 | W72: 7 | X72: =IF(W72=1,Cal!$AC$127,0) -> 0 | AC72: 0 | AD72: 0 | AE72: 0 | AF72: 0 | AG72: 0 | AH72: =HLOOKUP($AH$13,liquidez,56,0) ->  | AJ72: =Captura!AI142 -> 0
A73: 8 | B73: 0 | C73: 0 | D73: 0 | E73: 0 | F73: 0 | G73: 0 | H73: =IF(K72<0.01,0,IF(Adm!$S$4=Adm!$S$8,0,K72*Adm!$V$4)) -> 0 | I73: =IF(K72<0.01,0,IF($I$16<>"",E73*Adm!$O$8,0)) -> 0 | J73: 0 | K73: 0 | W73: 8 | X73: =IF(W73=1,Cal!$AC$127,0) -> 0 | AC73: 0 | AD73: 0 | AE73: 0 | AF73: 0 | AG73: 0 | AH73: =HLOOKUP($AH$13,liquidez,57,0) ->  | AJ73: =Captura!AI143 -> 0
A74: 9 | B74: 0 | C74: 0 | D74: 0 | E74: 0 | F74: 0 | G74: 0 | H74: =IF(K73<0.01,0,IF(Adm!$S$4=Adm!$S$8,0,K73*Adm!$V$4)) -> 0 | I74: =IF(K73<0.01,0,IF($I$16<>"",E74*Adm!$O$8,0)) -> 0 | J74: 0 | K74: 0 | W74: 9 | X74: =IF(W74=1,Cal!$AC$127,0) -> 0 | AC74: 0 | AD74: 0 | AE74: 0 | AF74: 0 | AG74: 0 | AH74: =HLOOKUP($AH$13,liquidez,58,0) ->  | AJ74: =Captura!AI144 -> 0
A75: 10 | B75: 0 | C75: 0 | D75: 0 | E75: 0 | F75: 0 | G75: 0 | H75: =IF(K74<0.01,0,IF(Adm!$S$4=Adm!$S$8,0,K74*Adm!$V$4)) -> 0 | I75: =IF(K74<0.01,0,IF($I$16<>"",E75*Adm!$O$8,0)) -> 0 | J75: 0 | K75: 0 | W75: 10 | X75: =IF(W75=1,Cal!$AC$127,0) -> 0 | AC75: 0 | AD75: 0 | AE75: 0 | AF75: 0 | AG75: 0 | AH75: =HLOOKUP($AH$13,liquidez,59,0) ->  | AJ75: =Captura!AI145 -> 0
A76: 11 | B76: 0 | C76: 0 | D76: 0 | E76: 0 | F76: 0 | G76: 0 | H76: =IF(K75<0.01,0,IF(Adm!$S$4=Adm!$S$8,0,K75*Adm!$V$4)) -> 0 | I76: =IF(K75<0.01,0,IF($I$16<>"",E76*Adm!$O$8,0)) -> 0 | J76: 0 | K76: 0 | W76: 11 | X76: =IF(W76=1,Cal!$AC$127,0) -> 0 | AC76: 0 | AD76: 0 | AE76: 0 | AF76: 0 | AG76: 0 | AH76: =HLOOKUP($AH$13,liquidez,60,0) ->  | AJ76: =Captura!AI146 -> 0
A77: 12 | B77: 0 | C77: 0 | D77: 0 | E77: 0 | F77: 0 | G77: 0 | H77: =IF(K76<0.01,0,IF(Adm!$S$4=Adm!$S$8,0,K76*Adm!$V$4)) -> 0 | I77: =IF(K76<0.01,0,IF($I$16<>"",E77*Adm!$O$8,0)) -> 0 | J77: 0 | K77: 0 | W77: 12 | X77: =IF(W77=1,Cal!$AC$127,0) -> 0 | AC77: 0 | AD77: 0 | AE77: 0 | AF77: 0 | AG77: 0 | AH77: =HLOOKUP($AH$13,liquidez,61,0) ->  | AJ77: =Captura!AI147 -> 0
A78: 1 | B78: 0 | C78: 0 | D78: 0 | E78: 0 | F78: 0 | G78: 0 | H78: =IF(K77<0.01,0,IF(Adm!$S$4=Adm!$S$8,0,K77*Adm!$V$4)) -> 0 | I78: =IF(K77<0.01,0,IF($I$16<>"",E78*Adm!$O$8,0)) -> 0 | J78: 0 | K78: 0 | W78: 1 | X78: =IF(W78=1,Cal!$AC$127,0) -> 0 | AC78: 0 | AD78: 0 | AE78: 0 | AF78: 0 | AG78: 0 | AH78: =HLOOKUP($AH$13,liquidez,62,0) ->  | AJ78: =Captura!AI148 -> 0
A79: 2 | B79: 0 | C79: 0 | D79: 0 | E79: 0 | F79: 0 | G79: 0 | H79: =IF(K78<0.01,0,IF(Adm!$S$4=Adm!$S$8,0,K78*Adm!$V$4)) -> 0 | I79: =IF(K78<0.01,0,IF($I$16<>"",E79*Adm!$O$8,0)) -> 0 | J79: 0 | K79: 0 | W79: 2 | X79: =IF(W79=1,Cal!$AC$127,0) -> 0 | AC79: 0 | AD79: 0 | AE79: 0 | AF79: 0 | AG79: 0 | AH79: =HLOOKUP($AH$13,liquidez,63,0) ->  | AJ79: =Captura!AI149 -> 0
A80: 3 | B80: 0 | C80: 0 | D80: 0 | E80: 0 | F80: 0 | G80: 0 | H80: =IF(K79<0.01,0,IF(Adm!$S$4=Adm!$S$8,0,K79*Adm!$V$4)) -> 0 | I80: =IF(K79<0.01,0,IF($I$16<>"",E80*Adm!$O$8,0)) -> 0 | J80: 0 | K80: 0 | W80: 3 | X80: =IF(W80=1,Cal!$AC$127,0) -> 0 | AC80: 0 | AD80: 0 | AE80: 0 | AF80: 0 | AG80: 0 | AH80: =HLOOKUP($AH$13,liquidez,64,0) ->  | AJ80: =Captura!AI150 -> 0
A81: 4 | B81: 0 | C81: 0 | D81: 0 | E81: 0 | F81: 0 | G81: 0 | H81: =IF(K80<0.01,0,IF(Adm!$S$4=Adm!$S$8,0,K80*Adm!$V$4)) -> 0 | I81: =IF(K80<0.01,0,IF($I$16<>"",E81*Adm!$O$8,0)) -> 0 | J81: 0 | K81: 0 | W81: 4 | X81: =IF(W81=1,Cal!$AC$127,0) -> 0 | AC81: 0 | AD81: 0 | AE81: 0 | AF81: 0 | AG81: 0 | AH81: =HLOOKUP($AH$13,liquidez,65,0) ->  | AJ81: =Captura!AI151 -> 0
A82: =IF(A81=12,1,A81+1) -> 5 | B82: =IF(K81<0.01,0,B81-1) -> 0 | C82: =IF(K81<0.01,0,C81+1) -> 0 | D82: 0 | E82: 0 | F82: =IF(K81<0.01,0,G82-E82) -> 0 | G82: 0 | H82: =IF(K81<0.01,0,IF(Adm!$S$4=Adm!$S$8,0,K81*Adm!$V$4)) -> 0 | I82: =IF(K81<0.01,0,IF($I$16<>"",E82*Adm!$O$8,0)) -> 0 | J82: =G82+H82+I82 -> 0 | K82: =IF(K81<0.01,0,K81-F82-L82) -> 0 | W82: 5 | X82: =IF(W82=1,Cal!$AC$127,0) -> 0 | AC82: 0 | AD82: 0 | AE82: 0 | AF82: 0 | AG82: 0 | AH82: =HLOOKUP($AH$13,liquidez,66,0) ->  | AJ82: =Captura!AI152 -> 0
A83: 6 | B83: 0 | C83: 0 | D83: =IF(K82<0.01,0,D82) -> 0 | E83: =IF(K82<0.01,0,K82*D83*30.4166/360) -> 0 | F83: 0 | G83: =IF(K82<0.1,0,MIN(K82+E83,IF(AC83>0,AC83,G82*(1+X83)))) -> 0 | H83: =IF(K82<0.01,0,IF(Adm!$S$4=Adm!$S$8,0,K82*Adm!$V$4)) -> 0 | I83: =IF(K82<0.01,0,IF($I$16<>"",E83*Adm!$O$8,0)) -> 0 | J83: 0 | K83: 0 | W83: =IF(W82=12,1,W82+1) -> 6 | X83: =IF(W83=1,Cal!$AC$127,0) -> 0 | AC83: 0 | AD83: 0 | AE83: 0 | AF83: 0 | AG83: =IF(AND($AE$12=2,L82<0.01),0,IF($AE$12=2,(K82*AH83)+E83,0)) -> 0 | AH83: =HLOOKUP($AH$13,liquidez,67,0) ->  | AJ83: =Captura!AI153 -> 0
A84: 7 | B84: 0 | C84: 0 | D84: 0 | E84: 0 | F84: 0 | G84: 0 | H84: =IF(K83<0.01,0,IF(Adm!$S$4=Adm!$S$8,0,K83*Adm!$V$4)) -> 0 | I84: =IF(K83<0.01,0,IF($I$16<>"",E84*Adm!$O$8,0)) -> 0 | J84: 0 | K84: 0 | W84: 7 | X84: =IF(W84=1,Cal!$AC$127,0) -> 0 | AC84: 0 | AD84: 0 | AE84: 0 | AF84: =IF(AND(AG84>0.01,$AC$12=2),AG84,0) -> 0 | AG84: 0 | AH84: =HLOOKUP($AH$13,liquidez,68,0) ->  | AJ84: =Captura!AI154 -> 0
A85: 8 | B85: 0 | C85: 0 | D85: 0 | E85: 0 | F85: 0 | G85: 0 | H85: =IF(K84<0.01,0,IF(Adm!$S$4=Adm!$S$8,0,K84*Adm!$V$4)) -> 0 | I85: =IF(K84<0.01,0,IF($I$16<>"",E85*Adm!$O$8,0)) -> 0 | J85: 0 | K85: 0 | W85: 8 | X85: =IF(W85=1,Cal!$AC$127,0) -> 0 | AC85: =IF(AD85>1,AD85,IF(AF85>1,AF85,0)) -> 0 | AD85: =IF(AND($AE$12=1,L84>0.1),AE85,0) -> 0 | AE85: =IF(AND($AE$12=1,$AC$12=2),PMT((($D$18/360)*(365/12)),B84,-K84),0) -> 0 | AF85: 0 | AG85: 0 | AH85: =HLOOKUP($AH$13,liquidez,69,0) ->  | AJ85: =Captura!AI155 -> 0
A86: 9 | B86: 0 | C86: 0 | D86: 0 | E86: 0 | F86: 0 | G86: 0 | H86: =IF(K85<0.01,0,IF(Adm!$S$4=Adm!$S$8,0,K85*Adm!$V$4)) -> 0 | I86: =IF(K85<0.01,0,IF($I$16<>"",E86*Adm!$O$8,0)) -> 0 | J86: 0 | K86: 0 | W86: 9 | X86: =IF(W86=1,Cal!$AC$127,0) -> 0 | AC86: 0 | AD86: 0 | AE86: 0 | AF86: 0 | AG86: 0 | AH86: =HLOOKUP($AH$13,liquidez,70,0) ->  | AJ86: =Captura!AI156 -> 0
A87: 10 | B87: 0 | C87: 0 | D87: 0 | E87: 0 | F87: 0 | G87: 0 | H87: =IF(K86<0.01,0,IF(Adm!$S$4=Adm!$S$8,0,K86*Adm!$V$4)) -> 0 | I87: =IF(K86<0.01,0,IF($I$16<>"",E87*Adm!$O$8,0)) -> 0 | J87: 0 | K87: 0 | W87: 10 | X87: =IF(W87=1,Cal!$AC$127,0) -> 0 | AC87: 0 | AD87: 0 | AE87: 0 | AF87: 0 | AG87: 0 | AH87: =HLOOKUP($AH$13,liquidez,71,0) ->  | AJ87: =Captura!AI157 -> 0
A88: 11 | B88: 0 | C88: 0 | D88: 0 | E88: 0 | F88: 0 | G88: 0 | H88: =IF(K87<0.01,0,IF(Adm!$S$4=Adm!$S$8,0,K87*Adm!$V$4)) -> 0 | I88: =IF(K87<0.01,0,IF($I$16<>"",E88*Adm!$O$8,0)) -> 0 | J88: 0 | K88: 0 | W88: 11 | X88: =IF(W88=1,Cal!$AC$127,0) -> 0 | AC88: 0 | AD88: 0 | AE88: 0 | AF88: 0 | AG88: 0 | AH88: =HLOOKUP($AH$13,liquidez,72,0) ->  | AJ88: =Captura!AI158 -> 0
A89: 12 | B89: 0 | C89: 0 | D89: 0 | E89: 0 | F89: 0 | G89: 0 | H89: =IF(K88<0.01,0,IF(Adm!$S$4=Adm!$S$8,0,K88*Adm!$V$4)) -> 0 | I89: =IF(K88<0.01,0,IF($I$16<>"",E89*Adm!$O$8,0)) -> 0 | J89: 0 | K89: 0 | W89: 12 | X89: =IF(W89=1,Cal!$AC$127,0) -> 0 | AC89: 0 | AD89: 0 | AE89: 0 | AF89: 0 | AG89: 0 | AH89: =HLOOKUP($AH$13,liquidez,73,0) ->  | AJ89: =Captura!AI159 -> 0
A90: 1 | B90: 0 | C90: 0 | D90: 0 | E90: 0 | F90: 0 | G90: 0 | H90: =IF(K89<0.01,0,IF(Adm!$S$4=Adm!$S$8,0,K89*Adm!$V$4)) -> 0 | I90: =IF(K89<0.01,0,IF($I$16<>"",E90*Adm!$O$8,0)) -> 0 | J90: 0 | K90: 0 | W90: 1 | X90: =IF(W90=1,Cal!$AC$127,0) -> 0 | AC90: 0 | AD90: 0 | AE90: 0 | AF90: 0 | AG90: 0 | AH90: =HLOOKUP($AH$13,liquidez,74,0) ->  | AJ90: =Captura!AI160 -> 0
A91: 2 | B91: 0 | C91: 0 | D91: 0 | E91: 0 | F91: 0 | G91: 0 | H91: =IF(K90<0.01,0,IF(Adm!$S$4=Adm!$S$8,0,K90*Adm!$V$4)) -> 0 | I91: =IF(K90<0.01,0,IF($I$16<>"",E91*Adm!$O$8,0)) -> 0 | J91: 0 | K91: 0 | W91: 2 | X91: =IF(W91=1,Cal!$AC$127,0) -> 0 | AC91: 0 | AD91: 0 | AE91: 0 | AF91: 0 | AG91: 0 | AH91: =HLOOKUP($AH$13,liquidez,75,0) ->  | AJ91: =Captura!AI161 -> 0
A92: 3 | B92: 0 | C92: 0 | D92: 0 | E92: 0 | F92: 0 | G92: 0 | H92: =IF(K91<0.01,0,IF(Adm!$S$4=Adm!$S$8,0,K91*Adm!$V$4)) -> 0 | I92: =IF(K91<0.01,0,IF($I$16<>"",E92*Adm!$O$8,0)) -> 0 | J92: 0 | K92: 0 | W92: 3 | X92: =IF(W92=1,Cal!$AC$127,0) -> 0 | AC92: 0 | AD92: 0 | AE92: 0 | AF92: 0 | AG92: 0 | AH92: =HLOOKUP($AH$13,liquidez,76,0) ->  | AJ92: =Captura!AI162 -> 0
A93: 4 | B93: 0 | C93: 0 | D93: 0 | E93: 0 | F93: 0 | G93: 0 | H93: =IF(K92<0.01,0,IF(Adm!$S$4=Adm!$S$8,0,K92*Adm!$V$4)) -> 0 | I93: =IF(K92<0.01,0,IF($I$16<>"",E93*Adm!$O$8,0)) -> 0 | J93: 0 | K93: 0 | W93: 4 | X93: =IF(W93=1,Cal!$AC$127,0) -> 0 | AC93: 0 | AD93: 0 | AE93: 0 | AF93: 0 | AG93: 0 | AH93: =HLOOKUP($AH$13,liquidez,77,0) ->  | AJ93: =Captura!AI163 -> 0
A94: 5 | B94: 0 | C94: 0 | D94: 0 | E94: 0 | F94: 0 | G94: 0 | H94: =IF(K93<0.01,0,IF(Adm!$S$4=Adm!$S$8,0,K93*Adm!$V$4)) -> 0 | I94: =IF(K93<0.01,0,IF($I$16<>"",E94*Adm!$O$8,0)) -> 0 | J94: 0 | K94: 0 | W94: 5 | X94: =IF(W94=1,Cal!$AC$127,0) -> 0 | AC94: 0 | AD94: 0 | AE94: 0 | AF94: 0 | AG94: 0 | AH94: =HLOOKUP($AH$13,liquidez,78,0) ->  | AJ94: =Captura!AI164 -> 0
A95: 6 | B95: 0 | C95: 0 | D95: 0 | E95: 0 | F95: 0 | G95: 0 | H95: =IF(K94<0.01,0,IF(Adm!$S$4=Adm!$S$8,0,K94*Adm!$V$4)) -> 0 | I95: =IF(K94<0.01,0,IF($I$16<>"",E95*Adm!$O$8,0)) -> 0 | J95: 0 | K95: 0 | W95: 6 | X95: =IF(W95=1,Cal!$AC$127,0) -> 0 | AC95: 0 | AD95: 0 | AE95: 0 | AF95: 0 | AG95: 0 | AH95: =HLOOKUP($AH$13,liquidez,79,0) ->  | AJ95: =Captura!AI165 -> 0
A96: 7 | B96: 0 | C96: 0 | D96: 0 | E96: 0 | F96: 0 | G96: 0 | H96: =IF(K95<0.01,0,IF(Adm!$S$4=Adm!$S$8,0,K95*Adm!$V$4)) -> 0 | I96: =IF(K95<0.01,0,IF($I$16<>"",E96*Adm!$O$8,0)) -> 0 | J96: 0 | K96: 0 | W96: 7 | X96: =IF(W96=1,Cal!$AC$127,0) -> 0 | AC96: 0 | AD96: 0 | AE96: 0 | AF96: 0 | AG96: 0 | AH96: =HLOOKUP($AH$13,liquidez,80,0) ->  | AJ96: =Captura!AI166 -> 0
A97: 8 | B97: 0 | C97: 0 | D97: 0 | E97: 0 | F97: 0 | G97: 0 | H97: =IF(K96<0.01,0,IF(Adm!$S$4=Adm!$S$8,0,K96*Adm!$V$4)) -> 0 | I97: =IF(K96<0.01,0,IF($I$16<>"",E97*Adm!$O$8,0)) -> 0 | J97: 0 | K97: 0 | W97: 8 | X97: =IF(W97=1,Cal!$AC$127,0) -> 0 | AC97: 0 | AD97: 0 | AE97: 0 | AF97: 0 | AG97: 0 | AH97: =HLOOKUP($AH$13,liquidez,81,0) ->  | AJ97: =Captura!AI167 -> 0
A98: 9 | B98: 0 | C98: 0 | D98: 0 | E98: 0 | F98: 0 | G98: 0 | H98: =IF(K97<0.01,0,IF(Adm!$S$4=Adm!$S$8,0,K97*Adm!$V$4)) -> 0 | I98: =IF(K97<0.01,0,IF($I$16<>"",E98*Adm!$O$8,0)) -> 0 | J98: 0 | K98: 0 | W98: 9 | X98: =IF(W98=1,Cal!$AC$127,0) -> 0 | AC98: 0 | AD98: 0 | AE98: 0 | AF98: 0 | AG98: 0 | AH98: =HLOOKUP($AH$13,liquidez,82,0) ->  | AJ98: =Captura!AI168 -> 0
A99: 10 | B99: 0 | C99: 0 | D99: 0 | E99: 0 | F99: 0 | G99: 0 | H99: =IF(K98<0.01,0,IF(Adm!$S$4=Adm!$S$8,0,K98*Adm!$V$4)) -> 0 | I99: =IF(K98<0.01,0,IF($I$16<>"",E99*Adm!$O$8,0)) -> 0 | J99: 0 | K99: 0 | W99: 10 | X99: =IF(W99=1,Cal!$AC$127,0) -> 0 | AC99: 0 | AD99: 0 | AE99: 0 | AF99: 0 | AG99: 0 | AH99: =HLOOKUP($AH$13,liquidez,83,0) ->  | AJ99: =Captura!AI169 -> 0
A100: 11 | B100: 0 | C100: 0 | D100: 0 | E100: 0 | F100: 0 | G100: 0 | H100: =IF(K99<0.01,0,IF(Adm!$S$4=Adm!$S$8,0,K99*Adm!$V$4)) -> 0 | I100: =IF(K99<0.01,0,IF($I$16<>"",E100*Adm!$O$8,0)) -> 0 | J100: 0 | K100: 0 | W100: 11 | X100: =IF(W100=1,Cal!$AC$127,0) -> 0 | AC100: 0 | AD100: 0 | AE100: 0 | AF100: 0 | AG100: 0 | AH100: =HLOOKUP($AH$13,liquidez,84,0) ->  | AJ100: =Captura!AI170 -> 0
A101: 12 | B101: 0 | C101: 0 | D101: 0 | E101: 0 | F101: 0 | G101: 0 | H101: =IF(K100<0.01,0,IF(Adm!$S$4=Adm!$S$8,0,K100*Adm!$V$4)) -> 0 | I101: =IF(K100<0.01,0,IF($I$16<>"",E101*Adm!$O$8,0)) -> 0 | J101: 0 | K101: 0 | W101: 12 | X101: =IF(W101=1,Cal!$AC$127,0) -> 0 | AC101: 0 | AD101: 0 | AE101: 0 | AF101: 0 | AG101: 0 | AH101: =HLOOKUP($AH$13,liquidez,85,0) ->  | AJ101: =Captura!AI171 -> 0
A102: 1 | B102: 0 | C102: 0 | D102: 0 | E102: 0 | F102: 0 | G102: 0 | H102: =IF(K101<0.01,0,IF(Adm!$S$4=Adm!$S$8,0,K101*Adm!$V$4)) -> 0 | I102: =IF(K101<0.01,0,IF($I$16<>"",E102*Adm!$O$8,0)) -> 0 | J102: 0 | K102: 0 | W102: 1 | X102: =IF(W102=1,Cal!$AC$127,0) -> 0 | AC102: 0 | AD102: 0 | AE102: 0 | AF102: 0 | AG102: 0 | AH102: =HLOOKUP($AH$13,liquidez,86,0) ->  | AJ102: =Captura!AI172 -> 0
A103: 2 | B103: 0 | C103: 0 | D103: 0 | E103: 0 | F103: 0 | G103: 0 | H103: =IF(K102<0.01,0,IF(Adm!$S$4=Adm!$S$8,0,K102*Adm!$V$4)) -> 0 | I103: =IF(K102<0.01,0,IF($I$16<>"",E103*Adm!$O$8,0)) -> 0 | J103: 0 | K103: 0 | W103: 2 | X103: =IF(W103=1,Cal!$AC$127,0) -> 0 | AC103: 0 | AD103: 0 | AE103: 0 | AF103: 0 | AG103: 0 | AH103: =HLOOKUP($AH$13,liquidez,87,0) ->  | AJ103: =Captura!AI173 -> 0
A104: 3 | B104: 0 | C104: 0 | D104: 0 | E104: 0 | F104: 0 | G104: 0 | H104: =IF(K103<0.01,0,IF(Adm!$S$4=Adm!$S$8,0,K103*Adm!$V$4)) -> 0 | I104: =IF(K103<0.01,0,IF($I$16<>"",E104*Adm!$O$8,0)) -> 0 | J104: 0 | K104: 0 | W104: 3 | X104: =IF(W104=1,Cal!$AC$127,0) -> 0 | AC104: 0 | AD104: 0 | AE104: 0 | AF104: 0 | AG104: 0 | AH104: =HLOOKUP($AH$13,liquidez,88,0) ->  | AJ104: =Captura!AI174 -> 0
A105: 4 | B105: 0 | C105: 0 | D105: 0 | E105: 0 | F105: 0 | G105: 0 | H105: =IF(K104<0.01,0,IF(Adm!$S$4=Adm!$S$8,0,K104*Adm!$V$4)) -> 0 | I105: =IF(K104<0.01,0,IF($I$16<>"",E105*Adm!$O$8,0)) -> 0 | J105: 0 | K105: 0 | W105: 4 | X105: =IF(W105=1,Cal!$AC$127,0) -> 0 | AC105: 0 | AD105: 0 | AE105: 0 | AF105: 0 | AG105: 0 | AH105: =HLOOKUP($AH$13,liquidez,89,0) ->  | AJ105: =Captura!AI175 -> 0
A106: 5 | B106: 0 | C106: 0 | D106: 0 | E106: 0 | F106: 0 | G106: 0 | H106: =IF(K105<0.01,0,IF(Adm!$S$4=Adm!$S$8,0,K105*Adm!$V$4)) -> 0 | I106: =IF(K105<0.01,0,IF($I$16<>"",E106*Adm!$O$8,0)) -> 0 | J106: 0 | K106: 0 | W106: 5 | X106: =IF(W106=1,Cal!$AC$127,0) -> 0 | AC106: 0 | AD106: 0 | AE106: 0 | AF106: 0 | AG106: 0 | AH106: =HLOOKUP($AH$13,liquidez,90,0) ->  | AJ106: =Captura!AI176 -> 0
A107: 6 | B107: 0 | C107: 0 | D107: 0 | E107: 0 | F107: 0 | G107: 0 | H107: =IF(K106<0.01,0,IF(Adm!$S$4=Adm!$S$8,0,K106*Adm!$V$4)) -> 0 | I107: =IF(K106<0.01,0,IF($I$16<>"",E107*Adm!$O$8,0)) -> 0 | J107: 0 | K107: 0 | W107: 6 | X107: =IF(W107=1,Cal!$AC$127,0) -> 0 | AC107: 0 | AD107: 0 | AE107: 0 | AF107: 0 | AG107: 0 | AH107: =HLOOKUP($AH$13,liquidez,91,0) ->  | AJ107: =Captura!AI177 -> 0
A108: 7 | B108: 0 | C108: 0 | D108: 0 | E108: 0 | F108: 0 | G108: 0 | H108: =IF(K107<0.01,0,IF(Adm!$S$4=Adm!$S$8,0,K107*Adm!$V$4)) -> 0 | I108: =IF(K107<0.01,0,IF($I$16<>"",E108*Adm!$O$8,0)) -> 0 | J108: 0 | K108: 0 | W108: 7 | X108: =IF(W108=1,Cal!$AC$127,0) -> 0 | AC108: 0 | AD108: 0 | AE108: 0 | AF108: 0 | AG108: 0 | AH108: =HLOOKUP($AH$13,liquidez,92,0) ->  | AJ108: =Captura!AI178 -> 0
A109: 8 | B109: 0 | C109: 0 | D109: 0 | E109: 0 | F109: 0 | G109: 0 | H109: =IF(K108<0.01,0,IF(Adm!$S$4=Adm!$S$8,0,K108*Adm!$V$4)) -> 0 | I109: =IF(K108<0.01,0,IF($I$16<>"",E109*Adm!$O$8,0)) -> 0 | J109: 0 | K109: 0 | W109: 8 | X109: =IF(W109=1,Cal!$AC$127,0) -> 0 | AC109: 0 | AD109: 0 | AE109: 0 | AF109: 0 | AG109: 0 | AH109: =HLOOKUP($AH$13,liquidez,93,0) ->  | AJ109: =Captura!AI179 -> 0
A110: 9 | B110: 0 | C110: 0 | D110: 0 | E110: 0 | F110: 0 | G110: 0 | H110: =IF(K109<0.01,0,IF(Adm!$S$4=Adm!$S$8,0,K109*Adm!$V$4)) -> 0 | I110: =IF(K109<0.01,0,IF($I$16<>"",E110*Adm!$O$8,0)) -> 0 | J110: 0 | K110: 0 | W110: 9 | X110: =IF(W110=1,Cal!$AC$127,0) -> 0 | AC110: 0 | AD110: 0 | AE110: 0 | AF110: 0 | AG110: 0 | AH110: =HLOOKUP($AH$13,liquidez,94,0) ->  | AJ110: =Captura!AI180 -> 0
A111: 10 | B111: 0 | C111: 0 | D111: 0 | E111: 0 | F111: 0 | G111: 0 | H111: =IF(K110<0.01,0,IF(Adm!$S$4=Adm!$S$8,0,K110*Adm!$V$4)) -> 0 | I111: =IF(K110<0.01,0,IF($I$16<>"",E111*Adm!$O$8,0)) -> 0 | J111: 0 | K111: 0 | W111: 10 | X111: =IF(W111=1,Cal!$AC$127,0) -> 0 | AC111: 0 | AD111: 0 | AE111: 0 | AF111: 0 | AG111: 0 | AH111: =HLOOKUP($AH$13,liquidez,95,0) ->  | AJ111: =Captura!AI181 -> 0
A112: 11 | B112: 0 | C112: 0 | D112: 0 | E112: 0 | F112: 0 | G112: 0 | H112: =IF(K111<0.01,0,IF(Adm!$S$4=Adm!$S$8,0,K111*Adm!$V$4)) -> 0 | I112: =IF(K111<0.01,0,IF($I$16<>"",E112*Adm!$O$8,0)) -> 0 | J112: 0 | K112: 0 | W112: 11 | X112: =IF(W112=1,Cal!$AC$127,0) -> 0 | AC112: 0 | AD112: 0 | AE112: 0 | AF112: 0 | AG112: 0 | AH112: =HLOOKUP($AH$13,liquidez,96,0) ->  | AJ112: =Captura!AI182 -> 0
A113: 12 | B113: 0 | C113: 0 | D113: 0 | E113: 0 | F113: 0 | G113: 0 | H113: =IF(K112<0.01,0,IF(Adm!$S$4=Adm!$S$8,0,K112*Adm!$V$4)) -> 0 | I113: =IF(K112<0.01,0,IF($I$16<>"",E113*Adm!$O$8,0)) -> 0 | J113: 0 | K113: 0 | W113: 12 | X113: =IF(W113=1,Cal!$AC$127,0) -> 0 | AC113: 0 | AD113: 0 | AE113: 0 | AF113: 0 | AG113: 0 | AH113: =HLOOKUP($AH$13,liquidez,97,0) ->  | AJ113: =Captura!AI183 -> 0
A114: 1 | B114: 0 | C114: 0 | D114: 0 | E114: 0 | F114: 0 | G114: 0 | H114: =IF(K113<0.01,0,IF(Adm!$S$4=Adm!$S$8,0,K113*Adm!$V$4)) -> 0 | I114: =IF(K113<0.01,0,IF($I$16<>"",E114*Adm!$O$8,0)) -> 0 | J114: 0 | K114: 0 | W114: 1 | X114: =IF(W114=1,Cal!$AC$127,0) -> 0 | AC114: 0 | AD114: 0 | AE114: 0 | AF114: 0 | AG114: 0 | AH114: =HLOOKUP($AH$13,liquidez,98,0) ->  | AJ114: =Captura!AI184 -> 0
A115: 2 | B115: 0 | C115: 0 | D115: 0 | E115: 0 | F115: 0 | G115: 0 | H115: =IF(K114<0.01,0,IF(Adm!$S$4=Adm!$S$8,0,K114*Adm!$V$4)) -> 0 | I115: =IF(K114<0.01,0,IF($I$16<>"",E115*Adm!$O$8,0)) -> 0 | J115: 0 | K115: 0 | W115: 2 | X115: =IF(W115=1,Cal!$AC$127,0) -> 0 | AC115: 0 | AD115: 0 | AE115: 0 | AF115: 0 | AG115: 0 | AH115: =HLOOKUP($AH$13,liquidez,99,0) ->  | AJ115: =Captura!AI185 -> 0
A116: 3 | B116: 0 | C116: 0 | D116: 0 | E116: 0 | F116: 0 | G116: 0 | H116: =IF(K115<0.01,0,IF(Adm!$S$4=Adm!$S$8,0,K115*Adm!$V$4)) -> 0 | I116: =IF(K115<0.01,0,IF($I$16<>"",E116*Adm!$O$8,0)) -> 0 | J116: 0 | K116: 0 | W116: 3 | X116: =IF(W116=1,Cal!$AC$127,0) -> 0 | AC116: 0 | AD116: 0 | AE116: 0 | AF116: 0 | AG116: 0 | AH116: =HLOOKUP($AH$13,liquidez,100,0) ->  | AJ116: =Captura!AI186 -> 0
A117: 4 | B117: 0 | C117: 0 | D117: 0 | E117: 0 | F117: 0 | G117: 0 | H117: =IF(K116<0.01,0,IF(Adm!$S$4=Adm!$S$8,0,K116*Adm!$V$4)) -> 0 | I117: =IF(K116<0.01,0,IF($I$16<>"",E117*Adm!$O$8,0)) -> 0 | J117: 0 | K117: 0 | W117: 4 | X117: =IF(W117=1,Cal!$AC$127,0) -> 0 | AC117: 0 | AD117: 0 | AE117: 0 | AF117: 0 | AG117: 0 | AH117: =HLOOKUP($AH$13,liquidez,101,0) ->  | AJ117: =Captura!AI187 -> 0
A118: 5 | B118: 0 | C118: 0 | D118: 0 | E118: 0 | F118: 0 | G118: 0 | H118: =IF(K117<0.01,0,IF(Adm!$S$4=Adm!$S$8,0,K117*Adm!$V$4)) -> 0 | I118: =IF(K117<0.01,0,IF($I$16<>"",E118*Adm!$O$8,0)) -> 0 | J118: 0 | K118: 0 | W118: 5 | X118: =IF(W118=1,Cal!$AC$127,0) -> 0 | AC118: 0 | AD118: 0 | AE118: 0 | AF118: 0 | AG118: 0 | AH118: =HLOOKUP($AH$13,liquidez,102,0) ->  | AJ118: =Captura!AI188 -> 0
A119: 6 | B119: 0 | C119: 0 | D119: 0 | E119: 0 | F119: 0 | G119: 0 | H119: =IF(K118<0.01,0,IF(Adm!$S$4=Adm!$S$8,0,K118*Adm!$V$4)) -> 0 | I119: =IF(K118<0.01,0,IF($I$16<>"",E119*Adm!$O$8,0)) -> 0 | J119: 0 | K119: 0 | W119: 6 | X119: =IF(W119=1,Cal!$AC$127,0) -> 0 | AC119: 0 | AD119: 0 | AE119: 0 | AF119: 0 | AG119: 0 | AH119: =HLOOKUP($AH$13,liquidez,103,0) ->  | AJ119: =Captura!AI189 -> 0
A120: 7 | B120: 0 | C120: 0 | D120: 0 | E120: 0 | F120: 0 | G120: 0 | H120: =IF(K119<0.01,0,IF(Adm!$S$4=Adm!$S$8,0,K119*Adm!$V$4)) -> 0 | I120: =IF(K119<0.01,0,IF($I$16<>"",E120*Adm!$O$8,0)) -> 0 | J120: 0 | K120: 0 | W120: 7 | X120: =IF(W120=1,Cal!$AC$127,0) -> 0 | AC120: 0 | AD120: 0 | AE120: 0 | AF120: 0 | AG120: 0 | AH120: =HLOOKUP($AH$13,liquidez,104,0) ->  | AJ120: =Captura!AI190 -> 0
A121: 8 | B121: 0 | C121: 0 | D121: 0 | E121: 0 | F121: 0 | G121: 0 | H121: =IF(K120<0.01,0,IF(Adm!$S$4=Adm!$S$8,0,K120*Adm!$V$4)) -> 0 | I121: =IF(K120<0.01,0,IF($I$16<>"",E121*Adm!$O$8,0)) -> 0 | J121: 0 | K121: 0 | W121: 8 | X121: =IF(W121=1,Cal!$AC$127,0) -> 0 | AC121: 0 | AD121: 0 | AE121: 0 | AF121: 0 | AG121: 0 | AH121: =HLOOKUP($AH$13,liquidez,105,0) ->  | AJ121: =Captura!AI191 -> 0
A122: 9 | B122: 0 | C122: 0 | D122: 0 | E122: 0 | F122: 0 | G122: 0 | H122: =IF(K121<0.01,0,IF(Adm!$S$4=Adm!$S$8,0,K121*Adm!$V$4)) -> 0 | I122: =IF(K121<0.01,0,IF($I$16<>"",E122*Adm!$O$8,0)) -> 0 | J122: 0 | K122: 0 | W122: 9 | X122: =IF(W122=1,Cal!$AC$127,0) -> 0 | AC122: 0 | AD122: 0 | AE122: 0 | AF122: 0 | AG122: 0 | AH122: =HLOOKUP($AH$13,liquidez,106,0) ->  | AJ122: =Captura!AI192 -> 0
A123: 10 | B123: 0 | C123: 0 | D123: 0 | E123: 0 | F123: 0 | G123: 0 | H123: =IF(K122<0.01,0,IF(Adm!$S$4=Adm!$S$8,0,K122*Adm!$V$4)) -> 0 | I123: =IF(K122<0.01,0,IF($I$16<>"",E123*Adm!$O$8,0)) -> 0 | J123: 0 | K123: 0 | W123: 10 | X123: =IF(W123=1,Cal!$AC$127,0) -> 0 | AC123: 0 | AD123: 0 | AE123: 0 | AF123: 0 | AG123: 0 | AH123: =HLOOKUP($AH$13,liquidez,107,0) ->  | AJ123: =Captura!AI193 -> 0
A124: 11 | B124: 0 | C124: 0 | D124: 0 | E124: 0 | F124: 0 | G124: 0 | H124: =IF(K123<0.01,0,IF(Adm!$S$4=Adm!$S$8,0,K123*Adm!$V$4)) -> 0 | I124: =IF(K123<0.01,0,IF($I$16<>"",E124*Adm!$O$8,0)) -> 0 | J124: 0 | K124: 0 | W124: 11 | X124: =IF(W124=1,Cal!$AC$127,0) -> 0 | AC124: 0 | AD124: 0 | AE124: 0 | AF124: 0 | AG124: 0 | AH124: =HLOOKUP($AH$13,liquidez,108,0) ->  | AJ124: =Captura!AI194 -> 0
A125: 12 | B125: 0 | C125: 0 | D125: 0 | E125: 0 | F125: 0 | G125: 0 | H125: =IF(K124<0.01,0,IF(Adm!$S$4=Adm!$S$8,0,K124*Adm!$V$4)) -> 0 | I125: =IF(K124<0.01,0,IF($I$16<>"",E125*Adm!$O$8,0)) -> 0 | J125: 0 | K125: 0 | W125: 12 | X125: =IF(W125=1,Cal!$AC$127,0) -> 0 | AC125: 0 | AD125: 0 | AE125: 0 | AF125: 0 | AG125: 0 | AH125: =HLOOKUP($AH$13,liquidez,109,0) ->  | AJ125: =Captura!AI195 -> 0
A126: 1 | B126: 0 | C126: 0 | D126: 0 | E126: 0 | F126: 0 | G126: 0 | H126: =IF(K125<0.01,0,IF(Adm!$S$4=Adm!$S$8,0,K125*Adm!$V$4)) -> 0 | I126: =IF(K125<0.01,0,IF($I$16<>"",E126*Adm!$O$8,0)) -> 0 | J126: 0 | K126: 0 | W126: 1 | X126: =IF(W126=1,Cal!$AC$127,0) -> 0 | AC126: 0 | AD126: 0 | AE126: 0 | AF126: 0 | AG126: 0 | AH126: =HLOOKUP($AH$13,liquidez,110,0) ->  | AJ126: =Captura!AI196 -> 0
A127: 2 | B127: 0 | C127: 0 | D127: 0 | E127: 0 | F127: 0 | G127: 0 | H127: =IF(K126<0.01,0,IF(Adm!$S$4=Adm!$S$8,0,K126*Adm!$V$4)) -> 0 | I127: =IF(K126<0.01,0,IF($I$16<>"",E127*Adm!$O$8,0)) -> 0 | J127: 0 | K127: 0 | W127: 2 | X127: =IF(W127=1,Cal!$AC$127,0) -> 0 | AC127: 0 | AD127: 0 | AE127: 0 | AF127: 0 | AG127: 0 | AH127: =HLOOKUP($AH$13,liquidez,111,0) ->  | AJ127: =Captura!AI197 -> 0
A128: 3 | B128: 0 | C128: 0 | D128: 0 | E128: 0 | F128: 0 | G128: 0 | H128: =IF(K127<0.01,0,IF(Adm!$S$4=Adm!$S$8,0,K127*Adm!$V$4)) -> 0 | I128: =IF(K127<0.01,0,IF($I$16<>"",E128*Adm!$O$8,0)) -> 0 | J128: 0 | K128: 0 | W128: 3 | X128: =IF(W128=1,Cal!$AC$127,0) -> 0 | AC128: 0 | AD128: 0 | AE128: 0 | AF128: 0 | AG128: 0 | AH128: =HLOOKUP($AH$13,liquidez,112,0) ->  | AJ128: =Captura!AI198 -> 0
A129: 4 | B129: 0 | C129: 0 | D129: 0 | E129: 0 | F129: 0 | G129: 0 | H129: =IF(K128<0.01,0,IF(Adm!$S$4=Adm!$S$8,0,K128*Adm!$V$4)) -> 0 | I129: =IF(K128<0.01,0,IF($I$16<>"",E129*Adm!$O$8,0)) -> 0 | J129: 0 | K129: 0 | W129: 4 | X129: =IF(W129=1,Cal!$AC$127,0) -> 0 | AC129: 0 | AD129: 0 | AE129: 0 | AF129: 0 | AG129: 0 | AH129: =HLOOKUP($AH$13,liquidez,113,0) ->  | AJ129: =Captura!AI199 -> 0
A130: 5 | B130: 0 | C130: 0 | D130: 0 | E130: 0 | F130: 0 | G130: 0 | H130: =IF(K129<0.01,0,IF(Adm!$S$4=Adm!$S$8,0,K129*Adm!$V$4)) -> 0 | I130: =IF(K129<0.01,0,IF($I$16<>"",E130*Adm!$O$8,0)) -> 0 | J130: 0 | K130: 0 | W130: 5 | X130: =IF(W130=1,Cal!$AC$127,0) -> 0 | AC130: 0 | AD130: 0 | AE130: 0 | AF130: 0 | AG130: 0 | AH130: =HLOOKUP($AH$13,liquidez,114,0) ->  | AJ130: =Captura!AI200 -> 0
A131: 6 | B131: 0 | C131: 0 | D131: 0 | E131: 0 | F131: 0 | G131: 0 | H131: =IF(K130<0.01,0,IF(Adm!$S$4=Adm!$S$8,0,K130*Adm!$V$4)) -> 0 | I131: =IF(K130<0.01,0,IF($I$16<>"",E131*Adm!$O$8,0)) -> 0 | J131: 0 | K131: 0 | W131: 6 | X131: =IF(W131=1,Cal!$AC$127,0) -> 0 | AC131: 0 | AD131: 0 | AE131: 0 | AF131: 0 | AG131: 0 | AH131: =HLOOKUP($AH$13,liquidez,115,0) ->  | AJ131: =Captura!AI201 -> 0
A132: 7 | B132: 0 | C132: 0 | D132: 0 | E132: 0 | F132: 0 | G132: 0 | H132: =IF(K131<0.01,0,IF(Adm!$S$4=Adm!$S$8,0,K131*Adm!$V$4)) -> 0 | I132: =IF(K131<0.01,0,IF($I$16<>"",E132*Adm!$O$8,0)) -> 0 | J132: 0 | K132: 0 | W132: 7 | X132: =IF(W132=1,Cal!$AC$127,0) -> 0 | AC132: 0 | AD132: 0 | AE132: 0 | AF132: 0 | AG132: 0 | AH132: =HLOOKUP($AH$13,liquidez,116,0) ->  | AJ132: =Captura!AI202 -> 0
A133: 8 | B133: 0 | C133: 0 | D133: 0 | E133: 0 | F133: 0 | G133: 0 | H133: =IF(K132<0.01,0,IF(Adm!$S$4=Adm!$S$8,0,K132*Adm!$V$4)) -> 0 | I133: =IF(K132<0.01,0,IF($I$16<>"",E133*Adm!$O$8,0)) -> 0 | J133: 0 | K133: 0 | W133: 8 | X133: =IF(W133=1,Cal!$AC$127,0) -> 0 | AC133: 0 | AD133: 0 | AE133: 0 | AF133: 0 | AG133: 0 | AH133: =HLOOKUP($AH$13,liquidez,117,0) ->  | AJ133: =Captura!AI203 -> 0
A134: 9 | B134: 0 | C134: 0 | D134: 0 | E134: 0 | F134: 0 | G134: 0 | H134: =IF(K133<0.01,0,IF(Adm!$S$4=Adm!$S$8,0,K133*Adm!$V$4)) -> 0 | I134: =IF(K133<0.01,0,IF($I$16<>"",E134*Adm!$O$8,0)) -> 0 | J134: 0 | K134: 0 | W134: 9 | X134: =IF(W134=1,Cal!$AC$127,0) -> 0 | AC134: 0 | AD134: 0 | AE134: 0 | AF134: 0 | AG134: 0 | AH134: =HLOOKUP($AH$13,liquidez,118,0) ->  | AJ134: =Captura!AI204 -> 0
A135: 10 | B135: 0 | C135: 0 | D135: 0 | E135: 0 | F135: 0 | G135: 0 | H135: =IF(K134<0.01,0,IF(Adm!$S$4=Adm!$S$8,0,K134*Adm!$V$4)) -> 0 | I135: =IF(K134<0.01,0,IF($I$16<>"",E135*Adm!$O$8,0)) -> 0 | J135: 0 | K135: 0 | W135: 10 | X135: =IF(W135=1,Cal!$AC$127,0) -> 0 | AC135: 0 | AD135: 0 | AE135: 0 | AF135: 0 | AG135: 0 | AH135: =HLOOKUP($AH$13,liquidez,119,0) ->  | AJ135: =Captura!AI205 -> 0
A136: 11 | B136: 0 | C136: 0 | D136: 0 | E136: 0 | F136: 0 | G136: 0 | H136: =IF(K135<0.01,0,IF(Adm!$S$4=Adm!$S$8,0,K135*Adm!$V$4)) -> 0 | I136: =IF(K135<0.01,0,IF($I$16<>"",E136*Adm!$O$8,0)) -> 0 | J136: 0 | K136: 0 | W136: 11 | X136: =IF(W136=1,Cal!$AC$127,0) -> 0 | AC136: 0 | AD136: 0 | AE136: 0 | AF136: 0 | AG136: 0 | AH136: =HLOOKUP($AH$13,liquidez,120,0) ->  | AJ136: =Captura!AI206 -> 0
A137: 12 | B137: 0 | C137: 0 | D137: 0 | E137: 0 | F137: 0 | G137: 0 | H137: =IF(K136<0.01,0,IF(Adm!$S$4=Adm!$S$8,0,K136*Adm!$V$4)) -> 0 | I137: =IF(K136<0.01,0,IF($I$16<>"",E137*Adm!$O$8,0)) -> 0 | J137: 0 | K137: 0 | W137: 12 | X137: =IF(W137=1,Cal!$AC$127,0) -> 0 | AC137: 0 | AD137: 0 | AE137: 0 | AF137: 0 | AG137: 0 | AH137: =HLOOKUP($AH$13,liquidez,121,0) ->  | AJ137: =Captura!AI207 -> 0
A138: 1 | B138: 0 | C138: 0 | D138: 0 | E138: 0 | F138: 0 | G138: 0 | H138: =IF(K137<0.01,0,IF(Adm!$S$4=Adm!$S$8,0,K137*Adm!$V$4)) -> 0 | I138: =IF(K137<0.01,0,IF($I$16<>"",E138*Adm!$O$8,0)) -> 0 | J138: 0 | K138: 0 | W138: 1 | X138: =IF(W138=1,Cal!$AC$127,0) -> 0 | AC138: 0 | AD138: 0 | AE138: 0 | AF138: 0 | AG138: 0 | AH138: =HLOOKUP($AH$13,liquidez,122,0) ->  | AJ138: =Captura!AI208 -> 0
A139: 2 | B139: 0 | C139: 0 | D139: 0 | E139: 0 | F139: 0 | G139: 0 | H139: =IF(K138<0.01,0,IF(Adm!$S$4=Adm!$S$8,0,K138*Adm!$V$4)) -> 0 | I139: =IF(K138<0.01,0,IF($I$16<>"",E139*Adm!$O$8,0)) -> 0 | J139: 0 | K139: 0 | W139: 2 | X139: =IF(W139=1,Cal!$AC$127,0) -> 0 | AC139: 0 | AD139: 0 | AE139: 0 | AF139: 0 | AG139: 0 | AH139: =HLOOKUP($AH$13,liquidez,123,0) ->  | AJ139: =Captura!AI209 -> 0
A140: 3 | B140: 0 | C140: 0 | D140: 0 | E140: 0 | F140: 0 | G140: 0 | H140: =IF(K139<0.01,0,IF(Adm!$S$4=Adm!$S$8,0,K139*Adm!$V$4)) -> 0 | I140: =IF(K139<0.01,0,IF($I$16<>"",E140*Adm!$O$8,0)) -> 0 | J140: 0 | K140: 0 | W140: 3 | X140: =IF(W140=1,Cal!$AC$127,0) -> 0 | AC140: 0 | AD140: 0 | AE140: 0 | AF140: 0 | AG140: 0 | AH140: =HLOOKUP($AH$13,liquidez,124,0) ->  | AJ140: =Captura!AI210 -> 0
A141: 4 | B141: 0 | C141: 0 | D141: 0 | E141: 0 | F141: 0 | G141: 0 | H141: =IF(K140<0.01,0,IF(Adm!$S$4=Adm!$S$8,0,K140*Adm!$V$4)) -> 0 | I141: =IF(K140<0.01,0,IF($I$16<>"",E141*Adm!$O$8,0)) -> 0 | J141: 0 | K141: 0 | W141: 4 | X141: =IF(W141=1,Cal!$AC$127,0) -> 0 | AC141: 0 | AD141: 0 | AE141: 0 | AF141: 0 | AG141: 0 | AH141: =HLOOKUP($AH$13,liquidez,125,0) ->  | AJ141: =Captura!AI211 -> 0
A142: 5 | B142: 0 | C142: 0 | D142: 0 | E142: 0 | F142: 0 | G142: 0 | H142: =IF(K141<0.01,0,IF(Adm!$S$4=Adm!$S$8,0,K141*Adm!$V$4)) -> 0 | I142: =IF(K141<0.01,0,IF($I$16<>"",E142*Adm!$O$8,0)) -> 0 | J142: 0 | K142: 0 | W142: 5 | X142: =IF(W142=1,Cal!$AC$127,0) -> 0 | AC142: 0 | AD142: 0 | AE142: 0 | AF142: 0 | AG142: 0 | AH142: =HLOOKUP($AH$13,liquidez,125,0) ->  | AJ142: =Captura!AI212 -> 0
A143: 6 | B143: 0 | C143: 0 | D143: 0 | E143: 0 | F143: 0 | G143: 0 | H143: =IF(K142<0.01,0,IF(Adm!$S$4=Adm!$S$8,0,K142*Adm!$V$4)) -> 0 | I143: =IF(K142<0.01,0,IF($I$16<>"",E143*Adm!$O$8,0)) -> 0 | J143: 0 | K143: 0 | W143: 6 | X143: =IF(W143=1,Cal!$AC$127,0) -> 0 | AC143: 0 | AD143: 0 | AE143: 0 | AF143: 0 | AG143: 0 | AH143: =HLOOKUP($AH$13,liquidez,127,0) ->  | AJ143: =Captura!AI213 -> 0
A144: 7 | B144: 0 | C144: 0 | D144: 0 | E144: 0 | F144: 0 | G144: 0 | H144: =IF(K143<0.01,0,IF(Adm!$S$4=Adm!$S$8,0,K143*Adm!$V$4)) -> 0 | I144: =IF(K143<0.01,0,IF($I$16<>"",E144*Adm!$O$8,0)) -> 0 | J144: 0 | K144: 0 | W144: 7 | X144: =IF(W144=1,Cal!$AC$127,0) -> 0 | AC144: 0 | AD144: 0 | AE144: 0 | AF144: 0 | AG144: 0 | AH144: =HLOOKUP($AH$13,liquidez,128,0) ->  | AJ144: =Captura!AI214 -> 0
A145: 8 | B145: 0 | C145: 0 | D145: 0 | E145: 0 | F145: 0 | G145: 0 | H145: =IF(K144<0.01,0,IF(Adm!$S$4=Adm!$S$8,0,K144*Adm!$V$4)) -> 0 | I145: =IF(K144<0.01,0,IF($I$16<>"",E145*Adm!$O$8,0)) -> 0 | J145: 0 | K145: 0 | W145: 8 | X145: =IF(W145=1,Cal!$AC$127,0) -> 0 | AC145: 0 | AD145: 0 | AE145: 0 | AF145: 0 | AG145: 0 | AH145: =HLOOKUP($AH$13,liquidez,129,0) ->  | AJ145: =Captura!AI215 -> 0
A146: =IF(A145=12,1,A145+1) -> 9 | B146: =IF(K145<0.01,0,B145-1) -> 0 | C146: =IF(K145<0.01,0,C145+1) -> 0 | D146: 0 | E146: 0 | F146: =IF(K145<0.01,0,G146-E146) -> 0 | G146: 0 | H146: =IF(K145<0.01,0,IF(Adm!$S$4=Adm!$S$8,0,K145*Adm!$V$4)) -> 0 | I146: =IF(K145<0.01,0,IF($I$16<>"",E146*Adm!$O$8,0)) -> 0 | J146: =G146+H146+I146 -> 0 | K146: =IF(K145<0.01,0,K145-F146-L146) -> 0 | W146: 9 | X146: =IF(W146=1,Cal!$AC$127,0) -> 0 | AC146: 0 | AD146: 0 | AE146: 0 | AF146: 0 | AG146: 0 | AH146: =HLOOKUP($AH$13,liquidez,130,0) ->  | AJ146: =Captura!AI216 -> 0
A147: 10 | B147: 0 | C147: 0 | D147: =IF(K146<0.01,0,D146) -> 0 | E147: =IF(K146<0.01,0,K146*D147*30.4166/360) -> 0 | F147: 0 | G147: =IF(K146<0.1,0,MIN(K146+E147,IF(AC147>0,AC147,G146*(1+X147)))) -> 0 | H147: =IF(K146<0.01,0,IF(Adm!$S$4=Adm!$S$8,0,K146*Adm!$V$4)) -> 0 | I147: =IF(K146<0.01,0,IF($I$16<>"",E147*Adm!$O$8,0)) -> 0 | J147: 0 | K147: 0 | W147: =IF(W146=12,1,W146+1) -> 10 | X147: =IF(W147=1,Cal!$AC$127,0) -> 0 | AC147: 0 | AD147: 0 | AE147: 0 | AF147: 0 | AG147: =IF(AND($AE$12=2,L146<0.01),0,IF($AE$12=2,(K146*AH147)+E147,0)) -> 0 | AH147: =HLOOKUP($AH$13,liquidez,131,0) ->  | AJ147: =Captura!AI217 -> 0
A148: 11 | B148: 0 | C148: 0 | D148: 0 | E148: 0 | F148: 0 | G148: 0 | H148: =IF(K147<0.01,0,IF(Adm!$S$4=Adm!$S$8,0,K147*Adm!$V$4)) -> 0 | I148: =IF(K147<0.01,0,IF($I$16<>"",E148*Adm!$O$8,0)) -> 0 | J148: 0 | K148: 0 | W148: 11 | X148: =IF(W148=1,Cal!$AC$127,0) -> 0 | AC148: 0 | AD148: 0 | AE148: 0 | AF148: =IF(AND(AG148>0.01,$AC$12=2),AG148,0) -> 0 | AG148: 0 | AH148: =HLOOKUP($AH$13,liquidez,132,0) ->  | AJ148: =Captura!AI218 -> 0
A149: 12 | B149: 0 | C149: 0 | D149: 0 | E149: 0 | F149: 0 | G149: 0 | H149: =IF(K148<0.01,0,IF(Adm!$S$4=Adm!$S$8,0,K148*Adm!$V$4)) -> 0 | I149: =IF(K148<0.01,0,IF($I$16<>"",E149*Adm!$O$8,0)) -> 0 | J149: 0 | K149: 0 | W149: 12 | X149: =IF(W149=1,Cal!$AC$127,0) -> 0 | AC149: =IF(AD149>1,AD149,IF(AF149>1,AF149,0)) -> 0 | AD149: =IF(AND($AE$12=1,L148>0.1),AE149,0) -> 0 | AE149: =IF(AND($AE$12=1,$AC$12=2),PMT((($D$18/360)*(365/12)),B148,-K148),0) -> 0 | AF149: 0 | AG149: 0 | AH149: =HLOOKUP($AH$13,liquidez,133,0) ->  | AJ149: =Captura!AI219 -> 0
A150: 1 | B150: 0 | C150: 0 | D150: 0 | E150: 0 | F150: 0 | G150: 0 | H150: =IF(K149<0.01,0,IF(Adm!$S$4=Adm!$S$8,0,K149*Adm!$V$4)) -> 0 | I150: =IF(K149<0.01,0,IF($I$16<>"",E150*Adm!$O$8,0)) -> 0 | J150: 0 | K150: 0 | W150: 1 | X150: =IF(W150=1,Cal!$AC$127,0) -> 0 | AC150: 0 | AD150: 0 | AE150: 0 | AF150: 0 | AG150: 0 | AH150: =HLOOKUP($AH$13,liquidez,134,0) ->  | AJ150: =Captura!AI220 -> 0
A151: 2 | B151: 0 | C151: 0 | D151: 0 | E151: 0 | F151: 0 | G151: 0 | H151: =IF(K150<0.01,0,IF(Adm!$S$4=Adm!$S$8,0,K150*Adm!$V$4)) -> 0 | I151: =IF(K150<0.01,0,IF($I$16<>"",E151*Adm!$O$8,0)) -> 0 | J151: 0 | K151: 0 | W151: 2 | X151: =IF(W151=1,Cal!$AC$127,0) -> 0 | AC151: 0 | AD151: 0 | AE151: 0 | AF151: 0 | AG151: 0 | AH151: =HLOOKUP($AH$13,liquidez,135,0) ->  | AJ151: =Captura!AI221 -> 0
A152: 3 | B152: 0 | C152: 0 | D152: 0 | E152: 0 | F152: 0 | G152: 0 | H152: =IF(K151<0.01,0,IF(Adm!$S$4=Adm!$S$8,0,K151*Adm!$V$4)) -> 0 | I152: =IF(K151<0.01,0,IF($I$16<>"",E152*Adm!$O$8,0)) -> 0 | J152: 0 | K152: 0 | W152: 3 | X152: =IF(W152=1,Cal!$AC$127,0) -> 0 | AC152: 0 | AD152: 0 | AE152: 0 | AF152: 0 | AG152: 0 | AH152: =HLOOKUP($AH$13,liquidez,136,0) ->  | AJ152: =Captura!AI222 -> 0
A153: 4 | B153: 0 | C153: 0 | D153: 0 | E153: 0 | F153: 0 | G153: 0 | H153: =IF(K152<0.01,0,IF(Adm!$S$4=Adm!$S$8,0,K152*Adm!$V$4)) -> 0 | I153: =IF(K152<0.01,0,IF($I$16<>"",E153*Adm!$O$8,0)) -> 0 | J153: 0 | K153: 0 | W153: 4 | X153: =IF(W153=1,Cal!$AC$127,0) -> 0 | AC153: 0 | AD153: 0 | AE153: 0 | AF153: 0 | AG153: 0 | AH153: =HLOOKUP($AH$13,liquidez,137,0) ->  | AJ153: =Captura!AI223 -> 0
A154: 5 | B154: 0 | C154: 0 | D154: 0 | E154: 0 | F154: 0 | G154: 0 | H154: =IF(K153<0.01,0,IF(Adm!$S$4=Adm!$S$8,0,K153*Adm!$V$4)) -> 0 | I154: =IF(K153<0.01,0,IF($I$16<>"",E154*Adm!$O$8,0)) -> 0 | J154: 0 | K154: 0 | W154: 5 | X154: =IF(W154=1,Cal!$AC$127,0) -> 0 | AC154: 0 | AD154: 0 | AE154: 0 | AF154: 0 | AG154: 0 | AH154: =HLOOKUP($AH$13,liquidez,138,0) ->  | AJ154: =Captura!AI224 -> 0
A155: 6 | B155: 0 | C155: 0 | D155: 0 | E155: 0 | F155: 0 | G155: 0 | H155: =IF(K154<0.01,0,IF(Adm!$S$4=Adm!$S$8,0,K154*Adm!$V$4)) -> 0 | I155: =IF(K154<0.01,0,IF($I$16<>"",E155*Adm!$O$8,0)) -> 0 | J155: 0 | K155: 0 | W155: 6 | X155: =IF(W155=1,Cal!$AC$127,0) -> 0 | AC155: 0 | AD155: 0 | AE155: 0 | AF155: 0 | AG155: 0 | AH155: =HLOOKUP($AH$13,liquidez,139,0) ->  | AJ155: =Captura!AI225 -> 0
A156: 7 | B156: 0 | C156: 0 | D156: 0 | E156: 0 | F156: 0 | G156: 0 | H156: =IF(K155<0.01,0,IF(Adm!$S$4=Adm!$S$8,0,K155*Adm!$V$4)) -> 0 | I156: =IF(K155<0.01,0,IF($I$16<>"",E156*Adm!$O$8,0)) -> 0 | J156: 0 | K156: 0 | W156: 7 | X156: =IF(W156=1,Cal!$AC$127,0) -> 0 | AC156: 0 | AD156: 0 | AE156: 0 | AF156: 0 | AG156: 0 | AH156: =HLOOKUP($AH$13,liquidez,140,0) ->  | AJ156: =Captura!AI226 -> 0
A157: 8 | B157: 0 | C157: 0 | D157: 0 | E157: 0 | F157: 0 | G157: 0 | H157: =IF(K156<0.01,0,IF(Adm!$S$4=Adm!$S$8,0,K156*Adm!$V$4)) -> 0 | I157: =IF(K156<0.01,0,IF($I$16<>"",E157*Adm!$O$8,0)) -> 0 | J157: 0 | K157: 0 | W157: 8 | X157: =IF(W157=1,Cal!$AC$127,0) -> 0 | AC157: 0 | AD157: 0 | AE157: 0 | AF157: 0 | AG157: 0 | AH157: =HLOOKUP($AH$13,liquidez,141,0) ->  | AJ157: =Captura!AI227 -> 0
A158: 9 | B158: 0 | C158: 0 | D158: 0 | E158: 0 | F158: 0 | G158: 0 | H158: =IF(K157<0.01,0,IF(Adm!$S$4=Adm!$S$8,0,K157*Adm!$V$4)) -> 0 | I158: =IF(K157<0.01,0,IF($I$16<>"",E158*Adm!$O$8,0)) -> 0 | J158: 0 | K158: 0 | W158: 9 | X158: =IF(W158=1,Cal!$AC$127,0) -> 0 | AC158: 0 | AD158: 0 | AE158: 0 | AF158: 0 | AG158: 0 | AH158: =HLOOKUP($AH$13,liquidez,142,0) ->  | AJ158: =Captura!AI228 -> 0
A159: 10 | B159: 0 | C159: 0 | D159: 0 | E159: 0 | F159: 0 | G159: 0 | H159: =IF(K158<0.01,0,IF(Adm!$S$4=Adm!$S$8,0,K158*Adm!$V$4)) -> 0 | I159: =IF(K158<0.01,0,IF($I$16<>"",E159*Adm!$O$8,0)) -> 0 | J159: 0 | K159: 0 | W159: 10 | X159: =IF(W159=1,Cal!$AC$127,0) -> 0 | AC159: 0 | AD159: 0 | AE159: 0 | AF159: 0 | AG159: 0 | AH159: =HLOOKUP($AH$13,liquidez,143,0) ->  | AJ159: =Captura!AI229 -> 0
A160: 11 | B160: 0 | C160: 0 | D160: 0 | E160: 0 | F160: 0 | G160: 0 | H160: =IF(K159<0.01,0,IF(Adm!$S$4=Adm!$S$8,0,K159*Adm!$V$4)) -> 0 | I160: =IF(K159<0.01,0,IF($I$16<>"",E160*Adm!$O$8,0)) -> 0 | J160: 0 | K160: 0 | W160: 11 | X160: =IF(W160=1,Cal!$AC$127,0) -> 0 | AC160: 0 | AD160: 0 | AE160: 0 | AF160: 0 | AG160: 0 | AH160: =HLOOKUP($AH$13,liquidez,144,0) ->  | AJ160: =Captura!AI230 -> 0
A161: 12 | B161: 0 | C161: 0 | D161: 0 | E161: 0 | F161: 0 | G161: 0 | H161: =IF(K160<0.01,0,IF(Adm!$S$4=Adm!$S$8,0,K160*Adm!$V$4)) -> 0 | I161: =IF(K160<0.01,0,IF($I$16<>"",E161*Adm!$O$8,0)) -> 0 | J161: 0 | K161: 0 | W161: 12 | X161: =IF(W161=1,Cal!$AC$127,0) -> 0 | AC161: 0 | AD161: 0 | AE161: 0 | AF161: 0 | AG161: 0 | AH161: =HLOOKUP($AH$13,liquidez,145,0) ->  | AJ161: =Captura!AI231 -> 0
A162: 1 | B162: 0 | C162: 0 | D162: 0 | E162: 0 | F162: 0 | G162: 0 | H162: =IF(K161<0.01,0,IF(Adm!$S$4=Adm!$S$8,0,K161*Adm!$V$4)) -> 0 | I162: =IF(K161<0.01,0,IF($I$16<>"",E162*Adm!$O$8,0)) -> 0 | J162: 0 | K162: 0 | W162: 1 | X162: =IF(W162=1,Cal!$AC$127,0) -> 0 | AC162: 0 | AD162: 0 | AE162: 0 | AF162: 0 | AG162: 0 | AH162: =HLOOKUP($AH$13,liquidez,146,0) ->  | AJ162: =Captura!AI232 -> 0
A163: 2 | B163: 0 | C163: 0 | D163: 0 | E163: 0 | F163: 0 | G163: 0 | H163: =IF(K162<0.01,0,IF(Adm!$S$4=Adm!$S$8,0,K162*Adm!$V$4)) -> 0 | I163: =IF(K162<0.01,0,IF($I$16<>"",E163*Adm!$O$8,0)) -> 0 | J163: 0 | K163: 0 | W163: 2 | X163: =IF(W163=1,Cal!$AC$127,0) -> 0 | AC163: 0 | AD163: 0 | AE163: 0 | AF163: 0 | AG163: 0 | AH163: =HLOOKUP($AH$13,liquidez,147,0) ->  | AJ163: =Captura!AI233 -> 0
A164: 3 | B164: 0 | C164: 0 | D164: 0 | E164: 0 | F164: 0 | G164: 0 | H164: =IF(K163<0.01,0,IF(Adm!$S$4=Adm!$S$8,0,K163*Adm!$V$4)) -> 0 | I164: =IF(K163<0.01,0,IF($I$16<>"",E164*Adm!$O$8,0)) -> 0 | J164: 0 | K164: 0 | W164: 3 | X164: =IF(W164=1,Cal!$AC$127,0) -> 0 | AC164: 0 | AD164: 0 | AE164: 0 | AF164: 0 | AG164: 0 | AH164: =HLOOKUP($AH$13,liquidez,148,0) ->  | AJ164: =Captura!AI234 -> 0
A165: 4 | B165: 0 | C165: 0 | D165: 0 | E165: 0 | F165: 0 | G165: 0 | H165: =IF(K164<0.01,0,IF(Adm!$S$4=Adm!$S$8,0,K164*Adm!$V$4)) -> 0 | I165: =IF(K164<0.01,0,IF($I$16<>"",E165*Adm!$O$8,0)) -> 0 | J165: 0 | K165: 0 | W165: 4 | X165: =IF(W165=1,Cal!$AC$127,0) -> 0 | AC165: 0 | AD165: 0 | AE165: 0 | AF165: 0 | AG165: 0 | AH165: =HLOOKUP($AH$13,liquidez,149,0) ->  | AJ165: =Captura!AI235 -> 0
A166: 5 | B166: 0 | C166: 0 | D166: 0 | E166: 0 | F166: 0 | G166: 0 | H166: =IF(K165<0.01,0,IF(Adm!$S$4=Adm!$S$8,0,K165*Adm!$V$4)) -> 0 | I166: =IF(K165<0.01,0,IF($I$16<>"",E166*Adm!$O$8,0)) -> 0 | J166: 0 | K166: 0 | W166: 5 | X166: =IF(W166=1,Cal!$AC$127,0) -> 0 | AC166: 0 | AD166: 0 | AE166: 0 | AF166: 0 | AG166: 0 | AH166: =HLOOKUP($AH$13,liquidez,150,0) ->  | AJ166: =Captura!AI236 -> 0
A167: 6 | B167: 0 | C167: 0 | D167: 0 | E167: 0 | F167: 0 | G167: 0 | H167: =IF(K166<0.01,0,IF(Adm!$S$4=Adm!$S$8,0,K166*Adm!$V$4)) -> 0 | I167: =IF(K166<0.01,0,IF($I$16<>"",E167*Adm!$O$8,0)) -> 0 | J167: 0 | K167: 0 | W167: 6 | X167: =IF(W167=1,Cal!$AC$127,0) -> 0 | AC167: 0 | AD167: 0 | AE167: 0 | AF167: 0 | AG167: 0 | AH167: =HLOOKUP($AH$13,liquidez,151,0) ->  | AJ167: =Captura!AI237 -> 0
A168: 7 | B168: 0 | C168: 0 | D168: 0 | E168: 0 | F168: 0 | G168: 0 | H168: =IF(K167<0.01,0,IF(Adm!$S$4=Adm!$S$8,0,K167*Adm!$V$4)) -> 0 | I168: =IF(K167<0.01,0,IF($I$16<>"",E168*Adm!$O$8,0)) -> 0 | J168: 0 | K168: 0 | W168: 7 | X168: =IF(W168=1,Cal!$AC$127,0) -> 0 | AC168: 0 | AD168: 0 | AE168: 0 | AF168: 0 | AG168: 0 | AH168: =HLOOKUP($AH$13,liquidez,152,0) ->  | AJ168: =Captura!AI238 -> 0
A169: 8 | B169: 0 | C169: 0 | D169: 0 | E169: 0 | F169: 0 | G169: 0 | H169: =IF(K168<0.01,0,IF(Adm!$S$4=Adm!$S$8,0,K168*Adm!$V$4)) -> 0 | I169: =IF(K168<0.01,0,IF($I$16<>"",E169*Adm!$O$8,0)) -> 0 | J169: 0 | K169: 0 | W169: 8 | X169: =IF(W169=1,Cal!$AC$127,0) -> 0 | AC169: 0 | AD169: 0 | AE169: 0 | AF169: 0 | AG169: 0 | AH169: =HLOOKUP($AH$13,liquidez,153,0) ->  | AJ169: =Captura!AI239 -> 0
A170: 9 | B170: 0 | C170: 0 | D170: 0 | E170: 0 | F170: 0 | G170: 0 | H170: =IF(K169<0.01,0,IF(Adm!$S$4=Adm!$S$8,0,K169*Adm!$V$4)) -> 0 | I170: =IF(K169<0.01,0,IF($I$16<>"",E170*Adm!$O$8,0)) -> 0 | J170: 0 | K170: 0 | W170: 9 | X170: =IF(W170=1,Cal!$AC$127,0) -> 0 | AC170: 0 | AD170: 0 | AE170: 0 | AF170: 0 | AG170: 0 | AH170: =HLOOKUP($AH$13,liquidez,154,0) ->  | AJ170: =Captura!AI240 -> 0
A171: 10 | B171: 0 | C171: 0 | D171: 0 | E171: 0 | F171: 0 | G171: 0 | H171: =IF(K170<0.01,0,IF(Adm!$S$4=Adm!$S$8,0,K170*Adm!$V$4)) -> 0 | I171: =IF(K170<0.01,0,IF($I$16<>"",E171*Adm!$O$8,0)) -> 0 | J171: 0 | K171: 0 | W171: 10 | X171: =IF(W171=1,Cal!$AC$127,0) -> 0 | AC171: 0 | AD171: 0 | AE171: 0 | AF171: 0 | AG171: 0 | AH171: =HLOOKUP($AH$13,liquidez,155,0) ->  | AJ171: =Captura!AI241 -> 0
A172: 11 | B172: 0 | C172: 0 | D172: 0 | E172: 0 | F172: 0 | G172: 0 | H172: =IF(K171<0.01,0,IF(Adm!$S$4=Adm!$S$8,0,K171*Adm!$V$4)) -> 0 | I172: =IF(K171<0.01,0,IF($I$16<>"",E172*Adm!$O$8,0)) -> 0 | J172: 0 | K172: 0 | W172: 11 | X172: =IF(W172=1,Cal!$AC$127,0) -> 0 | AC172: 0 | AD172: 0 | AE172: 0 | AF172: 0 | AG172: 0 | AH172: =HLOOKUP($AH$13,liquidez,156,0) ->  | AJ172: =Captura!AI242 -> 0
A173: 12 | B173: 0 | C173: 0 | D173: 0 | E173: 0 | F173: 0 | G173: 0 | H173: =IF(K172<0.01,0,IF(Adm!$S$4=Adm!$S$8,0,K172*Adm!$V$4)) -> 0 | I173: =IF(K172<0.01,0,IF($I$16<>"",E173*Adm!$O$8,0)) -> 0 | J173: 0 | K173: 0 | W173: 12 | X173: =IF(W173=1,Cal!$AC$127,0) -> 0 | AC173: 0 | AD173: 0 | AE173: 0 | AF173: 0 | AG173: 0 | AH173: =HLOOKUP($AH$13,liquidez,157,0) ->  | AJ173: =Captura!AI243 -> 0
A174: 1 | B174: 0 | C174: 0 | D174: 0 | E174: 0 | F174: 0 | G174: 0 | H174: =IF(K173<0.01,0,IF(Adm!$S$4=Adm!$S$8,0,K173*Adm!$V$4)) -> 0 | I174: =IF(K173<0.01,0,IF($I$16<>"",E174*Adm!$O$8,0)) -> 0 | J174: 0 | K174: 0 | W174: 1 | X174: =IF(W174=1,Cal!$AC$127,0) -> 0 | AC174: 0 | AD174: 0 | AE174: 0 | AF174: 0 | AG174: 0 | AH174: =HLOOKUP($AH$13,liquidez,158,0) ->  | AJ174: =Captura!AI244 -> 0
A175: 2 | B175: 0 | C175: 0 | D175: 0 | E175: 0 | F175: 0 | G175: 0 | H175: =IF(K174<0.01,0,IF(Adm!$S$4=Adm!$S$8,0,K174*Adm!$V$4)) -> 0 | I175: =IF(K174<0.01,0,IF($I$16<>"",E175*Adm!$O$8,0)) -> 0 | J175: 0 | K175: 0 | W175: 2 | X175: =IF(W175=1,Cal!$AC$127,0) -> 0 | AC175: 0 | AD175: 0 | AE175: 0 | AF175: 0 | AG175: 0 | AH175: =HLOOKUP($AH$13,liquidez,159,0) ->  | AJ175: =Captura!AI245 -> 0
A176: 3 | B176: 0 | C176: 0 | D176: 0 | E176: 0 | F176: 0 | G176: 0 | H176: =IF(K175<0.01,0,IF(Adm!$S$4=Adm!$S$8,0,K175*Adm!$V$4)) -> 0 | I176: =IF(K175<0.01,0,IF($I$16<>"",E176*Adm!$O$8,0)) -> 0 | J176: 0 | K176: 0 | W176: 3 | X176: =IF(W176=1,Cal!$AC$127,0) -> 0 | AC176: 0 | AD176: 0 | AE176: 0 | AF176: 0 | AG176: 0 | AH176: =HLOOKUP($AH$13,liquidez,160,0) ->  | AJ176: =Captura!AI246 -> 0
A177: 4 | B177: 0 | C177: 0 | D177: 0 | E177: 0 | F177: 0 | G177: 0 | H177: =IF(K176<0.01,0,IF(Adm!$S$4=Adm!$S$8,0,K176*Adm!$V$4)) -> 0 | I177: =IF(K176<0.01,0,IF($I$16<>"",E177*Adm!$O$8,0)) -> 0 | J177: 0 | K177: 0 | W177: 4 | X177: =IF(W177=1,Cal!$AC$127,0) -> 0 | AC177: 0 | AD177: 0 | AE177: 0 | AF177: 0 | AG177: 0 | AH177: =HLOOKUP($AH$13,liquidez,161,0) ->  | AJ177: =Captura!AI247 -> 0
A178: 5 | B178: 0 | C178: 0 | D178: 0 | E178: 0 | F178: 0 | G178: 0 | H178: =IF(K177<0.01,0,IF(Adm!$S$4=Adm!$S$8,0,K177*Adm!$V$4)) -> 0 | I178: =IF(K177<0.01,0,IF($I$16<>"",E178*Adm!$O$8,0)) -> 0 | J178: 0 | K178: 0 | W178: 5 | X178: =IF(W178=1,Cal!$AC$127,0) -> 0 | AC178: 0 | AD178: 0 | AE178: 0 | AF178: 0 | AG178: 0 | AH178: =HLOOKUP($AH$13,liquidez,162,0) ->  | AJ178: =Captura!AI248 -> 0
A179: 6 | B179: 0 | C179: 0 | D179: 0 | E179: 0 | F179: 0 | G179: 0 | H179: =IF(K178<0.01,0,IF(Adm!$S$4=Adm!$S$8,0,K178*Adm!$V$4)) -> 0 | I179: =IF(K178<0.01,0,IF($I$16<>"",E179*Adm!$O$8,0)) -> 0 | J179: 0 | K179: 0 | W179: 6 | X179: =IF(W179=1,Cal!$AC$127,0) -> 0 | AC179: 0 | AD179: 0 | AE179: 0 | AF179: 0 | AG179: 0 | AH179: =HLOOKUP($AH$13,liquidez,163,0) ->  | AJ179: =Captura!AI249 -> 0
A180: 7 | B180: 0 | C180: 0 | D180: 0 | E180: 0 | F180: 0 | G180: 0 | H180: =IF(K179<0.01,0,IF(Adm!$S$4=Adm!$S$8,0,K179*Adm!$V$4)) -> 0 | I180: =IF(K179<0.01,0,IF($I$16<>"",E180*Adm!$O$8,0)) -> 0 | J180: 0 | K180: 0 | W180: 7 | X180: =IF(W180=1,Cal!$AC$127,0) -> 0 | AC180: 0 | AD180: 0 | AE180: 0 | AF180: 0 | AG180: 0 | AH180: =HLOOKUP($AH$13,liquidez,164,0) ->  | AJ180: =Captura!AI250 -> 0
A181: 8 | B181: 0 | C181: 0 | D181: 0 | E181: 0 | F181: 0 | G181: 0 | H181: =IF(K180<0.01,0,IF(Adm!$S$4=Adm!$S$8,0,K180*Adm!$V$4)) -> 0 | I181: =IF(K180<0.01,0,IF($I$16<>"",E181*Adm!$O$8,0)) -> 0 | J181: 0 | K181: 0 | W181: 8 | X181: =IF(W181=1,Cal!$AC$127,0) -> 0 | AC181: 0 | AD181: 0 | AE181: 0 | AF181: 0 | AG181: 0 | AH181: =HLOOKUP($AH$13,liquidez,165,0) ->  | AJ181: =Captura!AI251 -> 0
A182: 9 | B182: 0 | C182: 0 | D182: 0 | E182: 0 | F182: 0 | G182: 0 | H182: =IF(K181<0.01,0,IF(Adm!$S$4=Adm!$S$8,0,K181*Adm!$V$4)) -> 0 | I182: =IF(K181<0.01,0,IF($I$16<>"",E182*Adm!$O$8,0)) -> 0 | J182: 0 | K182: 0 | W182: 9 | X182: =IF(W182=1,Cal!$AC$127,0) -> 0 | AC182: 0 | AD182: 0 | AE182: 0 | AF182: 0 | AG182: 0 | AH182: =HLOOKUP($AH$13,liquidez,166,0) ->  | AJ182: =Captura!AI252 -> 0
A183: 10 | B183: 0 | C183: 0 | D183: 0 | E183: 0 | F183: 0 | G183: 0 | H183: =IF(K182<0.01,0,IF(Adm!$S$4=Adm!$S$8,0,K182*Adm!$V$4)) -> 0 | I183: =IF(K182<0.01,0,IF($I$16<>"",E183*Adm!$O$8,0)) -> 0 | J183: 0 | K183: 0 | W183: 10 | X183: =IF(W183=1,Cal!$AC$127,0) -> 0 | AC183: 0 | AD183: 0 | AE183: 0 | AF183: 0 | AG183: 0 | AH183: =HLOOKUP($AH$13,liquidez,167,0) ->  | AJ183: =Captura!AI253 -> 0
A184: 11 | B184: 0 | C184: 0 | D184: 0 | E184: 0 | F184: 0 | G184: 0 | H184: =IF(K183<0.01,0,IF(Adm!$S$4=Adm!$S$8,0,K183*Adm!$V$4)) -> 0 | I184: =IF(K183<0.01,0,IF($I$16<>"",E184*Adm!$O$8,0)) -> 0 | J184: 0 | K184: 0 | W184: 11 | X184: =IF(W184=1,Cal!$AC$127,0) -> 0 | AC184: 0 | AD184: 0 | AE184: 0 | AF184: 0 | AG184: 0 | AH184: =HLOOKUP($AH$13,liquidez,168,0) ->  | AJ184: =Captura!AI254 -> 0
A185: 12 | B185: 0 | C185: 0 | D185: 0 | E185: 0 | F185: 0 | G185: 0 | H185: =IF(K184<0.01,0,IF(Adm!$S$4=Adm!$S$8,0,K184*Adm!$V$4)) -> 0 | I185: =IF(K184<0.01,0,IF($I$16<>"",E185*Adm!$O$8,0)) -> 0 | J185: 0 | K185: 0 | W185: 12 | X185: =IF(W185=1,Cal!$AC$127,0) -> 0 | AC185: 0 | AD185: 0 | AE185: 0 | AF185: 0 | AG185: 0 | AH185: =HLOOKUP($AH$13,liquidez,169,0) ->  | AJ185: =Captura!AI255 -> 0
